Workbook

Sheet الشيت
D2: إدارة | F2: =#REF! ->  | R2: شيـــــــــــــت رصـــــــــــــــــــــــــــد درجـــــــــــــــــــــــــات الصـــــــــــــــــــــــــــف | AK2: =#REF! ->  | AQ2: للعـــــــــــــــام الدراســـــــي | AW2: =#REF! -> 
D3: مدرسة | F3: =#REF! -> 
B4: النتيجـة | D4: مسلسل | E4: رقم الجلوس | F4: عدد الطلاب | G4: رقـم اللجنـــة | H4: الفصـل | I4: الحـالــة | J4: الـنوع | K4: الديــانـة | L4: الرقم القومى | M4: تـاريخ الميلاد | N4: السن أول أكتوبر | O4: سري ترم أول | P4: سري ترم ثاني | R4: لغة عربية | V4: لغة إنجليزية | Z4: لغة فرنسية | AD4: جغرافيا | AH4: رياضة عامة | AL4: حاسب آلي | AX4: محاسبة مالية | BB4: تسويق | BF4: إدارة أعمال | BJ4: إقتصــاد | BN4: قانون تجاري | BR4: سكرتارية عربية | BV4: سكرتارية أجنبية | BZ4: مجموع نصف العام | CA4: مجموع آخر العام | CB4: تربيـة دينية | CF4: مواطنة | CJ4: تقديرات ترم أول | CK4: نتيجة أخر العام | CL4: مواد الرسوب | CM4: الترتــيـب | CN4: عدد مواد الرسوب | CQ4: ناجح | CR4: ضعيف | EA4: غائب
F5: =COUNTA(F10:F599) -> 337 | R5: أعمال السـنـة | S5: ترم أول | T5: ترم ثانى | U5: المجموع | V5: أعمال السـنـة | W5: ترم أول | X5: ترم ثانى | Y5: المجموع | Z5: أعمال السـنـة | AA5: ترم أول | AB5: ترم ثانى | AC5: المجموع | AD5: أعمال السـنـة | AE5: ترم أول | AF5: ترم ثانى | AG5: المجموع | AH5: أعمال السـنـة | AI5: ترم أول | AJ5: ترم ثانى | AK5: المجموع | AL5: أعمــال السنة | AO5: تـــــرم أول | AR5: تـــــرم ثانى | AU5: مجموع العملى | AV5: مجموع التحريري | AW5: المجموع | AX5: أعمال السـنـة | AY5: ترم أول | AZ5: ترم ثانى | BA5: المجموع | BB5: أعمال السـنـة | BC5: ترم أول | BD5: ترم ثانى | BE5: المجموع | BF5: أعمال السـنـة | BG5: ترم أول | BH5: ترم ثانى | BI5: المجموع | BJ5: أعمال السـنـة | BK5: ترم أول | BL5: ترم ثانى | BM5: المجموع | BN5: أعمال السـنـة | BO5: ترم أول | BP5: ترم ثانى | BQ5: المجموع | BR5: أعمال السـنـة | BS5: ترم أول | BT5: ترم ثانى | BU5: المجموع | BV5: أعمال السـنـة | BW5: ترم أول | BX5: ترم ثانى | BY5: المجموع | CB5: أعمال السـنـة | CC5: ترم أول | CD5: ترم ثانى | CE5: المجموع | CF5: أعمال السـنـة | CG5: ترم أول | CH5: ترم ثانى | CI5: المجموع | CQ5: ناجح | CR5: ضعيف | EA5: غائب
F6: إسم الطالب | AL6: عملى | AM6: تحريري | AN6: مجموع | AO6: عملى | AP6: تحريري | AQ6: مجموع | AR6: عملى | AS6: تحريري | AT6: مجموع | CQ6: ناجح | CR6: ضعيف | EA6: غائب
N8: يوم/شهر/سنة | R8: 10 | S8: 20 | T8: 20 | U8: 50 | V8: 10 | W8: 20 | X8: 20 | Y8: 50 | Z8: 6 | AA8: 12 | AB8: 12 | AC8: 30 | AD8: 8 | AE8: 16 | AF8: 16 | AG8: 40 | AH8: 6 | AI8: 12 | AJ8: 12 | AK8: 30 | AN8: 10 | AO8: 8 | AP8: 12 | AQ8: 20 | AR8: 8 | AS8: 12 | AT8: 20 | AU8: 20 | AV8: 30 | AW8: 50 | AX8: 10 | AY8: 20 | AZ8: 20 | BA8: 50 | BB8: 10 | BC8: 20 | BD8: 20 | BE8: 50 | BF8: 10 | BG8: 20 | BH8: 20 | BI8: 50 | BJ8: 10 | BK8: 20 | BL8: 20 | BM8: 50 | BN8: 10 | BO8: 20 | BP8: 20 | BQ8: 50 | BR8: 10 | BS8: 20 | BT8: 20 | BU8: 50 | BV8: 10 | BW8: 20 | BX8: 20 | BY8: 50 | BZ8: =SUM(S8,W8,AA8,AI8,AQ8,AU8,AY8,BC8,BG8,BK8,BO8,BS8,BW8) -> 244 | CA8: =SUM(U8,Y8,AC8,AO8,AS8,AW8,BA8,BE8,BI8,BM8,BQ8,BU8,BY8) -> 550 | CB8: 4 | CC8: 8 | CD8: 8 | CE8: 20 | CF8: 4 | CG8: 8 | CH8: 8 | CI8: 20 | CO8: 13 | EA8: 1/1
T9: 5 | U9: 25 | X9: 5 | Y9: 20 | AB9: 3 | AC9: 9 | AF9: 4 | AG9: 16 | AJ9: 3 | AK9: 15 | AR9: 2 | AS9: 3 | AT9: 5 | AU9: 10 | AV9: 15 | AW9: 25 | AZ9: 5 | BA9: 25 | BD9: 5 | BE9: 25 | BH9: 5 | BI9: 25 | BL9: 5 | BM9: 25 | BP9: 5 | BQ9: 25 | BT9: 5 | BU9: 25 | BX9: 5 | BY9: 20 | CA9: =SUM(U9,Y9,AC9,AO9,AS9,AW9,BA9,BE9,BI9,BM9,BQ9,BU9,BY9) -> 252 | CD9: 2 | CE9: 10 | CH9: 2 | CI9: 10 | CO9: =R4 -> لغة عربية | CP9: =V4 -> لغة إنجليزية | CQ9: =Z4 -> لغة فرنسية | CR9: =AD4 -> جغرافيا | CS9: =AH4 -> رياضة عامة | CT9: =AL4 -> حاسب آلي | CU9: =AX4 -> محاسبة مالية | CV9: =BB4 -> تسويق | CW9: =BF4 -> إدارة أعمال | CX9: =BJ4 -> إقتصــاد | CY9: =BN4 -> قانون تجاري | CZ9: =BR4 -> سكرتارية عربية | DA9: =BV4 -> سكرتارية أجنبية | DB9: مجموع كلي | DC9: =CB4 -> تربيـة دينية | DD9: =CF4 -> مواطنة | DE9: =AU5 -> مجموع العملى | DF9: =AV5 -> مجموع التحريري | DH9: =R4 -> لغة عربية | DI9: =V4 -> لغة إنجليزية | DJ9: =Z4 -> لغة فرنسية | DK9: =AD4 -> جغرافيا | DL9: =AH4 -> رياضة عامة | DM9: =AL4 -> حاسب آلي | DN9: =AX4 -> محاسبة مالية | DO9: =BB4 -> تسويق | DP9: =BF4 -> إدارة أعمال | DQ9: =BJ4 -> إقتصــاد | DR9: =BN4 -> قانون تجاري | DS9: =BR4 -> سكرتارية عربية | DT9: =BV4 -> سكرتارية أجنبية | DU9: مجموع كلي | DV9: =CB4 -> تربيـة دينية | DW9: =CF4 -> مواطنة | DY9: ربع الدرجة | EA9: 2/1
B10: =CK10 -> ناجح | C10: =CM10 -> 144 | D10: =IF(E10="","",ROW()-9) -> 1 | E10: 1 | F10: طالب تجارة 1 | G10: 1 | H10: 1/1 | I10: معيد | J10: ذكر | K10: مسلم | L10: 30212091401756 | M10: =IF(L10="","",DATE(LEFT(L10,1)+17&MID(L10,2,2),MID(L10,4,2),MID(L10,6,2))) -> 2002-12-09 | N10: =IF(الشيت!M10="","",CONCATENATE(DATEDIF(الشيت!M10,#REF!,"md")," - ",DATEDIF(الشيت!M10,#REF!,"ym")," - ",DATEDIF(الشيت!M10,#REF!,"y"))) ->  | O10: 71 | P10: 57 | R10: 8 | S10: 10.5 | T10: 9.5 | U10: =IF(AND($B$1="",R10="غ",S10="غ",T10="غ"),"غائب",SUM(T10,S10,R10)) -> 28 | V10: 8 | W10: 8 | X10: 13.6 | Y10: =IF(AND($B$1="",V10="غ",W10="غ",X10="غ"),"غائب",SUM(X10,W10,V10)) -> 29.6 | Z10: 5.5 | AA10: 8 | AB10: 10 | AC10: =IF(AND($B$1="",Z10="غ",AA10="غ",AB10="غ"),"غائب",SUM(AB10,AA10,Z10)) -> 23.5 | AD10: 6.5 | AE10: 14 | AF10: 16 | AG10: =IF(AND($B$1="",AD10="غ",AE10="غ",AF10="غ"),"غائب",SUM(AF10,AE10,AD10)) -> 36.5 | AH10: 3.5 | AI10: 2.5 | AJ10: 9.5 | AK10: =IF(AND($B$1="",AH10="غ",AI10="غ",AJ10="غ"),"غائب",SUM(AJ10,AI10,AH10)) -> 15.5 | AL10: 3 | AM10: 4 | AN10: =IF(AND($B$1="",AL10="غ",AM10="غ"),"غائب",SUM(AL10:AM10)) -> 7 | AO10: 5 | AP10: 6 | AQ10: =IF(AND($B$1="",AO10="غ",AP10="غ"),"غائب",SUM(AO10:AP10)) -> 11 | AR10: 6 | AS10: 7 | AT10: =IF(AND($B$1="",AR10="غ",AS10="غ"),"غائب",SUM(AR10:AS10)) -> 13 | AU10: =IF(AND($B$1="",AR10="غ",AO10="غ",AL10="غ"),"غائب",SUM(AR10,AO10,AL10)) -> 14 | AV10: =IF(AND($B$1="",AS10="غ",AP10="غ",AM10="غ"),"غائب",SUM(AM10,AP10,AS10)) -> 17 | AW10: =IF(AND($B$1="",AU10="غائب",AV10="غائب"),"غائب",SUM(AU10:AV10)) -> 31 | AX10: 7.5 | AY10: 10 | AZ10: 16 | BA10: =IF(AND($B$1="",AX10="غ",AY10="غ",AZ10="غ"),"غائب",SUM(AZ10,AY10,AX10)) -> 33.5 | BB10: 8.5 | BC10: 17.5 | BD10: 13 | BE10: =IF(AND($B$1="",BB10="غ",BC10="غ",BD10="غ"),"غائب",SUM(BD10,BC10,BB10)) -> 39 | BF10: 9 | BG10: 17 | BH10: 15 | BI10: =IF(AND($B$1="",BF10="غ",BG10="غ",BH10="غ"),"غائب",SUM(BH10,BG10,BF10)) -> 41 | BJ10: 8.5 | BK10: 13 | BL10: 15 | BM10: =IF(AND($B$1="",BJ10="غ",BK10="غ",BL10="غ"),"غائب",SUM(BL10,BK10,BJ10)) -> 36.5 | BN10: 8 | BO10: 16 | BP10: 14 | BQ10: =IF(AND($B$1="",BN10="غ",BO10="غ",BP10="غ"),"غائب",SUM(BP10,BO10,BN10)) -> 38 | BR10: 8 | BS10: 13 | BT10: 10 | BU10: =IF(AND($B$1="",BR10="غ",BS10="غ",BT10="غ"),"غائب",SUM(BT10,BS10,BR10)) -> 31 | BV10: 9 | BW10: 11.5 | BX10: 10.5 | BY10: =IF(AND($B$1="",BV10="غ",BW10="غ",BX10="غ"),"غائب",SUM(BX10,BW10,BV10)) -> 31 | BZ10: =IF(AND($B$1="",S10="غ",W10="غ",AA10="غ",AE10="غ",AI10="غ",AQ10="غ",AY10="غ",BC10="غ",BG10="غ",BK10="غ",BO10="غ",BS10="غ",BW10="غ"),"غائب",SUM(S10,W10,AA10,AI10,AE10,AQ10,,AY10,BC10,BG10,BK10,BO10,BS10,BW10)) -> 152 | CA10: =IF(AND($B$1="",U10="غائب",Y10="غائب",AC10="غائب",AG10="غائب",AK10="غائب",AT10="غائب",AW10="غائب",BA10="غائب",BE10="غائب",BI10="غائب",BM10="غائب",BU10="غائب",BY10="غائب",CE10="غائب",CI10="غائب"),"غائب",SUM(BY10,BU10,BM10,BI10,BE10,BA10,AW10,,AK10,AG10,AC10,Y10,U10)) -> 376.1 | CB10: 4 | CC10: 8 | CD10: 8 | CE10: =IF(AND($B$1="",CB10="غ",CC10="غ",CD10="غ"),"غائب",SUM(CD10,CC10,CB10)) -> 20 | CF10: 4 | CG10: 8 | CH10: 8 | CI10: =IF(AND($B$1="",CF10="غ",CG10="غ",CH10="غ"),"غائب",SUM(CH10,CG10,CF10)) -> 20 | CJ10: =IF(OR($F10="",BZ$4=""),"",IF(BZ10="غائب","غائب",IF(BZ10/BZ$8>=0.9,"ممتاز",IF(BZ10/BZ$8>=0.8,"جيد جدا",IF(BZ10/BZ$8>=0.6,"جيد ",IF(BZ10/BZ$8>=0.5,"مقبول ",IF(BZ10<BZ$8,"ضعيف"))))))) -> جيد | CK10: =IF($F10="","",IF(AND(CN10>=3,I10="معيد"),"مفصول",IF(OR(CN10=1,CN10=2),"دور ثان",IF(CN10>=3,"راسب",IF(CN10=0,"ناجح"))))) -> ناجح | CL10: =IF(F10="","",IF(CN10=0,RANK($CA10,$CA$10:$CA$599)+COUNTIF(CA$10:CA10,CA10)-1,IF(CN10>=$CO$8,"جميع المواد",CONCATENATE(DH10,DI10,DJ10,DK10,DL10,DM10,DN10,DO10,DP10,DQ10,DR10,DS10,DT10,DU10,DV10,DW10)))) -> 144 | CM10: =IF(F10="","",IF(CN10=0,RANK($CA10,$CA$10:$CA$599)+COUNTIF(CA$10:CA10,CA10)-"1","")) -> 144 | CN10: =IF($F10="","",IF(AND(COUNTBLANK(DH10:DT10)=13,COUNTBLANK(DV10:DW10)<2),1,IF(AND(COUNTBLANK(DH10:DT10)<13,COUNTBLANK(DV10:DW10)<2),13-COUNTBLANK(DH10:DT10),IF(AND(COUNTBLANK(DH10:DT10)<13,COUNTBLANK(DV10:DW10)>0),13-COUNTBLANK(DH10:DT10),0)))) -> 0 | CO10: =IF($F10="","",IF(OR(U10<$U$9,U10="غائب",T10<$T$9,T10="غ"),"1","0")) -> 0 | CP10: =IF($F10="","",IF(OR(Y10<$Y$9,Y10="غائب",X10<$X$9,X10="غ"),"1","0")) -> 0 | CQ10: =IF($F10="","",IF(OR(AC10<$AC$9,AC10="غائب",AB10<$AB$9,AB10="غ"),"1","0")) -> 0 | CR10: =IF($F10="","",IF(OR(AN10<$AN$9,AN10="غائب",AM10<$AM$9,AM10="غ",AK10<$AK$9,AK10="غ",AJ10<$AJ$9,AJ10="غ",),"1","0")) -> 0 | CS10: =IF($F10="","",IF(OR(AS10<$AS$9,AS10="غائب",AR10<$AR$9,AR10="غ"),"1","0")) -> 0 | CT10: =IF($F10="","",IF(OR(AW10<$AW$9,AW10="غائب",AV10<$AV$9,AV10="غ"),"1","0")) -> 0 | CU10: =IF($F10="","",IF(OR(BA10<$BA$9,BA10="غائب",AZ10<$AZ$9,AZ10="غ"),"1","0")) -> 0 | CV10: =IF($F10="","",IF(OR(BE10<$BE$9,BE10="غائب",BD10<$BD$9,BD10="غ"),"1","0")) -> 0 | CW10: =IF($F10="","",IF(OR(BI10<$BI$9,BI10="غائب",BH10<$BH$9,BH10="غ"),"1","0")) -> 0 | CX10: =IF($F10="","",IF(OR(BM10<$BM$9,BM10="غائب",BL10<$BL$9,BL10="غ"),"1","0")) -> 0 | CY10: =IF($F10="","",IF(OR(BQ10<$BQ$9,BQ10="غائب",BP10<$BP$9,BP10="غ"),"1","0")) -> 0 | CZ10: =IF($F10="","",IF(OR(BU10<$BU$9,BU10="غائب",BT10<$BT$9,BT10="غ"),"1","0")) -> 0 | DA10: =IF($F10="","",IF(OR(BY10<$BY$9,BY10="غائب",BX10<$BX$9,BX10="غ"),"1","0")) -> 0 | DB10: =IF($F10="","",IF(OR(CA10<$CA$9,CA10="غائب"),"1","0")) -> 0 | DC10: =IF($F10="","",IF(OR(CE10<$CE$9,CE10="غائب",CD10<$CD$9,CD10="غ"),"1","0")) -> 0 | DD10: =IF($F10="","",IF(OR(CI10<$CI$9,CI10="غائب",CH10<$CH$9,CH10="غ"),"1","0")) -> 0 | DE10: 0 | DH10: =IF($F10="","",IF(OR(U10<$U$9,U10="غائب",T10<$T$9,T10="غ"),$CO$9,"")) ->  | DI10: =IF($F10="","",IF(OR(Y10<$Y$9,Y10="غائب",X10<$X$9,X10="غ"),$CP$9,"")) ->  | DJ10: =IF($F10="","",IF(OR(AC10<$AC$9,AC10="غائب",AB10<$AB$9,AB10="غ"),$CQ$9,"")) ->  | DK10: =IF($F10="","",IF(AND(OR(AN10="غائب",AN10<$AN$9),OR(AM10="غائب",AM10<$AM$9)),$CR$9,IF(OR(AM10="غائب",AM10<$AM$9,AJ10="غ",AJ10<$AJ$9),"(حاسب عملي) ",IF(OR(AN10="غائب",AN10<$AN$9,AK10="غ",AK10<$AK$9),"(حاسب نظرى) ","")))) ->  | DL10: =IF($F10="","",IF(OR(AS10<$AS$9,AS10="غائب",AR10<$AR$9,AR10="غ"),$CS$9,"")) ->  | DM10: =IF($F10="","",IF(OR(AW10<$AW$9,AW10="غائب",AV10<$AV$9,AV10="غ"),$CT$9,"")) ->  | DN10: =IF($F10="","",IF(OR(BA10<$BA$9,BA10="غائب",AZ10<$AZ$9,AZ10="غ"),$CU$9,"")) ->  | DO10: =IF($F10="","",IF(OR(BE10<$BE$9,BE10="غائب",BD10<$BD$9,BD10="غ"),$CV$9,"")) ->  | DP10: =IF($F10="","",IF(OR(BI10<$BI$9,BI10="غائب",BH10<$BH$9,BH10="غ"),$CW$9,"")) ->  | DQ10: =IF($F10="","",IF(OR(BM10<$BM$9,BM10="غائب",BL10<$BL$9,BL10="غ"),$CX$9,"")) ->  | DR10: =IF($F10="","",IF(OR(BQ10<$BQ$9,BQ10="غائب",BP10<$BP$9,BP10="غ"),$CY$9,"")) ->  | DS10: =IF($F10="","",IF(OR(BU10<$BU$9,BU10="غائب",BT10<$BT$9,BT10="غ"),$CZ$9,"")) ->  | DT10: =IF($F10="","",IF(OR(BY10<$BY$9,BY10="غائب",BX10<$BX$9,BX10="غ"),$DA$9,"")) ->  | DU10: =IF($F10="","",IF(OR(CA10<$CA$9,CA10="غائب"),$DB$9,"")) ->  | DV10: =IF($F10="","",IF(OR(CE10<$CE$9,CE10="غائب",CD10<$CD$9,CD10="غ"),$DC$9,"")) ->  | DW10: =IF($F10="","",IF(OR(CI10<$CI$9,CI10="غائب",CH10<$CH$9,CH10="غ"),$DD$9,"")) ->  | DY10: =IF(CK10="دور ثان",IF(OR(T10<$T$9,T10="غ"),$R$4&" ","")&IF(OR(X10<$X$9, X10="غ"),$V$4&" ","")&IF(OR(AB10<$AB$9, AB10="غ"),$Z$4&" ","")&IF(OR(AJ10<$AJ$9, AJ10="غ"),$DE$9&" ","")&IF(OR(AK10<$AK$9, AK10="غ"),$DF$9&" ","")&IF(OR(AR10<$AR$9, AR10="غ"),$AP$4&" ","")&IF(OR(AV10<$AV$9, AV10="غ"),$AT$4&" ","")&IF(OR(AZ10<$AZ$9, AZ10="غ"),$AX$4&" ","")&IF(OR(BD10<$BD$9, BD10="غ"),$BB$4&" ","")&IF(OR(BH10<$BD$9, BH10="غ"),$BF$4&" ","")&IF(OR(BL10<$BL$9, BL10="غ"),$BJ$4&" ","")&IF(OR(BP10<$BP$9, BP10="غ"),$BN$4&" ","")&IF(OR(BT10<$BT$9, BT10="غ"),$BR$4&" ","")&IF(OR(BX10<$BX$9, BX10="غ"),$BV$4&" ",""),"") ->  | EA10: 3/1
B11: ناجح | C11: 70 | D11: 2 | E11: 2 | F11: طالب تجارة2 | G11: 1 | H11: 1/1 | I11: مستجد | J11: ذكر | K11: مسلم | L11: 30306161400315 | M11: 2003-06-16 | N11: =IF(الشيت!M11="","",CONCATENATE(DATEDIF(الشيت!M11,#REF!,"md")," - ",DATEDIF(الشيت!M11,#REF!,"ym")," - ",DATEDIF(الشيت!M11,#REF!,"y"))) ->  | O11: 72 | P11: 58 | R11: 8 | S11: 14 | T11: 13 | U11: 35 | V11: 8 | W11: 12.8 | X11: 14.4 | Y11: 35.2 | Z11: 5.5 | AA11: 7.6 | AB11: 10.4 | AC11: 23.5 | AD11: 6.5 | AE11: 16 | AF11: 16 | AG11: 38.5 | AH11: 3.5 | AI11: 5 | AJ11: 10 | AK11: 18.5 | AL11: 2.5 | AM11: 4 | AN11: 6.5 | AO11: 5 | AP11: 7.5 | AQ11: 12.5 | AR11: 5 | AS11: 7 | AT11: 12 | AU11: 12.5 | AV11: 18.5 | AW11: 31 | AX11: 8 | AY11: 15 | AZ11: 13 | BA11: 36 | BB11: 8.5 | BC11: 19 | BD11: 14 | BE11: 41.5 | BF11: 9 | BG11: 17 | BH11: 15 | BI11: 41 | BJ11: 8.5 | BK11: 14 | BL11: 16 | BM11: 38.5 | BN11: 8 | BO11: 16 | BP11: 14 | BQ11: 38 | BR11: 8 | BS11: 16 | BT11: 13 | BU11: 37 | BV11: 9 | BW11: 14 | BX11: 9.5 | BY11: 32.5 | BZ11: 178.9 | CA11: 408.2 | CB11: 4 | CC11: 8 | CD11: 8 | CE11: 20 | CF11: 4 | CG11: 8 | CH11: 8 | CI11: 20 | CJ11: جيد | CK11: ناجح | CL11: =IF(F11="","",IF(CN11=0,RANK($CA11,$CA$10:$CA$599)+COUNTIF(CA$10:CA11,CA11)-1,IF(CN11>=$CO$8,"جميع المواد",CONCATENATE(DH11,DI11,DJ11,DK11,DL11,DM11,DN11,DO11,DP11,DQ11,DR11,DS11,DT11,DU11,DV11,DW11)))) -> 70 | CM11: =IF(F11="","",IF(CN11=0,RANK($CA11,$CA$10:$CA$599)+COUNTIF(CA$10:CA11,CA11)-"1","")) -> 70 | CN11: 0 | CO11: 0 | CP11: 0 | CQ11: 0 | CR11: 0 | CS11: 0 | CT11: 0 | CU11: 0 | CV11: 0 | CW11: 0 | CX11: 0 | CY11: 0 | CZ11: 0 | DA11: 0 | DB11: 0 | DC11: 0 | DD11: 0 | EA11: 4/1
B12: ناجح | C12: 121 | D12: 3 | E12: 3 | F12: طالب تجارة 3 | G12: 1 | H12: 1/1 | I12: معيد | J12: ذكر | K12: مسلم | L12: 30302231400975 | M12: 2003-02-23 | N12: =IF(الشيت!M12="","",CONCATENATE(DATEDIF(الشيت!M12,#REF!,"md")," - ",DATEDIF(الشيت!M12,#REF!,"ym")," - ",DATEDIF(الشيت!M12,#REF!,"y"))) ->  | O12: 73 | P12: 59 | R12: 8 | S12: 7.5 | T12: 11 | U12: 26.5 | V12: 8 | W12: 13.2 | X12: 15.6 | Y12: 36.8 | Z12: 5.5 | AA12: 7.6 | AB12: 10.4 | AC12: 23.5 | AD12: 6.5 | AE12: 16 | AF12: 16 | AG12: 38.5 | AH12: 3.5 | AI12: 5.5 | AJ12: 8.5 | AK12: 17.5 | AL12: 3 | AM12: 4 | AN12: 7 | AO12: 6 | AP12: 7.5 | AQ12: 13.5 | AR12: 6 | AS12: 7 | AT12: 13 | AU12: 15 | AV12: 18.5 | AW12: 33.5 | AX12: 7.5 | AY12: 13 | AZ12: 11.5 | BA12: 32 | BB12: 9 | BC12: 18 | BD12: 14 | BE12: 41 | BF12: 9 | BG12: 20 | BH12: 15 | BI12: 44 | BJ12: 8.5 | BK12: 13 | BL12: 14 | BM12: 35.5 | BN12: 8 | BO12: 15 | BP12: 14 | BQ12: 37 | BR12: 8 | BS12: 13 | BT12: 12.5 | BU12: 33.5 | BV12: 9 | BW12: 7.5 | BX12: 8.5 | BY12: 25 | BZ12: 162.8 | CA12: 387.3 | CB12: 4 | CC12: 8 | CD12: 8 | CE12: 20 | CF12: 4 | CG12: 8 | CH12: 8 | CI12: 20 | CJ12: جيد | CK12: ناجح | CL12: =IF(F12="","",IF(CN12=0,RANK($CA12,$CA$10:$CA$599)+COUNTIF(CA$10:CA12,CA12)-1,IF(CN12>=$CO$8,"جميع المواد",CONCATENATE(DH12,DI12,DJ12,DK12,DL12,DM12,DN12,DO12,DP12,DQ12,DR12,DS12,DT12,DU12,DV12,DW12)))) -> 121 | CM12: =IF(F12="","",IF(CN12=0,RANK($CA12,$CA$10:$CA$599)+COUNTIF(CA$10:CA12,CA12)-"1","")) -> 121 | CN12: 0 | CO12: 0 | CP12: 0 | CQ12: 0 | CR12: 0 | CS12: 0 | CT12: 0 | CU12: 0 | CV12: 0 | CW12: 0 | CX12: 0 | CY12: 0 | CZ12: 0 | DA12: 0 | DB12: 0 | DC12: 0 | DD12: 0 | EA12: 5/1
B13: ناجح | C13: 124 | D13: 4 | E13: 4 | F13: طالب تجارة 4 | G13: 1 | H13: 1/1 | I13: مستجد | J13: ذكر | K13: مسلم | L13: 30211101402415 | M13: 2002-11-10 | N13: =IF(الشيت!M13="","",CONCATENATE(DATEDIF(الشيت!M13,#REF!,"md")," - ",DATEDIF(الشيت!M13,#REF!,"ym")," - ",DATEDIF(الشيت!M13,#REF!,"y"))) ->  | O13: 74 | P13: 60 | R13: 7.5 | S13: 10.5 | T13: 12.5 | U13: 30.5 | V13: 8 | W13: 12.8 | X13: 15.6 | Y13: 36.4 | Z13: 5.5 | AA13: 7.6 | AB13: 9.6 | AC13: 22.7 | AD13: 6.5 | AE13: 16 | AF13: 15 | AG13: 37.5 | AH13: 3.5 | AI13: 5.5 | AJ13: 9 | AK13: 18 | AL13: 3 | AM13: 4 | AN13: 7 | AO13: 5 | AP13: 7.5 | AQ13: 12.5 | AR13: 6 | AS13: 7 | AT13: 13 | AU13: 14 | AV13: 18.5 | AW13: 32.5 | AX13: 7.5 | AY13: 9.5 | AZ13: 12.5 | BA13: 29.5 | BB13: 8.5 | BC13: 17.5 | BD13: 13 | BE13: 39 | BF13: 9 | BG13: 17 | BH13: 15 | BI13: 41 | BJ13: 8.5 | BK13: 14 | BL13: 15 | BM13: 37.5 | BN13: 8 | BO13: 16 | BP13: 14 | BQ13: 38 | BR13: 8 | BS13: 15.5 | BT13: 12.5 | BU13: 36 | BV13: 9 | BW13: 9.5 | BX13: 8 | BY13: 26.5 | BZ13: 163.9 | CA13: 387.1 | CB13: 4 | CC13: 8 | CD13: 8 | CE13: 20 | CF13: 4 | CG13: 8 | CH13: 8 | CI13: 20 | CJ13: جيد | CK13: ناجح | CL13: =IF(F13="","",IF(CN13=0,RANK($CA13,$CA$10:$CA$599)+COUNTIF(CA$10:CA13,CA13)-1,IF(CN13>=$CO$8,"جميع المواد",CONCATENATE(DH13,DI13,DJ13,DK13,DL13,DM13,DN13,DO13,DP13,DQ13,DR13,DS13,DT13,DU13,DV13,DW13)))) -> 124 | CM13: =IF(F13="","",IF(CN13=0,RANK($CA13,$CA$10:$CA$599)+COUNTIF(CA$10:CA13,CA13)-"1","")) -> 124 | CN13: 0 | CO13: 0 | CP13: 0 | CQ13: 0 | CR13: 0 | CS13: 0 | CT13: 0 | CU13: 0 | CV13: 0 | CW13: 0 | CX13: 0 | CY13: 0 | CZ13: 0 | DA13: 0 | DB13: 0 | DC13: 0 | DD13: 0 | EA13: 6/1
B14: ناجح | C14: 180 | D14: 5 | E14: 5 | F14: طالب تجارة 5 | H14: 1/1 | I14: معيد | J14: ذكر | K14: مسلم | L14: 30302161402738 | M14: 2003-02-16 | N14: =IF(الشيت!M14="","",CONCATENATE(DATEDIF(الشيت!M14,#REF!,"md")," - ",DATEDIF(الشيت!M14,#REF!,"ym")," - ",DATEDIF(الشيت!M14,#REF!,"y"))) ->  | O14: 75 | P14: 61 | R14: 8 | S14: 10 | T14: 9 | U14: 27 | V14: 8 | W14: 11.6 | X14: 5.6 | Y14: 25.2 | Z14: 5.5 | AA14: 6.8 | AB14: 7.6 | AC14: 19.9 | AD14: 6.5 | AE14: 15 | AF14: 12 | AG14: 33.5 | AH14: 3.5 | AI14: 3 | AJ14: 8.5 | AK14: 15 | AL14: 3 | AM14: 4 | AN14: 7 | AO14: 6 | AP14: 7 | AQ14: 13 | AR14: 5 | AS14: 4 | AT14: 9 | AU14: 14 | AV14: 15 | AW14: 29 | AX14: 7.5 | AY14: 15.5 | AZ14: 9 | BA14: 32 | BB14: 8.5 | BC14: 17 | BD14: 11 | BE14: 36.5 | BF14: 9 | BG14: 17 | BH14: 12 | BI14: 38 | BJ14: 8.5 | BK14: 19 | BL14: 13 | BM14: 40.5 | BN14: 8 | BO14: 16 | BP14: 13 | BQ14: 37 | BR14: 8 | BS14: 15.5 | BT14: 6 | BU14: 29.5 | BV14: 9 | BW14: 8 | BX14: 8.5 | BY14: 25.5 | BZ14: 167.4 | CA14: 351.6 | CB14: 4 | CC14: 8 | CD14: 8 | CE14: 20 | CF14: 4 | CG14: 8 | CH14: 8 | CI14: 20 | CJ14: جيد | CK14: ناجح | CL14: =IF(F14="","",IF(CN14=0,RANK($CA14,$CA$10:$CA$599)+COUNTIF(CA$10:CA14,CA14)-1,IF(CN14>=$CO$8,"جميع المواد",CONCATENATE(DH14,DI14,DJ14,DK14,DL14,DM14,DN14,DO14,DP14,DQ14,DR14,DS14,DT14,DU14,DV14,DW14)))) -> 180 | CM14: =IF(F14="","",IF(CN14=0,RANK($CA14,$CA$10:$CA$599)+COUNTIF(CA$10:CA14,CA14)-"1","")) -> 180 | CN14: 0 | CO14: 0 | CP14: 0 | CQ14: 0 | CR14: 0 | CS14: 0 | CT14: 0 | CU14: 0 | CV14: 0 | CW14: 0 | CX14: 0 | CY14: 0 | CZ14: 0 | DA14: 0 | DB14: 0 | DC14: 0 | DD14: 0 | EA14: 7/1
B15: دور ثان | D15: 6 | E15: 6 | F15: طالب تجارة 6 | H15: 1/1 | I15: مستجد | J15: ذكر | K15: مسلم | L15: 30303121400291 | M15: 2003-03-12 | N15: =IF(الشيت!M15="","",CONCATENATE(DATEDIF(الشيت!M15,#REF!,"md")," - ",DATEDIF(الشيت!M15,#REF!,"ym")," - ",DATEDIF(الشيت!M15,#REF!,"y"))) ->  | O15: 76 | P15: 62 | R15: 8 | S15: 12.5 | T15: 12.5 | U15: 33 | V15: 8 | W15: 11.6 | X15: 10.8 | Y15: 30.4 | Z15: 5.5 | AA15: 7.6 | AB15: 9.2 | AC15: 22.3 | AD15: 6.5 | AE15: 15 | AF15: 15 | AG15: 36.5 | AH15: 3.5 | AI15: 5 | AJ15: 7.5 | AK15: 16 | AL15: 3 | AM15: 4 | AN15: 7 | AO15: 5 | AP15: 7.5 | AQ15: 12.5 | AR15: 5 | AS15: 7 | AT15: 12 | AU15: 13 | AV15: 18.5 | AW15: 31.5 | AX15: 8 | AY15: 10.5 | AZ15: 8.5 | BA15: 27 | BB15: 8.5 | BC15: 16.5 | BD15: 13 | BE15: 38 | BF15: 8.5 | BG15: 17 | BH15: 15 | BI15: 40.5 | BJ15: 8.5 | BK15: 14 | BL15: 13 | BM15: 35.5 | BN15: 8 | BO15: 16 | BP15: 14 | BQ15: 38 | BR15: 8.5 | BS15: 15 | BT15: 11.5 | BU15: 35 | BV15: 9 | BW15: 8 | BX15: 1.5 | BY15: 18.5 | BZ15: 161.2 | CA15: 364.2 | CB15: 4 | CC15: 8 | CD15: 8 | CE15: 20 | CF15: 4 | CG15: 8 | CH15: 8 | CI15: 20 | CJ15: جيد | CK15: دور ثان | CL15: =IF(F15="","",IF(CN15=0,RANK($CA15,$CA$10:$CA$599)+COUNTIF(CA$10:CA15,CA15)-1,IF(CN15>=$CO$8,"جميع المواد",CONCATENATE(DH15,DI15,DJ15,DK15,DL15,DM15,DN15,DO15,DP15,DQ15,DR15,DS15,DT15,DU15,DV15,DW15)))) -> سكرتارية أجنبية | CM15: =IF(F15="","",IF(CN15=0,RANK($CA15,$CA$10:$CA$599)+COUNTIF(CA$10:CA15,CA15)-"1","")) ->  | CN15: 1 | CO15: 0 | CP15: 0 | CQ15: 0 | CR15: 0 | CS15: 0 | CT15: 0 | CU15: 0 | CV15: 0 | CW15: 0 | CX15: 0 | CY15: 0 | CZ15: 0 | DA15: 1 | DB15: 0 | DC15: 0 | DD15: 0 | DT15: سكرتارية أجنبية | DY15: سكرتارية أجنبية | EA15: 8/1
B16: ناجح | C16: 113 | D16: 7 | E16: 7 | F16: طالب تجارة 7 | H16: 1/1 | I16: معيد | J16: ذكر | K16: مسلم | L16: 30206251401391 | M16: 2002-06-25 | N16: =IF(الشيت!M16="","",CONCATENATE(DATEDIF(الشيت!M16,#REF!,"md")," - ",DATEDIF(الشيت!M16,#REF!,"ym")," - ",DATEDIF(الشيت!M16,#REF!,"y"))) ->  | O16: 77 | P16: 63 | R16: 8.5 | S16: 12 | T16: 10.5 | U16: 31 | V16: 8 | W16: 15.2 | X16: 14 | Y16: 37.2 | Z16: 5.5 | AA16: 8 | AB16: 10 | AC16: 23.5 | AD16: 6.5 | AE16: 16 | AF16: 16 | AG16: 38.5 | AH16: 3.5 | AI16: 5 | AJ16: 8.5 | AK16: 17 | AL16: 3 | AM16: 4 | AN16: 7 | AO16: 6 | AP16: 7.5 | AQ16: 13.5 | AR16: 5 | AS16: 7 | AT16: 12 | AU16: 14 | AV16: 18.5 | AW16: 32.5 | AX16: 7.5 | AY16: 10 | AZ16: 10.5 | BA16: 28 | BB16: 8.5 | BC16: 16.5 | BD16: 14 | BE16: 39 | BF16: 9 | BG16: 16 | BH16: 15 | BI16: 40 | BJ16: 8.5 | BK16: 14 | BL16: 15 | BM16: 37.5 | BN16: 8 | BO16: 15 | BP16: 14 | BQ16: 37 | BR16: 8 | BS16: 16 | BT16: 11.5 | BU16: 35.5 | BV16: 9 | BW16: 10.5 | BX16: 9.5 | BY16: 29 | BZ16: 167.7 | CA16: 388.7 | CB16: 4 | CC16: 8 | CD16: 8 | CE16: 20 | CF16: 4 | CG16: 8 | CH16: 8 | CI16: 20 | CJ16: جيد | CK16: ناجح | CL16: =IF(F16="","",IF(CN16=0,RANK($CA16,$CA$10:$CA$599)+COUNTIF(CA$10:CA16,CA16)-1,IF(CN16>=$CO$8,"جميع المواد",CONCATENATE(DH16,DI16,DJ16,DK16,DL16,DM16,DN16,DO16,DP16,DQ16,DR16,DS16,DT16,DU16,DV16,DW16)))) -> 113 | CM16: =IF(F16="","",IF(CN16=0,RANK($CA16,$CA$10:$CA$599)+COUNTIF(CA$10:CA16,CA16)-"1","")) -> 113 | CN16: 0 | CO16: 0 | CP16: 0 | CQ16: 0 | CR16: 0 | CS16: 0 | CT16: 0 | CU16: 0 | CV16: 0 | CW16: 0 | CX16: 0 | CY16: 0 | CZ16: 0 | DA16: 0 | DB16: 0 | DC16: 0 | DD16: 0 | EA16: 9/1
B17: ناجح | C17: 105 | D17: 8 | E17: 8 | F17: طالب تجارة 8 | H17: 1/1 | I17: معيد | J17: ذكر | K17: مسلم | L17: 30301011404051 | M17: 2003-01-01 | N17: =IF(الشيت!M17="","",CONCATENATE(DATEDIF(الشيت!M17,#REF!,"md")," - ",DATEDIF(الشيت!M17,#REF!,"ym")," - ",DATEDIF(الشيت!M17,#REF!,"y"))) ->  | O17: 78 | P17: 64 | R17: 8.5 | S17: 11.5 | T17: 13.5 | U17: 33.5 | V17: 8 | W17: 13.2 | X17: 15.6 | Y17: 36.8 | Z17: 5.5 | AA17: 7.6 | AB17: 10 | AC17: 23.1 | AD17: 6.5 | AE17: 16 | AF17: 16 | AG17: 38.5 | AH17: 3.5 | AI17: 5.5 | AJ17: 9.5 | AK17: 18.5 | AL17: 3 | AM17: 4 | AN17: 7 | AO17: 5 | AP17: 7.5 | AQ17: 12.5 | AR17: 5 | AS17: 7 | AT17: 12 | AU17: 13 | AV17: 18.5 | AW17: 31.5 | AX17: 7 | AY17: 15 | AZ17: 13.5 | BA17: 35.5 | BB17: 8.5 | BC17: 17.5 | BD17: 11 | BE17: 37 | BF17: 9 | BG17: 16 | BH17: 15 | BI17: 40 | BJ17: 8.5 | BK17: 14 | BL17: 16 | BM17: 38.5 | BN17: 8 | BO17: 15 | BP17: 14 | BQ17: 37 | BR17: 8 | BS17: 14.5 | BT17: 12.5 | BU17: 35 | BV17: 9 | BW17: 9 | BX17: 5.5 | BY17: 23.5 | BZ17: 167.3 | CA17: 391.4 | CB17: 4 | CC17: 8 | CD17: 8 | CE17: 20 | CF17: 4 | CG17: 8 | CH17: 8 | CI17: 20 | CJ17: جيد | CK17: ناجح | CL17: =IF(F17="","",IF(CN17=0,RANK($CA17,$CA$10:$CA$599)+COUNTIF(CA$10:CA17,CA17)-1,IF(CN17>=$CO$8,"جميع المواد",CONCATENATE(DH17,DI17,DJ17,DK17,DL17,DM17,DN17,DO17,DP17,DQ17,DR17,DS17,DT17,DU17,DV17,DW17)))) -> 105 | CM17: =IF(F17="","",IF(CN17=0,RANK($CA17,$CA$10:$CA$599)+COUNTIF(CA$10:CA17,CA17)-"1","")) -> 105 | CN17: 0 | CO17: 0 | CP17: 0 | CQ17: 0 | CR17: 0 | CS17: 0 | CT17: 0 | CU17: 0 | CV17: 0 | CW17: 0 | CX17: 0 | CY17: 0 | CZ17: 0 | DA17: 0 | DB17: 0 | DC17: 0 | DD17: 0 | EA17: 10/1
B18: ناجح | C18: 71 | D18: 9 | E18: 9 | F18: طالب تجارة 9 | H18: 1/1 | I18: مستجد | J18: ذكر | K18: مسلم | L18: 30302011400133 | M18: 2003-02-01 | N18: =IF(الشيت!M18="","",CONCATENATE(DATEDIF(الشيت!M18,#REF!,"md")," - ",DATEDIF(الشيت!M18,#REF!,"ym")," - ",DATEDIF(الشيت!M18,#REF!,"y"))) ->  | O18: 79 | P18: 65 | R18: 8 | S18: 15 | T18: 14 | U18: 37 | V18: 8 | W18: 13.2 | X18: 16.4 | Y18: 37.6 | Z18: 5.5 | AA18: 7.6 | AB18: 10.4 | AC18: 23.5 | AD18: 6.5 | AE18: 16 | AF18: 16 | AG18: 38.5 | AH18: 3.5 | AI18: 5 | AJ18: 10 | AK18: 18.5 | AL18: 3 | AM18: 4 | AN18: 7 | AO18: 6 | AP18: 7.5 | AQ18: 13.5 | AR18: 5 | AS18: 7 | AT18: 12 | AU18: 14 | AV18: 18.5 | AW18: 32.5 | AX18: 7.5 | AY18: 14.5 | AZ18: 14 | BA18: 36 | BB18: 8.5 | BC18: 17.5 | BD18: 15 | BE18: 41 | BF18: 9 | BG18: 17 | BH18: 13 | BI18: 39 | BJ18: 9 | BK18: 14 | BL18: 16 | BM18: 39 | BN18: 8 | BO18: 16 | BP18: 14 | BQ18: 38 | BR18: 8 | BS18: 16.5 | BT18: 12 | BU18: 36.5 | BV18: 9 | BW18: 8.5 | BX18: 9.5 | BY18: 27 | BZ18: 174.3 | CA18: 406.1 | CB18: 4 | CC18: 8 | CD18: 8 | CE18: 20 | CF18: 4 | CG18: 8 | CH18: 8 | CI18: 20 | CJ18: جيد | CK18: ناجح | CL18: =IF(F18="","",IF(CN18=0,RANK($CA18,$CA$10:$CA$599)+COUNTIF(CA$10:CA18,CA18)-1,IF(CN18>=$CO$8,"جميع المواد",CONCATENATE(DH18,DI18,DJ18,DK18,DL18,DM18,DN18,DO18,DP18,DQ18,DR18,DS18,DT18,DU18,DV18,DW18)))) -> 71 | CM18: =IF(F18="","",IF(CN18=0,RANK($CA18,$CA$10:$CA$599)+COUNTIF(CA$10:CA18,CA18)-"1","")) -> 71 | CN18: 0 | CO18: 0 | CP18: 0 | CQ18: 0 | CR18: 0 | CS18: 0 | CT18: 0 | CU18: 0 | CV18: 0 | CW18: 0 | CX18: 0 | CY18: 0 | CZ18: 0 | DA18: 0 | DB18: 0 | DC18: 0 | DD18: 0 | EA18: منازل
B19: ناجح | C19: 109 | D19: 10 | E19: 10 | F19: طالب تجارة 10 | H19: 1/1 | I19: مستجد | J19: ذكر | K19: مسلم | L19: 30402161401159 | M19: 2004-02-16 | N19: =IF(الشيت!M19="","",CONCATENATE(DATEDIF(الشيت!M19,#REF!,"md")," - ",DATEDIF(الشيت!M19,#REF!,"ym")," - ",DATEDIF(الشيت!M19,#REF!,"y"))) ->  | O19: 80 | P19: 66 | R19: 8 | S19: 12 | T19: 11 | U19: 31 | V19: 8 | W19: 14 | X19: 14 | Y19: 36 | Z19: 5.5 | AA19: 7.6 | AB19: 10 | AC19: 23.1 | AD19: 6.5 | AE19: 15 | AF19: 16 | AG19: 37.5 | AH19: 3.5 | AI19: 4 | AJ19: 8.5 | AK19: 16 | AL19: 3 | AM19: 4 | AN19: 7 | AO19: 5 | AP19: 7.5 | AQ19: 12.5 | AR19: 5 | AS19: 7 | AT19: 12 | AU19: 13 | AV19: 18.5 | AW19: 31.5 | AX19: 8 | AY19: 10 | AZ19: 13.5 | BA19: 31.5 | BB19: 8.5 | BC19: 19 | BD19: 13 | BE19: 40.5 | BF19: 8.5 | BG19: 17 | BH19: 15 | BI19: 40.5 | BJ19: 8.5 | BK19: 14 | BL19: 16 | BM19: 38.5 | BN19: 8 | BO19: 16 | BP19: 14 | BQ19: 38 | BR19: 8.5 | BS19: 14 | BT19: 12.5 | BU19: 35 | BV19: 9 | BW19: 10 | BX19: 10 | BY19: 29 | BZ19: 165.1 | CA19: 390.1 | CB19: 4 | CC19: 8 | CD19: 8 | CE19: 20 | CF19: 4 | CG19: 8 | CH19: 8 | CI19: 20 | CJ19: جيد | CK19: ناجح | CL19: =IF(F19="","",IF(CN19=0,RANK($CA19,$CA$10:$CA$599)+COUNTIF(CA$10:CA19,CA19)-1,IF(CN19>=$CO$8,"جميع المواد",CONCATENATE(DH19,DI19,DJ19,DK19,DL19,DM19,DN19,DO19,DP19,DQ19,DR19,DS19,DT19,DU19,DV19,DW19)))) -> 109 | CM19: =IF(F19="","",IF(CN19=0,RANK($CA19,$CA$10:$CA$599)+COUNTIF(CA$10:CA19,CA19)-"1","")) -> 109 | CN19: 0 | CO19: 0 | CP19: 0 | CQ19: 0 | CR19: 0 | CS19: 0 | CT19: 0 | CU19: 0 | CV19: 0 | CW19: 0 | CX19: 0 | CY19: 0 | CZ19: 0 | DA19: 0 | DB19: 0 | DC19: 0 | DD19: 0
B20: ناجح | C20: 96 | D20: 11 | E20: 11 | F20: طالب تجارة 11 | H20: 1/1 | I20: مستجد | J20: ذكر | K20: مسلم | L20: 30401261400218 | M20: 2004-01-26 | N20: =IF(الشيت!M20="","",CONCATENATE(DATEDIF(الشيت!M20,#REF!,"md")," - ",DATEDIF(الشيت!M20,#REF!,"ym")," - ",DATEDIF(الشيت!M20,#REF!,"y"))) ->  | O20: 81 | P20: 67 | R20: 8 | S20: 13.5 | T20: 12.5 | U20: 34 | V20: 8 | W20: 12 | X20: 16.4 | Y20: 36.4 | Z20: 5.5 | AA20: 8 | AB20: 10 | AC20: 23.5 | AD20: 6.5 | AE20: 16 | AF20: 16 | AG20: 38.5 | AH20: 3.5 | AI20: 5.5 | AJ20: 9.5 | AK20: 18.5 | AL20: 3 | AM20: 4 | AN20: 7 | AO20: 5 | AP20: 7.5 | AQ20: 12.5 | AR20: 6 | AS20: 7 | AT20: 13 | AU20: 14 | AV20: 18.5 | AW20: 32.5 | AX20: 8 | AY20: 11 | AZ20: 12.5 | BA20: 31.5 | BB20: 8.5 | BC20: 19.5 | BD20: 14 | BE20: 42 | BF20: 9 | BG20: 17 | BH20: 15 | BI20: 41 | BJ20: 8.5 | BK20: 14 | BL20: 14 | BM20: 36.5 | BN20: 8 | BO20: 16 | BP20: 14 | BQ20: 38 | BR20: 8 | BS20: 15 | BT20: 11.5 | BU20: 34.5 | BV20: 9 | BW20: 11 | BX20: 6.5 | BY20: 26.5 | BZ20: 171 | CA20: 395.4 | CB20: 4 | CC20: 8 | CD20: 8 | CE20: 20 | CF20: 4 | CG20: 8 | CH20: 8 | CI20: 20 | CJ20: جيد | CK20: ناجح | CL20: =IF(F20="","",IF(CN20=0,RANK($CA20,$CA$10:$CA$599)+COUNTIF(CA$10:CA20,CA20)-1,IF(CN20>=$CO$8,"جميع المواد",CONCATENATE(DH20,DI20,DJ20,DK20,DL20,DM20,DN20,DO20,DP20,DQ20,DR20,DS20,DT20,DU20,DV20,DW20)))) -> 96 | CM20: =IF(F20="","",IF(CN20=0,RANK($CA20,$CA$10:$CA$599)+COUNTIF(CA$10:CA20,CA20)-"1","")) -> 96 | CN20: 0 | CO20: 0 | CP20: 0 | CQ20: 0 | CR20: 0 | CS20: 0 | CT20: 0 | CU20: 0 | CV20: 0 | CW20: 0 | CX20: 0 | CY20: 0 | CZ20: 0 | DA20: 0 | DB20: 0 | DC20: 0 | DD20: 0
B21: ناجح | C21: 139 | D21: 12 | E21: 12 | F21: طالب تجارة 12 | H21: 1/1 | I21: مستجد | J21: ذكر | K21: مسلم | L21: 30307011401719 | M21: 2003-07-01 | N21: =IF(الشيت!M21="","",CONCATENATE(DATEDIF(الشيت!M21,#REF!,"md")," - ",DATEDIF(الشيت!M21,#REF!,"ym")," - ",DATEDIF(الشيت!M21,#REF!,"y"))) ->  | O21: 82 | P21: 68 | R21: 8 | S21: 13.5 | T21: 11.5 | U21: 33 | V21: 8 | W21: 14.4 | X21: 15.2 | Y21: 37.6 | Z21: 5.5 | AA21: 6.8 | AB21: 10 | AC21: 22.3 | AD21: 6.5 | AE21: 13 | AF21: 16 | AG21: 35.5 | AH21: 3.5 | AI21: 5 | AJ21: 7.5 | AK21: 16 | AL21: 3 | AM21: 4 | AN21: 7 | AO21: 5 | AP21: 7 | AQ21: 12 | AR21: 6 | AS21: 7 | AT21: 13 | AU21: 14 | AV21: 18 | AW21: 32 | AX21: 7.5 | AY21: 9.5 | AZ21: 11.5 | BA21: 28.5 | BB21: 8.5 | BC21: 17.5 | BD21: 14 | BE21: 40 | BF21: 9 | BG21: 17 | BH21: 13 | BI21: 39 | BJ21: 9 | BK21: 14 | BL21: 11 | BM21: 34 | BN21: 8 | BO21: 16 | BP21: 14 | BQ21: 38 | BR21: 8 | BS21: 14.5 | BT21: 11.5 | BU21: 34 | BV21: 9 | BW21: 10 | BX21: 9 | BY21: 28 | BZ21: 163.2 | CA21: 379.9 | CB21: 4 | CC21: 8 | CD21: 8 | CE21: 20 | CF21: 4 | CG21: 8 | CH21: 8 | CI21: 20 | CJ21: جيد | CK21: ناجح | CL21: =IF(F21="","",IF(CN21=0,RANK($CA21,$CA$10:$CA$599)+COUNTIF(CA$10:CA21,CA21)-1,IF(CN21>=$CO$8,"جميع المواد",CONCATENATE(DH21,DI21,DJ21,DK21,DL21,DM21,DN21,DO21,DP21,DQ21,DR21,DS21,DT21,DU21,DV21,DW21)))) -> 139 | CM21: =IF(F21="","",IF(CN21=0,RANK($CA21,$CA$10:$CA$599)+COUNTIF(CA$10:CA21,CA21)-"1","")) -> 139 | CN21: 0 | CO21: 0 | CP21: 0 | CQ21: 0 | CR21: 0 | CS21: 0 | CT21: 0 | CU21: 0 | CV21: 0 | CW21: 0 | CX21: 0 | CY21: 0 | CZ21: 0 | DA21: 0 | DB21: 0 | DC21: 0 | DD21: 0
B22: ناجح | C22: 112 | D22: 13 | E22: 13 | F22: طالب تجارة 13 | H22: 1/1 | I22: مستجد | J22: ذكر | K22: مسلم | L22: 30212151402811 | M22: 2002-12-15 | N22: =IF(الشيت!M22="","",CONCATENATE(DATEDIF(الشيت!M22,#REF!,"md")," - ",DATEDIF(الشيت!M22,#REF!,"ym")," - ",DATEDIF(الشيت!M22,#REF!,"y"))) ->  | O22: 83 | P22: 69 | R22: 7.5 | S22: 14 | T22: 15 | U22: 36.5 | V22: 8 | W22: 13.2 | X22: 15.6 | Y22: 36.8 | Z22: 5.5 | AA22: 7.6 | AB22: 10 | AC22: 23.1 | AD22: 6.5 | AE22: 16 | AF22: 16 | AG22: 38.5 | AH22: 3.5 | AI22: 5.5 | AJ22: 9.5 | AK22: 18.5 | AL22: 3 | AM22: 4 | AN22: 7 | AO22: 5 | AP22: 7.5 | AQ22: 12.5 | AR22: 5 | AS22: 7 | AT22: 12 | AU22: 13 | AV22: 18.5 | AW22: 31.5 | AX22: 7.5 | AY22: 11 | AZ22: 12.5 | BA22: 31 | BB22: 8.5 | BC22: 17.5 | BD22: 14 | BE22: 40 | BF22: 9 | BG22: 17 | BH22: 15 | BI22: 41 | BJ22: 8.5 | BK22: 14 | BL22: 14 | BM22: 36.5 | BN22: 8 | BO22: 16 | BP22: 11 | BQ22: 35 | BR22: 8 | BS22: 12 | BT22: 12 | BU22: 32 | BV22: 9 | BW22: 9 | BX22: 5.5 | BY22: 23.5 | BZ22: 165.3 | CA22: 388.9 | CB22: 4 | CC22: 8 | CD22: 8 | CE22: 20 | CF22: 4 | CG22: 8 | CH22: 8 | CI22: 20 | CJ22: جيد | CK22: ناجح | CL22: =IF(F22="","",IF(CN22=0,RANK($CA22,$CA$10:$CA$599)+COUNTIF(CA$10:CA22,CA22)-1,IF(CN22>=$CO$8,"جميع المواد",CONCATENATE(DH22,DI22,DJ22,DK22,DL22,DM22,DN22,DO22,DP22,DQ22,DR22,DS22,DT22,DU22,DV22,DW22)))) -> 112 | CM22: =IF(F22="","",IF(CN22=0,RANK($CA22,$CA$10:$CA$599)+COUNTIF(CA$10:CA22,CA22)-"1","")) -> 112 | CN22: 0 | CO22: 0 | CP22: 0 | CQ22: 0 | CR22: 0 | CS22: 0 | CT22: 0 | CU22: 0 | CV22: 0 | CW22: 0 | CX22: 0 | CY22: 0 | CZ22: 0 | DA22: 0 | DB22: 0 | DC22: 0 | DD22: 0
B23: ناجح | C23: 133 | D23: 14 | E23: 14 | F23: طالب تجارة 14 | H23: 1/1 | I23: مستجد | J23: ذكر | K23: مسلم | L23: 30310281401592 | M23: 2003-10-28 | N23: =IF(الشيت!M23="","",CONCATENATE(DATEDIF(الشيت!M23,#REF!,"md")," - ",DATEDIF(الشيت!M23,#REF!,"ym")," - ",DATEDIF(الشيت!M23,#REF!,"y"))) ->  | O23: 85 | P23: 70 | R23: 8 | S23: 11.5 | T23: 12.5 | U23: 32 | V23: 8 | W23: 13.2 | X23: 15.2 | Y23: 36.4 | Z23: 5.5 | AA23: 7.6 | AB23: 10 | AC23: 23.1 | AD23: 6.5 | AE23: 15 | AF23: 15 | AG23: 36.5 | AH23: 3.5 | AI23: 5 | AJ23: 10 | AK23: 18.5 | AL23: 3 | AM23: 4 | AN23: 7 | AO23: 5 | AP23: 7.5 | AQ23: 12.5 | AR23: 5 | AS23: 7 | AT23: 12 | AU23: 13 | AV23: 18.5 | AW23: 31.5 | AX23: 7.5 | AY23: 9.5 | AZ23: 14.5 | BA23: 31.5 | BB23: 8 | BC23: 14 | BD23: 14 | BE23: 36 | BF23: 9 | BG23: 17 | BH23: 14 | BI23: 40 | BJ23: 8.5 | BK23: 14 | BL23: 15 | BM23: 37.5 | BN23: 8 | BO23: 16 | BP23: 13 | BQ23: 37 | BR23: 8 | BS23: 13.5 | BT23: 13 | BU23: 34.5 | BV23: 9 | BW23: 7.5 | BX23: 8 | BY23: 24.5 | BZ23: 156.3 | CA23: 382 | CB23: 4 | CC23: 8 | CD23: 8 | CE23: 20 | CF23: 4 | CG23: 8 | CH23: 8 | CI23: 20 | CJ23: جيد | CK23: ناجح | CL23: =IF(F23="","",IF(CN23=0,RANK($CA23,$CA$10:$CA$599)+COUNTIF(CA$10:CA23,CA23)-1,IF(CN23>=$CO$8,"جميع المواد",CONCATENATE(DH23,DI23,DJ23,DK23,DL23,DM23,DN23,DO23,DP23,DQ23,DR23,DS23,DT23,DU23,DV23,DW23)))) -> 133 | CM23: =IF(F23="","",IF(CN23=0,RANK($CA23,$CA$10:$CA$599)+COUNTIF(CA$10:CA23,CA23)-"1","")) -> 133 | CN23: 0 | CO23: 0 | CP23: 0 | CQ23: 0 | CR23: 0 | CS23: 0 | CT23: 0 | CU23: 0 | CV23: 0 | CW23: 0 | CX23: 0 | CY23: 0 | CZ23: 0 | DA23: 0 | DB23: 0 | DC23: 0 | DD23: 0
B24: ناجح | C24: 104 | D24: 15 | E24: 15 | F24: طالب تجارة 15 | H24: 1/15 | I24: مستجد | J24: ذكر | K24: مسلم | L24: 30307261400157 | M24: 2003-07-26 | N24: =IF(الشيت!M24="","",CONCATENATE(DATEDIF(الشيت!M24,#REF!,"md")," - ",DATEDIF(الشيت!M24,#REF!,"ym")," - ",DATEDIF(الشيت!M24,#REF!,"y"))) ->  | O24: 86 | P24: 71 | R24: 8 | S24: 13.5 | T24: 13.5 | U24: 35 | V24: 8 | W24: 11.6 | X24: 14.8 | Y24: 34.4 | Z24: 4.5 | AA24: 9.2 | AB24: 9.6 | AC24: 23.3 | AD24: 7 | AE24: 15 | AF24: 16 | AG24: 38 | AH24: 3.5 | AI24: 5.5 | AJ24: 9 | AK24: 18 | AL24: 2.5 | AM24: 4 | AN24: 6.5 | AO24: 6 | AP24: 7.5 | AQ24: 13.5 | AR24: 6 | AS24: 7 | AT24: 13 | AU24: 14.5 | AV24: 18.5 | AW24: 33 | AX24: 7.5 | AY24: 12 | AZ24: 13.5 | BA24: 33 | BB24: 8.5 | BC24: 17.5 | BD24: 14 | BE24: 40 | BF24: 9 | BG24: 17 | BH24: 16 | BI24: 42 | BJ24: 8.5 | BK24: 14 | BL24: 14 | BM24: 36.5 | BN24: 8 | BO24: 16 | BP24: 14 | BQ24: 38 | BR24: 8 | BS24: 15 | BT24: 11 | BU24: 34 | BV24: 9 | BW24: 8.5 | BX24: 7.5 | BY24: 25 | BZ24: 168.3 | CA24: 392.2 | CB24: 4 | CC24: 8 | CD24: 8 | CE24: 20 | CF24: 4 | CG24: 8 | CH24: 8 | CI24: 20 | CJ24: جيد | CK24: ناجح | CL24: =IF(F24="","",IF(CN24=0,RANK($CA24,$CA$10:$CA$599)+COUNTIF(CA$10:CA24,CA24)-1,IF(CN24>=$CO$8,"جميع المواد",CONCATENATE(DH24,DI24,DJ24,DK24,DL24,DM24,DN24,DO24,DP24,DQ24,DR24,DS24,DT24,DU24,DV24,DW24)))) -> 104 | CM24: =IF(F24="","",IF(CN24=0,RANK($CA24,$CA$10:$CA$599)+COUNTIF(CA$10:CA24,CA24)-"1","")) -> 104 | CN24: 0 | CO24: 0 | CP24: 0 | CQ24: 0 | CR24: 0 | CS24: 0 | CT24: 0 | CU24: 0 | CV24: 0 | CW24: 0 | CX24: 0 | CY24: 0 | CZ24: 0 | DA24: 0 | DB24: 0 | DC24: 0 | DD24: 0
B25: ناجح | C25: 74 | D25: 16 | E25: 16 | F25: طالب تجارة 16 | H25: 1/16 | I25: مستجد | J25: ذكر | K25: مسلم | L25: 30310201401694 | M25: 2003-10-20 | N25: =IF(الشيت!M25="","",CONCATENATE(DATEDIF(الشيت!M25,#REF!,"md")," - ",DATEDIF(الشيت!M25,#REF!,"ym")," - ",DATEDIF(الشيت!M25,#REF!,"y"))) ->  | O25: 87 | P25: 72 | R25: 8 | S25: 13.5 | T25: 16 | U25: 37.5 | V25: 8 | W25: 13.2 | X25: 15.6 | Y25: 36.8 | Z25: 4.5 | AA25: 7.6 | AB25: 10.4 | AC25: 22.5 | AD25: 6.5 | AE25: 15 | AF25: 16 | AG25: 37.5 | AH25: 3.5 | AI25: 7 | AJ25: 9.5 | AK25: 20 | AL25: 3 | AM25: 4 | AN25: 7 | AO25: 5 | AP25: 7.5 | AQ25: 12.5 | AR25: 5 | AS25: 7 | AT25: 12 | AU25: 13 | AV25: 18.5 | AW25: 31.5 | AX25: 7.5 | AY25: 12 | AZ25: 13.5 | BA25: 33 | BB25: 8.5 | BC25: 17.5 | BD25: 14 | BE25: 40 | BF25: 9 | BG25: 17 | BH25: 16 | BI25: 42 | BJ25: 8.5 | BK25: 14 | BL25: 15 | BM25: 37.5 | BN25: 8 | BO25: 16 | BP25: 14 | BQ25: 38 | BR25: 8.5 | BS25: 16 | BT25: 12 | BU25: 36.5 | BV25: 9 | BW25: 9.5 | BX25: 11 | BY25: 29.5 | BZ25: 170.8 | CA25: 404.3 | CB25: 4 | CC25: 8 | CD25: 8 | CE25: 20 | CF25: 4 | CG25: 8 | CH25: 8 | CI25: 20 | CJ25: جيد | CK25: ناجح | CL25: =IF(F25="","",IF(CN25=0,RANK($CA25,$CA$10:$CA$599)+COUNTIF(CA$10:CA25,CA25)-1,IF(CN25>=$CO$8,"جميع المواد",CONCATENATE(DH25,DI25,DJ25,DK25,DL25,DM25,DN25,DO25,DP25,DQ25,DR25,DS25,DT25,DU25,DV25,DW25)))) -> 74 | CM25: =IF(F25="","",IF(CN25=0,RANK($CA25,$CA$10:$CA$599)+COUNTIF(CA$10:CA25,CA25)-"1","")) -> 74 | CN25: 0 | CO25: 0 | CP25: 0 | CQ25: 0 | CR25: 0 | CS25: 0 | CT25: 0 | CU25: 0 | CV25: 0 | CW25: 0 | CX25: 0 | CY25: 0 | CZ25: 0 | DA25: 0 | DB25: 0 | DC25: 0 | DD25: 0
B26: ناجح | C26: 106 | D26: 17 | E26: 17 | F26: طالب تجارة 17 | H26: 1/17 | I26: مستجد | J26: ذكر | K26: مسلم | L26: 30306171402812 | M26: 2003-06-17 | N26: =IF(الشيت!M26="","",CONCATENATE(DATEDIF(الشيت!M26,#REF!,"md")," - ",DATEDIF(الشيت!M26,#REF!,"ym")," - ",DATEDIF(الشيت!M26,#REF!,"y"))) ->  | O26: 88 | P26: 73 | R26: 8 | S26: 12 | T26: 14 | U26: 34 | V26: 8 | W26: 13.6 | X26: 15.6 | Y26: 37.2 | Z26: 4.5 | AA26: 7.6 | AB26: 10 | AC26: 22.1 | AD26: 7 | AE26: 15 | AF26: 15 | AG26: 37 | AH26: 3.5 | AI26: 5.5 | AJ26: 8.5 | AK26: 17.5 | AL26: 2.5 | AM26: 4 | AN26: 6.5 | AO26: 5 | AP26: 7.5 | AQ26: 12.5 | AR26: 5 | AS26: 7 | AT26: 12 | AU26: 12.5 | AV26: 18.5 | AW26: 31 | AX26: 8 | AY26: 12 | AZ26: 11.5 | BA26: 31.5 | BB26: 8.5 | BC26: 16.5 | BD26: 14 | BE26: 39 | BF26: 8.5 | BG26: 17 | BH26: 13 | BI26: 38.5 | BJ26: 8.5 | BK26: 14 | BL26: 15 | BM26: 37.5 | BN26: 8 | BO26: 16 | BP26: 13 | BQ26: 37 | BR26: 8 | BS26: 17.5 | BT26: 13 | BU26: 38.5 | BV26: 9 | BW26: 7 | BX26: 11.5 | BY26: 27.5 | BZ26: 166.2 | CA26: 391.3 | CB26: 4 | CC26: 8 | CD26: 8 | CE26: 20 | CF26: 4 | CG26: 8 | CH26: 8 | CI26: 20 | CJ26: جيد | CK26: ناجح | CL26: =IF(F26="","",IF(CN26=0,RANK($CA26,$CA$10:$CA$599)+COUNTIF(CA$10:CA26,CA26)-1,IF(CN26>=$CO$8,"جميع المواد",CONCATENATE(DH26,DI26,DJ26,DK26,DL26,DM26,DN26,DO26,DP26,DQ26,DR26,DS26,DT26,DU26,DV26,DW26)))) -> 106 | CM26: =IF(F26="","",IF(CN26=0,RANK($CA26,$CA$10:$CA$599)+COUNTIF(CA$10:CA26,CA26)-"1","")) -> 106 | CN26: 0 | CO26: 0 | CP26: 0 | CQ26: 0 | CR26: 0 | CS26: 0 | CT26: 0 | CU26: 0 | CV26: 0 | CW26: 0 | CX26: 0 | CY26: 0 | CZ26: 0 | DA26: 0 | DB26: 0 | DC26: 0 | DD26: 0
B27: ناجح | C27: 79 | D27: 18 | E27: 18 | F27: طالب تجارة 18 | H27: 1/18 | I27: مستجد | J27: ذكر | K27: مسلم | L27: 30312011408415 | M27: 2003-12-01 | N27: =IF(الشيت!M27="","",CONCATENATE(DATEDIF(الشيت!M27,#REF!,"md")," - ",DATEDIF(الشيت!M27,#REF!,"ym")," - ",DATEDIF(الشيت!M27,#REF!,"y"))) ->  | O27: 89 | P27: 74 | R27: 8 | S27: 14.5 | T27: 16.5 | U27: 39 | V27: 8 | W27: 15.6 | X27: 14.8 | Y27: 38.4 | Z27: 4.5 | AA27: 6.8 | AB27: 9.6 | AC27: 20.9 | AD27: 7 | AE27: 14 | AF27: 15 | AG27: 36 | AH27: 3.5 | AI27: 7 | AJ27: 9 | AK27: 19.5 | AL27: 2.5 | AM27: 4 | AN27: 6.5 | AO27: 5 | AP27: 8 | AQ27: 13 | AR27: 6 | AS27: 7 | AT27: 13 | AU27: 13.5 | AV27: 19 | AW27: 32.5 | AX27: 8 | AY27: 12.5 | AZ27: 13 | BA27: 33.5 | BB27: 8.5 | BC27: 17 | BD27: 16 | BE27: 41.5 | BF27: 9 | BG27: 15 | BH27: 14 | BI27: 38 | BJ27: 8.5 | BK27: 16 | BL27: 15 | BM27: 39.5 | BN27: 8 | BO27: 16 | BP27: 16 | BQ27: 40 | BR27: 8 | BS27: 14 | BT27: 13 | BU27: 35 | BV27: 9 | BW27: 8 | BX27: 11 | BY27: 28 | BZ27: 169.4 | CA27: 401.8 | CB27: 4 | CC27: 8 | CD27: 8 | CE27: 20 | CF27: 4 | CG27: 8 | CH27: 8 | CI27: 20 | CJ27: جيد | CK27: ناجح | CL27: =IF(F27="","",IF(CN27=0,RANK($CA27,$CA$10:$CA$599)+COUNTIF(CA$10:CA27,CA27)-1,IF(CN27>=$CO$8,"جميع المواد",CONCATENATE(DH27,DI27,DJ27,DK27,DL27,DM27,DN27,DO27,DP27,DQ27,DR27,DS27,DT27,DU27,DV27,DW27)))) -> 79 | CM27: =IF(F27="","",IF(CN27=0,RANK($CA27,$CA$10:$CA$599)+COUNTIF(CA$10:CA27,CA27)-"1","")) -> 79 | CN27: 0 | CO27: 0 | CP27: 0 | CQ27: 0 | CR27: 0 | CS27: 0 | CT27: 0 | CU27: 0 | CV27: 0 | CW27: 0 | CX27: 0 | CY27: 0 | CZ27: 0 | DA27: 0 | DB27: 0 | DC27: 0 | DD27: 0
B28: ناجح | C28: 91 | D28: 19 | E28: 19 | F28: طالب تجارة 19 | H28: 1/19 | I28: معيد | J28: ذكر | K28: مسلم | L28: 30302011400192 | M28: 2003-02-01 | N28: =IF(الشيت!M28="","",CONCATENATE(DATEDIF(الشيت!M28,#REF!,"md")," - ",DATEDIF(الشيت!M28,#REF!,"ym")," - ",DATEDIF(الشيت!M28,#REF!,"y"))) ->  | O28: 90 | P28: 75 | R28: 8 | S28: 13.5 | T28: 12 | U28: 33.5 | V28: 8 | W28: 14.4 | X28: 15.2 | Y28: 37.6 | Z28: 5.5 | AA28: 6.4 | AB28: 9.6 | AC28: 21.5 | AD28: 7 | AE28: 15 | AF28: 15 | AG28: 37 | AH28: 3.5 | AI28: 5 | AJ28: 9.5 | AK28: 18 | AL28: 3 | AM28: 4 | AN28: 7 | AO28: 5 | AP28: 8.5 | AQ28: 13.5 | AR28: 5 | AS28: 7 | AT28: 12 | AU28: 13 | AV28: 19.5 | AW28: 32.5 | AX28: 8 | AY28: 13.5 | AZ28: 14.5 | BA28: 36 | BB28: 8.5 | BC28: 17.5 | BD28: 16 | BE28: 42 | BF28: 9 | BG28: 17 | BH28: 14 | BI28: 40 | BJ28: 8.5 | BK28: 16 | BL28: 14 | BM28: 38.5 | BN28: 8 | BO28: 16 | BP28: 13 | BQ28: 37 | BR28: 8 | BS28: 14.5 | BT28: 13 | BU28: 35.5 | BV28: 9 | BW28: 6.5 | BX28: 10 | BY28: 25.5 | BZ28: 168.8 | CA28: 397.6 | CB28: 4 | CC28: 8 | CD28: 8 | CE28: 20 | CF28: 4 | CG28: 8 | CH28: 8 | CI28: 20 | CJ28: جيد | CK28: ناجح | CL28: =IF(F28="","",IF(CN28=0,RANK($CA28,$CA$10:$CA$599)+COUNTIF(CA$10:CA28,CA28)-1,IF(CN28>=$CO$8,"جميع المواد",CONCATENATE(DH28,DI28,DJ28,DK28,DL28,DM28,DN28,DO28,DP28,DQ28,DR28,DS28,DT28,DU28,DV28,DW28)))) -> 91 | CM28: =IF(F28="","",IF(CN28=0,RANK($CA28,$CA$10:$CA$599)+COUNTIF(CA$10:CA28,CA28)-"1","")) -> 91 | CN28: 0 | CO28: 0 | CP28: 0 | CQ28: 0 | CR28: 0 | CS28: 0 | CT28: 0 | CU28: 0 | CV28: 0 | CW28: 0 | CX28: 0 | CY28: 0 | CZ28: 0 | DA28: 0 | DB28: 0 | DC28: 0 | DD28: 0
B29: ناجح | C29: 76 | D29: 20 | E29: 20 | F29: طالب تجارة 20 | H29: 1/20 | I29: معيد | J29: ذكر | K29: مسلم | L29: 30109011410452 | M29: 2001-09-01 | N29: =IF(الشيت!M29="","",CONCATENATE(DATEDIF(الشيت!M29,#REF!,"md")," - ",DATEDIF(الشيت!M29,#REF!,"ym")," - ",DATEDIF(الشيت!M29,#REF!,"y"))) ->  | O29: 91 | P29: 76 | R29: 8 | S29: 11.5 | T29: 10 | U29: 29.5 | V29: 8 | W29: 14.4 | X29: 13.6 | Y29: 36 | Z29: 5.5 | AA29: 6.4 | AB29: 9.6 | AC29: 21.5 | AD29: 7 | AE29: 13 | AF29: 15 | AG29: 35 | AH29: 3.5 | AI29: 7.5 | AJ29: 10 | AK29: 21 | AL29: 3 | AM29: 4 | AN29: 7 | AO29: 5 | AP29: 8.5 | AQ29: 13.5 | AR29: 5 | AS29: 7 | AT29: 12 | AU29: 13 | AV29: 19.5 | AW29: 32.5 | AX29: 8 | AY29: 13.5 | AZ29: 15.5 | BA29: 37 | BB29: 8.5 | BC29: 17.5 | BD29: 17 | BE29: 43 | BF29: 9 | BG29: 17 | BH29: 13 | BI29: 39 | BJ29: 8.5 | BK29: 16 | BL29: 12 | BM29: 36.5 | BN29: 8 | BO29: 16 | BP29: 16 | BQ29: 40 | BR29: 8 | BS29: 16 | BT29: 13 | BU29: 37 | BV29: 9 | BW29: 12.5 | BX29: 13.5 | BY29: 35 | BZ29: 174.8 | CA29: 403 | CB29: 4 | CC29: 8 | CD29: 8 | CE29: 20 | CF29: 4 | CG29: 8 | CH29: 8 | CI29: 20 | CJ29: جيد | CK29: ناجح | CL29: =IF(F29="","",IF(CN29=0,RANK($CA29,$CA$10:$CA$599)+COUNTIF(CA$10:CA29,CA29)-1,IF(CN29>=$CO$8,"جميع المواد",CONCATENATE(DH29,DI29,DJ29,DK29,DL29,DM29,DN29,DO29,DP29,DQ29,DR29,DS29,DT29,DU29,DV29,DW29)))) -> 76 | CM29: =IF(F29="","",IF(CN29=0,RANK($CA29,$CA$10:$CA$599)+COUNTIF(CA$10:CA29,CA29)-"1","")) -> 76 | CN29: 0 | CO29: 0 | CP29: 0 | CQ29: 0 | CR29: 0 | CS29: 0 | CT29: 0 | CU29: 0 | CV29: 0 | CW29: 0 | CX29: 0 | CY29: 0 | CZ29: 0 | DA29: 0 | DB29: 0 | DC29: 0 | DD29: 0
B30: ناجح | C30: 46 | D30: 21 | E30: 21 | F30: طالب تجارة 21 | H30: 1/21 | I30: مستجد | J30: ذكر | K30: مسلم | L30: 30203201400654 | M30: 2002-03-20 | N30: =IF(الشيت!M30="","",CONCATENATE(DATEDIF(الشيت!M30,#REF!,"md")," - ",DATEDIF(الشيت!M30,#REF!,"ym")," - ",DATEDIF(الشيت!M30,#REF!,"y"))) ->  | O30: 92 | P30: 77 | R30: 8 | S30: 14.5 | T30: 14 | U30: 36.5 | V30: 8 | W30: 15.6 | X30: 16.4 | Y30: 40 | Z30: 4.5 | AA30: 8.4 | AB30: 9.6 | AC30: 22.5 | AD30: 7 | AE30: 15 | AF30: 16 | AG30: 38 | AH30: 3.5 | AI30: 5 | AJ30: 9.5 | AK30: 18 | AL30: 2.5 | AM30: 4 | AN30: 6.5 | AO30: 6 | AP30: 8.5 | AQ30: 14.5 | AR30: 6 | AS30: 7 | AT30: 13 | AU30: 14.5 | AV30: 19.5 | AW30: 34 | AX30: 8 | AY30: 14.5 | AZ30: 15.5 | BA30: 38 | BB30: 8.5 | BC30: 17.5 | BD30: 16 | BE30: 42 | BF30: 8.5 | BG30: 18 | BH30: 13 | BI30: 39.5 | BJ30: 8.5 | BK30: 16 | BL30: 14 | BM30: 38.5 | BN30: 8 | BO30: 16 | BP30: 16 | BQ30: 40 | BR30: 8.5 | BS30: 17 | BT30: 13 | BU30: 38.5 | BV30: 9 | BW30: 12 | BX30: 14 | BY30: 35 | BZ30: 184 | CA30: 420.5 | CB30: 4 | CC30: 8 | CD30: 8 | CE30: 20 | CF30: 4 | CG30: 8 | CH30: 8 | CI30: 20 | CJ30: جيد | CK30: ناجح | CL30: =IF(F30="","",IF(CN30=0,RANK($CA30,$CA$10:$CA$599)+COUNTIF(CA$10:CA30,CA30)-1,IF(CN30>=$CO$8,"جميع المواد",CONCATENATE(DH30,DI30,DJ30,DK30,DL30,DM30,DN30,DO30,DP30,DQ30,DR30,DS30,DT30,DU30,DV30,DW30)))) -> 46 | CM30: =IF(F30="","",IF(CN30=0,RANK($CA30,$CA$10:$CA$599)+COUNTIF(CA$10:CA30,CA30)-"1","")) -> 46 | CN30: 0 | CO30: 0 | CP30: 0 | CQ30: 0 | CR30: 0 | CS30: 0 | CT30: 0 | CU30: 0 | CV30: 0 | CW30: 0 | CX30: 0 | CY30: 0 | CZ30: 0 | DA30: 0 | DB30: 0 | DC30: 0 | DD30: 0
B31: ناجح | C31: 57 | D31: 22 | E31: 22 | F31: طالب تجارة 22 | H31: 1/22 | I31: مستجد | J31: ذكر | K31: مسلم | L31: 30309131400158 | M31: 2003-09-13 | N31: =IF(الشيت!M31="","",CONCATENATE(DATEDIF(الشيت!M31,#REF!,"md")," - ",DATEDIF(الشيت!M31,#REF!,"ym")," - ",DATEDIF(الشيت!M31,#REF!,"y"))) ->  | O31: 93 | P31: 78 | R31: 8.5 | S31: 13 | T31: 14 | U31: 35.5 | V31: 8 | W31: 14.4 | X31: 14.8 | Y31: 37.2 | Z31: 5.5 | AA31: 6.8 | AB31: 9.6 | AC31: 21.9 | AD31: 7 | AE31: 15 | AF31: 16 | AG31: 38 | AH31: 3.5 | AI31: 8 | AJ31: 10 | AK31: 21.5 | AL31: 3 | AM31: 4 | AN31: 7 | AO31: 6 | AP31: 8.5 | AQ31: 14.5 | AR31: 6 | AS31: 7 | AT31: 13 | AU31: 15 | AV31: 19.5 | AW31: 34.5 | AX31: 8 | AY31: 13.5 | AZ31: 14 | BA31: 35.5 | BB31: 8.5 | BC31: 17.5 | BD31: 15 | BE31: 41 | BF31: 9 | BG31: 17 | BH31: 14 | BI31: 40 | BJ31: 9 | BK31: 16 | BL31: 14 | BM31: 39 | BN31: 8 | BO31: 16 | BP31: 16 | BQ31: 40 | BR31: 8.5 | BS31: 18.5 | BT31: 13 | BU31: 40 | BV31: 9 | BW31: 10 | BX31: 12.5 | BY31: 31.5 | BZ31: 180.2 | CA31: 415.6 | CB31: 4 | CC31: 8 | CD31: 8 | CE31: 20 | CF31: 4 | CG31: 8 | CH31: 8 | CI31: 20 | CJ31: جيد | CK31: ناجح | CL31: =IF(F31="","",IF(CN31=0,RANK($CA31,$CA$10:$CA$599)+COUNTIF(CA$10:CA31,CA31)-1,IF(CN31>=$CO$8,"جميع المواد",CONCATENATE(DH31,DI31,DJ31,DK31,DL31,DM31,DN31,DO31,DP31,DQ31,DR31,DS31,DT31,DU31,DV31,DW31)))) -> 57 | CM31: =IF(F31="","",IF(CN31=0,RANK($CA31,$CA$10:$CA$599)+COUNTIF(CA$10:CA31,CA31)-"1","")) -> 57 | CN31: 0 | CO31: 0 | CP31: 0 | CQ31: 0 | CR31: 0 | CS31: 0 | CT31: 0 | CU31: 0 | CV31: 0 | CW31: 0 | CX31: 0 | CY31: 0 | CZ31: 0 | DA31: 0 | DB31: 0 | DC31: 0 | DD31: 0
B32: ناجح | C32: 186 | D32: 23 | E32: 23 | F32: طالب تجارة 23 | H32: 1/23 | I32: معيد | J32: ذكر | K32: مسلم | L32: 30112031405472 | M32: 2001-12-03 | N32: =IF(الشيت!M32="","",CONCATENATE(DATEDIF(الشيت!M32,#REF!,"md")," - ",DATEDIF(الشيت!M32,#REF!,"ym")," - ",DATEDIF(الشيت!M32,#REF!,"y"))) ->  | O32: 94 | P32: 79 | R32: 8 | S32: 7.5 | T32: 9.5 | U32: 25 | V32: 8 | W32: 8 | X32: 10 | Y32: 26 | Z32: 4.5 | AA32: 7.6 | AB32: 8.8 | AC32: 20.9 | AD32: 7 | AE32: 12 | AF32: 13 | AG32: 32 | AH32: 3.5 | AI32: 3.5 | AJ32: 8 | AK32: 15 | AL32: 2.5 | AM32: 4 | AN32: 6.5 | AO32: 6 | AP32: 8.5 | AQ32: 14.5 | AR32: 6 | AS32: 7 | AT32: 13 | AU32: 14.5 | AV32: 19.5 | AW32: 34 | AX32: 8 | AY32: 12 | AZ32: 14.5 | BA32: 34.5 | BB32: 8.5 | BC32: 16 | BD32: 12 | BE32: 36.5 | BF32: 8.5 | BG32: 15 | BH32: 12 | BI32: 35.5 | BJ32: 8.5 | BK32: 16 | BL32: 12 | BM32: 36.5 | BN32: 8 | BO32: 17 | BP32: 16 | BQ32: 41 | BR32: 8 | BS32: 12 | BT32: 10 | BU32: 30 | BV32: 9 | BW32: 3.5 | BX32: 7.5 | BY32: 20 | BZ32: 144.6 | CA32: 345.9 | CB32: 4 | CC32: 8 | CD32: 8 | CE32: 20 | CF32: 4 | CG32: 8 | CH32: 8 | CI32: 20 | CJ32: مقبول | CK32: ناجح | CL32: =IF(F32="","",IF(CN32=0,RANK($CA32,$CA$10:$CA$599)+COUNTIF(CA$10:CA32,CA32)-1,IF(CN32>=$CO$8,"جميع المواد",CONCATENATE(DH32,DI32,DJ32,DK32,DL32,DM32,DN32,DO32,DP32,DQ32,DR32,DS32,DT32,DU32,DV32,DW32)))) -> 186 | CM32: =IF(F32="","",IF(CN32=0,RANK($CA32,$CA$10:$CA$599)+COUNTIF(CA$10:CA32,CA32)-"1","")) -> 186 | CN32: 0 | CO32: 0 | CP32: 0 | CQ32: 0 | CR32: 0 | CS32: 0 | CT32: 0 | CU32: 0 | CV32: 0 | CW32: 0 | CX32: 0 | CY32: 0 | CZ32: 0 | DA32: 0 | DB32: 0 | DC32: 0 | DD32: 0
B33: ناجح | C33: 58 | D33: 24 | E33: 24 | F33: طالب تجارة 24 | H33: 1/24 | I33: مستجد | J33: ذكر | K33: مسلم | L33: 30306151400376 | M33: 2003-06-15 | N33: =IF(الشيت!M33="","",CONCATENATE(DATEDIF(الشيت!M33,#REF!,"md")," - ",DATEDIF(الشيت!M33,#REF!,"ym")," - ",DATEDIF(الشيت!M33,#REF!,"y"))) ->  | O33: 95 | P33: 80 | R33: 8 | S33: 13 | T33: 13 | U33: 34 | V33: 8 | W33: 13.6 | X33: 15.2 | Y33: 36.8 | Z33: 4.5 | AA33: 8 | AB33: 9.2 | AC33: 21.7 | AD33: 7 | AE33: 14 | AF33: 15 | AG33: 36 | AH33: 3.5 | AI33: 8 | AJ33: 9.5 | AK33: 21 | AL33: 3 | AM33: 4 | AN33: 7 | AO33: 6 | AP33: 9.5 | AQ33: 15.5 | AR33: 6 | AS33: 8 | AT33: 14 | AU33: 15 | AV33: 21.5 | AW33: 36.5 | AX33: 8 | AY33: 12.5 | AZ33: 13 | BA33: 33.5 | BB33: 8.5 | BC33: 18.5 | BD33: 17.5 | BE33: 44.5 | BF33: 9 | BG33: 17 | BH33: 15 | BI33: 41 | BJ33: 8.5 | BK33: 16 | BL33: 15 | BM33: 39.5 | BN33: 8 | BO33: 16 | BP33: 16 | BQ33: 40 | BR33: 8 | BS33: 17.5 | BT33: 12 | BU33: 37.5 | BV33: 9 | BW33: 11.5 | BX33: 12.5 | BY33: 33 | BZ33: 181.1 | CA33: 415 | CB33: 4 | CC33: 8 | CD33: 8 | CE33: 20 | CF33: 4 | CG33: 8 | CH33: 8 | CI33: 20 | CJ33: جيد | CK33: ناجح | CL33: =IF(F33="","",IF(CN33=0,RANK($CA33,$CA$10:$CA$599)+COUNTIF(CA$10:CA33,CA33)-1,IF(CN33>=$CO$8,"جميع المواد",CONCATENATE(DH33,DI33,DJ33,DK33,DL33,DM33,DN33,DO33,DP33,DQ33,DR33,DS33,DT33,DU33,DV33,DW33)))) -> 58 | CM33: =IF(F33="","",IF(CN33=0,RANK($CA33,$CA$10:$CA$599)+COUNTIF(CA$10:CA33,CA33)-"1","")) -> 58 | CN33: 0 | CO33: 0 | CP33: 0 | CQ33: 0 | CR33: 0 | CS33: 0 | CT33: 0 | CU33: 0 | CV33: 0 | CW33: 0 | CX33: 0 | CY33: 0 | CZ33: 0 | DA33: 0 | DB33: 0 | DC33: 0 | DD33: 0
B34: ناجح | C34: 87 | D34: 25 | E34: 25 | F34: طالب تجارة 25 | H34: 1/25 | I34: مستجد | J34: ذكر | K34: مسلم | L34: 30401011413276 | M34: 2004-01-01 | N34: =IF(الشيت!M34="","",CONCATENATE(DATEDIF(الشيت!M34,#REF!,"md")," - ",DATEDIF(الشيت!M34,#REF!,"ym")," - ",DATEDIF(الشيت!M34,#REF!,"y"))) ->  | O34: 96 | P34: 81 | R34: 8 | S34: 12.5 | T34: 10 | U34: 30.5 | V34: 8 | W34: 14 | X34: 16 | Y34: 38 | Z34: 4.5 | AA34: 6.8 | AB34: 9.6 | AC34: 20.9 | AD34: 7 | AE34: 13 | AF34: 15 | AG34: 35 | AH34: 3.5 | AI34: 5 | AJ34: 8 | AK34: 16.5 | AL34: 2.5 | AM34: 4 | AN34: 6.5 | AO34: 6 | AP34: 8.5 | AQ34: 14.5 | AR34: 5 | AS34: 8 | AT34: 13 | AU34: 13.5 | AV34: 20.5 | AW34: 34 | AX34: 8 | AY34: 11 | AZ34: 15 | BA34: 34 | BB34: 8.5 | BC34: 18 | BD34: 17 | BE34: 43.5 | BF34: 9 | BG34: 17 | BH34: 15 | BI34: 41 | BJ34: 8.5 | BK34: 16 | BL34: 14 | BM34: 38.5 | BN34: 8 | BO34: 17 | BP34: 16 | BQ34: 41 | BR34: 8.5 | BS34: 17.5 | BT34: 13 | BU34: 39 | BV34: 9 | BW34: 8.5 | BX34: 10 | BY34: 27.5 | BZ34: 170.8 | CA34: 398.4 | CB34: 4 | CC34: 8 | CD34: 8 | CE34: 20 | CF34: 4 | CG34: 8 | CH34: 8 | CI34: 20 | CJ34: جيد | CK34: ناجح | CL34: =IF(F34="","",IF(CN34=0,RANK($CA34,$CA$10:$CA$599)+COUNTIF(CA$10:CA34,CA34)-1,IF(CN34>=$CO$8,"جميع المواد",CONCATENATE(DH34,DI34,DJ34,DK34,DL34,DM34,DN34,DO34,DP34,DQ34,DR34,DS34,DT34,DU34,DV34,DW34)))) -> 87 | CM34: =IF(F34="","",IF(CN34=0,RANK($CA34,$CA$10:$CA$599)+COUNTIF(CA$10:CA34,CA34)-"1","")) -> 87 | CN34: 0 | CO34: 0 | CP34: 0 | CQ34: 0 | CR34: 0 | CS34: 0 | CT34: 0 | CU34: 0 | CV34: 0 | CW34: 0 | CX34: 0 | CY34: 0 | CZ34: 0 | DA34: 0 | DB34: 0 | DC34: 0 | DD34: 0
B35: ناجح | C35: 142 | D35: 26 | E35: 26 | F35: طالب تجارة 26 | H35: 1/26 | I35: مستجد | J35: ذكر | K35: مسلم | L35: 30307181400938 | M35: 2003-07-18 | N35: =IF(الشيت!M35="","",CONCATENATE(DATEDIF(الشيت!M35,#REF!,"md")," - ",DATEDIF(الشيت!M35,#REF!,"ym")," - ",DATEDIF(الشيت!M35,#REF!,"y"))) ->  | O35: 97 | P35: 82 | R35: 8 | S35: 9 | T35: 9.5 | U35: 26.5 | V35: 8 | W35: 12.4 | X35: 15.6 | Y35: 36 | Z35: 4.5 | AA35: 6.8 | AB35: 10 | AC35: 21.3 | AD35: 7 | AE35: 15 | AF35: 15 | AG35: 37 | AH35: 3.5 | AI35: 4 | AJ35: 8.5 | AK35: 16 | AL35: 2.5 | AM35: 4 | AN35: 6.5 | AO35: 6 | AP35: 8.5 | AQ35: 14.5 | AR35: 6 | AS35: 7 | AT35: 13 | AU35: 14.5 | AV35: 19.5 | AW35: 34 | AX35: 8 | AY35: 7.5 | AZ35: 13.5 | BA35: 29 | BB35: 8.5 | BC35: 13.5 | BD35: 10 | BE35: 32 | BF35: 8.5 | BG35: 17 | BH35: 16 | BI35: 41.5 | BJ35: 8.5 | BK35: 16 | BL35: 14 | BM35: 38.5 | BN35: 8 | BO35: 16 | BP35: 16 | BQ35: 40 | BR35: 8.5 | BS35: 17.5 | BT35: 11.5 | BU35: 37.5 | BV35: 9 | BW35: 10 | BX35: 10 | BY35: 29 | BZ35: 159.2 | CA35: 378.3 | CB35: 4 | CC35: 8 | CD35: 8 | CE35: 20 | CF35: 4 | CG35: 8 | CH35: 8 | CI35: 20 | CJ35: جيد | CK35: ناجح | CL35: =IF(F35="","",IF(CN35=0,RANK($CA35,$CA$10:$CA$599)+COUNTIF(CA$10:CA35,CA35)-1,IF(CN35>=$CO$8,"جميع المواد",CONCATENATE(DH35,DI35,DJ35,DK35,DL35,DM35,DN35,DO35,DP35,DQ35,DR35,DS35,DT35,DU35,DV35,DW35)))) -> 142 | CM35: =IF(F35="","",IF(CN35=0,RANK($CA35,$CA$10:$CA$599)+COUNTIF(CA$10:CA35,CA35)-"1","")) -> 142 | CN35: 0 | CO35: 0 | CP35: 0 | CQ35: 0 | CR35: 0 | CS35: 0 | CT35: 0 | CU35: 0 | CV35: 0 | CW35: 0 | CX35: 0 | CY35: 0 | CZ35: 0 | DA35: 0 | DB35: 0 | DC35: 0 | DD35: 0
B36: ناجح | C36: 95 | D36: 27 | E36: 27 | F36: طالب تجارة 27 | H36: 1/27 | I36: مستجد | J36: ذكر | K36: مسلم | L36: 30105060103578 | M36: 2001-05-06 | N36: =IF(الشيت!M36="","",CONCATENATE(DATEDIF(الشيت!M36,#REF!,"md")," - ",DATEDIF(الشيت!M36,#REF!,"ym")," - ",DATEDIF(الشيت!M36,#REF!,"y"))) ->  | O36: 98 | P36: 83 | R36: 8 | S36: 9.5 | T36: 10.5 | U36: 28 | V36: 8 | W36: 11.6 | X36: 15.2 | Y36: 34.8 | Z36: 4.5 | AA36: 7.6 | AB36: 9.6 | AC36: 21.7 | AD36: 7 | AE36: 15 | AF36: 15 | AG36: 37 | AH36: 3.5 | AI36: 6 | AJ36: 9 | AK36: 18.5 | AL36: 2.5 | AM36: 4 | AN36: 6.5 | AO36: 5 | AP36: 8.5 | AQ36: 13.5 | AR36: 6 | AS36: 7 | AT36: 13 | AU36: 13.5 | AV36: 19.5 | AW36: 33 | AX36: 8 | AY36: 13 | AZ36: 16 | BA36: 37 | BB36: 8.5 | BC36: 17.5 | BD36: 17 | BE36: 43 | BF36: 8.5 | BG36: 17 | BH36: 14 | BI36: 39.5 | BJ36: 8.5 | BK36: 16 | BL36: 14 | BM36: 38.5 | BN36: 8 | BO36: 16 | BP36: 16 | BQ36: 40 | BR36: 8 | BS36: 14 | BT36: 12.5 | BU36: 34.5 | BV36: 9 | BW36: 10 | BX36: 11 | BY36: 30 | BZ36: 166.7 | CA36: 395.5 | CB36: 4 | CC36: 8 | CD36: 8 | CE36: 20 | CF36: 4 | CG36: 8 | CH36: 8 | CI36: 20 | CJ36: جيد | CK36: ناجح | CL36: =IF(F36="","",IF(CN36=0,RANK($CA36,$CA$10:$CA$599)+COUNTIF(CA$10:CA36,CA36)-1,IF(CN36>=$CO$8,"جميع المواد",CONCATENATE(DH36,DI36,DJ36,DK36,DL36,DM36,DN36,DO36,DP36,DQ36,DR36,DS36,DT36,DU36,DV36,DW36)))) -> 95 | CM36: =IF(F36="","",IF(CN36=0,RANK($CA36,$CA$10:$CA$599)+COUNTIF(CA$10:CA36,CA36)-"1","")) -> 95 | CN36: 0 | CO36: 0 | CP36: 0 | CQ36: 0 | CR36: 0 | CS36: 0 | CT36: 0 | CU36: 0 | CV36: 0 | CW36: 0 | CX36: 0 | CY36: 0 | CZ36: 0 | DA36: 0 | DB36: 0 | DC36: 0 | DD36: 0
B37: دور ثان | D37: 28 | E37: 28 | F37: طالب تجارة 28 | H37: 1/28 | I37: مستجد | J37: ذكر | K37: مسلم | L37: 30305141400134 | M37: 2003-05-14 | N37: =IF(الشيت!M37="","",CONCATENATE(DATEDIF(الشيت!M37,#REF!,"md")," - ",DATEDIF(الشيت!M37,#REF!,"ym")," - ",DATEDIF(الشيت!M37,#REF!,"y"))) ->  | O37: 127 | P37: 84 | R37: 8 | S37: 15 | T37: 17 | U37: 40 | V37: 8 | W37: 15.2 | X37: 15.2 | Y37: 38.4 | Z37: 4.5 | AA37: 7.6 | AB37: 9.2 | AC37: 21.3 | AD37: 7 | AE37: 14 | AF37: 16 | AG37: 37 | AH37: 3.5 | AI37: 5 | AJ37: 8 | AK37: 16.5 | AL37: 2.5 | AM37: 4 | AN37: 6.5 | AO37: 5 | AP37: 8.5 | AQ37: 13.5 | AR37: 6 | AS37: 7 | AT37: 13 | AU37: 13.5 | AV37: 19.5 | AW37: 33 | AX37: 8 | AY37: 14.5 | AZ37: 17.5 | BA37: 40 | BB37: 8.5 | BC37: 16 | BD37: 16 | BE37: 40.5 | BF37: 9 | BG37: 18 | BH37: 15 | BI37: 42 | BJ37: 8.5 | BK37: 16 | BL37: 14 | BM37: 38.5 | BN37: 8 | BO37: 16 | BP37: 16 | BQ37: 40 | BR37: 8 | BS37: 16 | BT37: غ | BU37: 24 | BV37: 9 | BW37: 9 | BX37: 11.5 | BY37: 29.5 | BZ37: 175.8 | CA37: 400.7 | CB37: 4 | CC37: 8 | CD37: 8 | CE37: 20 | CF37: 4 | CG37: 8 | CH37: 8 | CI37: 20 | CJ37: جيد | CK37: دور ثان | CL37: =IF(F37="","",IF(CN37=0,RANK($CA37,$CA$10:$CA$599)+COUNTIF(CA$10:CA37,CA37)-1,IF(CN37>=$CO$8,"جميع المواد",CONCATENATE(DH37,DI37,DJ37,DK37,DL37,DM37,DN37,DO37,DP37,DQ37,DR37,DS37,DT37,DU37,DV37,DW37)))) -> سكرتارية عربية | CM37: =IF(F37="","",IF(CN37=0,RANK($CA37,$CA$10:$CA$599)+COUNTIF(CA$10:CA37,CA37)-"1","")) ->  | CN37: 1 | CO37: 0 | CP37: 0 | CQ37: 0 | CR37: 0 | CS37: 0 | CT37: 0 | CU37: 0 | CV37: 0 | CW37: 0 | CX37: 0 | CY37: 0 | CZ37: 1 | DA37: 0 | DB37: 0 | DC37: 0 | DD37: 0 | DS37: سكرتارية عربية | DY37: سكرتارية عربية
B38: ناجح | C38: 78 | D38: 29 | E38: 29 | F38: طالب تجارة 29 | H38: 1/29 | I38: مستجد | J38: ذكر | K38: مسلم | L38: 30402011400278 | M38: 2004-02-01 | N38: =IF(الشيت!M38="","",CONCATENATE(DATEDIF(الشيت!M38,#REF!,"md")," - ",DATEDIF(الشيت!M38,#REF!,"ym")," - ",DATEDIF(الشيت!M38,#REF!,"y"))) ->  | O38: 128 | P38: 113 | R38: 8 | S38: 14.5 | T38: 16.5 | U38: 39 | V38: 8 | W38: 16 | X38: 15.6 | Y38: 39.6 | Z38: 4.5 | AA38: 6.8 | AB38: 6.4 | AC38: 17.7 | AD38: 7 | AE38: 15 | AF38: 15 | AG38: 37 | AH38: 3.5 | AI38: 5.5 | AJ38: 6 | AK38: 15 | AL38: 2.5 | AM38: 4 | AN38: 6.5 | AO38: 5 | AP38: 8.5 | AQ38: 13.5 | AR38: 6 | AS38: 7 | AT38: 13 | AU38: 13.5 | AV38: 19.5 | AW38: 33 | AX38: 7.5 | AY38: 14 | AZ38: 14 | BA38: 35.5 | BB38: 8.5 | BC38: 16 | BD38: 16 | BE38: 40.5 | BF38: 9 | BG38: 17 | BH38: 14 | BI38: 40 | BJ38: 8.5 | BK38: 12 | BL38: 13 | BM38: 33.5 | BN38: 8 | BO38: 16 | BP38: 16 | BQ38: 40 | BR38: 8.5 | BS38: 18 | BT38: 13 | BU38: 39.5 | BV38: 9 | BW38: 10.5 | BX38: 13 | BY38: 32.5 | BZ38: 174.8 | CA38: 402.8 | CB38: 4 | CC38: 8 | CD38: 8 | CE38: 20 | CF38: 4 | CG38: 8 | CH38: 8 | CI38: 20 | CJ38: جيد | CK38: ناجح | CL38: =IF(F38="","",IF(CN38=0,RANK($CA38,$CA$10:$CA$599)+COUNTIF(CA$10:CA38,CA38)-1,IF(CN38>=$CO$8,"جميع المواد",CONCATENATE(DH38,DI38,DJ38,DK38,DL38,DM38,DN38,DO38,DP38,DQ38,DR38,DS38,DT38,DU38,DV38,DW38)))) -> 78 | CM38: =IF(F38="","",IF(CN38=0,RANK($CA38,$CA$10:$CA$599)+COUNTIF(CA$10:CA38,CA38)-"1","")) -> 78 | CN38: 0 | CO38: 0 | CP38: 0 | CQ38: 0 | CR38: 0 | CS38: 0 | CT38: 0 | CU38: 0 | CV38: 0 | CW38: 0 | CX38: 0 | CY38: 0 | CZ38: 0 | DA38: 0 | DB38: 0 | DC38: 0 | DD38: 0
B39: ناجح | C39: 65 | D39: 30 | E39: 30 | F39: طالب تجارة 30 | H39: 1/30 | I39: مستجد | J39: ذكر | K39: مسلم | L39: 30307031400212 | M39: 2003-07-03 | N39: =IF(الشيت!M39="","",CONCATENATE(DATEDIF(الشيت!M39,#REF!,"md")," - ",DATEDIF(الشيت!M39,#REF!,"ym")," - ",DATEDIF(الشيت!M39,#REF!,"y"))) ->  | O39: 129 | P39: 114 | R39: 8 | S39: 14 | T39: 14.5 | U39: 36.5 | V39: 8 | W39: 14.4 | X39: 16.4 | Y39: 38.8 | Z39: 4.5 | AA39: 6.4 | AB39: 9.6 | AC39: 20.5 | AD39: 7 | AE39: 15 | AF39: 16 | AG39: 38 | AH39: 3.5 | AI39: 4.5 | AJ39: 10.5 | AK39: 18.5 | AL39: 3 | AM39: 4 | AN39: 7 | AO39: 5 | AP39: 8.5 | AQ39: 13.5 | AR39: 5 | AS39: 7 | AT39: 12 | AU39: 13 | AV39: 19.5 | AW39: 32.5 | AX39: 7.5 | AY39: 12.5 | AZ39: 14 | BA39: 34 | BB39: 8.5 | BC39: 16 | BD39: 17 | BE39: 41.5 | BF39: 9 | BG39: 17 | BH39: 15 | BI39: 41 | BJ39: 8.5 | BK39: 16 | BL39: 14 | BM39: 38.5 | BN39: 8 | BO39: 16 | BP39: 16 | BQ39: 40 | BR39: 8.5 | BS39: 19 | BT39: 13.5 | BU39: 41 | BV39: 9 | BW39: 10.5 | BX39: 12.5 | BY39: 32 | BZ39: 174.8 | CA39: 412.8 | CB39: 4 | CC39: 8 | CD39: 8 | CE39: 20 | CF39: 4 | CG39: 8 | CH39: 8 | CI39: 20 | CJ39: جيد | CK39: ناجح | CL39: =IF(F39="","",IF(CN39=0,RANK($CA39,$CA$10:$CA$599)+COUNTIF(CA$10:CA39,CA39)-1,IF(CN39>=$CO$8,"جميع المواد",CONCATENATE(DH39,DI39,DJ39,DK39,DL39,DM39,DN39,DO39,DP39,DQ39,DR39,DS39,DT39,DU39,DV39,DW39)))) -> 65 | CM39: =IF(F39="","",IF(CN39=0,RANK($CA39,$CA$10:$CA$599)+COUNTIF(CA$10:CA39,CA39)-"1","")) -> 65 | CN39: 0 | CO39: 0 | CP39: 0 | CQ39: 0 | CR39: 0 | CS39: 0 | CT39: 0 | CU39: 0 | CV39: 0 | CW39: 0 | CX39: 0 | CY39: 0 | CZ39: 0 | DA39: 0 | DB39: 0 | DC39: 0 | DD39: 0
B40: ناجح | C40: 62 | D40: 31 | E40: 31 | F40: طالب تجارة 31 | H40: 1/31 | I40: مستجد | J40: ذكر | K40: مسلم | L40: 30304011403291 | M40: 2003-04-01 | N40: =IF(الشيت!M40="","",CONCATENATE(DATEDIF(الشيت!M40,#REF!,"md")," - ",DATEDIF(الشيت!M40,#REF!,"ym")," - ",DATEDIF(الشيت!M40,#REF!,"y"))) ->  | O40: 130 | P40: 115 | R40: 8 | S40: 12.5 | T40: 16 | U40: 36.5 | V40: 8 | W40: 16.8 | X40: 16.8 | Y40: 41.6 | Z40: 4.5 | AA40: 6.4 | AB40: 9.6 | AC40: 20.5 | AD40: 7 | AE40: 15 | AF40: 15 | AG40: 37 | AH40: 3.5 | AI40: 6.5 | AJ40: 11 | AK40: 21 | AL40: 2.5 | AM40: 4 | AN40: 6.5 | AO40: 5 | AP40: 8.5 | AQ40: 13.5 | AR40: 5 | AS40: 7 | AT40: 12 | AU40: 12.5 | AV40: 19.5 | AW40: 32 | AX40: 7.5 | AY40: 13 | AZ40: 16.5 | BA40: 37 | BB40: 8.5 | BC40: 17 | BD40: 16 | BE40: 41.5 | BF40: 8.5 | BG40: 17 | BH40: 13 | BI40: 38.5 | BJ40: 8.5 | BK40: 16 | BL40: 13 | BM40: 37.5 | BN40: 8 | BO40: 16 | BP40: 16 | BQ40: 40 | BR40: 8 | BS40: 18 | BT40: 13 | BU40: 39 | BV40: 9 | BW40: 11 | BX40: 11 | BY40: 31 | BZ40: 178.7 | CA40: 413.1 | CB40: 4 | CC40: 8 | CD40: 8 | CE40: 20 | CF40: 4 | CG40: 8 | CH40: 8 | CI40: 20 | CJ40: جيد | CK40: ناجح | CL40: =IF(F40="","",IF(CN40=0,RANK($CA40,$CA$10:$CA$599)+COUNTIF(CA$10:CA40,CA40)-1,IF(CN40>=$CO$8,"جميع المواد",CONCATENATE(DH40,DI40,DJ40,DK40,DL40,DM40,DN40,DO40,DP40,DQ40,DR40,DS40,DT40,DU40,DV40,DW40)))) -> 62 | CM40: =IF(F40="","",IF(CN40=0,RANK($CA40,$CA$10:$CA$599)+COUNTIF(CA$10:CA40,CA40)-"1","")) -> 62 | CN40: 0 | CO40: 0 | CP40: 0 | CQ40: 0 | CR40: 0 | CS40: 0 | CT40: 0 | CU40: 0 | CV40: 0 | CW40: 0 | CX40: 0 | CY40: 0 | CZ40: 0 | DA40: 0 | DB40: 0 | DC40: 0 | DD40: 0
B41: ناجح | C41: 63 | D41: 32 | E41: 32 | F41: طالب تجارة 32 | H41: 1/32 | I41: مستجد | J41: ذكر | K41: مسلم | L41: 30211091400117 | M41: 2002-11-09 | N41: =IF(الشيت!M41="","",CONCATENATE(DATEDIF(الشيت!M41,#REF!,"md")," - ",DATEDIF(الشيت!M41,#REF!,"ym")," - ",DATEDIF(الشيت!M41,#REF!,"y"))) ->  | O41: 131 | P41: 116 | R41: 9 | S41: 15.5 | T41: 16.5 | U41: 41 | V41: 8 | W41: 16 | X41: 14.8 | Y41: 38.8 | Z41: 5.5 | AA41: 7.6 | AB41: 9.6 | AC41: 22.7 | AD41: 6.5 | AE41: 15 | AF41: 16 | AG41: 37.5 | AH41: 3.5 | AI41: 3 | AJ41: 10.5 | AK41: 17 | AL41: 3 | AM41: 4 | AN41: 7 | AO41: 6 | AP41: 8.5 | AQ41: 14.5 | AR41: 5 | AS41: 7 | AT41: 12 | AU41: 14 | AV41: 19.5 | AW41: 33.5 | AX41: 7.5 | AY41: 13.5 | AZ41: 9.5 | BA41: 30.5 | BB41: 8.5 | BC41: 17 | BD41: 16 | BE41: 41.5 | BF41: 9 | BG41: 18 | BH41: 14 | BI41: 41 | BJ41: 9 | BK41: 16 | BL41: 14 | BM41: 39 | BN41: 8 | BO41: 16 | BP41: 17 | BQ41: 41 | BR41: 8.5 | BS41: 17.5 | BT41: 12.5 | BU41: 38.5 | BV41: 9 | BW41: 10 | BX41: 13 | BY41: 32 | BZ41: 179.6 | CA41: 413 | CB41: 4 | CC41: 8 | CD41: 8 | CE41: 20 | CF41: 4 | CG41: 8 | CH41: 8 | CI41: 20 | CJ41: جيد | CK41: ناجح | CL41: =IF(F41="","",IF(CN41=0,RANK($CA41,$CA$10:$CA$599)+COUNTIF(CA$10:CA41,CA41)-1,IF(CN41>=$CO$8,"جميع المواد",CONCATENATE(DH41,DI41,DJ41,DK41,DL41,DM41,DN41,DO41,DP41,DQ41,DR41,DS41,DT41,DU41,DV41,DW41)))) -> 63 | CM41: =IF(F41="","",IF(CN41=0,RANK($CA41,$CA$10:$CA$599)+COUNTIF(CA$10:CA41,CA41)-"1","")) -> 63 | CN41: 0 | CO41: 0 | CP41: 0 | CQ41: 0 | CR41: 0 | CS41: 0 | CT41: 0 | CU41: 0 | CV41: 0 | CW41: 0 | CX41: 0 | CY41: 0 | CZ41: 0 | DA41: 0 | DB41: 0 | DC41: 0 | DD41: 0
B42: ناجح | C42: 90 | D42: 33 | E42: 33 | F42: طالب تجارة 33 | H42: 1/33 | I42: مستجد | J42: ذكر | K42: مسلم | L42: 30306241400952 | M42: 2003-06-24 | N42: =IF(الشيت!M42="","",CONCATENATE(DATEDIF(الشيت!M42,#REF!,"md")," - ",DATEDIF(الشيت!M42,#REF!,"ym")," - ",DATEDIF(الشيت!M42,#REF!,"y"))) ->  | O42: 132 | P42: 117 | R42: 8 | S42: 14 | T42: 14.5 | U42: 36.5 | V42: 8 | W42: 15.6 | X42: 15.6 | Y42: 39.2 | Z42: 5.5 | AA42: 6.8 | AB42: 8.4 | AC42: 20.7 | AD42: 6.5 | AE42: 15 | AF42: 16 | AG42: 37.5 | AH42: 3.5 | AI42: 1 | AJ42: 11 | AK42: 15.5 | AL42: 3 | AM42: 4 | AN42: 7 | AO42: 6 | AP42: 8.5 | AQ42: 14.5 | AR42: 5 | AS42: 7 | AT42: 12 | AU42: =IF(AND($B$1="",AR42="غ",AO42="غ",AL42="غ"),"غائب",SUM(AR42,AO42,AL42)) -> 14 | AV42: =IF(AND($B$1="",AS42="غ",AP42="غ",AM42="غ"),"غائب",SUM(AM42,AP42,AS42)) -> 19.5 | AW42: =IF(AND($B$1="",AU42="غائب",AV42="غائب"),"غائب",SUM(AU42:AV42)) -> 33.5 | AX42: 7.5 | AY42: 11.5 | AZ42: 13 | BA42: 32 | BB42: 8.5 | BC42: 16 | BD42: 16 | BE42: 40.5 | BF42: 9 | BG42: 17 | BH42: 13 | BI42: 39 | BJ42: 8.5 | BK42: 16 | BL42: 14 | BM42: 38.5 | BN42: 8 | BO42: 16 | BP42: 15 | BQ42: 39 | BR42: 8 | BS42: 17.5 | BT42: 12 | BU42: 37.5 | BV42: 9 | BW42: 9.5 | BX42: 9 | BY42: 27.5 | BZ42: =IF(AND($B$1="",S42="غ",W42="غ",AA42="غ",AE42="غ",AI42="غ",AQ42="غ",AY42="غ",BC42="غ",BG42="غ",BK42="غ",BO42="غ",BS42="غ",BW42="غ"),"غائب",SUM(S42,W42,AA42,AI42,AE42,AQ42,,AY42,BC42,BG42,BK42,BO42,BS42,BW42)) -> 170.4 | CA42: 397.9 | CB42: 4 | CC42: 8 | CD42: 8 | CE42: 20 | CF42: 4 | CG42: 8 | CH42: 8 | CI42: 20 | CJ42: جيد | CK42: ناجح | CL42: =IF(F42="","",IF(CN42=0,RANK($CA42,$CA$10:$CA$599)+COUNTIF(CA$10:CA42,CA42)-1,IF(CN42>=$CO$8,"جميع المواد",CONCATENATE(DH42,DI42,DJ42,DK42,DL42,DM42,DN42,DO42,DP42,DQ42,DR42,DS42,DT42,DU42,DV42,DW42)))) -> 90 | CM42: =IF(F42="","",IF(CN42=0,RANK($CA42,$CA$10:$CA$599)+COUNTIF(CA$10:CA42,CA42)-"1","")) -> 90 | CN42: 0 | CO42: 0 | CP42: 0 | CQ42: 0 | CR42: 0 | CS42: 0 | CT42: 0 | CU42: 0 | CV42: 0 | CW42: 0 | CX42: 0 | CY42: 0 | CZ42: 0 | DA42: 0 | DB42: 0 | DC42: 0 | DD42: 0
B43: ناجح | C43: 140 | D43: 34 | E43: 34 | F43: طالب تجارة 34 | H43: 1/34 | I43: مستجد | J43: ذكر | K43: مسلم | L43: 30305201400511 | M43: 2003-05-20 | N43: =IF(الشيت!M43="","",CONCATENATE(DATEDIF(الشيت!M43,#REF!,"md")," - ",DATEDIF(الشيت!M43,#REF!,"ym")," - ",DATEDIF(الشيت!M43,#REF!,"y"))) ->  | O43: 133 | P43: 118 | R43: 8 | S43: 11 | T43: 14 | U43: 33 | V43: 8 | W43: 14.8 | X43: 16.8 | Y43: 39.6 | Z43: 4.5 | AA43: 7.2 | AB43: 9.6 | AC43: 21.3 | AD43: 7 | AE43: 15 | AF43: 16 | AG43: 38 | AH43: 3.5 | AI43: 4.5 | AJ43: 10.5 | AK43: 18.5 | AL43: 2.5 | AM43: 4 | AN43: 6.5 | AO43: 5 | AP43: 8.5 | AQ43: 13.5 | AR43: 6 | AS43: 7 | AT43: 13 | AU43: 13.5 | AV43: 19.5 | AW43: 33 | AX43: 7.5 | AY43: 10 | AZ43: 13 | BA43: 30.5 | BB43: 8.5 | BC43: 13.5 | BD43: 15 | BE43: 37 | BF43: 8 | BG43: 15 | BH43: 13 | BI43: 36 | BJ43: 8.5 | BK43: 16 | BL43: 9 | BM43: 33.5 | BN43: 8 | BO43: 15 | BP43: 16 | BQ43: 39 | BR43: 8 | BS43: 13 | BT43: 11 | BU43: 32 | BV43: 9 | BW43: 9.5 | BX43: 8 | BY43: 26.5 | BZ43: 158 | CA43: 378.9 | CB43: 4 | CC43: 8 | CD43: 8 | CE43: 20 | CF43: 4 | CG43: 8 | CH43: 8 | CI43: 20 | CJ43: جيد | CK43: ناجح | CL43: =IF(F43="","",IF(CN43=0,RANK($CA43,$CA$10:$CA$599)+COUNTIF(CA$10:CA43,CA43)-1,IF(CN43>=$CO$8,"جميع المواد",CONCATENATE(DH43,DI43,DJ43,DK43,DL43,DM43,DN43,DO43,DP43,DQ43,DR43,DS43,DT43,DU43,DV43,DW43)))) -> 140 | CM43: =IF(F43="","",IF(CN43=0,RANK($CA43,$CA$10:$CA$599)+COUNTIF(CA$10:CA43,CA43)-"1","")) -> 140 | CN43: 0 | CO43: 0 | CP43: 0 | CQ43: 0 | CR43: 0 | CS43: 0 | CT43: 0 | CU43: 0 | CV43: 0 | CW43: 0 | CX43: 0 | CY43: 0 | CZ43: 0 | DA43: 0 | DB43: 0 | DC43: 0 | DD43: 0
B44: ناجح | C44: 77 | D44: 35 | E44: 35 | F44: طالب تجارة 35 | H44: 1/35 | I44: مستجد | J44: ذكر | K44: مسلم | L44: 30304271400539 | M44: 2003-04-27 | N44: =IF(الشيت!M44="","",CONCATENATE(DATEDIF(الشيت!M44,#REF!,"md")," - ",DATEDIF(الشيت!M44,#REF!,"ym")," - ",DATEDIF(الشيت!M44,#REF!,"y"))) ->  | O44: 134 | P44: 119 | R44: 7.5 | S44: 13 | T44: 12.5 | U44: 33 | V44: 8 | W44: 14.4 | X44: 14 | Y44: 36.4 | Z44: 5.5 | AA44: 6.4 | AB44: 9.6 | AC44: 21.5 | AD44: 6.5 | AE44: 15 | AF44: 14 | AG44: 35.5 | AH44: 3.5 | AI44: 5 | AJ44: 8 | AK44: 16.5 | AL44: 3 | AM44: 4 | AN44: 7 | AO44: 6 | AP44: 8.5 | AQ44: 14.5 | AR44: 6 | AS44: 7 | AT44: 13 | AU44: 15 | AV44: 19.5 | AW44: 34.5 | AX44: 7.5 | AY44: 10 | AZ44: 14.5 | BA44: 32 | BB44: 8.5 | BC44: 17.5 | BD44: 16 | BE44: 42 | BF44: 9 | BG44: 15 | BH44: 13 | BI44: 37 | BJ44: 9 | BK44: 16 | BL44: 14 | BM44: 39 | BN44: 8 | BO44: 16 | BP44: 16 | BQ44: 40 | BR44: 8 | BS44: 18 | BT44: 12.5 | BU44: 38.5 | BV44: 9 | BW44: 13.5 | BX44: 14.5 | BY44: 37 | BZ44: 174.3 | CA44: 402.9 | CB44: 4 | CC44: 8 | CD44: 8 | CE44: 20 | CF44: 4 | CG44: 8 | CH44: 8 | CI44: 20 | CJ44: جيد | CK44: ناجح | CL44: =IF(F44="","",IF(CN44=0,RANK($CA44,$CA$10:$CA$599)+COUNTIF(CA$10:CA44,CA44)-1,IF(CN44>=$CO$8,"جميع المواد",CONCATENATE(DH44,DI44,DJ44,DK44,DL44,DM44,DN44,DO44,DP44,DQ44,DR44,DS44,DT44,DU44,DV44,DW44)))) -> 77 | CM44: =IF(F44="","",IF(CN44=0,RANK($CA44,$CA$10:$CA$599)+COUNTIF(CA$10:CA44,CA44)-"1","")) -> 77 | CN44: 0 | CO44: 0 | CP44: 0 | CQ44: 0 | CR44: 0 | CS44: 0 | CT44: 0 | CU44: 0 | CV44: 0 | CW44: 0 | CX44: 0 | CY44: 0 | CZ44: 0 | DA44: 0 | DB44: 0 | DC44: 0 | DD44: 0
B45: ناجح | C45: 137 | D45: 36 | E45: 36 | F45: طالب تجارة 36 | H45: 1/36 | I45: مستجد | J45: أنثي | K45: مسلم | L45: 30207301400487 | M45: 2002-07-30 | N45: =IF(الشيت!M45="","",CONCATENATE(DATEDIF(الشيت!M45,#REF!,"md")," - ",DATEDIF(الشيت!M45,#REF!,"ym")," - ",DATEDIF(الشيت!M45,#REF!,"y"))) ->  | O45: 135 | P45: 120 | R45: 8 | S45: 10.5 | T45: 11.5 | U45: 30 | V45: 8.5 | W45: 12 | X45: 10.8 | Y45: 31.3 | Z45: 5.5 | AA45: 6 | AB45: 9.2 | AC45: 20.7 | AD45: 7 | AE45: 13 | AF45: 14 | AG45: 34 | AH45: 3 | AI45: 2.5 | AJ45: 9.5 | AK45: 15 | AL45: 3 | AM45: 4 | AN45: 7 | AO45: 5 | AP45: 6 | AQ45: 11 | AR45: 5 | AS45: 7 | AT45: 12 | AU45: 13 | AV45: 17 | AW45: 30 | AX45: 9 | AY45: 12 | AZ45: 15 | BA45: 36 | BB45: 9 | BC45: 14 | BD45: 11 | BE45: 34 | BF45: 8.5 | BG45: 14.5 | BH45: 13 | BI45: 36 | BJ45: 8.5 | BK45: 16 | BL45: 11 | BM45: 35.5 | BN45: 8 | BO45: 18 | BP45: 11 | BQ45: 37 | BR45: 9 | BS45: 18 | BT45: 13.5 | BU45: 40.5 | BV45: 9 | BW45: 13.5 | BX45: 15 | BY45: 37.5 | BZ45: 161 | CA45: 380.5 | CB45: 4 | CC45: 8 | CD45: 8 | CE45: 20 | CF45: 4 | CG45: 8 | CH45: 8 | CI45: 20 | CJ45: جيد | CK45: ناجح | CL45: =IF(F45="","",IF(CN45=0,RANK($CA45,$CA$10:$CA$599)+COUNTIF(CA$10:CA45,CA45)-1,IF(CN45>=$CO$8,"جميع المواد",CONCATENATE(DH45,DI45,DJ45,DK45,DL45,DM45,DN45,DO45,DP45,DQ45,DR45,DS45,DT45,DU45,DV45,DW45)))) -> 137 | CM45: =IF(F45="","",IF(CN45=0,RANK($CA45,$CA$10:$CA$599)+COUNTIF(CA$10:CA45,CA45)-"1","")) -> 137 | CN45: 0 | CO45: 0 | CP45: 0 | CQ45: 0 | CR45: 0 | CS45: 0 | CT45: 0 | CU45: 0 | CV45: 0 | CW45: 0 | CX45: 0 | CY45: 0 | CZ45: 0 | DA45: 0 | DB45: 0 | DC45: 0 | DD45: 0
B46: ناجح | C46: 100 | D46: 37 | E46: 37 | F46: طالب تجارة 37 | H46: 1/37 | I46: مستجد | J46: أنثي | K46: مسلم | L46: 30305181400625 | M46: 2003-05-18 | N46: =IF(الشيت!M46="","",CONCATENATE(DATEDIF(الشيت!M46,#REF!,"md")," - ",DATEDIF(الشيت!M46,#REF!,"ym")," - ",DATEDIF(الشيت!M46,#REF!,"y"))) ->  | O46: 136 | P46: 121 | R46: 8 | S46: 10.5 | T46: 10 | U46: 28.5 | V46: 8.5 | W46: 12.4 | X46: 12.8 | Y46: 33.7 | Z46: 5.5 | AA46: 6.8 | AB46: 9.2 | AC46: 21.5 | AD46: 7 | AE46: 12 | AF46: 15 | AG46: 34 | AH46: 3 | AI46: 3.5 | AJ46: 9 | AK46: 15.5 | AL46: 3 | AM46: 4 | AN46: 7 | AO46: 5 | AP46: 6 | AQ46: 11 | AR46: 6 | AS46: 6 | AT46: 12 | AU46: 14 | AV46: 16 | AW46: 30 | AX46: 9 | AY46: 14 | AZ46: 14 | BA46: 37 | BB46: 9 | BC46: 15 | BD46: 11 | BE46: 35 | BF46: 8.5 | BG46: 14.5 | BH46: 15 | BI46: 38 | BJ46: 8.5 | BK46: 16 | BL46: 12 | BM46: 36.5 | BN46: 8 | BO46: 18 | BP46: 9 | BQ46: 35 | BR46: 9 | BS46: 19 | BT46: 16 | BU46: 44 | BV46: 9 | BW46: 13.5 | BX46: 17.5 | BY46: 40 | BZ46: 166.2 | CA46: 393.7 | CB46: 4 | CC46: 8 | CD46: 8 | CE46: 20 | CF46: 4 | CG46: 8 | CH46: 8 | CI46: 20 | CJ46: جيد | CK46: ناجح | CL46: =IF(F46="","",IF(CN46=0,RANK($CA46,$CA$10:$CA$599)+COUNTIF(CA$10:CA46,CA46)-1,IF(CN46>=$CO$8,"جميع المواد",CONCATENATE(DH46,DI46,DJ46,DK46,DL46,DM46,DN46,DO46,DP46,DQ46,DR46,DS46,DT46,DU46,DV46,DW46)))) -> 100 | CM46: =IF(F46="","",IF(CN46=0,RANK($CA46,$CA$10:$CA$599)+COUNTIF(CA$10:CA46,CA46)-"1","")) -> 100 | CN46: 0 | CO46: 0 | CP46: 0 | CQ46: 0 | CR46: 0 | CS46: 0 | CT46: 0 | CU46: 0 | CV46: 0 | CW46: 0 | CX46: 0 | CY46: 0 | CZ46: 0 | DA46: 0 | DB46: 0 | DC46: 0 | DD46: 0
B47: ناجح | C47: 47 | D47: 38 | E47: 38 | F47: طالب تجارة 38 | H47: 1/38 | I47: مستجد | J47: أنثي | K47: مسلم | L47: 30307201400727 | M47: 2003-07-20 | N47: =IF(الشيت!M47="","",CONCATENATE(DATEDIF(الشيت!M47,#REF!,"md")," - ",DATEDIF(الشيت!M47,#REF!,"ym")," - ",DATEDIF(الشيت!M47,#REF!,"y"))) ->  | O47: 137 | P47: 122 | R47: 8 | S47: 13 | T47: 12.5 | U47: 33.5 | V47: 8.5 | W47: 13.6 | X47: 11.6 | Y47: 33.7 | Z47: 5.5 | AA47: 7.2 | AB47: 9.6 | AC47: 22.3 | AD47: 7 | AE47: 16 | AF47: 14 | AG47: 37 | AH47: 3 | AI47: 9.5 | AJ47: 9 | AK47: 21.5 | AL47: 3 | AM47: 4 | AN47: 7 | AO47: 5 | AP47: 6 | AQ47: 11 | AR47: 5 | AS47: 6 | AT47: 11 | AU47: 13 | AV47: 16 | AW47: 29 | AX47: 9 | AY47: 17.5 | AZ47: 16 | BA47: 42.5 | BB47: 9 | BC47: 17 | BD47: 15 | BE47: 41 | BF47: 8.5 | BG47: 14.5 | BH47: 19 | BI47: 42 | BJ47: 8.5 | BK47: 16 | BL47: 15 | BM47: 39.5 | BN47: 8 | BO47: 18 | BP47: 10 | BQ47: 36 | BR47: 8.5 | BS47: 16 | BT47: 14.5 | BU47: 39 | BV47: 9 | BW47: 13 | BX47: 17.5 | BY47: 39.5 | BZ47: 182.3 | CA47: 420.5 | CB47: 4 | CC47: 8 | CD47: 8 | CE47: 20 | CF47: 4 | CG47: 8 | CH47: 8 | CI47: 20 | CJ47: جيد | CK47: ناجح | CL47: =IF(F47="","",IF(CN47=0,RANK($CA47,$CA$10:$CA$599)+COUNTIF(CA$10:CA47,CA47)-1,IF(CN47>=$CO$8,"جميع المواد",CONCATENATE(DH47,DI47,DJ47,DK47,DL47,DM47,DN47,DO47,DP47,DQ47,DR47,DS47,DT47,DU47,DV47,DW47)))) -> 47 | CM47: =IF(F47="","",IF(CN47=0,RANK($CA47,$CA$10:$CA$599)+COUNTIF(CA$10:CA47,CA47)-"1","")) -> 47 | CN47: 0 | CO47: 0 | CP47: 0 | CQ47: 0 | CR47: 0 | CS47: 0 | CT47: 0 | CU47: 0 | CV47: 0 | CW47: 0 | CX47: 0 | CY47: 0 | CZ47: 0 | DA47: 0 | DB47: 0 | DC47: 0 | DD47: 0
B48: ناجح | C48: 48 | D48: 39 | E48: 39 | F48: طالب تجارة 39 | H48: 1/39 | I48: مستجد | J48: أنثي | K48: مسلم | L48: 30309291401584 | M48: 2003-09-29 | N48: =IF(الشيت!M48="","",CONCATENATE(DATEDIF(الشيت!M48,#REF!,"md")," - ",DATEDIF(الشيت!M48,#REF!,"ym")," - ",DATEDIF(الشيت!M48,#REF!,"y"))) ->  | O48: 138 | P48: 123 | R48: 8 | S48: 13.5 | T48: 13.5 | U48: 35 | V48: 8.5 | W48: 12 | X48: 13.2 | Y48: 33.7 | Z48: 5.5 | AA48: 5.6 | AB48: 9.2 | AC48: 20.3 | AD48: 7 | AE48: 16 | AF48: 15 | AG48: 38 | AH48: 5.5 | AI48: 11 | AJ48: 9.5 | AK48: 26 | AL48: 3 | AM48: 4 | AN48: 7 | AO48: 5 | AP48: 6 | AQ48: 11 | AR48: 6 | AS48: 6 | AT48: 12 | AU48: 14 | AV48: 16 | AW48: 30 | AX48: 9 | AY48: 14.5 | AZ48: 18 | BA48: 41.5 | BB48: 9 | BC48: 15.5 | BD48: 13 | BE48: 37.5 | BF48: 8.5 | BG48: 14 | BH48: 18 | BI48: 40.5 | BJ48: 8.5 | BK48: 16 | BL48: 11 | BM48: 35.5 | BN48: 8 | BO48: 20 | BP48: 13 | BQ48: 41 | BR48: 9 | BS48: 19 | BT48: 17.5 | BU48: 45.5 | BV48: 9 | BW48: 11.5 | BX48: 16 | BY48: 36.5 | BZ48: 179.6 | CA48: 420 | CB48: 4 | CC48: 8 | CD48: 8 | CE48: 20 | CF48: 4 | CG48: 8 | CH48: 8 | CI48: 20 | CJ48: جيد | CK48: ناجح | CL48: =IF(F48="","",IF(CN48=0,RANK($CA48,$CA$10:$CA$599)+COUNTIF(CA$10:CA48,CA48)-1,IF(CN48>=$CO$8,"جميع المواد",CONCATENATE(DH48,DI48,DJ48,DK48,DL48,DM48,DN48,DO48,DP48,DQ48,DR48,DS48,DT48,DU48,DV48,DW48)))) -> 48 | CM48: =IF(F48="","",IF(CN48=0,RANK($CA48,$CA$10:$CA$599)+COUNTIF(CA$10:CA48,CA48)-"1","")) -> 48 | CN48: 0 | CO48: 0 | CP48: 0 | CQ48: 0 | CR48: 0 | CS48: 0 | CT48: 0 | CU48: 0 | CV48: 0 | CW48: 0 | CX48: 0 | CY48: 0 | CZ48: 0 | DA48: 0 | DB48: 0 | DC48: 0 | DD48: 0
B49: ناجح | C49: 18 | D49: 40 | E49: 40 | F49: طالب تجارة 40 | H49: 1/40 | I49: مستجد | J49: أنثي | K49: مسلم | L49: 30309118800589 | M49: 2003-09-11 | N49: =IF(الشيت!M49="","",CONCATENATE(DATEDIF(الشيت!M49,#REF!,"md")," - ",DATEDIF(الشيت!M49,#REF!,"ym")," - ",DATEDIF(الشيت!M49,#REF!,"y"))) ->  | O49: 139 | P49: 124 | R49: 8 | S49: 14.5 | T49: 16 | U49: 38.5 | V49: 8.5 | W49: 14 | X49: 13.6 | Y49: 36.1 | Z49: 5.5 | AA49: 7.2 | AB49: 9.6 | AC49: 22.3 | AD49: 7 | AE49: 15 | AF49: 16 | AG49: 38 | AH49: 5.5 | AI49: 11 | AJ49: 9 | AK49: 25.5 | AL49: 3 | AM49: 4 | AN49: 7 | AO49: 6 | AP49: 6.5 | AQ49: 12.5 | AR49: 6 | AS49: 6 | AT49: 12 | AU49: 15 | AV49: 16.5 | AW49: 31.5 | AX49: 9 | AY49: 18 | AZ49: 17.5 | BA49: 44.5 | BB49: 9 | BC49: 15.5 | BD49: 17 | BE49: 41.5 | BF49: 8.5 | BG49: 15 | BH49: 17 | BI49: 40.5 | BJ49: 8.5 | BK49: 16 | BL49: 14 | BM49: 38.5 | BN49: 8 | BO49: 19.5 | BP49: 12 | BQ49: 39.5 | BR49: 9 | BS49: 19 | BT49: 13.5 | BU49: 41.5 | BV49: 9 | BW49: 17.5 | BX49: 17 | BY49: 43.5 | BZ49: 194.7 | CA49: 441.9 | CB49: 4 | CC49: 8 | CD49: 8 | CE49: 20 | CF49: 4 | CG49: 8 | CH49: 8 | CI49: 20 | CJ49: جيد | CK49: ناجح | CL49: =IF(F49="","",IF(CN49=0,RANK($CA49,$CA$10:$CA$599)+COUNTIF(CA$10:CA49,CA49)-1,IF(CN49>=$CO$8,"جميع المواد",CONCATENATE(DH49,DI49,DJ49,DK49,DL49,DM49,DN49,DO49,DP49,DQ49,DR49,DS49,DT49,DU49,DV49,DW49)))) -> 18 | CM49: =IF(F49="","",IF(CN49=0,RANK($CA49,$CA$10:$CA$599)+COUNTIF(CA$10:CA49,CA49)-"1","")) -> 18 | CN49: 0 | CO49: 0 | CP49: 0 | CQ49: 0 | CR49: 0 | CS49: 0 | CT49: 0 | CU49: 0 | CV49: 0 | CW49: 0 | CX49: 0 | CY49: 0 | CZ49: 0 | DA49: 0 | DB49: 0 | DC49: 0 | DD49: 0
B50: ناجح | C50: 43 | D50: 41 | E50: 41 | F50: طالب تجارة 41 | H50: 1/41 | I50: مستجد | J50: أنثي | K50: مسلم | L50: 30401201401207 | M50: 2004-01-20 | N50: =IF(الشيت!M50="","",CONCATENATE(DATEDIF(الشيت!M50,#REF!,"md")," - ",DATEDIF(الشيت!M50,#REF!,"ym")," - ",DATEDIF(الشيت!M50,#REF!,"y"))) ->  | O50: 140 | P50: 125 | R50: 8 | S50: 13.5 | T50: 14 | U50: 35.5 | V50: 8 | W50: 13.2 | X50: 12.4 | Y50: 33.6 | Z50: 5.5 | AA50: 6.4 | AB50: 9.6 | AC50: 21.5 | AD50: 7 | AE50: 16 | AF50: 16 | AG50: 39 | AH50: 5.5 | AI50: 10 | AJ50: 10 | AK50: 25.5 | AL50: 3 | AM50: 4 | AN50: 7 | AO50: 5 | AP50: 6.5 | AQ50: 11.5 | AR50: 5 | AS50: 6 | AT50: 11 | AU50: 13 | AV50: 16.5 | AW50: 29.5 | AX50: 9 | AY50: 17 | AZ50: 17 | BA50: 43 | BB50: 9 | BC50: 17.5 | BD50: 15 | BE50: 41.5 | BF50: 8.5 | BG50: 11.5 | BH50: 18 | BI50: 38 | BJ50: 8.5 | BK50: 16 | BL50: 15 | BM50: 39.5 | BN50: 8 | BO50: 20 | BP50: 12 | BQ50: 40 | BR50: 8.5 | BS50: 18 | BT50: 13 | BU50: 39.5 | BV50: 9 | BW50: 10.5 | BX50: 17.5 | BY50: 37 | BZ50: 181.1 | CA50: 423.1 | CB50: 4 | CC50: 8 | CD50: 8 | CE50: 20 | CF50: 4 | CG50: 8 | CH50: 8 | CI50: 20 | CJ50: جيد | CK50: ناجح | CL50: =IF(F50="","",IF(CN50=0,RANK($CA50,$CA$10:$CA$599)+COUNTIF(CA$10:CA50,CA50)-1,IF(CN50>=$CO$8,"جميع المواد",CONCATENATE(DH50,DI50,DJ50,DK50,DL50,DM50,DN50,DO50,DP50,DQ50,DR50,DS50,DT50,DU50,DV50,DW50)))) -> 43 | CM50: =IF(F50="","",IF(CN50=0,RANK($CA50,$CA$10:$CA$599)+COUNTIF(CA$10:CA50,CA50)-"1","")) -> 43 | CN50: 0 | CO50: 0 | CP50: 0 | CQ50: 0 | CR50: 0 | CS50: 0 | CT50: 0 | CU50: 0 | CV50: 0 | CW50: 0 | CX50: 0 | CY50: 0 | CZ50: 0 | DA50: 0 | DB50: 0 | DC50: 0 | DD50: 0
B51: ناجح | C51: 66 | D51: 42 | E51: 42 | F51: طالب تجارة 42 | H51: 1/42 | I51: مستجد | J51: أنثي | K51: مسلم | L51: 30311291403565 | M51: 2003-11-29 | N51: =IF(الشيت!M51="","",CONCATENATE(DATEDIF(الشيت!M51,#REF!,"md")," - ",DATEDIF(الشيت!M51,#REF!,"ym")," - ",DATEDIF(الشيت!M51,#REF!,"y"))) ->  | O51: 142 | P51: 126 | R51: 8 | S51: 11 | T51: 13 | U51: 32 | V51: 8 | W51: 12.8 | X51: 12 | Y51: 32.8 | Z51: 5.5 | AA51: 6.8 | AB51: 9.6 | AC51: 21.9 | AD51: 7 | AE51: 16 | AF51: 15 | AG51: 38 | AH51: 5.5 | AI51: 7 | AJ51: 9.5 | AK51: 22 | AL51: 3 | AM51: 4 | AN51: 7 | AO51: 6 | AP51: 6.5 | AQ51: 12.5 | AR51: 6 | AS51: 6 | AT51: 12 | AU51: 15 | AV51: 16.5 | AW51: 31.5 | AX51: 9 | AY51: 17 | AZ51: 17 | BA51: 43 | BB51: 9 | BC51: 15 | BD51: 15 | BE51: 39 | BF51: 8.5 | BG51: 15.5 | BH51: 18 | BI51: 42 | BJ51: 8.5 | BK51: 16 | BL51: 13 | BM51: 37.5 | BN51: 8 | BO51: 16 | BP51: 10 | BQ51: 34 | BR51: 8.5 | BS51: 16.5 | BT51: 12.5 | BU51: 37.5 | BV51: 9 | BW51: 10 | BX51: 16.5 | BY51: 35.5 | BZ51: 172.1 | CA51: 412.7 | CB51: 4 | CC51: 8 | CD51: 8 | CE51: 20 | CF51: 4 | CG51: 8 | CH51: 8 | CI51: 20 | CJ51: جيد | CK51: ناجح | CL51: =IF(F51="","",IF(CN51=0,RANK($CA51,$CA$10:$CA$599)+COUNTIF(CA$10:CA51,CA51)-1,IF(CN51>=$CO$8,"جميع المواد",CONCATENATE(DH51,DI51,DJ51,DK51,DL51,DM51,DN51,DO51,DP51,DQ51,DR51,DS51,DT51,DU51,DV51,DW51)))) -> 66 | CM51: =IF(F51="","",IF(CN51=0,RANK($CA51,$CA$10:$CA$599)+COUNTIF(CA$10:CA51,CA51)-"1","")) -> 66 | CN51: 0 | CO51: 0 | CP51: 0 | CQ51: 0 | CR51: 0 | CS51: 0 | CT51: 0 | CU51: 0 | CV51: 0 | CW51: 0 | CX51: 0 | CY51: 0 | CZ51: 0 | DA51: 0 | DB51: 0 | DC51: 0 | DD51: 0
B52: ناجح | C52: 12 | D52: 43 | E52: 43 | F52: طالب تجارة 43 | H52: 1/43 | I52: مستجد | J52: أنثي | K52: مسلم | L52: 30307271400864 | M52: 2003-07-27 | N52: =IF(الشيت!M52="","",CONCATENATE(DATEDIF(الشيت!M52,#REF!,"md")," - ",DATEDIF(الشيت!M52,#REF!,"ym")," - ",DATEDIF(الشيت!M52,#REF!,"y"))) ->  | O52: 143 | P52: 127 | R52: 8 | S52: 14.5 | T52: 15.5 | U52: 38 | V52: 8 | W52: 13.2 | X52: 13.6 | Y52: 34.8 | Z52: 5.5 | AA52: 6.8 | AB52: 9.6 | AC52: 21.9 | AD52: 7 | AE52: 16 | AF52: 15 | AG52: 38 | AH52: 5.5 | AI52: 10.5 | AJ52: 10 | AK52: 26 | AL52: 3 | AM52: 4 | AN52: 7 | AO52: 5 | AP52: 6.5 | AQ52: 11.5 | AR52: 6 | AS52: 6 | AT52: 12 | AU52: 14 | AV52: 16.5 | AW52: 30.5 | AX52: 9 | AY52: 19 | AZ52: 17.5 | BA52: 45.5 | BB52: 9 | BC52: 16 | BD52: 15 | BE52: 40 | BF52: 9 | BG52: 15 | BH52: 18 | BI52: 42 | BJ52: 8.5 | BK52: 16 | BL52: 16 | BM52: 40.5 | BN52: 8 | BO52: 20 | BP52: 16 | BQ52: 44 | BR52: 9 | BS52: 19 | BT52: 16 | BU52: 44 | BV52: 9 | BW52: 19.5 | BX52: 18 | BY52: 46.5 | BZ52: 197 | CA52: 447.7 | CB52: 4 | CC52: 8 | CD52: 8 | CE52: 20 | CF52: 4 | CG52: 8 | CH52: 8 | CI52: 20 | CJ52: جيد جدا | CK52: ناجح | CL52: =IF(F52="","",IF(CN52=0,RANK($CA52,$CA$10:$CA$599)+COUNTIF(CA$10:CA52,CA52)-1,IF(CN52>=$CO$8,"جميع المواد",CONCATENATE(DH52,DI52,DJ52,DK52,DL52,DM52,DN52,DO52,DP52,DQ52,DR52,DS52,DT52,DU52,DV52,DW52)))) -> 12 | CM52: =IF(F52="","",IF(CN52=0,RANK($CA52,$CA$10:$CA$599)+COUNTIF(CA$10:CA52,CA52)-"1","")) -> 12 | CN52: 0 | CO52: 0 | CP52: 0 | CQ52: 0 | CR52: 0 | CS52: 0 | CT52: 0 | CU52: 0 | CV52: 0 | CW52: 0 | CX52: 0 | CY52: 0 | CZ52: 0 | DA52: 0 | DB52: 0 | DC52: 0 | DD52: 0
B53: ناجح | C53: 59 | D53: 44 | E53: 44 | F53: طالب تجارة 44 | H53: 1/44 | I53: مستجد | J53: أنثي | K53: مسلم | L53: 30402011402009 | M53: 2004-02-01 | N53: =IF(الشيت!M53="","",CONCATENATE(DATEDIF(الشيت!M53,#REF!,"md")," - ",DATEDIF(الشيت!M53,#REF!,"ym")," - ",DATEDIF(الشيت!M53,#REF!,"y"))) ->  | O53: 144 | P53: 128 | R53: 8 | S53: 14 | T53: 13.5 | U53: 35.5 | V53: 8 | W53: 13.6 | X53: 11.2 | Y53: 32.8 | Z53: 5.5 | AA53: 7.6 | AB53: 9.6 | AC53: 22.7 | AD53: 7 | AE53: 14 | AF53: 15 | AG53: 36 | AH53: 3 | AI53: 2 | AJ53: 10 | AK53: 15 | AL53: 3 | AM53: 4 | AN53: 7 | AO53: 5 | AP53: 6 | AQ53: 11 | AR53: 5 | AS53: 6 | AT53: 11 | AU53: 13 | AV53: 16 | AW53: 29 | AX53: 9 | AY53: 14.5 | AZ53: 18 | BA53: 41.5 | BB53: 9 | BC53: 16 | BD53: 12 | BE53: 37 | BF53: 8.5 | BG53: 12.5 | BH53: 18 | BI53: 39 | BJ53: 8.5 | BK53: 16 | BL53: 16 | BM53: 40.5 | BN53: 8 | BO53: 20 | BP53: 8 | BQ53: 36 | BR53: 8.5 | BS53: 19 | BT53: 16 | BU53: 43.5 | BV53: 9 | BW53: 17 | BX53: 16.5 | BY53: 42.5 | BZ53: 177.2 | CA53: 415 | CB53: 4 | CC53: 8 | CD53: 8 | CE53: 20 | CF53: 4 | CG53: 8 | CH53: 8 | CI53: 20 | CJ53: جيد | CK53: ناجح | CL53: =IF(F53="","",IF(CN53=0,RANK($CA53,$CA$10:$CA$599)+COUNTIF(CA$10:CA53,CA53)-1,IF(CN53>=$CO$8,"جميع المواد",CONCATENATE(DH53,DI53,DJ53,DK53,DL53,DM53,DN53,DO53,DP53,DQ53,DR53,DS53,DT53,DU53,DV53,DW53)))) -> 59 | CM53: =IF(F53="","",IF(CN53=0,RANK($CA53,$CA$10:$CA$599)+COUNTIF(CA$10:CA53,CA53)-"1","")) -> 59 | CN53: 0 | CO53: 0 | CP53: 0 | CQ53: 0 | CR53: 0 | CS53: 0 | CT53: 0 | CU53: 0 | CV53: 0 | CW53: 0 | CX53: 0 | CY53: 0 | CZ53: 0 | DA53: 0 | DB53: 0 | DC53: 0 | DD53: 0
B54: ناجح | C54: 24 | D54: 45 | E54: 45 | F54: طالب تجارة 45 | H54: 1/45 | I54: مستجد | J54: أنثي | K54: مسلم | L54: 30309241400749 | M54: 2003-09-24 | N54: =IF(الشيت!M54="","",CONCATENATE(DATEDIF(الشيت!M54,#REF!,"md")," - ",DATEDIF(الشيت!M54,#REF!,"ym")," - ",DATEDIF(الشيت!M54,#REF!,"y"))) ->  | O54: 145 | P54: 129 | R54: 8 | S54: 13 | T54: 12.5 | U54: 33.5 | V54: 8.2 | W54: 13.6 | X54: 11.6 | Y54: 33.4 | Z54: 5.5 | AA54: 8 | AB54: 9.6 | AC54: 23.1 | AD54: 7 | AE54: 15 | AF54: 15 | AG54: 37 | AH54: 5.5 | AI54: 8.5 | AJ54: 10 | AK54: 24 | AL54: 3 | AM54: 4 | AN54: 7 | AO54: 6 | AP54: 6.5 | AQ54: 12.5 | AR54: 6 | AS54: 6 | AT54: 12 | AU54: 15 | AV54: 16.5 | AW54: 31.5 | AX54: 9 | AY54: 17.5 | AZ54: 18 | BA54: 44.5 | BB54: 9 | BC54: 13 | BD54: 15 | BE54: 37 | BF54: 8.5 | BG54: 14.5 | BH54: 18 | BI54: 41 | BJ54: 8.5 | BK54: 17 | BL54: 16 | BM54: 41.5 | BN54: 8 | BO54: 20 | BP54: 13 | BQ54: 41 | BR54: 9 | BS54: 19.5 | BT54: 15.5 | BU54: 44 | BV54: 9 | BW54: 18.5 | BX54: 17.5 | BY54: 45 | BZ54: 190.6 | CA54: 435.5 | CB54: 4 | CC54: 8 | CD54: 8 | CE54: 20 | CF54: 4 | CG54: 8 | CH54: 8 | CI54: 20 | CJ54: جيد | CK54: ناجح | CL54: =IF(F54="","",IF(CN54=0,RANK($CA54,$CA$10:$CA$599)+COUNTIF(CA$10:CA54,CA54)-1,IF(CN54>=$CO$8,"جميع المواد",CONCATENATE(DH54,DI54,DJ54,DK54,DL54,DM54,DN54,DO54,DP54,DQ54,DR54,DS54,DT54,DU54,DV54,DW54)))) -> 24 | CM54: =IF(F54="","",IF(CN54=0,RANK($CA54,$CA$10:$CA$599)+COUNTIF(CA$10:CA54,CA54)-"1","")) -> 24 | CN54: 0 | CO54: 0 | CP54: 0 | CQ54: 0 | CR54: 0 | CS54: 0 | CT54: 0 | CU54: 0 | CV54: 0 | CW54: 0 | CX54: 0 | CY54: 0 | CZ54: 0 | DA54: 0 | DB54: 0 | DC54: 0 | DD54: 0
B55: دور ثان | D55: 46 | E55: 46 | F55: طالب تجارة 46 | H55: 1/46 | I55: مستجد | J55: أنثي | K55: مسلم | L55: 30203041401624 | M55: 2002-03-04 | N55: =IF(الشيت!M55="","",CONCATENATE(DATEDIF(الشيت!M55,#REF!,"md")," - ",DATEDIF(الشيت!M55,#REF!,"ym")," - ",DATEDIF(الشيت!M55,#REF!,"y"))) ->  | O55: 146 | P55: 130 | R55: 8 | S55: 3.5 | T55: 13.5 | U55: 25 | V55: 8.2 | W55: 8.8 | X55: 10.8 | Y55: 27.8 | Z55: 5.5 | AA55: 4.4 | AB55: 9.2 | AC55: 19.1 | AD55: 7 | AE55: 13 | AF55: 15 | AG55: 35 | AH55: 3 | AI55: 0 | AJ55: 9 | AK55: 12 | AL55: 3 | AM55: 4 | AN55: 7 | AO55: 5 | AP55: 7 | AQ55: 12 | AR55: 5 | AS55: 5 | AT55: 10 | AU55: 13 | AV55: 16 | AW55: 29 | AX55: 9 | AY55: 11 | AZ55: 11 | BA55: 31 | BB55: 9 | BC55: 11 | BD55: 13 | BE55: 33 | BF55: 8.5 | BG55: 12 | BH55: 15 | BI55: 35.5 | BJ55: 8.5 | BK55: 13 | BL55: 15 | BM55: 36.5 | BN55: 8 | BO55: 15 | BP55: 5 | BQ55: 28 | BR55: 9 | BS55: 10.5 | BT55: 5.5 | BU55: 25 | BV55: 9 | BW55: 2 | BX55: 9 | BY55: 20 | BZ55: 116.2 | CA55: 328.9 | CB55: 4 | CC55: 8 | CD55: 8 | CE55: 20 | CF55: 4 | CG55: 8 | CH55: 8 | CI55: 20 | CJ55: ضعيف | CK55: دور ثان | CL55: =IF(F55="","",IF(CN55=0,RANK($CA55,$CA$10:$CA$599)+COUNTIF(CA$10:CA55,CA55)-1,IF(CN55>=$CO$8,"جميع المواد",CONCATENATE(DH55,DI55,DJ55,DK55,DL55,DM55,DN55,DO55,DP55,DQ55,DR55,DS55,DT55,DU55,DV55,DW55)))) -> (حاسب نظرى) | CM55: =IF(F55="","",IF(CN55=0,RANK($CA55,$CA$10:$CA$599)+COUNTIF(CA$10:CA55,CA55)-"1","")) ->  | CN55: 1 | CO55: 0 | CP55: 0 | CQ55: 0 | CR55: 1 | CS55: 0 | CT55: 0 | CU55: 0 | CV55: 0 | CW55: 0 | CX55: 0 | CY55: 0 | CZ55: 0 | DA55: 0 | DB55: 0 | DC55: 0 | DD55: 0 | DK55: (حاسب نظرى) | DY55: مجموع التحريري
B56: ناجح | C56: 52 | D56: 47 | E56: 47 | F56: طالب تجارة 47 | H56: 1/47 | I56: مستجد | J56: أنثي | K56: مسلم | L56: 30301051402302 | M56: 2003-01-05 | N56: =IF(الشيت!M56="","",CONCATENATE(DATEDIF(الشيت!M56,#REF!,"md")," - ",DATEDIF(الشيت!M56,#REF!,"ym")," - ",DATEDIF(الشيت!M56,#REF!,"y"))) ->  | O56: 147 | P56: 131 | R56: 8 | S56: 14.5 | T56: 13.5 | U56: 36 | V56: 8.2 | W56: 14.4 | X56: 12 | Y56: 34.6 | Z56: 5.5 | AA56: 6 | AB56: 9.6 | AC56: 21.1 | AD56: 7 | AE56: 14 | AF56: 15 | AG56: 36 | AH56: 5.5 | AI56: 1.5 | AJ56: 9.5 | AK56: 16.5 | AL56: 3 | AM56: 4 | AN56: 7 | AO56: 6 | AP56: 6.5 | AQ56: 12.5 | AR56: 5 | AS56: 5 | AT56: 10 | AU56: 14 | AV56: 15.5 | AW56: 29.5 | AX56: 9 | AY56: 15.5 | AZ56: 16.5 | BA56: 41 | BB56: 9 | BC56: 16.5 | BD56: 14 | BE56: 39.5 | BF56: 8.5 | BG56: 15 | BH56: 18 | BI56: 41.5 | BJ56: 8.5 | BK56: 16 | BL56: 15 | BM56: 39.5 | BN56: 8 | BO56: 20 | BP56: 13 | BQ56: 41 | BR56: 9 | BS56: 18 | BT56: 16 | BU56: 43 | BV56: 9 | BW56: 13.5 | BX56: 17.5 | BY56: 40 | BZ56: 177.4 | CA56: 418.2 | CB56: 4 | CC56: 8 | CD56: 8 | CE56: 20 | CF56: 4 | CG56: 8 | CH56: 8 | CI56: 20 | CJ56: جيد | CK56: ناجح | CL56: =IF(F56="","",IF(CN56=0,RANK($CA56,$CA$10:$CA$599)+COUNTIF(CA$10:CA56,CA56)-1,IF(CN56>=$CO$8,"جميع المواد",CONCATENATE(DH56,DI56,DJ56,DK56,DL56,DM56,DN56,DO56,DP56,DQ56,DR56,DS56,DT56,DU56,DV56,DW56)))) -> 52 | CM56: =IF(F56="","",IF(CN56=0,RANK($CA56,$CA$10:$CA$599)+COUNTIF(CA$10:CA56,CA56)-"1","")) -> 52 | CN56: 0 | CO56: 0 | CP56: 0 | CQ56: 0 | CR56: 0 | CS56: 0 | CT56: 0 | CU56: 0 | CV56: 0 | CW56: 0 | CX56: 0 | CY56: 0 | CZ56: 0 | DA56: 0 | DB56: 0 | DC56: 0 | DD56: 0
B57: ناجح | C57: 88 | D57: 48 | E57: 48 | F57: طالب تجارة 48 | H57: 1/48 | I57: مستجد | J57: أنثي | K57: مسلم | L57: 30306291400465 | M57: 2003-06-29 | N57: =IF(الشيت!M57="","",CONCATENATE(DATEDIF(الشيت!M57,#REF!,"md")," - ",DATEDIF(الشيت!M57,#REF!,"ym")," - ",DATEDIF(الشيت!M57,#REF!,"y"))) ->  | O57: 148 | P57: 132 | R57: 8 | S57: 11 | T57: 12.5 | U57: 31.5 | V57: 8.2 | W57: 12.8 | X57: 11.2 | Y57: 32.2 | Z57: 5.5 | AA57: 6.4 | AB57: 9.2 | AC57: 21.1 | AD57: 7 | AE57: 15 | AF57: 15 | AG57: 37 | AH57: 5.5 | AI57: 6 | AJ57: 9.5 | AK57: 21 | AL57: 3 | AM57: 4 | AN57: 7 | AO57: 6 | AP57: 7.5 | AQ57: 13.5 | AR57: 5 | AS57: 6 | AT57: 11 | AU57: 14 | AV57: 17.5 | AW57: 31.5 | AX57: 9 | AY57: 9.5 | AZ57: 16 | BA57: 34.5 | BB57: 9 | BC57: 15.5 | BD57: 13 | BE57: 37.5 | BF57: 8.5 | BG57: 14 | BH57: 17 | BI57: 39.5 | BJ57: 8.5 | BK57: 16 | BL57: 16 | BM57: 40.5 | BN57: 8 | BO57: 17 | BP57: 13 | BQ57: 38 | BR57: 8.5 | BS57: 18 | BT57: 12 | BU57: 38.5 | BV57: 9 | BW57: 8.5 | BX57: 16 | BY57: 33.5 | BZ57: 163.2 | CA57: 398.3 | CB57: 4 | CC57: 8 | CD57: 8 | CE57: 20 | CF57: 4 | CG57: 8 | CH57: 8 | CI57: 20 | CJ57: جيد | CK57: ناجح | CL57: =IF(F57="","",IF(CN57=0,RANK($CA57,$CA$10:$CA$599)+COUNTIF(CA$10:CA57,CA57)-1,IF(CN57>=$CO$8,"جميع المواد",CONCATENATE(DH57,DI57,DJ57,DK57,DL57,DM57,DN57,DO57,DP57,DQ57,DR57,DS57,DT57,DU57,DV57,DW57)))) -> 88 | CM57: =IF(F57="","",IF(CN57=0,RANK($CA57,$CA$10:$CA$599)+COUNTIF(CA$10:CA57,CA57)-"1","")) -> 88 | CN57: 0 | CO57: 0 | CP57: 0 | CQ57: 0 | CR57: 0 | CS57: 0 | CT57: 0 | CU57: 0 | CV57: 0 | CW57: 0 | CX57: 0 | CY57: 0 | CZ57: 0 | DA57: 0 | DB57: 0 | DC57: 0 | DD57: 0
B58: ناجح | C58: 155 | D58: 49 | E58: 49 | F58: طالب تجارة 49 | H58: 1/49 | I58: مستجد | J58: أنثي | K58: مسلم | L58: 30309191400165 | M58: 2003-09-19 | N58: =IF(الشيت!M58="","",CONCATENATE(DATEDIF(الشيت!M58,#REF!,"md")," - ",DATEDIF(الشيت!M58,#REF!,"ym")," - ",DATEDIF(الشيت!M58,#REF!,"y"))) ->  | O58: 149 | P58: 133 | R58: 8 | S58: 10.5 | T58: 9.5 | U58: 28 | V58: 8.3 | W58: 12 | X58: 10.8 | Y58: 31.1 | Z58: 5.5 | AA58: 6 | AB58: 8.8 | AC58: 20.3 | AD58: 7 | AE58: 13 | AF58: 13 | AG58: 33 | AH58: 3 | AI58: 3 | AJ58: 9 | AK58: 15 | AL58: 3 | AM58: 4 | AN58: 7 | AO58: 5 | AP58: 7.5 | AQ58: 12.5 | AR58: 6 | AS58: 6 | AT58: 12 | AU58: 14 | AV58: 17.5 | AW58: 31.5 | AX58: 9 | AY58: 7.5 | AZ58: 10 | BA58: 26.5 | BB58: 9 | BC58: 12.5 | BD58: 12 | BE58: 33.5 | BF58: 8.5 | BG58: 15 | BH58: 18 | BI58: 41.5 | BJ58: 8.5 | BK58: 16 | BL58: 16 | BM58: 40.5 | BN58: 8 | BO58: 18.5 | BP58: 8 | BQ58: 34.5 | BR58: 8.5 | BS58: 15 | BT58: 12 | BU58: 35.5 | BV58: 9 | BW58: 7 | BX58: 15.5 | BY58: 31.5 | BZ58: 148.5 | CA58: 367.9 | CB58: 4 | CC58: 8 | CD58: 8 | CE58: 20 | CF58: 4 | CG58: 8 | CH58: 8 | CI58: 20 | CJ58: جيد | CK58: ناجح | CL58: =IF(F58="","",IF(CN58=0,RANK($CA58,$CA$10:$CA$599)+COUNTIF(CA$10:CA58,CA58)-1,IF(CN58>=$CO$8,"جميع المواد",CONCATENATE(DH58,DI58,DJ58,DK58,DL58,DM58,DN58,DO58,DP58,DQ58,DR58,DS58,DT58,DU58,DV58,DW58)))) -> 155 | CM58: =IF(F58="","",IF(CN58=0,RANK($CA58,$CA$10:$CA$599)+COUNTIF(CA$10:CA58,CA58)-"1","")) -> 155 | CN58: 0 | CO58: 0 | CP58: 0 | CQ58: 0 | CR58: 0 | CS58: 0 | CT58: 0 | CU58: 0 | CV58: 0 | CW58: 0 | CX58: 0 | CY58: 0 | CZ58: 0 | DA58: 0 | DB58: 0 | DC58: 0 | DD58: 0
B59: ناجح | C59: 26 | D59: 50 | E59: 50 | F59: طالب تجارة 50 | H59: 1/50 | I59: مستجد | J59: أنثي | K59: مسلم | L59: 30309141400741 | M59: 2003-09-14 | N59: =IF(الشيت!M59="","",CONCATENATE(DATEDIF(الشيت!M59,#REF!,"md")," - ",DATEDIF(الشيت!M59,#REF!,"ym")," - ",DATEDIF(الشيت!M59,#REF!,"y"))) ->  | O59: 150 | P59: 134 | R59: 8 | S59: 14 | T59: 16 | U59: 38 | V59: 8.3 | W59: 14 | X59: 11.2 | Y59: 33.5 | Z59: 5.5 | AA59: 8 | AB59: 9.6 | AC59: 23.1 | AD59: 7 | AE59: 15 | AF59: 15 | AG59: 37 | AH59: 5.5 | AI59: 10.5 | AJ59: 9.5 | AK59: 25.5 | AL59: 3 | AM59: 4 | AN59: 7 | AO59: 6 | AP59: 6.5 | AQ59: 12.5 | AR59: 6 | AS59: 6 | AT59: 12 | AU59: 15 | AV59: 16.5 | AW59: 31.5 | AX59: 9 | AY59: 16.5 | AZ59: 18 | BA59: 43.5 | BB59: 9 | BC59: 12.5 | BD59: 14 | BE59: 35.5 | BF59: 8.5 | BG59: 16 | BH59: 18 | BI59: 42.5 | BJ59: 8.5 | BK59: 17 | BL59: 15 | BM59: 40.5 | BN59: 8 | BO59: 20 | BP59: 12 | BQ59: 40 | BR59: 9 | BS59: 19 | BT59: 15.5 | BU59: 43.5 | BV59: 9 | BW59: 13.5 | BX59: 18 | BY59: 40.5 | BZ59: 188.5 | CA59: 434.6 | CB59: 4 | CC59: 8 | CD59: 8 | CE59: 20 | CF59: 4 | CG59: 8 | CH59: 8 | CI59: 20 | CJ59: جيد | CK59: ناجح | CL59: =IF(F59="","",IF(CN59=0,RANK($CA59,$CA$10:$CA$599)+COUNTIF(CA$10:CA59,CA59)-1,IF(CN59>=$CO$8,"جميع المواد",CONCATENATE(DH59,DI59,DJ59,DK59,DL59,DM59,DN59,DO59,DP59,DQ59,DR59,DS59,DT59,DU59,DV59,DW59)))) -> 26 | CM59: =IF(F59="","",IF(CN59=0,RANK($CA59,$CA$10:$CA$599)+COUNTIF(CA$10:CA59,CA59)-"1","")) -> 26 | CN59: 0 | CO59: 0 | CP59: 0 | CQ59: 0 | CR59: 0 | CS59: 0 | CT59: 0 | CU59: 0 | CV59: 0 | CW59: 0 | CX59: 0 | CY59: 0 | CZ59: 0 | DA59: 0 | DB59: 0 | DC59: 0 | DD59: 0
B60: ناجح | C60: 29 | D60: 51 | E60: 51 | F60: طالب تجارة 51 | H60: 1/51 | I60: مستجد | J60: أنثي | K60: مسلم | L60: 30308231400108 | M60: 2003-08-23 | N60: =IF(الشيت!M60="","",CONCATENATE(DATEDIF(الشيت!M60,#REF!,"md")," - ",DATEDIF(الشيت!M60,#REF!,"ym")," - ",DATEDIF(الشيت!M60,#REF!,"y"))) ->  | O60: 151 | P60: 135 | R60: 8 | S60: 14 | T60: 13.5 | U60: 35.5 | V60: 8.3 | W60: 12.8 | X60: 10.4 | Y60: 31.5 | Z60: 5.5 | AA60: 8.4 | AB60: 9.6 | AC60: 23.5 | AD60: 7 | AE60: 15 | AF60: 15 | AG60: 37 | AH60: 5.5 | AI60: 11 | AJ60: 9.5 | AK60: 26 | AL60: 3 | AM60: 4 | AN60: 7 | AO60: 6 | AP60: 6.5 | AQ60: 12.5 | AR60: 5 | AS60: 6 | AT60: 11 | AU60: 14 | AV60: 16.5 | AW60: 30.5 | AX60: 9 | AY60: 16.5 | AZ60: 18.5 | BA60: 44 | BB60: 9 | BC60: 12.5 | BD60: 14 | BE60: 35.5 | BF60: 8.5 | BG60: 17 | BH60: 18 | BI60: 43.5 | BJ60: 8.5 | BK60: 17 | BL60: 15 | BM60: 40.5 | BN60: 8 | BO60: 20 | BP60: 12 | BQ60: 40 | BR60: 9 | BS60: 19 | BT60: 17 | BU60: 45 | BV60: 9 | BW60: 14 | BX60: 17.5 | BY60: 40.5 | BZ60: 189.7 | CA60: 433 | CB60: 4 | CC60: 8 | CD60: 8 | CE60: 20 | CF60: 4 | CG60: 8 | CH60: 8 | CI60: 20 | CJ60: جيد | CK60: ناجح | CL60: =IF(F60="","",IF(CN60=0,RANK($CA60,$CA$10:$CA$599)+COUNTIF(CA$10:CA60,CA60)-1,IF(CN60>=$CO$8,"جميع المواد",CONCATENATE(DH60,DI60,DJ60,DK60,DL60,DM60,DN60,DO60,DP60,DQ60,DR60,DS60,DT60,DU60,DV60,DW60)))) -> 29 | CM60: =IF(F60="","",IF(CN60=0,RANK($CA60,$CA$10:$CA$599)+COUNTIF(CA$10:CA60,CA60)-"1","")) -> 29 | CN60: 0 | CO60: 0 | CP60: 0 | CQ60: 0 | CR60: 0 | CS60: 0 | CT60: 0 | CU60: 0 | CV60: 0 | CW60: 0 | CX60: 0 | CY60: 0 | CZ60: 0 | DA60: 0 | DB60: 0 | DC60: 0 | DD60: 0
B61: ناجح | C61: 20 | D61: 52 | E61: 52 | F61: طالب تجارة 52 | H61: 1/52 | I61: مستجد | J61: أنثي | K61: مسلم | L61: 30401251400341 | M61: 2004-01-25 | N61: =IF(الشيت!M61="","",CONCATENATE(DATEDIF(الشيت!M61,#REF!,"md")," - ",DATEDIF(الشيت!M61,#REF!,"ym")," - ",DATEDIF(الشيت!M61,#REF!,"y"))) ->  | O61: 152 | P61: 136 | R61: 8 | S61: 13.5 | T61: 14 | U61: 35.5 | V61: 8.3 | W61: 12.4 | X61: 10.4 | Y61: 31.1 | Z61: 5.5 | AA61: 8 | AB61: 9.6 | AC61: 23.1 | AD61: 7 | AE61: 16 | AF61: 16 | AG61: 39 | AH61: 5.5 | AI61: 10 | AJ61: 9.5 | AK61: 25 | AL61: 3 | AM61: 4 | AN61: 7 | AO61: 5 | AP61: 6.5 | AQ61: 11.5 | AR61: 6 | AS61: 6 | AT61: 12 | AU61: 14 | AV61: 16.5 | AW61: 30.5 | AX61: 9 | AY61: 18.5 | AZ61: 16 | BA61: 43.5 | BB61: 9 | BC61: 14.5 | BD61: 16 | BE61: 39.5 | BF61: 8.5 | BG61: 17 | BH61: 18 | BI61: 43.5 | BJ61: 8.5 | BK61: 17 | BL61: 15 | BM61: 40.5 | BN61: 8 | BO61: 20 | BP61: 16 | BQ61: 44 | BR61: 9 | BS61: 19.5 | BT61: 16 | BU61: 44.5 | BV61: 9 | BW61: 17.5 | BX61: 17.5 | BY61: 44 | BZ61: 195.4 | CA61: 439.7 | CB61: 4 | CC61: 8 | CD61: 8 | CE61: 20 | CF61: 4 | CG61: 8 | CH61: 8 | CI61: 20 | CJ61: جيد جدا | CK61: ناجح | CL61: =IF(F61="","",IF(CN61=0,RANK($CA61,$CA$10:$CA$599)+COUNTIF(CA$10:CA61,CA61)-1,IF(CN61>=$CO$8,"جميع المواد",CONCATENATE(DH61,DI61,DJ61,DK61,DL61,DM61,DN61,DO61,DP61,DQ61,DR61,DS61,DT61,DU61,DV61,DW61)))) -> 20 | CM61: =IF(F61="","",IF(CN61=0,RANK($CA61,$CA$10:$CA$599)+COUNTIF(CA$10:CA61,CA61)-"1","")) -> 20 | CN61: 0 | CO61: 0 | CP61: 0 | CQ61: 0 | CR61: 0 | CS61: 0 | CT61: 0 | CU61: 0 | CV61: 0 | CW61: 0 | CX61: 0 | CY61: 0 | CZ61: 0 | DA61: 0 | DB61: 0 | DC61: 0 | DD61: 0
B62: ناجح | C62: 72 | D62: 53 | E62: 53 | F62: طالب تجارة 53 | H62: 1/53 | I62: مستجد | J62: أنثي | K62: مسلم | L62: 30312151403243 | M62: 2003-12-15 | N62: =IF(الشيت!M62="","",CONCATENATE(DATEDIF(الشيت!M62,#REF!,"md")," - ",DATEDIF(الشيت!M62,#REF!,"ym")," - ",DATEDIF(الشيت!M62,#REF!,"y"))) ->  | O62: 153 | P62: 137 | R62: 8 | S62: 12.5 | T62: 14 | U62: 34.5 | V62: 8.4 | W62: 10 | X62: 10.4 | Y62: 28.8 | Z62: 5.5 | AA62: 7.6 | AB62: 9.6 | AC62: 22.7 | AD62: 7 | AE62: 14 | AF62: 15 | AG62: 36 | AH62: 5.5 | AI62: 5 | AJ62: 9.5 | AK62: 20 | AL62: 3 | AM62: 4 | AN62: 7 | AO62: 5 | AP62: 6.5 | AQ62: 11.5 | AR62: 6 | AS62: 6 | AT62: 12 | AU62: 14 | AV62: 16.5 | AW62: 30.5 | AX62: 9 | AY62: 11.5 | AZ62: 14 | BA62: 34.5 | BB62: 9 | BC62: 13.5 | BD62: 13 | BE62: 35.5 | BF62: 8.5 | BG62: 16 | BH62: 18 | BI62: 42.5 | BJ62: 8.5 | BK62: 17 | BL62: 14 | BM62: 39.5 | BN62: 8 | BO62: 18 | BP62: 12 | BQ62: 38 | BR62: 9 | BS62: 19 | BT62: 13.5 | BU62: 41.5 | BV62: 9 | BW62: 13 | BX62: 17 | BY62: 39 | BZ62: 168.6 | CA62: 405 | CB62: 4 | CC62: 8 | CD62: 8 | CE62: 20 | CF62: 4 | CG62: 8 | CH62: 8 | CI62: 20 | CJ62: جيد | CK62: ناجح | CL62: =IF(F62="","",IF(CN62=0,RANK($CA62,$CA$10:$CA$599)+COUNTIF(CA$10:CA62,CA62)-1,IF(CN62>=$CO$8,"جميع المواد",CONCATENATE(DH62,DI62,DJ62,DK62,DL62,DM62,DN62,DO62,DP62,DQ62,DR62,DS62,DT62,DU62,DV62,DW62)))) -> 72 | CM62: =IF(F62="","",IF(CN62=0,RANK($CA62,$CA$10:$CA$599)+COUNTIF(CA$10:CA62,CA62)-"1","")) -> 72 | CN62: 0 | CO62: 0 | CP62: 0 | CQ62: 0 | CR62: 0 | CS62: 0 | CT62: 0 | CU62: 0 | CV62: 0 | CW62: 0 | CX62: 0 | CY62: 0 | CZ62: 0 | DA62: 0 | DB62: 0 | DC62: 0 | DD62: 0
B63: =CK63 -> ناجح | C63: =CM63 -> 33 | D63: =IF(E63="","",ROW()-9) -> 54 | E63: 53 | F63: طالب تجارة 53 | H63: 1/53 | I63: مستجد | J63: أنثي | K63: مسلم | L63: 30312151403243 | M63: =IF(L63="","",DATE(LEFT(L63,1)+17&MID(L63,2,2),MID(L63,4,2),MID(L63,6,2))) -> 2003-12-15 | N63: =IF(الشيت!M63="","",CONCATENATE(DATEDIF(الشيت!M63,#REF!,"md")," - ",DATEDIF(الشيت!M63,#REF!,"ym")," - ",DATEDIF(الشيت!M63,#REF!,"y"))) ->  | O63: 153 | P63: 137 | R63: 8 | S63: 14 | T63: 14.5 | U63: 36.5 | V63: 8.4 | W63: 10.8 | X63: 16.8 | Y63: 36 | Z63: 5.5 | AA63: 6.8 | AB63: 6.4 | AC63: 18.7 | AD63: 7 | AE63: 16 | AF63: 13 | AG63: 36 | AH63: 3 | AI63: 9 | AJ63: 9 | AK63: 21 | AL63: 3 | AM63: 4 | AN63: 7 | AO63: 6 | AP63: 9 | AQ63: 15 | AR63: 5 | AS63: 6 | AT63: 11 | AU63: 14 | AV63: 19 | AW63: 33 | AX63: 9 | AY63: 16.5 | AZ63: 14.5 | BA63: 40 | BB63: 9 | BC63: 18 | BD63: 15 | BE63: 42 | BF63: 8.5 | BG63: 16 | BH63: 18 | BI63: 42.5 | BJ63: 8.5 | BK63: 18 | BL63: 14 | BM63: 40.5 | BN63: 8 | BO63: 18 | BP63: 18 | BQ63: 44 | BR63: 9 | BS63: 17.5 | BT63: 16 | BU63: 42.5 | BV63: 9 | BW63: 15 | BX63: 16.5 | BY63: 40.5 | BZ63: 190.6 | CA63: 429.2 | CB63: 4 | CC63: 8 | CD63: 8 | CE63: 20 | CF63: 4 | CG63: 8 | CH63: 8 | CI63: 20 | CJ63: =IF(OR($F63="",BZ$4=""),"",IF(BZ63="غائب","غائب",IF(BZ63/BZ$8>=0.9,"ممتاز",IF(BZ63/BZ$8>=0.8,"جيد جدا",IF(BZ63/BZ$8>=0.6,"جيد ",IF(BZ63/BZ$8>=0.5,"مقبول ",IF(BZ63<BZ$8,"ضعيف"))))))) -> جيد | CK63: =IF($F63="","",IF(AND(CN63>=3,I63="معيد"),"مفصول",IF(OR(CN63=1,CN63=2),"دور ثان",IF(CN63>=3,"راسب",IF(CN63=0,"ناجح"))))) -> ناجح | CL63: =IF(F63="","",IF(CN63=0,RANK($CA63,$CA$10:$CA$599)+COUNTIF(CA$10:CA63,CA63)-1,IF(CN63>=$CO$8,"جميع المواد",CONCATENATE(DH63,DI63,DJ63,DK63,DL63,DM63,DN63,DO63,DP63,DQ63,DR63,DS63,DT63,DU63,DV63,DW63)))) -> 33 | CM63: =IF(F63="","",IF(CN63=0,RANK($CA63,$CA$10:$CA$599)+COUNTIF(CA$10:CA63,CA63)-"1","")) -> 33 | CN63: =IF($F63="","",IF(AND(COUNTBLANK(DH63:DT63)=13,COUNTBLANK(DV63:DW63)<2),1,IF(AND(COUNTBLANK(DH63:DT63)<13,COUNTBLANK(DV63:DW63)<2),13-COUNTBLANK(DH63:DT63),IF(AND(COUNTBLANK(DH63:DT63)<13,COUNTBLANK(DV63:DW63)>0),13-COUNTBLANK(DH63:DT63),0)))) -> 0 | CO63: =IF($F63="","",IF(OR(U63<$U$9,U63="غائب",T63<$T$9,T63="غ"),"1","0")) -> 0 | CP63: =IF($F63="","",IF(OR(Y63<$Y$9,Y63="غائب",X63<$X$9,X63="غ"),"1","0")) -> 0 | CQ63: =IF($F63="","",IF(OR(AC63<$AC$9,AC63="غائب",AB63<$AB$9,AB63="غ"),"1","0")) -> 0 | CR63: =IF($F63="","",IF(OR(AN63<$AN$9,AN63="غائب",AM63<$AM$9,AM63="غ",AK63<$AK$9,AK63="غ",AJ63<$AJ$9,AJ63="غ",),"1","0")) -> 0 | CS63: =IF($F63="","",IF(OR(AS63<$AS$9,AS63="غائب",AR63<$AR$9,AR63="غ"),"1","0")) -> 0 | CT63: =IF($F63="","",IF(OR(AW63<$AW$9,AW63="غائب",AV63<$AV$9,AV63="غ"),"1","0")) -> 0 | CU63: =IF($F63="","",IF(OR(BA63<$BA$9,BA63="غائب",AZ63<$AZ$9,AZ63="غ"),"1","0")) -> 0 | CV63: =IF($F63="","",IF(OR(BE63<$BE$9,BE63="غائب",BD63<$BD$9,BD63="غ"),"1","0")) -> 0 | CW63: =IF($F63="","",IF(OR(BI63<$BI$9,BI63="غائب",BH63<$BH$9,BH63="غ"),"1","0")) -> 0 | CX63: =IF($F63="","",IF(OR(BM63<$BM$9,BM63="غائب",BL63<$BL$9,BL63="غ"),"1","0")) -> 0 | CY63: =IF($F63="","",IF(OR(BQ63<$BQ$9,BQ63="غائب",BP63<$BP$9,BP63="غ"),"1","0")) -> 0 | CZ63: =IF($F63="","",IF(OR(BU63<$BU$9,BU63="غائب",BT63<$BT$9,BT63="غ"),"1","0")) -> 0 | DA63: =IF($F63="","",IF(OR(BY63<$BY$9,BY63="غائب",BX63<$BX$9,BX63="غ"),"1","0")) -> 0 | DB63: =IF($F63="","",IF(OR(CA63<$CA$9,CA63="غائب"),"1","0")) -> 0 | DC63: =IF($F63="","",IF(OR(CE63<$CE$9,CE63="غائب",CD63<$CD$9,CD63="غ"),"1","0")) -> 0 | DD63: =IF($F63="","",IF(OR(CI63<$CI$9,CI63="غائب",CH63<$CH$9,CH63="غ"),"1","0")) -> 0 | DH63: =IF($F63="","",IF(OR(U63<$U$9,U63="غائب",T63<$T$9,T63="غ"),$CO$9,"")) ->  | DI63: =IF($F63="","",IF(OR(Y63<$Y$9,Y63="غائب",X63<$X$9,X63="غ"),$CP$9,"")) ->  | DJ63: =IF($F63="","",IF(OR(AC63<$AC$9,AC63="غائب",AB63<$AB$9,AB63="غ"),$CQ$9,"")) ->  | DK63: =IF($F63="","",IF(AND(OR(AN63="غائب",AN63<$AN$9),OR(AM63="غائب",AM63<$AM$9)),$CR$9,IF(OR(AM63="غائب",AM63<$AM$9,AJ63="غ",AJ63<$AJ$9),"(حاسب عملي) ",IF(OR(AN63="غائب",AN63<$AN$9,AK63="غ",AK63<$AK$9),"(حاسب نظرى) ","")))) ->  | DL63: =IF($F63="","",IF(OR(AS63<$AS$9,AS63="غائب",AR63<$AR$9,AR63="غ"),$CS$9,"")) ->  | DM63: =IF($F63="","",IF(OR(AW63<$AW$9,AW63="غائب",AV63<$AV$9,AV63="غ"),$CT$9,"")) ->  | DN63: =IF($F63="","",IF(OR(BA63<$BA$9,BA63="غائب",AZ63<$AZ$9,AZ63="غ"),$CU$9,"")) ->  | DO63: =IF($F63="","",IF(OR(BE63<$BE$9,BE63="غائب",BD63<$BD$9,BD63="غ"),$CV$9,"")) ->  | DP63: =IF($F63="","",IF(OR(BI63<$BI$9,BI63="غائب",BH63<$BH$9,BH63="غ"),$CW$9,"")) ->  | DQ63: =IF($F63="","",IF(OR(BM63<$BM$9,BM63="غائب",BL63<$BL$9,BL63="غ"),$CX$9,"")) ->  | DR63: =IF($F63="","",IF(OR(BQ63<$BQ$9,BQ63="غائب",BP63<$BP$9,BP63="غ"),$CY$9,"")) ->  | DS63: =IF($F63="","",IF(OR(BU63<$BU$9,BU63="غائب",BT63<$BT$9,BT63="غ"),$CZ$9,"")) ->  | DT63: =IF($F63="","",IF(OR(BY63<$BY$9,BY63="غائب",BX63<$BX$9,BX63="غ"),$DA$9,"")) ->  | DU63: =IF($F63="","",IF(OR(CA63<$CA$9,CA63="غائب"),$DB$9,"")) ->  | DV63: =IF($F63="","",IF(OR(CE63<$CE$9,CE63="غائب",CD63<$CD$9,CD63="غ"),$DC$9,"")) ->  | DW63: =IF($F63="","",IF(OR(CI63<$CI$9,CI63="غائب",CH63<$CH$9,CH63="غ"),$DD$9,"")) ->  | DY63: =IF(CK63="دور ثان",IF(OR(T63<$T$9,T63="غ"),$R$4&" ","")&IF(OR(X63<$X$9, X63="غ"),$V$4&" ","")&IF(OR(AB63<$AB$9, AB63="غ"),$Z$4&" ","")&IF(OR(AJ63<$AJ$9, AJ63="غ"),$DE$9&" ","")&IF(OR(AK63<$AK$9, AK63="غ"),$DF$9&" ","")&IF(OR(AR63<$AR$9, AR63="غ"),$AP$4&" ","")&IF(OR(AV63<$AV$9, AV63="غ"),$AT$4&" ","")&IF(OR(AZ63<$AZ$9, AZ63="غ"),$AX$4&" ","")&IF(OR(BD63<$BD$9, BD63="غ"),$BB$4&" ","")&IF(OR(BH63<$BD$9, BH63="غ"),$BF$4&" ","")&IF(OR(BL63<$BL$9, BL63="غ"),$BJ$4&" ","")&IF(OR(BP63<$BP$9, BP63="غ"),$BN$4&" ","")&IF(OR(BT63<$BT$9, BT63="غ"),$BR$4&" ","")&IF(OR(BX63<$BX$9, BX63="غ"),$BV$4&" ",""),"") -> 
B64: ناجح | C64: 165 | D64: 55 | E64: 53 | F64: طالب تجارة 53 | H64: 1/53 | I64: مستجد | J64: أنثي | K64: مسلم | L64: 30312151403243 | M64: 2003-12-15 | N64: =IF(الشيت!M64="","",CONCATENATE(DATEDIF(الشيت!M64,#REF!,"md")," - ",DATEDIF(الشيت!M64,#REF!,"ym")," - ",DATEDIF(الشيت!M64,#REF!,"y"))) ->  | O64: 153 | P64: 137 | R64: 8 | S64: 10.5 | T64: 6.5 | U64: 25 | V64: 8.4 | W64: 8.4 | X64: 15.2 | Y64: 32 | Z64: 5.5 | AA64: 8.4 | AB64: 6 | AC64: 19.9 | AD64: 7 | AE64: 16 | AF64: 11 | AG64: 34 | AH64: 5.5 | AI64: 7.5 | AJ64: 8 | AK64: 21 | AL64: 3 | AM64: 4 | AN64: 7 | AO64: 6 | AP64: 9 | AQ64: 15 | AR64: 5 | AS64: 7 | AT64: 12 | AU64: 14 | AV64: 20 | AW64: 34 | AX64: 9 | AY64: 0 | AZ64: 16 | BA64: 25 | BB64: 9 | BC64: 13.5 | BD64: 12 | BE64: 34.5 | BF64: 8.5 | BG64: 15.5 | BH64: 19 | BI64: 43 | BJ64: 8.5 | BK64: 13 | BL64: 11 | BM64: 32.5 | BN64: 8 | BO64: 16 | BP64: 18 | BQ64: 42 | BR64: 9 | BS64: 10.5 | BT64: 14 | BU64: 33.5 | BV64: 9 | BW64: 9 | BX64: 10 | BY64: 28 | BZ64: 143.3 | CA64: 362.4 | CB64: 4 | CC64: 8 | CD64: 8 | CE64: 20 | CF64: 4 | CG64: 8 | CH64: 8 | CI64: 20 | CJ64: مقبول | CK64: ناجح | CL64: =IF(F64="","",IF(CN64=0,RANK($CA64,$CA$10:$CA$599)+COUNTIF(CA$10:CA64,CA64)-1,IF(CN64>=$CO$8,"جميع المواد",CONCATENATE(DH64,DI64,DJ64,DK64,DL64,DM64,DN64,DO64,DP64,DQ64,DR64,DS64,DT64,DU64,DV64,DW64)))) -> 165 | CM64: =IF(F64="","",IF(CN64=0,RANK($CA64,$CA$10:$CA$599)+COUNTIF(CA$10:CA64,CA64)-"1","")) -> 165 | CN64: 0 | CO64: 0 | CP64: 0 | CQ64: 0 | CR64: 0 | CS64: 0 | CT64: 0 | CU64: 0 | CV64: 0 | CW64: 0 | CX64: 0 | CY64: 0 | CZ64: 0 | DA64: 0 | DB64: 0 | DC64: 0 | DD64: 0
B65: ناجح | C65: 134 | D65: 56 | E65: 53 | F65: طالب تجارة 53 | H65: 1/53 | I65: مستجد | J65: أنثي | K65: مسلم | L65: 30312151403243 | M65: 2003-12-15 | N65: =IF(الشيت!M65="","",CONCATENATE(DATEDIF(الشيت!M65,#REF!,"md")," - ",DATEDIF(الشيت!M65,#REF!,"ym")," - ",DATEDIF(الشيت!M65,#REF!,"y"))) ->  | O65: 153 | P65: 137 | R65: 8 | S65: 14 | T65: 12 | U65: 34 | V65: 8.4 | W65: 9.2 | X65: 14.8 | Y65: 32.4 | Z65: 5.5 | AA65: 6.4 | AB65: 6 | AC65: 17.9 | AD65: 7 | AE65: 16 | AF65: 12 | AG65: 35 | AH65: 5.5 | AI65: 4.5 | AJ65: 6 | AK65: 16 | AL65: 3 | AM65: 4 | AN65: 7 | AO65: 5 | AP65: 9 | AQ65: 14 | AR65: 6 | AS65: 5 | AT65: 11 | AU65: 14 | AV65: 18 | AW65: 32 | AX65: 9 | AY65: 2.5 | AZ65: 13.5 | BA65: 25 | BB65: 9 | BC65: 16 | BD65: 13 | BE65: 38 | BF65: 8.5 | BG65: 15.5 | BH65: 17 | BI65: 41 | BJ65: 8.5 | BK65: 18 | BL65: 15 | BM65: 41.5 | BN65: 8 | BO65: 15 | BP65: 17 | BQ65: 40 | BR65: 9 | BS65: 15 | BT65: 17.5 | BU65: 41.5 | BV65: 9 | BW65: 9 | BX65: 9 | BY65: 27 | BZ65: 155.1 | CA65: 381.3 | CB65: 4 | CC65: 8 | CD65: 8 | CE65: 20 | CF65: 4 | CG65: 8 | CH65: 8 | CI65: 20 | CJ65: جيد | CK65: ناجح | CL65: =IF(F65="","",IF(CN65=0,RANK($CA65,$CA$10:$CA$599)+COUNTIF(CA$10:CA65,CA65)-1,IF(CN65>=$CO$8,"جميع المواد",CONCATENATE(DH65,DI65,DJ65,DK65,DL65,DM65,DN65,DO65,DP65,DQ65,DR65,DS65,DT65,DU65,DV65,DW65)))) -> 134 | CM65: =IF(F65="","",IF(CN65=0,RANK($CA65,$CA$10:$CA$599)+COUNTIF(CA$10:CA65,CA65)-"1","")) -> 134 | CN65: 0 | CO65: 0 | CP65: 0 | CQ65: 0 | CR65: 0 | CS65: 0 | CT65: 0 | CU65: 0 | CV65: 0 | CW65: 0 | CX65: 0 | CY65: 0 | CZ65: 0 | DA65: 0 | DB65: 0 | DC65: 0 | DD65: 0
B66: ناجح | C66: 172 | D66: 57 | E66: 53 | F66: طالب تجارة 53 | H66: 1/53 | I66: مستجد | J66: أنثي | K66: مسلم | L66: 30312151403243 | M66: 2003-12-15 | N66: =IF(الشيت!M66="","",CONCATENATE(DATEDIF(الشيت!M66,#REF!,"md")," - ",DATEDIF(الشيت!M66,#REF!,"ym")," - ",DATEDIF(الشيت!M66,#REF!,"y"))) ->  | O66: 153 | P66: 137 | R66: 8 | S66: 12 | T66: 5 | U66: 25 | V66: 8.1 | W66: 8.8 | X66: 16 | Y66: 32.9 | Z66: 5.5 | AA66: 6.4 | AB66: 6.4 | AC66: 18.3 | AD66: 7 | AE66: 16 | AF66: 10 | AG66: 33 | AH66: 3 | AI66: 5.5 | AJ66: 7 | AK66: 15.5 | AL66: 3 | AM66: 4 | AN66: 7 | AO66: 5 | AP66: 9 | AQ66: 14 | AR66: 5 | AS66: 5 | AT66: 10 | AU66: 13 | AV66: 18 | AW66: 31 | AX66: 9 | AY66: 1 | AZ66: 15 | BA66: 25 | BB66: 9 | BC66: غ | BD66: 16.5 | BE66: 25.5 | BF66: 8.5 | BG66: 15.5 | BH66: 19 | BI66: 43 | BJ66: 8.5 | BK66: 17 | BL66: 17 | BM66: 42.5 | BN66: 8 | BO66: 15 | BP66: 17 | BQ66: 40 | BR66: 9 | BS66: 15.5 | BT66: 17 | BU66: 41.5 | BV66: 9 | BW66: 7 | BX66: 10 | BY66: 26 | BZ66: 133.7 | CA66: 359.2 | CB66: 4 | CC66: 8 | CD66: 8 | CE66: 20 | CF66: 4 | CG66: 8 | CH66: 8 | CI66: 20 | CJ66: مقبول | CK66: ناجح | CL66: =IF(F66="","",IF(CN66=0,RANK($CA66,$CA$10:$CA$599)+COUNTIF(CA$10:CA66,CA66)-1,IF(CN66>=$CO$8,"جميع المواد",CONCATENATE(DH66,DI66,DJ66,DK66,DL66,DM66,DN66,DO66,DP66,DQ66,DR66,DS66,DT66,DU66,DV66,DW66)))) -> 172 | CM66: =IF(F66="","",IF(CN66=0,RANK($CA66,$CA$10:$CA$599)+COUNTIF(CA$10:CA66,CA66)-"1","")) -> 172 | CN66: 0 | CO66: 0 | CP66: 0 | CQ66: 0 | CR66: 0 | CS66: 0 | CT66: 0 | CU66: 0 | CV66: 0 | CW66: 0 | CX66: 0 | CY66: 0 | CZ66: 0 | DA66: 0 | DB66: 0 | DC66: 0 | DD66: 0
B67: ناجح | C67: 45 | D67: 58 | E67: 53 | F67: طالب تجارة 53 | H67: 1/53 | I67: مستجد | J67: أنثي | K67: مسلم | L67: 30312151403243 | M67: 2003-12-15 | N67: =IF(الشيت!M67="","",CONCATENATE(DATEDIF(الشيت!M67,#REF!,"md")," - ",DATEDIF(الشيت!M67,#REF!,"ym")," - ",DATEDIF(الشيت!M67,#REF!,"y"))) ->  | O67: 153 | P67: 137 | R67: 8 | S67: 12.5 | T67: 12 | U67: 32.5 | V67: 8.3 | W67: 9.2 | X67: 14.4 | Y67: 31.9 | Z67: 5.5 | AA67: 6 | AB67: 7.2 | AC67: 18.7 | AD67: 7 | AE67: 15 | AF67: 13 | AG67: 35 | AH67: 5.5 | AI67: 9.5 | AJ67: 9 | AK67: 24 | AL67: 3 | AM67: 4 | AN67: 7 | AO67: 6 | AP67: 9 | AQ67: 15 | AR67: 5 | AS67: 6 | AT67: 11 | AU67: 14 | AV67: 19 | AW67: 33 | AX67: 9 | AY67: 16.5 | AZ67: 16 | BA67: 41.5 | BB67: 9 | BC67: 16 | BD67: 14.5 | BE67: 39.5 | BF67: 8.5 | BG67: 15.5 | BH67: 18 | BI67: 42 | BJ67: 8.5 | BK67: 14 | BL67: 14 | BM67: 36.5 | BN67: 8 | BO67: 16.5 | BP67: 17 | BQ67: 41.5 | BR67: 9 | BS67: 19.5 | BT67: 16.5 | BU67: 45 | BV67: 9 | BW67: 17.5 | BX67: 15.5 | BY67: 42 | BZ67: 182.7 | CA67: 421.6 | CB67: 4 | CC67: 8 | CD67: 8 | CE67: 20 | CF67: 4 | CG67: 8 | CH67: 8 | CI67: 20 | CJ67: جيد | CK67: ناجح | CL67: =IF(F67="","",IF(CN67=0,RANK($CA67,$CA$10:$CA$599)+COUNTIF(CA$10:CA67,CA67)-1,IF(CN67>=$CO$8,"جميع المواد",CONCATENATE(DH67,DI67,DJ67,DK67,DL67,DM67,DN67,DO67,DP67,DQ67,DR67,DS67,DT67,DU67,DV67,DW67)))) -> 45 | CM67: =IF(F67="","",IF(CN67=0,RANK($CA67,$CA$10:$CA$599)+COUNTIF(CA$10:CA67,CA67)-"1","")) -> 45 | CN67: 0 | CO67: 0 | CP67: 0 | CQ67: 0 | CR67: 0 | CS67: 0 | CT67: 0 | CU67: 0 | CV67: 0 | CW67: 0 | CX67: 0 | CY67: 0 | CZ67: 0 | DA67: 0 | DB67: 0 | DC67: 0 | DD67: 0
B68: ناجح | C68: 64 | D68: 59 | E68: 53 | F68: طالب تجارة 53 | H68: 1/53 | I68: مستجد | J68: أنثي | K68: مسلم | L68: 30312151403243 | M68: 2003-12-15 | N68: =IF(الشيت!M68="","",CONCATENATE(DATEDIF(الشيت!M68,#REF!,"md")," - ",DATEDIF(الشيت!M68,#REF!,"ym")," - ",DATEDIF(الشيت!M68,#REF!,"y"))) ->  | O68: 153 | P68: 137 | R68: 8 | S68: 14.5 | T68: 13 | U68: 35.5 | V68: 8.5 | W68: 8.8 | X68: 15.6 | Y68: 32.9 | Z68: 5.5 | AA68: 6.4 | AB68: 5.6 | AC68: 17.5 | AD68: 7 | AE68: 16 | AF68: 11 | AG68: 34 | AH68: 3 | AI68: 8.5 | AJ68: 10 | AK68: 21.5 | AL68: 3 | AM68: 4 | AN68: 7 | AO68: 5 | AP68: 9 | AQ68: 14 | AR68: 6 | AS68: 6 | AT68: 12 | AU68: 14 | AV68: 19 | AW68: 33 | AX68: 9 | AY68: 15 | AZ68: 16 | BA68: 40 | BB68: 9 | BC68: 16 | BD68: 11.5 | BE68: 36.5 | BF68: 8.5 | BG68: 15.5 | BH68: 19 | BI68: 43 | BJ68: 8.5 | BK68: 18 | BL68: 15 | BM68: 41.5 | BN68: 8 | BO68: 17 | BP68: 17 | BQ68: 42 | BR68: 9.5 | BS68: 12 | BT68: 16 | BU68: 37.5 | BV68: 9 | BW68: 17.5 | BX68: 13.5 | BY68: 40 | BZ68: 179.2 | CA68: 412.9 | CB68: 4 | CC68: 8 | CD68: 8 | CE68: 20 | CF68: 4 | CG68: 8 | CH68: 8 | CI68: 20 | CJ68: جيد | CK68: ناجح | CL68: =IF(F68="","",IF(CN68=0,RANK($CA68,$CA$10:$CA$599)+COUNTIF(CA$10:CA68,CA68)-1,IF(CN68>=$CO$8,"جميع المواد",CONCATENATE(DH68,DI68,DJ68,DK68,DL68,DM68,DN68,DO68,DP68,DQ68,DR68,DS68,DT68,DU68,DV68,DW68)))) -> 64 | CM68: =IF(F68="","",IF(CN68=0,RANK($CA68,$CA$10:$CA$599)+COUNTIF(CA$10:CA68,CA68)-"1","")) -> 64 | CN68: 0 | CO68: 0 | CP68: 0 | CQ68: 0 | CR68: 0 | CS68: 0 | CT68: 0 | CU68: 0 | CV68: 0 | CW68: 0 | CX68: 0 | CY68: 0 | CZ68: 0 | DA68: 0 | DB68: 0 | DC68: 0 | DD68: 0
B69: ناجح | C69: 30 | D69: 60 | E69: 53 | F69: طالب تجارة 53 | H69: 1/53 | I69: مستجد | J69: أنثي | K69: مسلم | L69: 30312151403243 | M69: 2003-12-15 | N69: =IF(الشيت!M69="","",CONCATENATE(DATEDIF(الشيت!M69,#REF!,"md")," - ",DATEDIF(الشيت!M69,#REF!,"ym")," - ",DATEDIF(الشيت!M69,#REF!,"y"))) ->  | O69: 153 | P69: 137 | R69: 8 | S69: 15 | T69: 12 | U69: 35 | V69: 8.4 | W69: 9.2 | X69: 18 | Y69: 35.6 | Z69: 5.5 | AA69: 7.2 | AB69: 6 | AC69: 18.7 | AD69: 7 | AE69: 16 | AF69: 13 | AG69: 36 | AH69: 5.5 | AI69: 10 | AJ69: 8 | AK69: 23.5 | AL69: 3 | AM69: 4 | AN69: 7 | AO69: 6 | AP69: 9 | AQ69: 15 | AR69: 6 | AS69: 6 | AT69: 12 | AU69: 15 | AV69: 19 | AW69: 34 | AX69: 9 | AY69: 13.5 | AZ69: 17 | BA69: 39.5 | BB69: 9 | BC69: 18 | BD69: 14 | BE69: 41 | BF69: 8.5 | BG69: 15.5 | BH69: 18 | BI69: 42 | BJ69: 8.5 | BK69: 18 | BL69: 17 | BM69: 43.5 | BN69: 8 | BO69: 19.5 | BP69: 17 | BQ69: 44.5 | BR69: 9 | BS69: 18.5 | BT69: 17 | BU69: 44.5 | BV69: 9 | BW69: 18.5 | BX69: 12 | BY69: 39.5 | BZ69: 193.9 | CA69: 432.8 | CB69: 4 | CC69: 8 | CD69: 8 | CE69: 20 | CF69: 4 | CG69: 8 | CH69: 8 | CI69: 20 | CJ69: جيد | CK69: ناجح | CL69: =IF(F69="","",IF(CN69=0,RANK($CA69,$CA$10:$CA$599)+COUNTIF(CA$10:CA69,CA69)-1,IF(CN69>=$CO$8,"جميع المواد",CONCATENATE(DH69,DI69,DJ69,DK69,DL69,DM69,DN69,DO69,DP69,DQ69,DR69,DS69,DT69,DU69,DV69,DW69)))) -> 30 | CM69: =IF(F69="","",IF(CN69=0,RANK($CA69,$CA$10:$CA$599)+COUNTIF(CA$10:CA69,CA69)-"1","")) -> 30 | CN69: 0 | CO69: 0 | CP69: 0 | CQ69: 0 | CR69: 0 | CS69: 0 | CT69: 0 | CU69: 0 | CV69: 0 | CW69: 0 | CX69: 0 | CY69: 0 | CZ69: 0 | DA69: 0 | DB69: 0 | DC69: 0 | DD69: 0
B70: ناجح | C70: 21 | D70: 61 | E70: 53 | F70: طالب تجارة 53 | H70: 1/53 | I70: مستجد | J70: أنثي | K70: مسلم | L70: 30312151403243 | M70: 2003-12-15 | N70: =IF(الشيت!M70="","",CONCATENATE(DATEDIF(الشيت!M70,#REF!,"md")," - ",DATEDIF(الشيت!M70,#REF!,"ym")," - ",DATEDIF(الشيت!M70,#REF!,"y"))) ->  | O70: 153 | P70: 137 | R70: 8 | S70: 14.5 | T70: 12 | U70: 34.5 | V70: 8.2 | W70: 10 | X70: 18 | Y70: 36.2 | Z70: 5.5 | AA70: 7.6 | AB70: 6.8 | AC70: 19.9 | AD70: 7 | AE70: 15 | AF70: 11 | AG70: 33 | AH70: 5.5 | AI70: 10 | AJ70: 10 | AK70: 25.5 | AL70: 3 | AM70: 4 | AN70: 7 | AO70: 6 | AP70: 8 | AQ70: 14 | AR70: 5 | AS70: 6 | AT70: 11 | AU70: 14 | AV70: 18 | AW70: 32 | AX70: 9 | AY70: 16 | AZ70: 19 | BA70: 44 | BB70: 9 | BC70: 17 | BD70: 16 | BE70: 42 | BF70: 9 | BG70: 15.5 | BH70: 20 | BI70: 44.5 | BJ70: 8.5 | BK70: 18 | BL70: 17 | BM70: 43.5 | BN70: 8 | BO70: 17.5 | BP70: 17 | BQ70: 42.5 | BR70: 9 | BS70: 17.5 | BT70: 17 | BU70: 43.5 | BV70: 9 | BW70: 18.5 | BX70: 13.5 | BY70: 41 | BZ70: 191.1 | CA70: 439.6 | CB70: 4 | CC70: 8 | CD70: 8 | CE70: 20 | CF70: 4 | CG70: 8 | CH70: 8 | CI70: 20 | CJ70: جيد | CK70: ناجح | CL70: =IF(F70="","",IF(CN70=0,RANK($CA70,$CA$10:$CA$599)+COUNTIF(CA$10:CA70,CA70)-1,IF(CN70>=$CO$8,"جميع المواد",CONCATENATE(DH70,DI70,DJ70,DK70,DL70,DM70,DN70,DO70,DP70,DQ70,DR70,DS70,DT70,DU70,DV70,DW70)))) -> 21 | CM70: =IF(F70="","",IF(CN70=0,RANK($CA70,$CA$10:$CA$599)+COUNTIF(CA$10:CA70,CA70)-"1","")) -> 21 | CN70: 0 | CO70: 0 | CP70: 0 | CQ70: 0 | CR70: 0 | CS70: 0 | CT70: 0 | CU70: 0 | CV70: 0 | CW70: 0 | CX70: 0 | CY70: 0 | CZ70: 0 | DA70: 0 | DB70: 0 | DC70: 0 | DD70: 0
B71: ناجح | C71: 135 | D71: 62 | E71: 53 | F71: طالب تجارة 53 | H71: 1/53 | I71: مستجد | J71: أنثي | K71: مسلم | L71: 30312151403243 | M71: 2003-12-15 | N71: =IF(الشيت!M71="","",CONCATENATE(DATEDIF(الشيت!M71,#REF!,"md")," - ",DATEDIF(الشيت!M71,#REF!,"ym")," - ",DATEDIF(الشيت!M71,#REF!,"y"))) ->  | O71: 153 | P71: 137 | R71: 8 | S71: 14.5 | T71: 9 | U71: 31.5 | V71: 8.2 | W71: 10.4 | X71: 17.2 | Y71: 35.8 | Z71: 5.5 | AA71: 6.4 | AB71: 6.4 | AC71: 18.3 | AD71: 7 | AE71: 16 | AF71: 11 | AG71: 34 | AH71: 3 | AI71: 5 | AJ71: 7 | AK71: 15 | AL71: 3 | AM71: 4 | AN71: 7 | AO71: 6 | AP71: 9 | AQ71: 15 | AR71: 5 | AS71: 6 | AT71: 11 | AU71: 14 | AV71: 19 | AW71: 33 | AX71: 9 | AY71: 0.5 | AZ71: 15.5 | BA71: 25 | BB71: 9 | BC71: 17 | BD71: 15 | BE71: 41 | BF71: 8.5 | BG71: 15.5 | BH71: 19 | BI71: 43 | BJ71: 8.5 | BK71: 14 | BL71: 16 | BM71: 38.5 | BN71: 8 | BO71: 15.5 | BP71: 16 | BQ71: 39.5 | BR71: 9 | BS71: 11 | BT71: 17 | BU71: 37 | BV71: 9 | BW71: 10.5 | BX71: 9.5 | BY71: 29 | BZ71: 151.3 | CA71: 381.1 | CB71: 4 | CC71: 8 | CD71: 8 | CE71: 20 | CF71: 4 | CG71: 8 | CH71: 8 | CI71: 20 | CJ71: جيد | CK71: ناجح | CL71: =IF(F71="","",IF(CN71=0,RANK($CA71,$CA$10:$CA$599)+COUNTIF(CA$10:CA71,CA71)-1,IF(CN71>=$CO$8,"جميع المواد",CONCATENATE(DH71,DI71,DJ71,DK71,DL71,DM71,DN71,DO71,DP71,DQ71,DR71,DS71,DT71,DU71,DV71,DW71)))) -> 135 | CM71: =IF(F71="","",IF(CN71=0,RANK($CA71,$CA$10:$CA$599)+COUNTIF(CA$10:CA71,CA71)-"1","")) -> 135 | CN71: 0 | CO71: 0 | CP71: 0 | CQ71: 0 | CR71: 0 | CS71: 0 | CT71: 0 | CU71: 0 | CV71: 0 | CW71: 0 | CX71: 0 | CY71: 0 | CZ71: 0 | DA71: 0 | DB71: 0 | DC71: 0 | DD71: 0
B72: ناجح | C72: 128 | D72: 63 | E72: 53 | F72: طالب تجارة 53 | H72: 1/53 | I72: مستجد | J72: أنثي | K72: مسلم | L72: 30312151403243 | M72: 2003-12-15 | N72: =IF(الشيت!M72="","",CONCATENATE(DATEDIF(الشيت!M72,#REF!,"md")," - ",DATEDIF(الشيت!M72,#REF!,"ym")," - ",DATEDIF(الشيت!M72,#REF!,"y"))) ->  | O72: 153 | P72: 137 | R72: 8 | S72: 14 | T72: 8.5 | U72: 30.5 | V72: 8.3 | W72: 8.8 | X72: 16.8 | Y72: 33.9 | Z72: 5.5 | AA72: 7.6 | AB72: 6.4 | AC72: 19.5 | AD72: 7 | AE72: 16 | AF72: 11 | AG72: 34 | AH72: 3 | AI72: 5.5 | AJ72: 6.5 | AK72: 15 | AL72: 3 | AM72: 4 | AN72: 7 | AO72: 5 | AP72: 9 | AQ72: 14 | AR72: 6 | AS72: 6 | AT72: 12 | AU72: 14 | AV72: 19 | AW72: 33 | AX72: 8.5 | AY72: 1.5 | AZ72: 15 | BA72: 25 | BB72: 9 | BC72: 17 | BD72: 15 | BE72: 41 | BF72: 9 | BG72: 15.5 | BH72: 19 | BI72: 43.5 | BJ72: 8.5 | BK72: 14 | BL72: 17 | BM72: 39.5 | BN72: 8 | BO72: 14 | BP72: 17 | BQ72: 39 | BR72: 9 | BS72: 16.5 | BT72: 15 | BU72: 40.5 | BV72: 9 | BW72: 9 | BX72: 11.5 | BY72: 29.5 | BZ72: 153.4 | CA72: 384.9 | CB72: 4 | CC72: 8 | CD72: 8 | CE72: 20 | CF72: 4 | CG72: 8 | CH72: 8 | CI72: 20 | CJ72: جيد | CK72: ناجح | CL72: =IF(F72="","",IF(CN72=0,RANK($CA72,$CA$10:$CA$599)+COUNTIF(CA$10:CA72,CA72)-1,IF(CN72>=$CO$8,"جميع المواد",CONCATENATE(DH72,DI72,DJ72,DK72,DL72,DM72,DN72,DO72,DP72,DQ72,DR72,DS72,DT72,DU72,DV72,DW72)))) -> 128 | CM72: =IF(F72="","",IF(CN72=0,RANK($CA72,$CA$10:$CA$599)+COUNTIF(CA$10:CA72,CA72)-"1","")) -> 128 | CN72: 0 | CO72: 0 | CP72: 0 | CQ72: 0 | CR72: 0 | CS72: 0 | CT72: 0 | CU72: 0 | CV72: 0 | CW72: 0 | CX72: 0 | CY72: 0 | CZ72: 0 | DA72: 0 | DB72: 0 | DC72: 0 | DD72: 0
B73: ناجح | C73: 27 | D73: 64 | E73: 53 | F73: طالب تجارة 53 | H73: 1/53 | I73: مستجد | J73: أنثي | K73: مسلم | L73: 30312151403243 | M73: 2003-12-15 | N73: =IF(الشيت!M73="","",CONCATENATE(DATEDIF(الشيت!M73,#REF!,"md")," - ",DATEDIF(الشيت!M73,#REF!,"ym")," - ",DATEDIF(الشيت!M73,#REF!,"y"))) ->  | O73: 153 | P73: 137 | R73: 8 | S73: 13.5 | T73: 11 | U73: 32.5 | V73: 8.3 | W73: 11.2 | X73: 16 | Y73: 35.5 | Z73: 5.5 | AA73: 9.6 | AB73: 7.2 | AC73: 22.3 | AD73: 7 | AE73: 16 | AF73: 13 | AG73: 36 | AH73: 5.5 | AI73: 10.5 | AJ73: 9 | AK73: 25 | AL73: 3 | AM73: 4 | AN73: 7 | AO73: 6 | AP73: 9 | AQ73: 15 | AR73: 5 | AS73: 7 | AT73: 12 | AU73: 14 | AV73: 20 | AW73: 34 | AX73: 9 | AY73: 17 | AZ73: 16 | BA73: 42 | BB73: 9 | BC73: 16 | BD73: 16 | BE73: 41 | BF73: 8.5 | BG73: 15.5 | BH73: 20 | BI73: 44 | BJ73: 8.5 | BK73: 13 | BL73: 16 | BM73: 37.5 | BN73: 8 | BO73: 13 | BP73: 17 | BQ73: 38 | BR73: 9 | BS73: 18.5 | BT73: 16.5 | BU73: 44 | BV73: 9 | BW73: 14.5 | BX73: 16.5 | BY73: 40 | BZ73: 183.3 | CA73: 433.8 | CB73: 4 | CC73: 8 | CD73: 8 | CE73: 20 | CF73: 4 | CG73: 8 | CH73: 8 | CI73: 20 | CJ73: جيد | CK73: ناجح | CL73: =IF(F73="","",IF(CN73=0,RANK($CA73,$CA$10:$CA$599)+COUNTIF(CA$10:CA73,CA73)-1,IF(CN73>=$CO$8,"جميع المواد",CONCATENATE(DH73,DI73,DJ73,DK73,DL73,DM73,DN73,DO73,DP73,DQ73,DR73,DS73,DT73,DU73,DV73,DW73)))) -> 27 | CM73: =IF(F73="","",IF(CN73=0,RANK($CA73,$CA$10:$CA$599)+COUNTIF(CA$10:CA73,CA73)-"1","")) -> 27 | CN73: 0 | CO73: 0 | CP73: 0 | CQ73: 0 | CR73: 0 | CS73: 0 | CT73: 0 | CU73: 0 | CV73: 0 | CW73: 0 | CX73: 0 | CY73: 0 | CZ73: 0 | DA73: 0 | DB73: 0 | DC73: 0 | DD73: 0
B74: ناجح | C74: 23 | D74: 65 | E74: 53 | F74: طالب تجارة 53 | H74: 1/53 | I74: مستجد | J74: أنثي | K74: مسلم | L74: 30312151403243 | M74: 2003-12-15 | N74: =IF(الشيت!M74="","",CONCATENATE(DATEDIF(الشيت!M74,#REF!,"md")," - ",DATEDIF(الشيت!M74,#REF!,"ym")," - ",DATEDIF(الشيت!M74,#REF!,"y"))) ->  | O74: 153 | P74: 137 | R74: 8 | S74: 15.5 | T74: 13.5 | U74: =IF(AND($B$1="",R74="غ",S74="غ",T74="غ"),"غائب",SUM(T74,S74,R74)) -> 37 | V74: 8.3 | W74: 10 | X74: 14.8 | Y74: =IF(AND($B$1="",V74="غ",W74="غ",X74="غ"),"غائب",SUM(X74,W74,V74)) -> 33.1 | Z74: 5.5 | AA74: 9.6 | AB74: 7.6 | AC74: =IF(AND($B$1="",Z74="غ",AA74="غ",AB74="غ"),"غائب",SUM(AB74,AA74,Z74)) -> 22.7 | AD74: 7 | AE74: 16 | AF74: 13 | AG74: =IF(AND($B$1="",AD74="غ",AE74="غ",AF74="غ"),"غائب",SUM(AF74,AE74,AD74)) -> 36 | AH74: 5.5 | AI74: 7 | AJ74: 10 | AK74: =IF(AND($B$1="",AH74="غ",AI74="غ",AJ74="غ"),"غائب",SUM(AJ74,AI74,AH74)) -> 22.5 | AL74: 3 | AM74: 4 | AN74: =IF(AND($B$1="",AL74="غ",AM74="غ"),"غائب",SUM(AL74:AM74)) -> 7 | AO74: 6 | AP74: 9 | AQ74: =IF(AND($B$1="",AO74="غ",AP74="غ"),"غائب",SUM(AO74:AP74)) -> 15 | AR74: 6 | AS74: 6 | AT74: =IF(AND($B$1="",AR74="غ",AS74="غ"),"غائب",SUM(AR74:AS74)) -> 12 | AU74: =IF(AND($B$1="",AR74="غ",AO74="غ",AL74="غ"),"غائب",SUM(AR74,AO74,AL74)) -> 15 | AV74: =IF(AND($B$1="",AS74="غ",AP74="غ",AM74="غ"),"غائب",SUM(AM74,AP74,AS74)) -> 19 | AW74: =IF(AND($B$1="",AU74="غائب",AV74="غائب"),"غائب",SUM(AU74:AV74)) -> 34 | AX74: 9 | AY74: 16.5 | AZ74: 18 | BA74: =IF(AND($B$1="",AX74="غ",AY74="غ",AZ74="غ"),"غائب",SUM(AZ74,AY74,AX74)) -> 43.5 | BB74: 9 | BC74: 15 | BD74: 19 | BE74: =IF(AND($B$1="",BB74="غ",BC74="غ",BD74="غ"),"غائب",SUM(BD74,BC74,BB74)) -> 43 | BF74: 8.5 | BG74: 15.5 | BH74: 20 | BI74: =IF(AND($B$1="",BF74="غ",BG74="غ",BH74="غ"),"غائب",SUM(BH74,BG74,BF74)) -> 44 | BJ74: 8.5 | BK74: 14 | BL74: 16 | BM74: =IF(AND($B$1="",BJ74="غ",BK74="غ",BL74="غ"),"غائب",SUM(BL74,BK74,BJ74)) -> 38.5 | BN74: 8 | BO74: 13 | BP74: 17 | BQ74: =IF(AND($B$1="",BN74="غ",BO74="غ",BP74="غ"),"غائب",SUM(BP74,BO74,BN74)) -> 38 | BR74: 9.5 | BS74: 17 | BT74: 18.5 | BU74: =IF(AND($B$1="",BR74="غ",BS74="غ",BT74="غ"),"غائب",SUM(BT74,BS74,BR74)) -> 45 | BV74: 9 | BW74: 14 | BX74: 16.5 | BY74: =IF(AND($B$1="",BV74="غ",BW74="غ",BX74="غ"),"غائب",SUM(BX74,BW74,BV74)) -> 39.5 | BZ74: =IF(AND($B$1="",S74="غ",W74="غ",AA74="غ",AE74="غ",AI74="غ",AQ74="غ",AY74="غ",BC74="غ",BG74="غ",BK74="غ",BO74="غ",BS74="غ",BW74="غ"),"غائب",SUM(S74,W74,AA74,AI74,AE74,AQ74,,AY74,BC74,BG74,BK74,BO74,BS74,BW74)) -> 178.1 | CA74: =IF(AND($B$1="",U74="غائب",Y74="غائب",AC74="غائب",AG74="غائب",AK74="غائب",AT74="غائب",AW74="غائب",BA74="غائب",BE74="غائب",BI74="غائب",BM74="غائب",BU74="غائب",BY74="غائب",CE74="غائب",CI74="غائب"),"غائب",SUM(BY74,BU74,BM74,BI74,BE74,BA74,AW74,,AK74,AG74,AC74,Y74,U74)) -> 438.8 | CB74: 4 | CC74: 8 | CD74: 8 | CE74: =IF(AND($B$1="",CB74="غ",CC74="غ",CD74="غ"),"غائب",SUM(CD74,CC74,CB74)) -> 20 | CF74: 4 | CG74: 8 | CH74: 8 | CI74: =IF(AND($B$1="",CF74="غ",CG74="غ",CH74="غ"),"غائب",SUM(CH74,CG74,CF74)) -> 20 | CJ74: جيد | CK74: ناجح | CL74: =IF(F74="","",IF(CN74=0,RANK($CA74,$CA$10:$CA$599)+COUNTIF(CA$10:CA74,CA74)-1,IF(CN74>=$CO$8,"جميع المواد",CONCATENATE(DH74,DI74,DJ74,DK74,DL74,DM74,DN74,DO74,DP74,DQ74,DR74,DS74,DT74,DU74,DV74,DW74)))) -> 23 | CM74: =IF(F74="","",IF(CN74=0,RANK($CA74,$CA$10:$CA$599)+COUNTIF(CA$10:CA74,CA74)-"1","")) -> 23 | CN74: 0 | CO74: 0 | CP74: 0 | CQ74: 0 | CR74: 0 | CS74: 0 | CT74: 0 | CU74: 0 | CV74: 0 | CW74: 0 | CX74: 0 | CY74: 0 | CZ74: 0 | DA74: 0 | DB74: 0 | DC74: 0 | DD74: 0
B75: ناجح | C75: 39 | D75: 66 | E75: 53 | F75: طالب تجارة 53 | H75: 1/53 | I75: مستجد | J75: أنثي | K75: مسلم | L75: 30312151403243 | M75: 2003-12-15 | N75: =IF(الشيت!M75="","",CONCATENATE(DATEDIF(الشيت!M75,#REF!,"md")," - ",DATEDIF(الشيت!M75,#REF!,"ym")," - ",DATEDIF(الشيت!M75,#REF!,"y"))) ->  | O75: 153 | P75: 137 | R75: 8 | S75: 14.5 | T75: 15 | U75: 37.5 | V75: 8.2 | W75: 10 | X75: 17.2 | Y75: 35.4 | Z75: 5.5 | AA75: 7.2 | AB75: 6.4 | AC75: 19.1 | AD75: 7 | AE75: 16 | AF75: 13 | AG75: 36 | AH75: 3 | AI75: 5.5 | AJ75: 9.5 | AK75: 18 | AL75: 3 | AM75: 4 | AN75: 7 | AO75: 6 | AP75: 9 | AQ75: 15 | AR75: 6 | AS75: 6 | AT75: 12 | AU75: 15 | AV75: 19 | AW75: 34 | AX75: 9 | AY75: 13 | AZ75: 15 | BA75: 37 | BB75: 9 | BC75: 18 | BD75: 17 | BE75: 44 | BF75: 8.5 | BG75: 16 | BH75: 19 | BI75: 43.5 | BJ75: 8.5 | BK75: 15 | BL75: 17 | BM75: 40.5 | BN75: 8 | BO75: 14 | BP75: 17 | BQ75: 39 | BR75: 9.5 | BS75: 17.5 | BT75: 16 | BU75: 43 | BV75: 9 | BW75: 13 | BX75: 15.5 | BY75: 37.5 | BZ75: 174.7 | CA75: 425.5 | CB75: 4 | CC75: 8 | CD75: 8 | CE75: 20 | CF75: 4 | CG75: 8 | CH75: 8 | CI75: 20 | CJ75: جيد | CK75: ناجح | CL75: =IF(F75="","",IF(CN75=0,RANK($CA75,$CA$10:$CA$599)+COUNTIF(CA$10:CA75,CA75)-1,IF(CN75>=$CO$8,"جميع المواد",CONCATENATE(DH75,DI75,DJ75,DK75,DL75,DM75,DN75,DO75,DP75,DQ75,DR75,DS75,DT75,DU75,DV75,DW75)))) -> 39 | CM75: =IF(F75="","",IF(CN75=0,RANK($CA75,$CA$10:$CA$599)+COUNTIF(CA$10:CA75,CA75)-"1","")) -> 39 | CN75: 0 | CO75: 0 | CP75: 0 | CQ75: 0 | CR75: 0 | CS75: 0 | CT75: 0 | CU75: 0 | CV75: 0 | CW75: 0 | CX75: 0 | CY75: 0 | CZ75: 0 | DA75: 0 | DB75: 0 | DC75: 0 | DD75: 0
B76: ناجح | C76: 31 | D76: 67 | E76: 53 | F76: طالب تجارة 53 | H76: 1/53 | I76: مستجد | J76: أنثي | K76: مسلم | L76: 30312151403243 | M76: 2003-12-15 | N76: =IF(الشيت!M76="","",CONCATENATE(DATEDIF(الشيت!M76,#REF!,"md")," - ",DATEDIF(الشيت!M76,#REF!,"ym")," - ",DATEDIF(الشيت!M76,#REF!,"y"))) ->  | O76: 153 | P76: 137 | R76: 8 | S76: 14 | T76: 12 | U76: 34 | V76: 8.3 | W76: 10.8 | X76: 16.4 | Y76: 35.5 | Z76: 5.5 | AA76: 7.2 | AB76: 8 | AC76: 20.7 | AD76: 7 | AE76: 16 | AF76: 14 | AG76: 37 | AH76: 5.5 | AI76: 11 | AJ76: 8.5 | AK76: 25 | AL76: 3 | AM76: 4 | AN76: 7 | AO76: 6 | AP76: 9 | AQ76: 15 | AR76: 5 | AS76: 6 | AT76: 11 | AU76: 14 | AV76: 19 | AW76: 33 | AX76: 9 | AY76: 15.5 | AZ76: 17.5 | BA76: 42 | BB76: 9 | BC76: 17 | BD76: 14 | BE76: 40 | BF76: 8.5 | BG76: 15 | BH76: 20 | BI76: 43.5 | BJ76: 8.5 | BK76: 17 | BL76: 16 | BM76: 41.5 | BN76: 8 | BO76: 14 | BP76: 17 | BQ76: 39 | BR76: 8.5 | BS76: 16.5 | BT76: 16.5 | BU76: 41.5 | BV76: 9 | BW76: 14 | BX76: 14.5 | BY76: 37.5 | BZ76: 183 | CA76: 431.2 | CB76: 4 | CC76: 8 | CD76: 8 | CE76: 20 | CF76: 4 | CG76: 8 | CH76: 8 | CI76: 20 | CJ76: جيد | CK76: ناجح | CL76: =IF(F76="","",IF(CN76=0,RANK($CA76,$CA$10:$CA$599)+COUNTIF(CA$10:CA76,CA76)-1,IF(CN76>=$CO$8,"جميع المواد",CONCATENATE(DH76,DI76,DJ76,DK76,DL76,DM76,DN76,DO76,DP76,DQ76,DR76,DS76,DT76,DU76,DV76,DW76)))) -> 31 | CM76: =IF(F76="","",IF(CN76=0,RANK($CA76,$CA$10:$CA$599)+COUNTIF(CA$10:CA76,CA76)-"1","")) -> 31 | CN76: 0 | CO76: 0 | CP76: 0 | CQ76: 0 | CR76: 0 | CS76: 0 | CT76: 0 | CU76: 0 | CV76: 0 | CW76: 0 | CX76: 0 | CY76: 0 | CZ76: 0 | DA76: 0 | DB76: 0 | DC76: 0 | DD76: 0
B77: ناجح | C77: 11 | D77: 68 | E77: 53 | F77: طالب تجارة 53 | H77: 1/53 | I77: مستجد | J77: أنثي | K77: مسلم | L77: 30312151403243 | M77: 2003-12-15 | N77: =IF(الشيت!M77="","",CONCATENATE(DATEDIF(الشيت!M77,#REF!,"md")," - ",DATEDIF(الشيت!M77,#REF!,"ym")," - ",DATEDIF(الشيت!M77,#REF!,"y"))) ->  | O77: 153 | P77: 137 | R77: 8 | S77: 15.5 | T77: 13 | U77: 36.5 | V77: 8.4 | W77: 12.4 | X77: 17.6 | Y77: 38.4 | Z77: 5.5 | AA77: 8 | AB77: 8 | AC77: 21.5 | AD77: 7 | AE77: 16 | AF77: 14 | AG77: 37 | AH77: 3 | AI77: 9 | AJ77: 10.5 | AK77: 22.5 | AL77: 3 | AM77: 4 | AN77: 7 | AO77: 6 | AP77: 9 | AQ77: 15 | AR77: 5 | AS77: 6 | AT77: 11 | AU77: 14 | AV77: 19 | AW77: 33 | AX77: 9 | AY77: 17 | AZ77: 18 | BA77: 44 | BB77: 9 | BC77: 17 | BD77: 13 | BE77: 39 | BF77: 8.5 | BG77: 17 | BH77: 20 | BI77: 45.5 | BJ77: 8.5 | BK77: 19 | BL77: 16 | BM77: 43.5 | BN77: 8 | BO77: 18 | BP77: 17 | BQ77: 43 | BR77: 9.5 | BS77: 18.5 | BT77: 17 | BU77: 45 | BV77: 9 | BW77: 16 | BX77: 17 | BY77: 42 | BZ77: 198.4 | CA77: 447.9 | CB77: 4 | CC77: 8 | CD77: 8 | CE77: 20 | CF77: 4 | CG77: 8 | CH77: 8 | CI77: 20 | CJ77: جيد جدا | CK77: ناجح | CL77: =IF(F77="","",IF(CN77=0,RANK($CA77,$CA$10:$CA$599)+COUNTIF(CA$10:CA77,CA77)-1,IF(CN77>=$CO$8,"جميع المواد",CONCATENATE(DH77,DI77,DJ77,DK77,DL77,DM77,DN77,DO77,DP77,DQ77,DR77,DS77,DT77,DU77,DV77,DW77)))) -> 11 | CM77: =IF(F77="","",IF(CN77=0,RANK($CA77,$CA$10:$CA$599)+COUNTIF(CA$10:CA77,CA77)-"1","")) -> 11 | CN77: 0 | CO77: 0 | CP77: 0 | CQ77: 0 | CR77: 0 | CS77: 0 | CT77: 0 | CU77: 0 | CV77: 0 | CW77: 0 | CX77: 0 | CY77: 0 | CZ77: 0 | DA77: 0 | DB77: 0 | DC77: 0 | DD77: 0
B78: ناجح | C78: 10 | D78: 69 | E78: 53 | F78: طالب تجارة 53 | H78: 1/53 | I78: مستجد | J78: أنثي | K78: مسلم | L78: 30312151403243 | M78: 2003-12-15 | N78: =IF(الشيت!M78="","",CONCATENATE(DATEDIF(الشيت!M78,#REF!,"md")," - ",DATEDIF(الشيت!M78,#REF!,"ym")," - ",DATEDIF(الشيت!M78,#REF!,"y"))) ->  | O78: 153 | P78: 137 | R78: 8 | S78: 15.5 | T78: 15.5 | U78: 39 | V78: 8.2 | W78: 11.2 | X78: 18.4 | Y78: 37.8 | Z78: 5.5 | AA78: 8 | AB78: 8 | AC78: 21.5 | AD78: 7 | AE78: 16 | AF78: 14 | AG78: 37 | AH78: 5.5 | AI78: 10 | AJ78: 10.5 | AK78: 26 | AL78: 3 | AM78: 4 | AN78: 7 | AO78: 6 | AP78: 9 | AQ78: 15 | AR78: 6 | AS78: 6 | AT78: 12 | AU78: 15 | AV78: 19 | AW78: 34 | AX78: 9 | AY78: 16 | AZ78: 13.5 | BA78: 38.5 | BB78: 9 | BC78: 17 | BD78: 13 | BE78: 39 | BF78: 8.5 | BG78: 16 | BH78: 20 | BI78: 44.5 | BJ78: 8.5 | BK78: 19 | BL78: 16 | BM78: 43.5 | BN78: 8 | BO78: 17 | BP78: 17 | BQ78: 42 | BR78: 9.5 | BS78: 18.5 | BT78: 17 | BU78: 45 | BV78: 9 | BW78: 17 | BX78: 17.5 | BY78: 43.5 | BZ78: 196.2 | CA78: 449.3 | CB78: 4 | CC78: 8 | CD78: 8 | CE78: 20 | CF78: 4 | CG78: 8 | CH78: 8 | CI78: 20 | CJ78: جيد جدا | CK78: ناجح | CL78: =IF(F78="","",IF(CN78=0,RANK($CA78,$CA$10:$CA$599)+COUNTIF(CA$10:CA78,CA78)-1,IF(CN78>=$CO$8,"جميع المواد",CONCATENATE(DH78,DI78,DJ78,DK78,DL78,DM78,DN78,DO78,DP78,DQ78,DR78,DS78,DT78,DU78,DV78,DW78)))) -> 10 | CM78: =IF(F78="","",IF(CN78=0,RANK($CA78,$CA$10:$CA$599)+COUNTIF(CA$10:CA78,CA78)-"1","")) -> 10 | CN78: 0 | CO78: 0 | CP78: 0 | CQ78: 0 | CR78: 0 | CS78: 0 | CT78: 0 | CU78: 0 | CV78: 0 | CW78: 0 | CX78: 0 | CY78: 0 | CZ78: 0 | DA78: 0 | DB78: 0 | DC78: 0 | DD78: 0
B79: ناجح | C79: 19 | D79: 70 | E79: 53 | F79: طالب تجارة 53 | H79: 1/53 | I79: مستجد | J79: أنثي | K79: مسلم | L79: 30312151403243 | M79: 2003-12-15 | N79: =IF(الشيت!M79="","",CONCATENATE(DATEDIF(الشيت!M79,#REF!,"md")," - ",DATEDIF(الشيت!M79,#REF!,"ym")," - ",DATEDIF(الشيت!M79,#REF!,"y"))) ->  | O79: 153 | P79: 137 | R79: 8 | S79: 16 | T79: 15 | U79: 39 | V79: 8.4 | W79: 11.6 | X79: 18 | Y79: 38 | Z79: 5.5 | AA79: 8 | AB79: 8 | AC79: 21.5 | AD79: 7 | AE79: 16 | AF79: 15 | AG79: 38 | AH79: 5.5 | AI79: 6.5 | AJ79: 10.5 | AK79: 22.5 | AL79: 3 | AM79: 4 | AN79: 7 | AO79: 5 | AP79: 8 | AQ79: 13 | AR79: 5 | AS79: 6 | AT79: 11 | AU79: 13 | AV79: 18 | AW79: 31 | AX79: 9 | AY79: 8.5 | AZ79: 16.5 | BA79: 34 | BB79: 9 | BC79: 17 | BD79: 16 | BE79: 42 | BF79: 8.5 | BG79: 16 | BH79: 20 | BI79: 44.5 | BJ79: 8.5 | BK79: 19 | BL79: 16 | BM79: 43.5 | BN79: 8 | BO79: 17 | BP79: 17 | BQ79: 42 | BR79: 9 | BS79: 19 | BT79: 18 | BU79: 46 | BV79: 9 | BW79: 15 | BX79: 17.5 | BY79: 41.5 | BZ79: 182.6 | CA79: 441.5 | CB79: 4 | CC79: 8 | CD79: 8 | CE79: 20 | CF79: 4 | CG79: 8 | CH79: 8 | CI79: 20 | CJ79: جيد | CK79: ناجح | CL79: =IF(F79="","",IF(CN79=0,RANK($CA79,$CA$10:$CA$599)+COUNTIF(CA$10:CA79,CA79)-1,IF(CN79>=$CO$8,"جميع المواد",CONCATENATE(DH79,DI79,DJ79,DK79,DL79,DM79,DN79,DO79,DP79,DQ79,DR79,DS79,DT79,DU79,DV79,DW79)))) -> 19 | CM79: =IF(F79="","",IF(CN79=0,RANK($CA79,$CA$10:$CA$599)+COUNTIF(CA$10:CA79,CA79)-"1","")) -> 19 | CN79: 0 | CO79: 0 | CP79: 0 | CQ79: 0 | CR79: 0 | CS79: 0 | CT79: 0 | CU79: 0 | CV79: 0 | CW79: 0 | CX79: 0 | CY79: 0 | CZ79: 0 | DA79: 0 | DB79: 0 | DC79: 0 | DD79: 0
B80: ناجح | C80: 40 | D80: 71 | E80: 53 | F80: طالب تجارة 53 | H80: 1/53 | I80: مستجد | J80: أنثي | K80: مسلم | L80: 30312151403243 | M80: 2003-12-15 | N80: =IF(الشيت!M80="","",CONCATENATE(DATEDIF(الشيت!M80,#REF!,"md")," - ",DATEDIF(الشيت!M80,#REF!,"ym")," - ",DATEDIF(الشيت!M80,#REF!,"y"))) ->  | O80: 153 | P80: 137 | R80: 8 | S80: 16.5 | T80: 16 | U80: 40.5 | V80: 8.2 | W80: 9.2 | X80: 15.2 | Y80: 32.6 | Z80: 5.5 | AA80: 7.6 | AB80: 7.6 | AC80: 20.7 | AD80: 7 | AE80: 16 | AF80: 15 | AG80: 38 | AH80: 3 | AI80: 3 | AJ80: 10 | AK80: 16 | AL80: 3 | AM80: 4 | AN80: 7 | AO80: 5 | AP80: 9 | AQ80: 14 | AR80: 5 | AS80: 6 | AT80: 11 | AU80: 13 | AV80: 19 | AW80: 32 | AX80: 9 | AY80: 9.5 | AZ80: 17 | BA80: 35.5 | BB80: 9 | BC80: 14.5 | BD80: 18 | BE80: 41.5 | BF80: 8.5 | BG80: 16 | BH80: 20 | BI80: 44.5 | BJ80: 8.5 | BK80: 18 | BL80: 14 | BM80: 40.5 | BN80: 8 | BO80: 17.5 | BP80: 18 | BQ80: 43.5 | BR80: 9 | BS80: 19.5 | BT80: 16.5 | BU80: 45 | BV80: 9 | BW80: 15 | BX80: 13.5 | BY80: 37.5 | BZ80: 176.3 | CA80: 424.3 | CB80: 4 | CC80: 8 | CD80: 8 | CE80: 20 | CF80: 4 | CG80: 8 | CH80: 8 | CI80: 20 | CJ80: جيد | CK80: ناجح | CL80: =IF(F80="","",IF(CN80=0,RANK($CA80,$CA$10:$CA$599)+COUNTIF(CA$10:CA80,CA80)-1,IF(CN80>=$CO$8,"جميع المواد",CONCATENATE(DH80,DI80,DJ80,DK80,DL80,DM80,DN80,DO80,DP80,DQ80,DR80,DS80,DT80,DU80,DV80,DW80)))) -> 40 | CM80: =IF(F80="","",IF(CN80=0,RANK($CA80,$CA$10:$CA$599)+COUNTIF(CA$10:CA80,CA80)-"1","")) -> 40 | CN80: 0 | CO80: 0 | CP80: 0 | CQ80: 0 | CR80: 0 | CS80: 0 | CT80: 0 | CU80: 0 | CV80: 0 | CW80: 0 | CX80: 0 | CY80: 0 | CZ80: 0 | DA80: 0 | DB80: 0 | DC80: 0 | DD80: 0
B81: ناجح | C81: 50 | D81: 72 | E81: 53 | F81: طالب تجارة 53 | H81: 1/53 | I81: مستجد | J81: أنثي | K81: مسلم | L81: 30312151403243 | M81: 2003-12-15 | N81: =IF(الشيت!M81="","",CONCATENATE(DATEDIF(الشيت!M81,#REF!,"md")," - ",DATEDIF(الشيت!M81,#REF!,"ym")," - ",DATEDIF(الشيت!M81,#REF!,"y"))) ->  | O81: 153 | P81: 137 | R81: 8 | S81: 16 | T81: 12 | U81: 36 | V81: 8.4 | W81: 8.8 | X81: 17.6 | Y81: 34.8 | Z81: 5.5 | AA81: 7.2 | AB81: 7.6 | AC81: 20.3 | AD81: 7 | AE81: 16 | AF81: 14 | AG81: 37 | AH81: 3 | AI81: 4.5 | AJ81: 10.5 | AK81: 18 | AL81: 3 | AM81: 4 | AN81: 7 | AO81: 5 | AP81: 10 | AQ81: 15 | AR81: 5 | AS81: 6 | AT81: 11 | AU81: 13 | AV81: 20 | AW81: 33 | AX81: 9 | AY81: 8.5 | AZ81: 17 | BA81: 34.5 | BB81: 9 | BC81: 16 | BD81: 16 | BE81: 41 | BF81: 8.5 | BG81: 16 | BH81: 20 | BI81: 44.5 | BJ81: 8.5 | BK81: 16 | BL81: 18 | BM81: 42.5 | BN81: 8 | BO81: 17 | BP81: 17 | BQ81: 42 | BR81: 8.5 | BS81: 18 | BT81: 17 | BU81: 43.5 | BV81: 9 | BW81: 12 | BX81: 12.5 | BY81: 33.5 | BZ81: 171 | CA81: 418.6 | CB81: 4 | CC81: 8 | CD81: 8 | CE81: 20 | CF81: 4 | CG81: 8 | CH81: 8 | CI81: 20 | CJ81: جيد | CK81: ناجح | CL81: =IF(F81="","",IF(CN81=0,RANK($CA81,$CA$10:$CA$599)+COUNTIF(CA$10:CA81,CA81)-1,IF(CN81>=$CO$8,"جميع المواد",CONCATENATE(DH81,DI81,DJ81,DK81,DL81,DM81,DN81,DO81,DP81,DQ81,DR81,DS81,DT81,DU81,DV81,DW81)))) -> 50 | CM81: =IF(F81="","",IF(CN81=0,RANK($CA81,$CA$10:$CA$599)+COUNTIF(CA$10:CA81,CA81)-"1","")) -> 50 | CN81: 0 | CO81: 0 | CP81: 0 | CQ81: 0 | CR81: 0 | CS81: 0 | CT81: 0 | CU81: 0 | CV81: 0 | CW81: 0 | CX81: 0 | CY81: 0 | CZ81: 0 | DA81: 0 | DB81: 0 | DC81: 0 | DD81: 0
B82: ناجح | C82: 28 | D82: 73 | E82: 53 | F82: طالب تجارة 53 | H82: 1/53 | I82: مستجد | J82: أنثي | K82: مسلم | L82: 30312151403243 | M82: 2003-12-15 | N82: =IF(الشيت!M82="","",CONCATENATE(DATEDIF(الشيت!M82,#REF!,"md")," - ",DATEDIF(الشيت!M82,#REF!,"ym")," - ",DATEDIF(الشيت!M82,#REF!,"y"))) ->  | O82: 153 | P82: 137 | R82: 8 | S82: 16.5 | T82: 16 | U82: 40.5 | V82: 8.3 | W82: 14.8 | X82: 8.4 | Y82: 31.5 | Z82: 5.5 | AA82: 7.6 | AB82: 9.2 | AC82: 22.3 | AD82: 7 | AE82: 15 | AF82: 16 | AG82: 38 | AH82: 5.5 | AI82: 7.5 | AJ82: 9 | AK82: 22 | AL82: 3 | AM82: 4 | AN82: 7 | AO82: 5 | AP82: 6 | AQ82: 11 | AR82: 5 | AS82: 7 | AT82: 12 | AU82: 13 | AV82: 17 | AW82: 30 | AX82: 9 | AY82: 17.5 | AZ82: 17.5 | BA82: 44 | BB82: 9 | BC82: 17 | BD82: 14 | BE82: 40 | BF82: 8.5 | BG82: 17 | BH82: 18 | BI82: 43.5 | BJ82: 8.5 | BK82: 19 | BL82: 14 | BM82: 41.5 | BN82: 8 | BO82: 16 | BP82: 17 | BQ82: 41 | BR82: 9 | BS82: 18.5 | BT82: 15.5 | BU82: 43 | BV82: 9 | BW82: 13 | BX82: 15.5 | BY82: 37.5 | BZ82: 190.4 | CA82: 433.8 | CB82: 4 | CC82: 8 | CD82: 8 | CE82: 20 | CF82: 4 | CG82: 8 | CH82: 8 | CI82: 20 | CJ82: جيد | CK82: ناجح | CL82: =IF(F82="","",IF(CN82=0,RANK($CA82,$CA$10:$CA$599)+COUNTIF(CA$10:CA82,CA82)-1,IF(CN82>=$CO$8,"جميع المواد",CONCATENATE(DH82,DI82,DJ82,DK82,DL82,DM82,DN82,DO82,DP82,DQ82,DR82,DS82,DT82,DU82,DV82,DW82)))) -> 28 | CM82: =IF(F82="","",IF(CN82=0,RANK($CA82,$CA$10:$CA$599)+COUNTIF(CA$10:CA82,CA82)-"1","")) -> 28 | CN82: 0 | CO82: 0 | CP82: 0 | CQ82: 0 | CR82: 0 | CS82: 0 | CT82: 0 | CU82: 0 | CV82: 0 | CW82: 0 | CX82: 0 | CY82: 0 | CZ82: 0 | DA82: 0 | DB82: 0 | DC82: 0 | DD82: 0
B83: ناجح | C83: 55 | D83: 74 | E83: 53 | F83: طالب تجارة 53 | H83: 1/53 | I83: مستجد | J83: أنثي | K83: مسلم | L83: 30312151403243 | M83: 2003-12-15 | N83: =IF(الشيت!M83="","",CONCATENATE(DATEDIF(الشيت!M83,#REF!,"md")," - ",DATEDIF(الشيت!M83,#REF!,"ym")," - ",DATEDIF(الشيت!M83,#REF!,"y"))) ->  | O83: 153 | P83: 137 | R83: 8 | S83: 13 | T83: 14 | U83: 35 | V83: 8.2 | W83: 15.6 | X83: 10.4 | Y83: 34.2 | Z83: 5.5 | AA83: 8 | AB83: 9.6 | AC83: 23.1 | AD83: 7 | AE83: 15 | AF83: 15 | AG83: 37 | AH83: 5.5 | AI83: 2.5 | AJ83: 10 | AK83: 18 | AL83: 3 | AM83: 4 | AN83: 7 | AO83: 6 | AP83: 6 | AQ83: 12 | AR83: 6 | AS83: 5 | AT83: 11 | AU83: 15 | AV83: 15 | AW83: 30 | AX83: 9 | AY83: 14 | AZ83: 18 | BA83: 41 | BB83: 9 | BC83: 17 | BD83: 12 | BE83: 38 | BF83: 8.5 | BG83: 17 | BH83: 15 | BI83: 40.5 | BJ83: 8.5 | BK83: 19 | BL83: 13 | BM83: 40.5 | BN83: 8 | BO83: 16 | BP83: 18 | BQ83: 42 | BR83: 9 | BS83: 18 | BT83: 18 | BU83: 45 | BV83: 9 | BW83: 11 | BX83: 14.5 | BY83: 34.5 | BZ83: 178.1 | CA83: 416.8 | CB83: 4 | CC83: 8 | CD83: 8 | CE83: 20 | CF83: 4 | CG83: 8 | CH83: 8 | CI83: 20 | CJ83: جيد | CK83: ناجح | CL83: =IF(F83="","",IF(CN83=0,RANK($CA83,$CA$10:$CA$599)+COUNTIF(CA$10:CA83,CA83)-1,IF(CN83>=$CO$8,"جميع المواد",CONCATENATE(DH83,DI83,DJ83,DK83,DL83,DM83,DN83,DO83,DP83,DQ83,DR83,DS83,DT83,DU83,DV83,DW83)))) -> 55 | CM83: =IF(F83="","",IF(CN83=0,RANK($CA83,$CA$10:$CA$599)+COUNTIF(CA$10:CA83,CA83)-"1","")) -> 55 | CN83: 0 | CO83: 0 | CP83: 0 | CQ83: 0 | CR83: 0 | CS83: 0 | CT83: 0 | CU83: 0 | CV83: 0 | CW83: 0 | CX83: 0 | CY83: 0 | CZ83: 0 | DA83: 0 | DB83: 0 | DC83: 0 | DD83: 0
B84: ناجح | C84: 36 | D84: 75 | E84: 53 | F84: طالب تجارة 53 | H84: 1/53 | I84: مستجد | J84: أنثي | K84: مسلم | L84: 30312151403243 | M84: 2003-12-15 | N84: =IF(الشيت!M84="","",CONCATENATE(DATEDIF(الشيت!M84,#REF!,"md")," - ",DATEDIF(الشيت!M84,#REF!,"ym")," - ",DATEDIF(الشيت!M84,#REF!,"y"))) ->  | O84: 153 | P84: 137 | R84: 8 | S84: 14.5 | T84: 16 | U84: 38.5 | V84: 8.4 | W84: 15.6 | X84: 7.6 | Y84: 31.6 | Z84: 5.5 | AA84: 7.6 | AB84: 9.2 | AC84: 22.3 | AD84: 7 | AE84: 15 | AF84: 16 | AG84: 38 | AH84: 3.5 | AI84: 9.5 | AJ84: 10.5 | AK84: 23.5 | AL84: 3 | AM84: 4 | AN84: 7 | AO84: 5 | AP84: 6 | AQ84: 11 | AR84: 5 | AS84: 5 | AT84: 10 | AU84: 13 | AV84: 15 | AW84: 28 | AX84: 9 | AY84: 15.5 | AZ84: 19.5 | BA84: 44 | BB84: 9 | BC84: 15 | BD84: 13 | BE84: 37 | BF84: 8.5 | BG84: 17 | BH84: 16 | BI84: 41.5 | BJ84: 8.5 | BK84: 19 | BL84: 13 | BM84: 40.5 | BN84: 8 | BO84: 16 | BP84: 16 | BQ84: 40 | BR84: 9 | BS84: 18.5 | BT84: 14.5 | BU84: 42 | BV84: 9 | BW84: 15 | BX84: 17.5 | BY84: 41.5 | BZ84: 189.2 | CA84: 428.4 | CB84: 4 | CC84: 8 | CD84: 8 | CE84: 20 | CF84: 4 | CG84: 8 | CH84: 8 | CI84: 20 | CJ84: جيد | CK84: ناجح | CL84: =IF(F84="","",IF(CN84=0,RANK($CA84,$CA$10:$CA$599)+COUNTIF(CA$10:CA84,CA84)-1,IF(CN84>=$CO$8,"جميع المواد",CONCATENATE(DH84,DI84,DJ84,DK84,DL84,DM84,DN84,DO84,DP84,DQ84,DR84,DS84,DT84,DU84,DV84,DW84)))) -> 36 | CM84: =IF(F84="","",IF(CN84=0,RANK($CA84,$CA$10:$CA$599)+COUNTIF(CA$10:CA84,CA84)-"1","")) -> 36 | CN84: 0 | CO84: 0 | CP84: 0 | CQ84: 0 | CR84: 0 | CS84: 0 | CT84: 0 | CU84: 0 | CV84: 0 | CW84: 0 | CX84: 0 | CY84: 0 | CZ84: 0 | DA84: 0 | DB84: 0 | DC84: 0 | DD84: 0
B85: ناجح | C85: 56 | D85: 76 | E85: 53 | F85: طالب تجارة 53 | H85: 1/53 | I85: مستجد | J85: أنثي | K85: مسلم | L85: 30312151403243 | M85: 2003-12-15 | N85: =IF(الشيت!M85="","",CONCATENATE(DATEDIF(الشيت!M85,#REF!,"md")," - ",DATEDIF(الشيت!M85,#REF!,"ym")," - ",DATEDIF(الشيت!M85,#REF!,"y"))) ->  | O85: 153 | P85: 137 | R85: 8 | S85: 14.5 | T85: 14 | U85: 36.5 | V85: 8.3 | W85: 15.2 | X85: 8.4 | Y85: 31.9 | Z85: 5.5 | AA85: 7.2 | AB85: 10.8 | AC85: 23.5 | AD85: 7 | AE85: 15 | AF85: 16 | AG85: 38 | AH85: 5.5 | AI85: 9 | AJ85: 10 | AK85: 24.5 | AL85: 3 | AM85: 4 | AN85: 7 | AO85: 5 | AP85: 6 | AQ85: 11 | AR85: 6 | AS85: 6 | AT85: 12 | AU85: 14 | AV85: 16 | AW85: 30 | AX85: 9 | AY85: 11 | AZ85: 15 | BA85: 35 | BB85: 9 | BC85: 16 | BD85: 14 | BE85: 39 | BF85: 8.5 | BG85: 17 | BH85: 16 | BI85: 41.5 | BJ85: 8.5 | BK85: 19 | BL85: 12 | BM85: 39.5 | BN85: 8 | BO85: 16 | BP85: 17 | BQ85: 41 | BR85: 9.5 | BS85: 18 | BT85: 16.5 | BU85: 44 | BV85: 9 | BW85: 13 | BX85: 11 | BY85: 33 | BZ85: 181.9 | CA85: 416.4 | CB85: 4 | CC85: 8 | CD85: 8 | CE85: 20 | CF85: 4 | CG85: 8 | CH85: 8 | CI85: 20 | CJ85: جيد | CK85: ناجح | CL85: =IF(F85="","",IF(CN85=0,RANK($CA85,$CA$10:$CA$599)+COUNTIF(CA$10:CA85,CA85)-1,IF(CN85>=$CO$8,"جميع المواد",CONCATENATE(DH85,DI85,DJ85,DK85,DL85,DM85,DN85,DO85,DP85,DQ85,DR85,DS85,DT85,DU85,DV85,DW85)))) -> 56 | CM85: =IF(F85="","",IF(CN85=0,RANK($CA85,$CA$10:$CA$599)+COUNTIF(CA$10:CA85,CA85)-"1","")) -> 56 | CN85: 0 | CO85: 0 | CP85: 0 | CQ85: 0 | CR85: 0 | CS85: 0 | CT85: 0 | CU85: 0 | CV85: 0 | CW85: 0 | CX85: 0 | CY85: 0 | CZ85: 0 | DA85: 0 | DB85: 0 | DC85: 0 | DD85: 0
B86: ناجح | C86: 129 | D86: 77 | E86: 53 | F86: طالب تجارة 53 | H86: 1/53 | I86: مستجد | J86: أنثي | K86: مسلم | L86: 30312151403243 | M86: 2003-12-15 | N86: =IF(الشيت!M86="","",CONCATENATE(DATEDIF(الشيت!M86,#REF!,"md")," - ",DATEDIF(الشيت!M86,#REF!,"ym")," - ",DATEDIF(الشيت!M86,#REF!,"y"))) ->  | O86: 153 | P86: 137 | R86: 8 | S86: 12 | T86: 14 | U86: 34 | V86: 8.2 | W86: 13.2 | X86: 8 | Y86: 29.4 | Z86: 5.5 | AA86: 6.4 | AB86: 10.6 | AC86: 22.5 | AD86: 7 | AE86: 14 | AF86: 16 | AG86: 37 | AH86: 3 | AI86: 4.5 | AJ86: 8.5 | AK86: 16 | AL86: 3 | AM86: 4 | AN86: 7 | AO86: 5 | AP86: 6 | AQ86: 11 | AR86: 5 | AS86: 7 | AT86: 12 | AU86: 13 | AV86: 17 | AW86: 30 | AX86: 9 | AY86: 15 | AZ86: 10.5 | BA86: 34.5 | BB86: 9 | BC86: 12 | BD86: 12 | BE86: 33 | BF86: 8.5 | BG86: 16 | BH86: 17 | BI86: 41.5 | BJ86: 8.5 | BK86: 19 | BL86: 11 | BM86: 38.5 | BN86: 8 | BO86: 16 | BP86: 13 | BQ86: 37 | BR86: 9 | BS86: 16.5 | BT86: 14.5 | BU86: 40 | BV86: 9 | BW86: 10.5 | BX86: 9 | BY86: 28.5 | BZ86: 166.1 | CA86: 384.9 | CB86: 4 | CC86: 8 | CD86: 8 | CE86: 20 | CF86: 4 | CG86: 8 | CH86: 8 | CI86: 20 | CJ86: جيد | CK86: ناجح | CL86: =IF(F86="","",IF(CN86=0,RANK($CA86,$CA$10:$CA$599)+COUNTIF(CA$10:CA86,CA86)-1,IF(CN86>=$CO$8,"جميع المواد",CONCATENATE(DH86,DI86,DJ86,DK86,DL86,DM86,DN86,DO86,DP86,DQ86,DR86,DS86,DT86,DU86,DV86,DW86)))) -> 129 | CM86: =IF(F86="","",IF(CN86=0,RANK($CA86,$CA$10:$CA$599)+COUNTIF(CA$10:CA86,CA86)-"1","")) -> 129 | CN86: 0 | CO86: 0 | CP86: 0 | CQ86: 0 | CR86: 0 | CS86: 0 | CT86: 0 | CU86: 0 | CV86: 0 | CW86: 0 | CX86: 0 | CY86: 0 | CZ86: 0 | DA86: 0 | DB86: 0 | DC86: 0 | DD86: 0
B87: ناجح | C87: 67 | D87: 78 | E87: 53 | F87: طالب تجارة 53 | H87: 1/53 | I87: مستجد | J87: أنثي | K87: مسلم | L87: 30312151403243 | M87: 2003-12-15 | N87: =IF(الشيت!M87="","",CONCATENATE(DATEDIF(الشيت!M87,#REF!,"md")," - ",DATEDIF(الشيت!M87,#REF!,"ym")," - ",DATEDIF(الشيت!M87,#REF!,"y"))) ->  | O87: 153 | P87: 137 | R87: 8 | S87: 13.5 | T87: 15 | U87: 36.5 | V87: 8.3 | W87: 14.8 | X87: 8.4 | Y87: 31.5 | Z87: 5.5 | AA87: 6.8 | AB87: 9.6 | AC87: 21.9 | AD87: 7 | AE87: 14 | AF87: 16 | AG87: 37 | AH87: 3 | AI87: 9.5 | AJ87: 9 | AK87: 21.5 | AL87: 3 | AM87: 4 | AN87: 7 | AO87: 6 | AP87: 5 | AQ87: 11 | AR87: 5 | AS87: 6 | AT87: 11 | AU87: 14 | AV87: 15 | AW87: 29 | AX87: 9 | AY87: 15.5 | AZ87: 14 | BA87: 38.5 | BB87: 9 | BC87: 16 | BD87: 14 | BE87: 39 | BF87: 9 | BG87: 17 | BH87: 16 | BI87: 42 | BJ87: 8.5 | BK87: 19 | BL87: 13 | BM87: 40.5 | BN87: 8 | BO87: 15 | BP87: 16 | BQ87: 39 | BR87: 9.5 | BS87: 17 | BT87: 15.5 | BU87: 42 | BV87: 9 | BW87: 11.5 | BX87: 11.5 | BY87: 32 | BZ87: 180.6 | CA87: 411.4 | CB87: 4 | CC87: 8 | CD87: 8 | CE87: 20 | CF87: 4 | CG87: 8 | CH87: 8 | CI87: 20 | CJ87: جيد | CK87: ناجح | CL87: =IF(F87="","",IF(CN87=0,RANK($CA87,$CA$10:$CA$599)+COUNTIF(CA$10:CA87,CA87)-1,IF(CN87>=$CO$8,"جميع المواد",CONCATENATE(DH87,DI87,DJ87,DK87,DL87,DM87,DN87,DO87,DP87,DQ87,DR87,DS87,DT87,DU87,DV87,DW87)))) -> 67 | CM87: =IF(F87="","",IF(CN87=0,RANK($CA87,$CA$10:$CA$599)+COUNTIF(CA$10:CA87,CA87)-"1","")) -> 67 | CN87: 0 | CO87: 0 | CP87: 0 | CQ87: 0 | CR87: 0 | CS87: 0 | CT87: 0 | CU87: 0 | CV87: 0 | CW87: 0 | CX87: 0 | CY87: 0 | CZ87: 0 | DA87: 0 | DB87: 0 | DC87: 0 | DD87: 0
B88: ناجح | C88: 53 | D88: 79 | E88: 53 | F88: طالب تجارة 53 | H88: 1/53 | I88: مستجد | J88: أنثي | K88: مسلم | L88: 30312151403243 | M88: 2003-12-15 | N88: =IF(الشيت!M88="","",CONCATENATE(DATEDIF(الشيت!M88,#REF!,"md")," - ",DATEDIF(الشيت!M88,#REF!,"ym")," - ",DATEDIF(الشيت!M88,#REF!,"y"))) ->  | O88: 153 | P88: 137 | R88: 8 | S88: 13.5 | T88: 14.5 | U88: 36 | V88: 8.2 | W88: 15.2 | X88: 8.4 | Y88: 31.8 | Z88: 5.5 | AA88: 8.8 | AB88: 10.4 | AC88: 24.7 | AD88: 7 | AE88: 15 | AF88: 16 | AG88: 38 | AH88: 5.5 | AI88: 11 | AJ88: 9 | AK88: 25.5 | AL88: 3 | AM88: 4 | AN88: 7 | AO88: 6 | AP88: 6 | AQ88: 12 | AR88: 6 | AS88: 5 | AT88: 11 | AU88: 15 | AV88: 15 | AW88: 30 | AX88: 9 | AY88: 16.5 | AZ88: 8 | BA88: 33.5 | BB88: 9 | BC88: 17 | BD88: 13 | BE88: 39 | BF88: 9 | BG88: 18 | BH88: 17 | BI88: 44 | BJ88: 8.5 | BK88: 19 | BL88: 13 | BM88: 40.5 | BN88: 8 | BO88: 15 | BP88: 17 | BQ88: 40 | BR88: 9 | BS88: 18.5 | BT88: 15 | BU88: 42.5 | BV88: 9 | BW88: 14.5 | BX88: 9 | BY88: 32.5 | BZ88: 194 | CA88: 418 | CB88: 4 | CC88: 8 | CD88: 8 | CE88: 20 | CF88: 4 | CG88: 8 | CH88: 8 | CI88: 20 | CJ88: جيد | CK88: ناجح | CL88: =IF(F88="","",IF(CN88=0,RANK($CA88,$CA$10:$CA$599)+COUNTIF(CA$10:CA88,CA88)-1,IF(CN88>=$CO$8,"جميع المواد",CONCATENATE(DH88,DI88,DJ88,DK88,DL88,DM88,DN88,DO88,DP88,DQ88,DR88,DS88,DT88,DU88,DV88,DW88)))) -> 53 | CM88: =IF(F88="","",IF(CN88=0,RANK($CA88,$CA$10:$CA$599)+COUNTIF(CA$10:CA88,CA88)-"1","")) -> 53 | CN88: 0 | CO88: 0 | CP88: 0 | CQ88: 0 | CR88: 0 | CS88: 0 | CT88: 0 | CU88: 0 | CV88: 0 | CW88: 0 | CX88: 0 | CY88: 0 | CZ88: 0 | DA88: 0 | DB88: 0 | DC88: 0 | DD88: 0
B89: ناجح | C89: 16 | D89: 80 | E89: 53 | F89: طالب تجارة 53 | H89: 1/53 | I89: مستجد | J89: أنثي | K89: مسلم | L89: 30312151403243 | M89: 2003-12-15 | N89: =IF(الشيت!M89="","",CONCATENATE(DATEDIF(الشيت!M89,#REF!,"md")," - ",DATEDIF(الشيت!M89,#REF!,"ym")," - ",DATEDIF(الشيت!M89,#REF!,"y"))) ->  | O89: 153 | P89: 137 | R89: 8.5 | S89: 16.5 | T89: 17.5 | U89: 42.5 | V89: 8.2 | W89: 16 | X89: 9.6 | Y89: 33.8 | Z89: 5.5 | AA89: 7.6 | AB89: 9.6 | AC89: 22.7 | AD89: 7 | AE89: 15 | AF89: 16 | AG89: 38 | AH89: 5.5 | AI89: 10.5 | AJ89: 10.5 | AK89: 26.5 | AL89: 3 | AM89: 4 | AN89: 7 | AO89: 6 | AP89: 6 | AQ89: 12 | AR89: 5 | AS89: 6 | AT89: 11 | AU89: 14 | AV89: 16 | AW89: 30 | AX89: 9 | AY89: 18 | AZ89: 16 | BA89: 43 | BB89: 9 | BC89: 17 | BD89: 13 | BE89: 39 | BF89: 8.5 | BG89: 15 | BH89: 18 | BI89: 41.5 | BJ89: 8.5 | BK89: 19 | BL89: 14 | BM89: 41.5 | BN89: 8 | BO89: 16 | BP89: 16 | BQ89: 40 | BR89: 9.5 | BS89: 19 | BT89: 17 | BU89: 45.5 | BV89: 9 | BW89: 14.5 | BX89: 17 | BY89: 40.5 | BZ89: 196.1 | CA89: 444.5 | CB89: 4 | CC89: 8 | CD89: 8 | CE89: 20 | CF89: 4 | CG89: 8 | CH89: 8 | CI89: 20 | CJ89: جيد جدا | CK89: ناجح | CL89: =IF(F89="","",IF(CN89=0,RANK($CA89,$CA$10:$CA$599)+COUNTIF(CA$10:CA89,CA89)-1,IF(CN89>=$CO$8,"جميع المواد",CONCATENATE(DH89,DI89,DJ89,DK89,DL89,DM89,DN89,DO89,DP89,DQ89,DR89,DS89,DT89,DU89,DV89,DW89)))) -> 16 | CM89: =IF(F89="","",IF(CN89=0,RANK($CA89,$CA$10:$CA$599)+COUNTIF(CA$10:CA89,CA89)-"1","")) -> 16 | CN89: 0 | CO89: 0 | CP89: 0 | CQ89: 0 | CR89: 0 | CS89: 0 | CT89: 0 | CU89: 0 | CV89: 0 | CW89: 0 | CX89: 0 | CY89: 0 | CZ89: 0 | DA89: 0 | DB89: 0 | DC89: 0 | DD89: 0
B90: دور ثان | D90: 81 | E90: 53 | F90: طالب تجارة 53 | H90: 1/53 | I90: مستجد | J90: أنثي | K90: مسلم | L90: 30312151403243 | M90: 2003-12-15 | N90: =IF(الشيت!M90="","",CONCATENATE(DATEDIF(الشيت!M90,#REF!,"md")," - ",DATEDIF(الشيت!M90,#REF!,"ym")," - ",DATEDIF(الشيت!M90,#REF!,"y"))) ->  | O90: 153 | P90: 137 | R90: 8 | S90: 10 | T90: 12 | U90: 30 | V90: 8.2 | W90: 10.8 | X90: 5.6 | Y90: 24.6 | Z90: 5.5 | AA90: 8.4 | AB90: 10 | AC90: 23.9 | AD90: 7 | AE90: 14 | AF90: 15 | AG90: 36 | AH90: 3.5 | AI90: 1.5 | AJ90: 7 | AK90: 12 | AL90: 3 | AM90: 4 | AN90: 7 | AO90: 6 | AP90: 6 | AQ90: 12 | AR90: 6 | AS90: 6 | AT90: 12 | AU90: 15 | AV90: 16 | AW90: 31 | AX90: 8.5 | AY90: 11.5 | AZ90: 7.5 | BA90: 27.5 | BB90: 9 | BC90: 16 | BD90: 11 | BE90: 36 | BF90: 8.5 | BG90: 17 | BH90: 11 | BI90: 36.5 | BJ90: 8.5 | BK90: 19 | BL90: 12 | BM90: 39.5 | BN90: 8 | BO90: 16 | BP90: 12 | BQ90: 36 | BR90: 8.5 | BS90: 12 | BT90: 5 | BU90: 25.5 | BV90: 9 | BW90: 3.5 | BX90: 11 | BY90: 23.5 | BZ90: 151.7 | CA90: 346 | CB90: 4 | CC90: 8 | CD90: 8 | CE90: 20 | CF90: 4 | CG90: 8 | CH90: 8 | CI90: 20 | CJ90: جيد | CK90: دور ثان | CL90: =IF(F90="","",IF(CN90=0,RANK($CA90,$CA$10:$CA$599)+COUNTIF(CA$10:CA90,CA90)-1,IF(CN90>=$CO$8,"جميع المواد",CONCATENATE(DH90,DI90,DJ90,DK90,DL90,DM90,DN90,DO90,DP90,DQ90,DR90,DS90,DT90,DU90,DV90,DW90)))) -> (حاسب نظرى) | CM90: =IF(F90="","",IF(CN90=0,RANK($CA90,$CA$10:$CA$599)+COUNTIF(CA$10:CA90,CA90)-"1","")) ->  | CN90: 1 | CO90: 0 | CP90: 0 | CQ90: 0 | CR90: 1 | CS90: 0 | CT90: 0 | CU90: 0 | CV90: 0 | CW90: 0 | CX90: 0 | CY90: 0 | CZ90: 0 | DA90: 0 | DB90: 0 | DC90: 0 | DD90: 0 | DK90: (حاسب نظرى) | DY90: مجموع التحريري
B91: ناجح | C91: 107 | D91: 82 | E91: 53 | F91: طالب تجارة 53 | H91: 1/53 | I91: مستجد | J91: أنثي | K91: مسلم | L91: 30312151403243 | M91: 2003-12-15 | N91: =IF(الشيت!M91="","",CONCATENATE(DATEDIF(الشيت!M91,#REF!,"md")," - ",DATEDIF(الشيت!M91,#REF!,"ym")," - ",DATEDIF(الشيت!M91,#REF!,"y"))) ->  | O91: 153 | P91: 137 | R91: 8 | S91: 11 | T91: 12.5 | U91: 31.5 | V91: 8.2 | W91: 15.2 | X91: 6.4 | Y91: 29.8 | Z91: 5.5 | AA91: 8.4 | AB91: 9.6 | AC91: 23.5 | AD91: 7 | AE91: 15 | AF91: 16 | AG91: 38 | AH91: 3 | AI91: 4.5 | AJ91: 10 | AK91: 17.5 | AL91: 3 | AM91: 4 | AN91: 7 | AO91: 5 | AP91: 5 | AQ91: 10 | AR91: 6 | AS91: 6 | AT91: 12 | AU91: 14 | AV91: 15 | AW91: 29 | AX91: 9 | AY91: 14 | AZ91: 12 | BA91: 35 | BB91: 9 | BC91: 14.5 | BD91: 14 | BE91: 37.5 | BF91: 8.5 | BG91: 17 | BH91: 14 | BI91: 39.5 | BJ91: 8.5 | BK91: 19 | BL91: 15 | BM91: 42.5 | BN91: 8 | BO91: 16 | BP91: 14 | BQ91: 38 | BR91: 9 | BS91: 17 | BT91: 12.5 | BU91: 38.5 | BV91: 9 | BW91: 7.5 | BX91: 12 | BY91: 28.5 | BZ91: 169.1 | CA91: 390.8 | CB91: 4 | CC91: 8 | CD91: 8 | CE91: 20 | CF91: 4 | CG91: 8 | CH91: 8 | CI91: 20 | CJ91: جيد | CK91: ناجح | CL91: =IF(F91="","",IF(CN91=0,RANK($CA91,$CA$10:$CA$599)+COUNTIF(CA$10:CA91,CA91)-1,IF(CN91>=$CO$8,"جميع المواد",CONCATENATE(DH91,DI91,DJ91,DK91,DL91,DM91,DN91,DO91,DP91,DQ91,DR91,DS91,DT91,DU91,DV91,DW91)))) -> 107 | CM91: =IF(F91="","",IF(CN91=0,RANK($CA91,$CA$10:$CA$599)+COUNTIF(CA$10:CA91,CA91)-"1","")) -> 107 | CN91: 0 | CO91: 0 | CP91: 0 | CQ91: 0 | CR91: 0 | CS91: 0 | CT91: 0 | CU91: 0 | CV91: 0 | CW91: 0 | CX91: 0 | CY91: 0 | CZ91: 0 | DA91: 0 | DB91: 0 | DC91: 0 | DD91: 0
B92: ناجح | C92: 13 | D92: 83 | E92: 53 | F92: طالب تجارة 53 | H92: 1/53 | I92: مستجد | J92: أنثي | K92: مسلم | L92: 30312151403243 | M92: 2003-12-15 | N92: =IF(الشيت!M92="","",CONCATENATE(DATEDIF(الشيت!M92,#REF!,"md")," - ",DATEDIF(الشيت!M92,#REF!,"ym")," - ",DATEDIF(الشيت!M92,#REF!,"y"))) ->  | O92: 153 | P92: 137 | R92: 8 | S92: 12.5 | T92: 16 | U92: 36.5 | V92: 8.3 | W92: 14.8 | X92: 10 | Y92: 33.1 | Z92: 5.5 | AA92: 9.2 | AB92: 10 | AC92: 24.7 | AD92: 7 | AE92: 15 | AF92: 16 | AG92: 38 | AH92: 5.5 | AI92: 10 | AJ92: 11 | AK92: 26.5 | AL92: 3 | AM92: 4 | AN92: 7 | AO92: 5 | AP92: 6 | AQ92: 11 | AR92: 5 | AS92: 7 | AT92: 12 | AU92: 13 | AV92: 17 | AW92: 30 | AX92: 9 | AY92: 18 | AZ92: 18 | BA92: 45 | BB92: 9 | BC92: 18 | BD92: 16 | BE92: 43 | BF92: 8.5 | BG92: 19 | BH92: 13 | BI92: 40.5 | BJ92: 8.5 | BK92: 19 | BL92: 13 | BM92: 40.5 | BN92: 8 | BO92: 15 | BP92: 18 | BQ92: 41 | BR92: 9 | BS92: 19.5 | BT92: 18.5 | BU92: 47 | BV92: 9 | BW92: 15 | BX92: 18 | BY92: 42 | BZ92: 196 | CA92: 446.8 | CB92: 4 | CC92: 8 | CD92: 8 | CE92: 20 | CF92: 4 | CG92: 8 | CH92: 8 | CI92: 20 | CJ92: جيد جدا | CK92: ناجح | CL92: =IF(F92="","",IF(CN92=0,RANK($CA92,$CA$10:$CA$599)+COUNTIF(CA$10:CA92,CA92)-1,IF(CN92>=$CO$8,"جميع المواد",CONCATENATE(DH92,DI92,DJ92,DK92,DL92,DM92,DN92,DO92,DP92,DQ92,DR92,DS92,DT92,DU92,DV92,DW92)))) -> 13 | CM92: =IF(F92="","",IF(CN92=0,RANK($CA92,$CA$10:$CA$599)+COUNTIF(CA$10:CA92,CA92)-"1","")) -> 13 | CN92: 0 | CO92: 0 | CP92: 0 | CQ92: 0 | CR92: 0 | CS92: 0 | CT92: 0 | CU92: 0 | CV92: 0 | CW92: 0 | CX92: 0 | CY92: 0 | CZ92: 0 | DA92: 0 | DB92: 0 | DC92: 0 | DD92: 0
B93: ناجح | C93: 69 | D93: 84 | E93: 53 | F93: طالب تجارة 53 | H93: 1/53 | I93: مستجد | J93: أنثي | K93: مسلم | L93: 30312151403243 | M93: 2003-12-15 | N93: =IF(الشيت!M93="","",CONCATENATE(DATEDIF(الشيت!M93,#REF!,"md")," - ",DATEDIF(الشيت!M93,#REF!,"ym")," - ",DATEDIF(الشيت!M93,#REF!,"y"))) ->  | O93: 153 | P93: 137 | R93: 8 | S93: 13 | T93: 15 | U93: 36 | V93: 8.4 | W93: 16 | X93: 8.4 | Y93: 32.8 | Z93: 5.5 | AA93: 6.4 | AB93: 9.6 | AC93: 21.5 | AD93: 7 | AE93: 14 | AF93: 16 | AG93: 37 | AH93: 3 | AI93: 7.5 | AJ93: 9 | AK93: 19.5 | AL93: 3 | AM93: 4 | AN93: 7 | AO93: 5 | AP93: 5 | AQ93: 10 | AR93: 5 | AS93: 6 | AT93: 11 | AU93: 13 | AV93: 15 | AW93: 28 | AX93: 9 | AY93: 12.5 | AZ93: 15.5 | BA93: 37 | BB93: 9 | BC93: 15.5 | BD93: 14 | BE93: 38.5 | BF93: 8.5 | BG93: 17 | BH93: 16 | BI93: 41.5 | BJ93: 8.5 | BK93: 19 | BL93: 16 | BM93: 43.5 | BN93: 8 | BO93: 18 | BP93: 17 | BQ93: 43 | BR93: 9 | BS93: 18 | BT93: 13 | BU93: 40 | BV93: 9 | BW93: 13 | BX93: 13 | BY93: 35 | BZ93: 179.9 | CA93: 410.3 | CB93: 4 | CC93: 8 | CD93: 8 | CE93: 20 | CF93: 4 | CG93: 8 | CH93: 8 | CI93: 20 | CJ93: جيد | CK93: ناجح | CL93: =IF(F93="","",IF(CN93=0,RANK($CA93,$CA$10:$CA$599)+COUNTIF(CA$10:CA93,CA93)-1,IF(CN93>=$CO$8,"جميع المواد",CONCATENATE(DH93,DI93,DJ93,DK93,DL93,DM93,DN93,DO93,DP93,DQ93,DR93,DS93,DT93,DU93,DV93,DW93)))) -> 69 | CM93: =IF(F93="","",IF(CN93=0,RANK($CA93,$CA$10:$CA$599)+COUNTIF(CA$10:CA93,CA93)-"1","")) -> 69 | CN93: 0 | CO93: 0 | CP93: 0 | CQ93: 0 | CR93: 0 | CS93: 0 | CT93: 0 | CU93: 0 | CV93: 0 | CW93: 0 | CX93: 0 | CY93: 0 | CZ93: 0 | DA93: 0 | DB93: 0 | DC93: 0 | DD93: 0
B94: ناجح | C94: 51 | D94: 85 | E94: 53 | F94: طالب تجارة 53 | H94: 1/53 | I94: مستجد | J94: أنثي | K94: مسلم | L94: 30312151403243 | M94: 2003-12-15 | N94: =IF(الشيت!M94="","",CONCATENATE(DATEDIF(الشيت!M94,#REF!,"md")," - ",DATEDIF(الشيت!M94,#REF!,"ym")," - ",DATEDIF(الشيت!M94,#REF!,"y"))) ->  | O94: 153 | P94: 137 | R94: 8 | S94: 11.5 | T94: 11.5 | U94: 31 | V94: 8.3 | W94: 16.4 | X94: 7.6 | Y94: 32.3 | Z94: 5.5 | AA94: 8 | AB94: 8.8 | AC94: 22.3 | AD94: 7 | AE94: 14 | AF94: 15 | AG94: 36 | AH94: 3 | AI94: 7 | AJ94: 10.5 | AK94: 20.5 | AL94: 3 | AM94: 4 | AN94: 7 | AO94: 5 | AP94: 6 | AQ94: 11 | AR94: 5 | AS94: 6 | AT94: 11 | AU94: 13 | AV94: 16 | AW94: 29 | AX94: 8 | AY94: 17.5 | AZ94: 19 | BA94: 44.5 | BB94: 9 | BC94: 14.5 | BD94: 14 | BE94: 37.5 | BF94: 9 | BG94: 17 | BH94: 14 | BI94: 40 | BJ94: 9 | BK94: 19 | BL94: 16 | BM94: 44 | BN94: 8 | BO94: 18 | BP94: 14 | BQ94: 40 | BR94: 9 | BS94: 18 | BT94: 14 | BU94: 41 | BV94: 9 | BW94: 15 | BX94: 16.5 | BY94: 40.5 | BZ94: 186.9 | CA94: 418.6 | CB94: 4 | CC94: 8 | CD94: 8 | CE94: 20 | CF94: 4 | CG94: 8 | CH94: 8 | CI94: 20 | CJ94: جيد | CK94: ناجح | CL94: =IF(F94="","",IF(CN94=0,RANK($CA94,$CA$10:$CA$599)+COUNTIF(CA$10:CA94,CA94)-1,IF(CN94>=$CO$8,"جميع المواد",CONCATENATE(DH94,DI94,DJ94,DK94,DL94,DM94,DN94,DO94,DP94,DQ94,DR94,DS94,DT94,DU94,DV94,DW94)))) -> 51 | CM94: =IF(F94="","",IF(CN94=0,RANK($CA94,$CA$10:$CA$599)+COUNTIF(CA$10:CA94,CA94)-"1","")) -> 51 | CN94: 0 | CO94: 0 | CP94: 0 | CQ94: 0 | CR94: 0 | CS94: 0 | CT94: 0 | CU94: 0 | CV94: 0 | CW94: 0 | CX94: 0 | CY94: 0 | CZ94: 0 | DA94: 0 | DB94: 0 | DC94: 0 | DD94: 0
B95: ناجح | C95: 61 | D95: 86 | E95: 53 | F95: طالب تجارة 53 | H95: 1/53 | I95: مستجد | J95: أنثي | K95: مسلم | L95: 30312151403243 | M95: 2003-12-15 | N95: =IF(الشيت!M95="","",CONCATENATE(DATEDIF(الشيت!M95,#REF!,"md")," - ",DATEDIF(الشيت!M95,#REF!,"ym")," - ",DATEDIF(الشيت!M95,#REF!,"y"))) ->  | O95: 153 | P95: 137 | R95: 8 | S95: 11 | T95: 13 | U95: 32 | V95: 9 | W95: 14.4 | X95: 8.4 | Y95: 31.8 | Z95: 4.5 | AA95: 6.4 | AB95: 8.8 | AC95: 19.7 | AD95: 7 | AE95: 13 | AF95: 15 | AG95: 35 | AH95: 5.5 | AI95: 7.5 | AJ95: 10.5 | AK95: 23.5 | AL95: 2.5 | AM95: 4 | AN95: 6.5 | AO95: 5 | AP95: 6 | AQ95: 11 | AR95: 6 | AS95: 6 | AT95: 12 | AU95: 13.5 | AV95: 16 | AW95: 29.5 | AX95: 8 | AY95: 17 | AZ95: 18 | BA95: 43 | BB95: 9 | BC95: 14.5 | BD95: 13 | BE95: 36.5 | BF95: 9 | BG95: 16 | BH95: 15 | BI95: 40 | BJ95: 9 | BK95: 19 | BL95: 14 | BM95: 42 | BN95: 8 | BO95: 17 | BP95: 14 | BQ95: 39 | BR95: 9 | BS95: 18 | BT95: 15 | BU95: 42 | BV95: 9 | BW95: 12 | BX95: 17.5 | BY95: 38.5 | BZ95: 176.8 | CA95: 413.5 | CB95: 4 | CC95: 8 | CD95: 8 | CE95: 20 | CF95: 4 | CG95: 8 | CH95: 8 | CI95: 20 | CJ95: جيد | CK95: ناجح | CL95: =IF(F95="","",IF(CN95=0,RANK($CA95,$CA$10:$CA$599)+COUNTIF(CA$10:CA95,CA95)-1,IF(CN95>=$CO$8,"جميع المواد",CONCATENATE(DH95,DI95,DJ95,DK95,DL95,DM95,DN95,DO95,DP95,DQ95,DR95,DS95,DT95,DU95,DV95,DW95)))) -> 61 | CM95: =IF(F95="","",IF(CN95=0,RANK($CA95,$CA$10:$CA$599)+COUNTIF(CA$10:CA95,CA95)-"1","")) -> 61 | CN95: 0 | CO95: 0 | CP95: 0 | CQ95: 0 | CR95: 0 | CS95: 0 | CT95: 0 | CU95: 0 | CV95: 0 | CW95: 0 | CX95: 0 | CY95: 0 | CZ95: 0 | DA95: 0 | DB95: 0 | DC95: 0 | DD95: 0
B96: ناجح | C96: 146 | D96: 87 | E96: 53 | F96: طالب تجارة 53 | H96: 1/53 | I96: مستجد | J96: أنثي | K96: مسلم | L96: 30312151403243 | M96: 2003-12-15 | N96: =IF(الشيت!M96="","",CONCATENATE(DATEDIF(الشيت!M96,#REF!,"md")," - ",DATEDIF(الشيت!M96,#REF!,"ym")," - ",DATEDIF(الشيت!M96,#REF!,"y"))) ->  | O96: 153 | P96: 137 | R96: 8 | S96: 8 | T96: 11 | U96: 27 | V96: 8.5 | W96: 14 | X96: 6.8 | Y96: 29.3 | Z96: 4.5 | AA96: 8 | AB96: 8.4 | AC96: 20.9 | AD96: 7 | AE96: 14 | AF96: 16 | AG96: 37 | AH96: 3 | AI96: 1.5 | AJ96: 10.5 | AK96: 15 | AL96: 2.5 | AM96: 4 | AN96: 6.5 | AO96: 6 | AP96: 7 | AQ96: 13 | AR96: 5 | AS96: 5 | AT96: 10 | AU96: 13.5 | AV96: 16 | AW96: 29.5 | AX96: 8 | AY96: 11 | AZ96: 11.5 | BA96: 30.5 | BB96: 8.5 | BC96: 13.5 | BD96: 15 | BE96: 37 | BF96: 9 | BG96: 17 | BH96: 14 | BI96: 40 | BJ96: 9 | BK96: 19 | BL96: 11 | BM96: 39 | BN96: 8 | BO96: 17 | BP96: 14 | BQ96: 39 | BR96: 9 | BS96: 17 | BT96: 10 | BU96: 36 | BV96: 9 | BW96: 10.5 | BX96: 15 | BY96: 34.5 | BZ96: 163.5 | CA96: 375.7 | CB96: 4 | CC96: 8 | CD96: 8 | CE96: 20 | CF96: 4 | CG96: 8 | CH96: 8 | CI96: 20 | CJ96: جيد | CK96: ناجح | CL96: =IF(F96="","",IF(CN96=0,RANK($CA96,$CA$10:$CA$599)+COUNTIF(CA$10:CA96,CA96)-1,IF(CN96>=$CO$8,"جميع المواد",CONCATENATE(DH96,DI96,DJ96,DK96,DL96,DM96,DN96,DO96,DP96,DQ96,DR96,DS96,DT96,DU96,DV96,DW96)))) -> 146 | CM96: =IF(F96="","",IF(CN96=0,RANK($CA96,$CA$10:$CA$599)+COUNTIF(CA$10:CA96,CA96)-"1","")) -> 146 | CN96: 0 | CO96: 0 | CP96: 0 | CQ96: 0 | CR96: 0 | CS96: 0 | CT96: 0 | CU96: 0 | CV96: 0 | CW96: 0 | CX96: 0 | CY96: 0 | CZ96: 0 | DA96: 0 | DB96: 0 | DC96: 0 | DD96: 0
B97: ناجح | C97: 42 | D97: 88 | E97: 53 | F97: طالب تجارة 53 | H97: 1/53 | I97: مستجد | J97: أنثي | K97: مسلم | L97: 30312151403243 | M97: 2003-12-15 | N97: =IF(الشيت!M97="","",CONCATENATE(DATEDIF(الشيت!M97,#REF!,"md")," - ",DATEDIF(الشيت!M97,#REF!,"ym")," - ",DATEDIF(الشيت!M97,#REF!,"y"))) ->  | O97: 153 | P97: 137 | R97: 8.5 | S97: 14 | T97: 14 | U97: 36.5 | V97: 9 | W97: 12.4 | X97: 7.2 | Y97: 28.6 | Z97: 5.5 | AA97: 9.6 | AB97: 9.2 | AC97: 24.3 | AD97: 7 | AE97: 14 | AF97: 16 | AG97: 37 | AH97: 5.5 | AI97: 8.5 | AJ97: 10.5 | AK97: 24.5 | AL97: 3 | AM97: 4 | AN97: 7 | AO97: 6 | AP97: 7 | AQ97: 13 | AR97: 5 | AS97: 6 | AT97: 11 | AU97: 14 | AV97: 17 | AW97: 31 | AX97: 8 | AY97: 18 | AZ97: 17 | BA97: 43 | BB97: 8.5 | BC97: 12 | BD97: 14 | BE97: 34.5 | BF97: 9 | BG97: 18 | BH97: 16 | BI97: 43 | BJ97: 9 | BK97: 17 | BL97: 12 | BM97: 38 | BN97: 8 | BO97: 18 | BP97: 16 | BQ97: 42 | BR97: 9 | BS97: 19 | BT97: 16 | BU97: 44 | BV97: 9 | BW97: 13 | BX97: 17 | BY97: 39 | BZ97: 186.5 | CA97: 423.4 | CB97: 4 | CC97: 8 | CD97: 8 | CE97: 20 | CF97: 4 | CG97: 8 | CH97: 8 | CI97: 20 | CJ97: جيد | CK97: ناجح | CL97: =IF(F97="","",IF(CN97=0,RANK($CA97,$CA$10:$CA$599)+COUNTIF(CA$10:CA97,CA97)-1,IF(CN97>=$CO$8,"جميع المواد",CONCATENATE(DH97,DI97,DJ97,DK97,DL97,DM97,DN97,DO97,DP97,DQ97,DR97,DS97,DT97,DU97,DV97,DW97)))) -> 42 | CM97: =IF(F97="","",IF(CN97=0,RANK($CA97,$CA$10:$CA$599)+COUNTIF(CA$10:CA97,CA97)-"1","")) -> 42 | CN97: 0 | CO97: 0 | CP97: 0 | CQ97: 0 | CR97: 0 | CS97: 0 | CT97: 0 | CU97: 0 | CV97: 0 | CW97: 0 | CX97: 0 | CY97: 0 | CZ97: 0 | DA97: 0 | DB97: 0 | DC97: 0 | DD97: 0
B98: ناجح | C98: 73 | D98: 89 | E98: 53 | F98: طالب تجارة 53 | H98: 1/53 | I98: مستجد | J98: أنثي | K98: مسلم | L98: 30312151403243 | M98: 2003-12-15 | N98: =IF(الشيت!M98="","",CONCATENATE(DATEDIF(الشيت!M98,#REF!,"md")," - ",DATEDIF(الشيت!M98,#REF!,"ym")," - ",DATEDIF(الشيت!M98,#REF!,"y"))) ->  | O98: 153 | P98: 137 | R98: 9 | S98: 13.5 | T98: 13.5 | U98: 36 | V98: 8 | W98: 13.2 | X98: 9.6 | Y98: 30.8 | Z98: 4.5 | AA98: 8.4 | AB98: 9.6 | AC98: 22.5 | AD98: 7 | AE98: 15 | AF98: 16 | AG98: 38 | AH98: 5.5 | AI98: 1.5 | AJ98: 10.5 | AK98: 17.5 | AL98: 3 | AM98: 4.5 | AN98: 7.5 | AO98: 5 | AP98: 6 | AQ98: 11 | AR98: 6 | AS98: 5 | AT98: 11 | AU98: 14 | AV98: 15.5 | AW98: 29.5 | AX98: 8 | AY98: 17 | AZ98: 16 | BA98: 41 | BB98: 8.5 | BC98: 12 | BD98: 14 | BE98: 34.5 | BF98: 9 | BG98: 20 | BH98: 14 | BI98: 43 | BJ98: 9 | BK98: 17 | BL98: 13 | BM98: 39 | BN98: 8 | BO98: 17 | BP98: 15 | BQ98: 40 | BR98: 9 | BS98: 16 | BT98: 14 | BU98: 39 | BV98: 9 | BW98: 11.5 | BX98: 13.5 | BY98: 34 | BZ98: 173.1 | CA98: 404.8 | CB98: 4 | CC98: 8 | CD98: 8 | CE98: 20 | CF98: 4 | CG98: 8 | CH98: 8 | CI98: 20 | CJ98: جيد | CK98: ناجح | CL98: =IF(F98="","",IF(CN98=0,RANK($CA98,$CA$10:$CA$599)+COUNTIF(CA$10:CA98,CA98)-1,IF(CN98>=$CO$8,"جميع المواد",CONCATENATE(DH98,DI98,DJ98,DK98,DL98,DM98,DN98,DO98,DP98,DQ98,DR98,DS98,DT98,DU98,DV98,DW98)))) -> 73 | CM98: =IF(F98="","",IF(CN98=0,RANK($CA98,$CA$10:$CA$599)+COUNTIF(CA$10:CA98,CA98)-"1","")) -> 73 | CN98: 0 | CO98: 0 | CP98: 0 | CQ98: 0 | CR98: 0 | CS98: 0 | CT98: 0 | CU98: 0 | CV98: 0 | CW98: 0 | CX98: 0 | CY98: 0 | CZ98: 0 | DA98: 0 | DB98: 0 | DC98: 0 | DD98: 0
B99: ناجح | C99: 94 | D99: 90 | E99: 53 | F99: طالب تجارة 53 | H99: 1/53 | I99: مستجد | J99: أنثي | K99: مسلم | L99: 30312151403243 | M99: 2003-12-15 | N99: =IF(الشيت!M99="","",CONCATENATE(DATEDIF(الشيت!M99,#REF!,"md")," - ",DATEDIF(الشيت!M99,#REF!,"ym")," - ",DATEDIF(الشيت!M99,#REF!,"y"))) ->  | O99: 153 | P99: 137 | R99: 8 | S99: 11.5 | T99: 13 | U99: 32.5 | V99: 8.5 | W99: 13.2 | X99: 8 | Y99: 29.7 | Z99: 5 | AA99: 8.4 | AB99: 9.6 | AC99: 23 | AD99: 7 | AE99: 15 | AF99: 16 | AG99: 38 | AH99: 2.5 | AI99: 4.5 | AJ99: 10.5 | AK99: 17.5 | AL99: 3 | AM99: 4.5 | AN99: 7.5 | AO99: 5 | AP99: 7 | AQ99: 12 | AR99: 5 | AS99: 5 | AT99: 10 | AU99: 13 | AV99: 16.5 | AW99: 29.5 | AX99: 8 | AY99: 16 | AZ99: 13 | BA99: 37 | BB99: 8.5 | BC99: 17.5 | BD99: 14 | BE99: 40 | BF99: 9 | BG99: 17 | BH99: 12 | BI99: 38 | BJ99: 9 | BK99: 19 | BL99: 10 | BM99: 38 | BN99: 8 | BO99: 18 | BP99: 16 | BQ99: 42 | BR99: 9 | BS99: 17.5 | BT99: 14.5 | BU99: 41 | BV99: 9 | BW99: 12.5 | BX99: 11 | BY99: 32.5 | BZ99: 182.1 | CA99: 396.7 | CB99: 4 | CC99: 8 | CD99: 8 | CE99: 20 | CF99: 4 | CG99: 8 | CH99: 8 | CI99: 20 | CJ99: جيد | CK99: ناجح | CL99: =IF(F99="","",IF(CN99=0,RANK($CA99,$CA$10:$CA$599)+COUNTIF(CA$10:CA99,CA99)-1,IF(CN99>=$CO$8,"جميع المواد",CONCATENATE(DH99,DI99,DJ99,DK99,DL99,DM99,DN99,DO99,DP99,DQ99,DR99,DS99,DT99,DU99,DV99,DW99)))) -> 94 | CM99: =IF(F99="","",IF(CN99=0,RANK($CA99,$CA$10:$CA$599)+COUNTIF(CA$10:CA99,CA99)-"1","")) -> 94 | CN99: 0 | CO99: 0 | CP99: 0 | CQ99: 0 | CR99: 0 | CS99: 0 | CT99: 0 | CU99: 0 | CV99: 0 | CW99: 0 | CX99: 0 | CY99: 0 | CZ99: 0 | DA99: 0 | DB99: 0 | DC99: 0 | DD99: 0
B100: ناجح | C100: 174 | D100: 91 | E100: 53 | F100: طالب تجارة 53 | H100: 1/53 | I100: مستجد | J100: أنثي | K100: مسلم | L100: 30312151403243 | M100: 2003-12-15 | N100: =IF(الشيت!M100="","",CONCATENATE(DATEDIF(الشيت!M100,#REF!,"md")," - ",DATEDIF(الشيت!M100,#REF!,"ym")," - ",DATEDIF(الشيت!M100,#REF!,"y"))) ->  | O100: 153 | P100: 137 | R100: 8 | S100: 11 | T100: 14.5 | U100: 33.5 | V100: 8.5 | W100: 16 | X100: 6.4 | Y100: 30.9 | Z100: 4.5 | AA100: 6 | AB100: 8.8 | AC100: 19.3 | AD100: 7 | AE100: 15 | AF100: 16 | AG100: 38 | AH100: 2.5 | AI100: 7 | AJ100: 8 | AK100: 17.5 | AL100: 3 | AM100: 4.5 | AN100: 7.5 | AO100: 6 | AP100: 7 | AQ100: 13 | AR100: 5 | AS100: 5 | AT100: 10 | AU100: 14 | AV100: 16.5 | AW100: 30.5 | AX100: 8 | AY100: 9.5 | AZ100: 10.5 | BA100: 28 | BB100: 8.5 | BC100: 16 | BD100: 10 | BE100: 34.5 | BF100: 9 | BG100: 17 | BH100: 9 | BI100: 35 | BJ100: 9 | BK100: 17 | BL100: 11 | BM100: 37 | BN100: 8 | BO100: 18 | BP100: 16 | BQ100: 42 | BR100: 9 | BS100: 11.5 | BT100: 10.5 | BU100: 31 | BV100: 9 | BW100: 5.5 | BX100: 8.5 | BY100: 23 | BZ100: 162.5 | CA100: 358.2 | CB100: 4 | CC100: 8 | CD100: 8 | CE100: 20 | CF100: 4 | CG100: 8 | CH100: 8 | CI100: 20 | CJ100: جيد | CK100: ناجح | CL100: =IF(F100="","",IF(CN100=0,RANK($CA100,$CA$10:$CA$599)+COUNTIF(CA$10:CA100,CA100)-1,IF(CN100>=$CO$8,"جميع المواد",CONCATENATE(DH100,DI100,DJ100,DK100,DL100,DM100,DN100,DO100,DP100,DQ100,DR100,DS100,DT100,DU100,DV100,DW100)))) -> 174 | CM100: =IF(F100="","",IF(CN100=0,RANK($CA100,$CA$10:$CA$599)+COUNTIF(CA$10:CA100,CA100)-"1","")) -> 174 | CN100: 0 | CO100: 0 | CP100: 0 | CQ100: 0 | CR100: 0 | CS100: 0 | CT100: 0 | CU100: 0 | CV100: 0 | CW100: 0 | CX100: 0 | CY100: 0 | CZ100: 0 | DA100: 0 | DB100: 0 | DC100: 0 | DD100: 0
B101: ناجح | C101: 97 | D101: 92 | E101: 53 | F101: طالب تجارة 53 | H101: 1/53 | I101: مستجد | J101: أنثي | K101: مسلم | L101: 30312151403243 | M101: 2003-12-15 | N101: =IF(الشيت!M101="","",CONCATENATE(DATEDIF(الشيت!M101,#REF!,"md")," - ",DATEDIF(الشيت!M101,#REF!,"ym")," - ",DATEDIF(الشيت!M101,#REF!,"y"))) ->  | O101: 153 | P101: 137 | R101: 8 | S101: 13 | T101: 14.5 | U101: 35.5 | V101: 9 | W101: 16 | X101: 6.4 | Y101: 31.4 | Z101: 4.5 | AA101: 8.8 | AB101: 8.8 | AC101: 22.1 | AD101: 7 | AE101: 14 | AF101: 16 | AG101: 37 | AH101: 3 | AI101: 6.5 | AJ101: 9.5 | AK101: 19 | AL101: 3 | AM101: 4.5 | AN101: 7.5 | AO101: 5 | AP101: 7 | AQ101: 12 | AR101: 6 | AS101: 5 | AT101: 11 | AU101: 14 | AV101: 16.5 | AW101: 30.5 | AX101: 8 | AY101: 12.5 | AZ101: 15 | BA101: 35.5 | BB101: 8.5 | BC101: 17 | BD101: 13 | BE101: 38.5 | BF101: 9 | BG101: 17 | BH101: 10 | BI101: 36 | BJ101: 9 | BK101: 19 | BL101: 11 | BM101: 39 | BN101: 8 | BO101: 18 | BP101: 16 | BQ101: 42 | BR101: 9 | BS101: 16 | BT101: 11 | BU101: 36 | BV101: 9 | BW101: 12 | BX101: 13 | BY101: 34 | BZ101: 181.8 | CA101: 394.5 | CB101: 4 | CC101: 8 | CD101: 8 | CE101: 20 | CF101: 4 | CG101: 8 | CH101: 8 | CI101: 20 | CJ101: جيد | CK101: ناجح | CL101: =IF(F101="","",IF(CN101=0,RANK($CA101,$CA$10:$CA$599)+COUNTIF(CA$10:CA101,CA101)-1,IF(CN101>=$CO$8,"جميع المواد",CONCATENATE(DH101,DI101,DJ101,DK101,DL101,DM101,DN101,DO101,DP101,DQ101,DR101,DS101,DT101,DU101,DV101,DW101)))) -> 97 | CM101: =IF(F101="","",IF(CN101=0,RANK($CA101,$CA$10:$CA$599)+COUNTIF(CA$10:CA101,CA101)-"1","")) -> 97 | CN101: 0 | CO101: 0 | CP101: 0 | CQ101: 0 | CR101: 0 | CS101: 0 | CT101: 0 | CU101: 0 | CV101: 0 | CW101: 0 | CX101: 0 | CY101: 0 | CZ101: 0 | DA101: 0 | DB101: 0 | DC101: 0 | DD101: 0
B102: دور ثان | D102: 93 | E102: 53 | F102: طالب تجارة 53 | H102: 1/53 | I102: مستجد | J102: أنثي | K102: مسلم | L102: 30312151403243 | M102: 2003-12-15 | N102: =IF(الشيت!M102="","",CONCATENATE(DATEDIF(الشيت!M102,#REF!,"md")," - ",DATEDIF(الشيت!M102,#REF!,"ym")," - ",DATEDIF(الشيت!M102,#REF!,"y"))) ->  | O102: 153 | P102: 137 | R102: 8 | S102: 9 | T102: 11.5 | U102: 28.5 | V102: 9 | W102: 9.6 | X102: 12.8 | Y102: 31.4 | Z102: 4.5 | AA102: 5.2 | AB102: 8.4 | AC102: 18.1 | AD102: 7 | AE102: 10 | AF102: 11 | AG102: 28 | AH102: 5.5 | AI102: 5 | AJ102: 10 | AK102: 20.5 | AL102: 3 | AM102: 4.5 | AN102: 7.5 | AO102: 6 | AP102: 7 | AQ102: 13 | AR102: 6 | AS102: 6 | AT102: 12 | AU102: 15 | AV102: 17.5 | AW102: 32.5 | AX102: 8 | AY102: 4.5 | AZ102: 12.5 | BA102: 25 | BB102: 9 | BC102: 8 | BD102: 3 | BE102: 20 | BF102: 9 | BG102: 18 | BH102: 13 | BI102: 40 | BJ102: 9 | BK102: 17 | BL102: 6 | BM102: 32 | BN102: 8 | BO102: 12 | BP102: 13 | BQ102: 33 | BR102: 9 | BS102: 16 | BT102: 16 | BU102: 41 | BV102: 9 | BW102: 10 | BX102: 7 | BY102: 26 | BZ102: 137.3 | CA102: 343 | CB102: 4 | CC102: 8 | CD102: 8 | CE102: 20 | CF102: 4 | CG102: 8 | CH102: 8 | CI102: 20 | CJ102: مقبول | CK102: دور ثان | CL102: =IF(F102="","",IF(CN102=0,RANK($CA102,$CA$10:$CA$599)+COUNTIF(CA$10:CA102,CA102)-1,IF(CN102>=$CO$8,"جميع المواد",CONCATENATE(DH102,DI102,DJ102,DK102,DL102,DM102,DN102,DO102,DP102,DQ102,DR102,DS102,DT102,DU102,DV102,DW102)))) -> تسويق | CM102: =IF(F102="","",IF(CN102=0,RANK($CA102,$CA$10:$CA$599)+COUNTIF(CA$10:CA102,CA102)-"1","")) ->  | CN102: 1 | CO102: 0 | CP102: 0 | CQ102: 0 | CR102: 0 | CS102: 0 | CT102: 0 | CU102: 0 | CV102: 1 | CW102: 0 | CX102: 0 | CY102: 0 | CZ102: 0 | DA102: 0 | DB102: 0 | DC102: 0 | DD102: 0 | DO102: تسويق | DY102: تسويق
B103: دور ثان | D103: 94 | E103: 53 | F103: طالب تجارة 53 | H103: 1/53 | I103: مستجد | J103: أنثي | K103: مسلم | L103: 30312151403243 | M103: 2003-12-15 | N103: =IF(الشيت!M103="","",CONCATENATE(DATEDIF(الشيت!M103,#REF!,"md")," - ",DATEDIF(الشيت!M103,#REF!,"ym")," - ",DATEDIF(الشيت!M103,#REF!,"y"))) ->  | O103: 153 | P103: 137 | R103: 8 | S103: 10 | T103: 12.5 | U103: 30.5 | V103: 8.5 | W103: 10 | X103: 12.4 | Y103: 30.9 | Z103: 4.5 | AA103: 4.4 | AB103: 7.2 | AC103: 16.1 | AD103: 7 | AE103: 10 | AF103: 12 | AG103: 29 | AH103: 3 | AI103: 1.5 | AJ103: 8 | AK103: 12.5 | AL103: 2.5 | AM103: 4 | AN103: 6.5 | AO103: 5 | AP103: 7 | AQ103: 12 | AR103: 6 | AS103: 6 | AT103: 12 | AU103: 13.5 | AV103: 17 | AW103: 30.5 | AX103: 8 | AY103: 10 | AZ103: 9.5 | BA103: 27.5 | BB103: 9 | BC103: 5 | BD103: 4 | BE103: 18 | BF103: 9 | BG103: 19 | BH103: 13 | BI103: 41 | BJ103: 9 | BK103: 17 | BL103: 9 | BM103: 35 | BN103: 8 | BO103: 10 | BP103: 14 | BQ103: 32 | BR103: 9 | BS103: 16 | BT103: 14.5 | BU103: 39.5 | BV103: 9 | BW103: 11 | BX103: 6.5 | BY103: 26.5 | BZ103: 135.9 | CA103: 337 | CB103: 4 | CC103: 8 | CD103: 8 | CE103: 20 | CF103: 4 | CG103: 8 | CH103: 8 | CI103: 20 | CJ103: مقبول | CK103: دور ثان | CL103: =IF(F103="","",IF(CN103=0,RANK($CA103,$CA$10:$CA$599)+COUNTIF(CA$10:CA103,CA103)-1,IF(CN103>=$CO$8,"جميع المواد",CONCATENATE(DH103,DI103,DJ103,DK103,DL103,DM103,DN103,DO103,DP103,DQ103,DR103,DS103,DT103,DU103,DV103,DW103)))) -> (حاسب نظرى) تسويق | CM103: =IF(F103="","",IF(CN103=0,RANK($CA103,$CA$10:$CA$599)+COUNTIF(CA$10:CA103,CA103)-"1","")) ->  | CN103: 2 | CO103: 0 | CP103: 0 | CQ103: 0 | CR103: 1 | CS103: 0 | CT103: 0 | CU103: 0 | CV103: 1 | CW103: 0 | CX103: 0 | CY103: 0 | CZ103: 0 | DA103: 0 | DB103: 0 | DC103: 0 | DD103: 0 | DK103: (حاسب نظرى) | DO103: تسويق | DY103: مجموع التحريري تسويق
B104: ناجح | C104: 162 | D104: 95 | E104: 53 | F104: طالب تجارة 53 | H104: 1/53 | I104: مستجد | J104: أنثي | K104: مسلم | L104: 30312151403243 | M104: 2003-12-15 | N104: =IF(الشيت!M104="","",CONCATENATE(DATEDIF(الشيت!M104,#REF!,"md")," - ",DATEDIF(الشيت!M104,#REF!,"ym")," - ",DATEDIF(الشيت!M104,#REF!,"y"))) ->  | O104: 153 | P104: 137 | R104: 8 | S104: 13.5 | T104: 14 | U104: 35.5 | V104: 8.5 | W104: 10.4 | X104: 14.8 | Y104: 33.7 | Z104: 4.5 | AA104: 5.2 | AB104: 8 | AC104: 17.7 | AD104: 7 | AE104: 11 | AF104: 11 | AG104: 29 | AH104: 5.5 | AI104: 3 | AJ104: 10 | AK104: 18.5 | AL104: 2.5 | AM104: 4 | AN104: 6.5 | AO104: 5 | AP104: 7 | AQ104: 12 | AR104: 5 | AS104: 7 | AT104: 12 | AU104: 12.5 | AV104: 18 | AW104: 30.5 | AX104: 8 | AY104: 9 | AZ104: 10 | BA104: 27 | BB104: 9 | BC104: 8 | BD104: 8 | BE104: 25 | BF104: 9 | BG104: 19 | BH104: 13 | BI104: 41 | BJ104: 9 | BK104: 15 | BL104: 10 | BM104: 34 | BN104: 8 | BO104: 15 | BP104: 13 | BQ104: 36 | BR104: 9 | BS104: 18 | BT104: 14.5 | BU104: 41.5 | BV104: 9 | BW104: 13 | BX104: 8.5 | BY104: 30.5 | BZ104: 152.1 | CA104: 363.9 | CB104: 4 | CC104: 8 | CD104: 8 | CE104: 20 | CF104: 4 | CG104: 8 | CH104: 8 | CI104: 20 | CJ104: جيد | CK104: ناجح | CL104: =IF(F104="","",IF(CN104=0,RANK($CA104,$CA$10:$CA$599)+COUNTIF(CA$10:CA104,CA104)-1,IF(CN104>=$CO$8,"جميع المواد",CONCATENATE(DH104,DI104,DJ104,DK104,DL104,DM104,DN104,DO104,DP104,DQ104,DR104,DS104,DT104,DU104,DV104,DW104)))) -> 162 | CM104: =IF(F104="","",IF(CN104=0,RANK($CA104,$CA$10:$CA$599)+COUNTIF(CA$10:CA104,CA104)-"1","")) -> 162 | CN104: 0 | CO104: 0 | CP104: 0 | CQ104: 0 | CR104: 0 | CS104: 0 | CT104: 0 | CU104: 0 | CV104: 0 | CW104: 0 | CX104: 0 | CY104: 0 | CZ104: 0 | DA104: 0 | DB104: 0 | DC104: 0 | DD104: 0
B105: دور ثان | D105: 96 | E105: 53 | F105: طالب تجارة 53 | H105: 1/53 | I105: مستجد | J105: أنثي | K105: مسلم | L105: 30312151403243 | M105: 2003-12-15 | N105: =IF(الشيت!M105="","",CONCATENATE(DATEDIF(الشيت!M105,#REF!,"md")," - ",DATEDIF(الشيت!M105,#REF!,"ym")," - ",DATEDIF(الشيت!M105,#REF!,"y"))) ->  | O105: 153 | P105: 137 | R105: 8 | S105: 12 | T105: 14.5 | U105: 34.5 | V105: 8.5 | W105: 10 | X105: 13.2 | Y105: 31.7 | Z105: 5 | AA105: 4 | AB105: 8 | AC105: 17 | AD105: 7 | AE105: 11 | AF105: 9 | AG105: 27 | AH105: 5.5 | AI105: 2 | AJ105: 9.5 | AK105: 17 | AL105: 2.5 | AM105: 4 | AN105: 6.5 | AO105: 5 | AP105: 7 | AQ105: 12 | AR105: 6 | AS105: 6 | AT105: 12 | AU105: 13.5 | AV105: 17 | AW105: 30.5 | AX105: 8 | AY105: 3 | AZ105: 9 | BA105: 20 | BB105: 8.5 | BC105: 8 | BD105: 8.5 | BE105: 25 | BF105: 9 | BG105: 19 | BH105: 12 | BI105: 40 | BJ105: 9 | BK105: 15 | BL105: 10 | BM105: 34 | BN105: 8 | BO105: 16 | BP105: 12 | BQ105: 36 | BR105: 9 | BS105: 15 | BT105: 5.5 | BU105: 29.5 | BV105: 9 | BW105: 8.5 | BX105: 6.5 | BY105: 24 | BZ105: 135.5 | CA105: 330.2 | CB105: 4 | CC105: 8 | CD105: 8 | CE105: 20 | CF105: 4 | CG105: 8 | CH105: 8 | CI105: 20 | CJ105: مقبول | CK105: دور ثان | CL105: =IF(F105="","",IF(CN105=0,RANK($CA105,$CA$10:$CA$599)+COUNTIF(CA$10:CA105,CA105)-1,IF(CN105>=$CO$8,"جميع المواد",CONCATENATE(DH105,DI105,DJ105,DK105,DL105,DM105,DN105,DO105,DP105,DQ105,DR105,DS105,DT105,DU105,DV105,DW105)))) -> محاسبة مالية | CM105: =IF(F105="","",IF(CN105=0,RANK($CA105,$CA$10:$CA$599)+COUNTIF(CA$10:CA105,CA105)-"1","")) ->  | CN105: 1 | CO105: 0 | CP105: 0 | CQ105: 0 | CR105: 0 | CS105: 0 | CT105: 0 | CU105: 1 | CV105: 0 | CW105: 0 | CX105: 0 | CY105: 0 | CZ105: 0 | DA105: 0 | DB105: 0 | DC105: 0 | DD105: 0 | DN105: محاسبة مالية
B106: ناجح | C106: 161 | D106: 97 | E106: 53 | F106: طالب تجارة 53 | H106: 1/53 | I106: مستجد | J106: أنثي | K106: مسلم | L106: 30312151403243 | M106: 2003-12-15 | N106: =IF(الشيت!M106="","",CONCATENATE(DATEDIF(الشيت!M106,#REF!,"md")," - ",DATEDIF(الشيت!M106,#REF!,"ym")," - ",DATEDIF(الشيت!M106,#REF!,"y"))) ->  | O106: 153 | P106: 137 | R106: 8 | S106: 12 | T106: 13 | U106: 33 | V106: 9 | W106: 9.2 | X106: 15.6 | Y106: 33.8 | Z106: 4.5 | AA106: 4.8 | AB106: 8.4 | AC106: 17.7 | AD106: 7 | AE106: 12 | AF106: 10 | AG106: 29 | AH106: 5.5 | AI106: 2.5 | AJ106: 10 | AK106: 18 | AL106: 2.5 | AM106: 4 | AN106: 6.5 | AO106: 6 | AP106: 8 | AQ106: 14 | AR106: 5 | AS106: 6 | AT106: 11 | AU106: =IF(AND($B$1="",AR106="غ",AO106="غ",AL106="غ"),"غائب",SUM(AR106,AO106,AL106)) -> 13.5 | AV106: =IF(AND($B$1="",AS106="غ",AP106="غ",AM106="غ"),"غائب",SUM(AM106,AP106,AS106)) -> 18 | AW106: =IF(AND($B$1="",AU106="غائب",AV106="غائب"),"غائب",SUM(AU106:AV106)) -> 31.5 | AX106: 8 | AY106: 4.5 | AZ106: 14 | BA106: 26.5 | BB106: 8.5 | BC106: 7 | BD106: 10 | BE106: 25.5 | BF106: 9 | BG106: 17 | BH106: 14 | BI106: 40 | BJ106: 9 | BK106: 17 | BL106: 13 | BM106: 39 | BN106: 8 | BO106: 13 | BP106: 10 | BQ106: 31 | BR106: 9 | BS106: 17 | BT106: 15.5 | BU106: 41.5 | BV106: 9 | BW106: 8 | BX106: 11.5 | BY106: 28.5 | BZ106: =IF(AND($B$1="",S106="غ",W106="غ",AA106="غ",AE106="غ",AI106="غ",AQ106="غ",AY106="غ",BC106="غ",BG106="غ",BK106="غ",BO106="غ",BS106="غ",BW106="غ"),"غائب",SUM(S106,W106,AA106,AI106,AE106,AQ106,,AY106,BC106,BG106,BK106,BO106,BS106,BW106)) -> 138 | CA106: 364 | CB106: 4 | CC106: 8 | CD106: 8 | CE106: 20 | CF106: 4 | CG106: 8 | CH106: 8 | CI106: 20 | CJ106: مقبول | CK106: ناجح | CL106: =IF(F106="","",IF(CN106=0,RANK($CA106,$CA$10:$CA$599)+COUNTIF(CA$10:CA106,CA106)-1,IF(CN106>=$CO$8,"جميع المواد",CONCATENATE(DH106,DI106,DJ106,DK106,DL106,DM106,DN106,DO106,DP106,DQ106,DR106,DS106,DT106,DU106,DV106,DW106)))) -> 161 | CM106: =IF(F106="","",IF(CN106=0,RANK($CA106,$CA$10:$CA$599)+COUNTIF(CA$10:CA106,CA106)-"1","")) -> 161 | CN106: 0 | CO106: 0 | CP106: 0 | CQ106: 0 | CR106: 0 | CS106: 0 | CT106: 0 | CU106: 0 | CV106: 0 | CW106: 0 | CX106: 0 | CY106: 0 | CZ106: 0 | DA106: 0 | DB106: 0 | DC106: 0 | DD106: 0
B107: ناجح | C107: 158 | D107: 98 | E107: 53 | F107: طالب تجارة 53 | H107: 1/53 | I107: مستجد | J107: أنثي | K107: مسلم | L107: 30312151403243 | M107: 2003-12-15 | N107: =IF(الشيت!M107="","",CONCATENATE(DATEDIF(الشيت!M107,#REF!,"md")," - ",DATEDIF(الشيت!M107,#REF!,"ym")," - ",DATEDIF(الشيت!M107,#REF!,"y"))) ->  | O107: 153 | P107: 137 | R107: 8 | S107: 11.5 | T107: 12 | U107: 31.5 | V107: 9 | W107: 10.4 | X107: 14.4 | Y107: 33.8 | Z107: 4.5 | AA107: 4.4 | AB107: 8.4 | AC107: 17.3 | AD107: 7 | AE107: 12 | AF107: 11 | AG107: 30 | AH107: 3 | AI107: 6 | AJ107: 10.5 | AK107: 19.5 | AL107: 2.5 | AM107: 4.5 | AN107: 7 | AO107: 5 | AP107: 8 | AQ107: 13 | AR107: 5 | AS107: 7 | AT107: 12 | AU107: 12.5 | AV107: 19.5 | AW107: 32 | AX107: 8 | AY107: 9.5 | AZ107: 14.5 | BA107: 32 | BB107: 9 | BC107: 7 | BD107: 9 | BE107: 25 | BF107: 9 | BG107: 18 | BH107: 15 | BI107: 42 | BJ107: 9 | BK107: 17 | BL107: 10 | BM107: 36 | BN107: 8 | BO107: 12 | BP107: 14 | BQ107: 34 | BR107: 9 | BS107: 17 | BT107: 13.5 | BU107: 39.5 | BV107: 9 | BW107: 12 | BX107: 7 | BY107: 28 | BZ107: 149.8 | CA107: 366.6 | CB107: 4 | CC107: 8 | CD107: 8 | CE107: 20 | CF107: 4 | CG107: 8 | CH107: 8 | CI107: 20 | CJ107: جيد | CK107: ناجح | CL107: =IF(F107="","",IF(CN107=0,RANK($CA107,$CA$10:$CA$599)+COUNTIF(CA$10:CA107,CA107)-1,IF(CN107>=$CO$8,"جميع المواد",CONCATENATE(DH107,DI107,DJ107,DK107,DL107,DM107,DN107,DO107,DP107,DQ107,DR107,DS107,DT107,DU107,DV107,DW107)))) -> 158 | CM107: =IF(F107="","",IF(CN107=0,RANK($CA107,$CA$10:$CA$599)+COUNTIF(CA$10:CA107,CA107)-"1","")) -> 158 | CN107: 0 | CO107: 0 | CP107: 0 | CQ107: 0 | CR107: 0 | CS107: 0 | CT107: 0 | CU107: 0 | CV107: 0 | CW107: 0 | CX107: 0 | CY107: 0 | CZ107: 0 | DA107: 0 | DB107: 0 | DC107: 0 | DD107: 0
B108: ناجح | C108: 159 | D108: 99 | E108: 53 | F108: طالب تجارة 53 | H108: 1/53 | I108: مستجد | J108: أنثي | K108: مسلم | L108: 30312151403243 | M108: 2003-12-15 | N108: =IF(الشيت!M108="","",CONCATENATE(DATEDIF(الشيت!M108,#REF!,"md")," - ",DATEDIF(الشيت!M108,#REF!,"ym")," - ",DATEDIF(الشيت!M108,#REF!,"y"))) ->  | O108: 153 | P108: 137 | R108: 8 | S108: 11 | T108: 12.5 | U108: 31.5 | V108: 8.5 | W108: 11.2 | X108: 16.4 | Y108: 36.1 | Z108: 4.5 | AA108: 4.8 | AB108: 8 | AC108: 17.3 | AD108: 7 | AE108: 12 | AF108: 10 | AG108: 29 | AH108: 3 | AI108: 4.5 | AJ108: 10.5 | AK108: 18 | AL108: 2.5 | AM108: 4 | AN108: 6.5 | AO108: 5 | AP108: 8 | AQ108: 13 | AR108: 5 | AS108: 7 | AT108: 12 | AU108: 12.5 | AV108: 19 | AW108: 31.5 | AX108: 8 | AY108: 4.5 | AZ108: 15.5 | BA108: 28 | BB108: 9 | BC108: 9 | BD108: 7 | BE108: 25 | BF108: 9 | BG108: 18 | BH108: 14 | BI108: 41 | BJ108: 9 | BK108: 17 | BL108: 10 | BM108: 36 | BN108: 8 | BO108: 13 | BP108: 14 | BQ108: 35 | BR108: 9 | BS108: 18 | BT108: 14.5 | BU108: 41.5 | BV108: 9 | BW108: 10.5 | BX108: 11 | BY108: 30.5 | BZ108: 146.5 | CA108: 365.4 | CB108: 4 | CC108: 8 | CD108: 8 | CE108: 20 | CF108: 4 | CG108: 8 | CH108: 8 | CI108: 20 | CJ108: جيد | CK108: ناجح | CL108: =IF(F108="","",IF(CN108=0,RANK($CA108,$CA$10:$CA$599)+COUNTIF(CA$10:CA108,CA108)-1,IF(CN108>=$CO$8,"جميع المواد",CONCATENATE(DH108,DI108,DJ108,DK108,DL108,DM108,DN108,DO108,DP108,DQ108,DR108,DS108,DT108,DU108,DV108,DW108)))) -> 159 | CM108: =IF(F108="","",IF(CN108=0,RANK($CA108,$CA$10:$CA$599)+COUNTIF(CA$10:CA108,CA108)-"1","")) -> 159 | CN108: 0 | CO108: 0 | CP108: 0 | CQ108: 0 | CR108: 0 | CS108: 0 | CT108: 0 | CU108: 0 | CV108: 0 | CW108: 0 | CX108: 0 | CY108: 0 | CZ108: 0 | DA108: 0 | DB108: 0 | DC108: 0 | DD108: 0
B109: ناجح | C109: 80 | D109: 100 | E109: 53 | F109: طالب تجارة 53 | H109: 1/53 | I109: مستجد | J109: أنثي | K109: مسلم | L109: 30312151403243 | M109: 2003-12-15 | N109: =IF(الشيت!M109="","",CONCATENATE(DATEDIF(الشيت!M109,#REF!,"md")," - ",DATEDIF(الشيت!M109,#REF!,"ym")," - ",DATEDIF(الشيت!M109,#REF!,"y"))) ->  | O109: 153 | P109: 137 | R109: 8 | S109: 12.5 | T109: 13 | U109: 33.5 | V109: 8.5 | W109: 10.8 | X109: 15.2 | Y109: 34.5 | Z109: 4.5 | AA109: 3.6 | AB109: 8.4 | AC109: 16.5 | AD109: 7 | AE109: 13 | AF109: 10 | AG109: 30 | AH109: 5.5 | AI109: 10.5 | AJ109: 9.5 | AK109: 25.5 | AL109: 2.5 | AM109: 4.5 | AN109: 7 | AO109: 5 | AP109: 8.5 | AQ109: 13.5 | AR109: 5 | AS109: 8 | AT109: 13 | AU109: 12.5 | AV109: 21 | AW109: 33.5 | AX109: 8 | AY109: 16.5 | AZ109: 16.5 | BA109: 41 | BB109: 9 | BC109: 8 | BD109: 8 | BE109: 25 | BF109: 9 | BG109: 18 | BH109: 14 | BI109: 41 | BJ109: 9 | BK109: 17 | BL109: 12 | BM109: 38 | BN109: 8 | BO109: 14 | BP109: 16 | BQ109: 38 | BR109: 9 | BS109: 19.5 | BT109: 14.5 | BU109: 43 | BV109: 9 | BW109: 17 | BX109: 14 | BY109: 40 | BZ109: 173.9 | CA109: 401.5 | CB109: 4 | CC109: 8 | CD109: 8 | CE109: 20 | CF109: 4 | CG109: 8 | CH109: 8 | CI109: 20 | CJ109: جيد | CK109: ناجح | CL109: =IF(F109="","",IF(CN109=0,RANK($CA109,$CA$10:$CA$599)+COUNTIF(CA$10:CA109,CA109)-1,IF(CN109>=$CO$8,"جميع المواد",CONCATENATE(DH109,DI109,DJ109,DK109,DL109,DM109,DN109,DO109,DP109,DQ109,DR109,DS109,DT109,DU109,DV109,DW109)))) -> 80 | CM109: =IF(F109="","",IF(CN109=0,RANK($CA109,$CA$10:$CA$599)+COUNTIF(CA$10:CA109,CA109)-"1","")) -> 80 | CN109: 0 | CO109: 0 | CP109: 0 | CQ109: 0 | CR109: 0 | CS109: 0 | CT109: 0 | CU109: 0 | CV109: 0 | CW109: 0 | CX109: 0 | CY109: 0 | CZ109: 0 | DA109: 0 | DB109: 0 | DC109: 0 | DD109: 0
B110: ناجح | C110: 122 | D110: 101 | E110: 53 | F110: طالب تجارة 53 | H110: 1/53 | I110: مستجد | J110: أنثي | K110: مسلم | L110: 30312151403243 | M110: 2003-12-15 | N110: =IF(الشيت!M110="","",CONCATENATE(DATEDIF(الشيت!M110,#REF!,"md")," - ",DATEDIF(الشيت!M110,#REF!,"ym")," - ",DATEDIF(الشيت!M110,#REF!,"y"))) ->  | O110: 153 | P110: 137 | R110: 8 | S110: 14 | T110: 13.5 | U110: 35.5 | V110: 8.5 | W110: 10.8 | X110: 17.2 | Y110: 36.5 | Z110: 4.5 | AA110: 5.2 | AB110: 8 | AC110: 17.7 | AD110: 7 | AE110: 13 | AF110: 15 | AG110: 35 | AH110: 2.5 | AI110: 6.5 | AJ110: 10 | AK110: 19 | AL110: 3 | AM110: 4.5 | AN110: 7.5 | AO110: 6 | AP110: 8.5 | AQ110: 14.5 | AR110: 6 | AS110: 8 | AT110: 14 | AU110: 15 | AV110: 21 | AW110: 36 | AX110: 8 | AY110: 5 | AZ110: 13 | BA110: 26 | BB110: 8.5 | BC110: 11 | BD110: 12 | BE110: 31.5 | BF110: 9 | BG110: 19 | BH110: 14 | BI110: 42 | BJ110: 9 | BK110: 17 | BL110: 15 | BM110: 41 | BN110: 8 | BO110: 14 | BP110: 17 | BQ110: 39 | BR110: 9 | BS110: 18.5 | BT110: 11.5 | BU110: 39 | BV110: 9 | BW110: 10 | BX110: 9 | BY110: 28 | BZ110: 158.5 | CA110: 387.2 | CB110: 4 | CC110: 8 | CD110: 8 | CE110: 20 | CF110: 4 | CG110: 8 | CH110: 8 | CI110: 20 | CJ110: جيد | CK110: ناجح | CL110: =IF(F110="","",IF(CN110=0,RANK($CA110,$CA$10:$CA$599)+COUNTIF(CA$10:CA110,CA110)-1,IF(CN110>=$CO$8,"جميع المواد",CONCATENATE(DH110,DI110,DJ110,DK110,DL110,DM110,DN110,DO110,DP110,DQ110,DR110,DS110,DT110,DU110,DV110,DW110)))) -> 122 | CM110: =IF(F110="","",IF(CN110=0,RANK($CA110,$CA$10:$CA$599)+COUNTIF(CA$10:CA110,CA110)-"1","")) -> 122 | CN110: 0 | CO110: 0 | CP110: 0 | CQ110: 0 | CR110: 0 | CS110: 0 | CT110: 0 | CU110: 0 | CV110: 0 | CW110: 0 | CX110: 0 | CY110: 0 | CZ110: 0 | DA110: 0 | DB110: 0 | DC110: 0 | DD110: 0
B111: ناجح | C111: 54 | D111: 102 | E111: 53 | F111: طالب تجارة 53 | H111: 1/53 | I111: مستجد | J111: أنثي | K111: مسلم | L111: 30312151403243 | M111: 2003-12-15 | N111: =IF(الشيت!M111="","",CONCATENATE(DATEDIF(الشيت!M111,#REF!,"md")," - ",DATEDIF(الشيت!M111,#REF!,"ym")," - ",DATEDIF(الشيت!M111,#REF!,"y"))) ->  | O111: 153 | P111: 137 | R111: 8.5 | S111: 16 | T111: 17 | U111: 41.5 | V111: 8.5 | W111: 11.6 | X111: 18 | Y111: 38.1 | Z111: 4.5 | AA111: 6 | AB111: 8 | AC111: 18.5 | AD111: 7 | AE111: 13 | AF111: 13 | AG111: 33 | AH111: 5.5 | AI111: 4 | AJ111: 12 | AK111: 21.5 | AL111: 3 | AM111: 4.5 | AN111: 7.5 | AO111: 5 | AP111: 8.5 | AQ111: 13.5 | AR111: 5 | AS111: 8 | AT111: 13 | AU111: 13 | AV111: 21 | AW111: 34 | AX111: 8 | AY111: 11.5 | AZ111: 11 | BA111: 30.5 | BB111: 9 | BC111: 11 | BD111: 10 | BE111: 30 | BF111: 9 | BG111: 17 | BH111: 14 | BI111: 40 | BJ111: 9 | BK111: 17 | BL111: 20 | BM111: 46 | BN111: 8 | BO111: 13 | BP111: 16 | BQ111: 37 | BR111: 9 | BS111: 19 | BT111: 15.5 | BU111: 43.5 | BV111: 9 | BW111: 16.5 | BX111: 15 | BY111: 40.5 | BZ111: 169.1 | CA111: 417.1 | CB111: 4 | CC111: 8 | CD111: 8 | CE111: 20 | CF111: 4 | CG111: 8 | CH111: 8 | CI111: 20 | CJ111: جيد | CK111: ناجح | CL111: =IF(F111="","",IF(CN111=0,RANK($CA111,$CA$10:$CA$599)+COUNTIF(CA$10:CA111,CA111)-1,IF(CN111>=$CO$8,"جميع المواد",CONCATENATE(DH111,DI111,DJ111,DK111,DL111,DM111,DN111,DO111,DP111,DQ111,DR111,DS111,DT111,DU111,DV111,DW111)))) -> 54 | CM111: =IF(F111="","",IF(CN111=0,RANK($CA111,$CA$10:$CA$599)+COUNTIF(CA$10:CA111,CA111)-"1","")) -> 54 | CN111: 0 | CO111: 0 | CP111: 0 | CQ111: 0 | CR111: 0 | CS111: 0 | CT111: 0 | CU111: 0 | CV111: 0 | CW111: 0 | CX111: 0 | CY111: 0 | CZ111: 0 | DA111: 0 | DB111: 0 | DC111: 0 | DD111: 0
B112: =CK112 -> ناجح | C112: =CM112 -> 99 | D112: =IF(E112="","",ROW()-9) -> 103 | E112: 53 | F112: طالب تجارة 53 | H112: 1/53 | I112: مستجد | J112: أنثي | K112: مسلم | L112: 30312151403243 | M112: =IF(L112="","",DATE(LEFT(L112,1)+17&MID(L112,2,2),MID(L112,4,2),MID(L112,6,2))) -> 2003-12-15 | N112: =IF(الشيت!M112="","",CONCATENATE(DATEDIF(الشيت!M112,#REF!,"md")," - ",DATEDIF(الشيت!M112,#REF!,"ym")," - ",DATEDIF(الشيت!M112,#REF!,"y"))) ->  | O112: 153 | P112: 137 | R112: 8 | S112: 15 | T112: 12.5 | U112: 35.5 | V112: 9 | W112: 12 | X112: 16.8 | Y112: 37.8 | Z112: 4.5 | AA112: 4.4 | AB112: 8.4 | AC112: 17.3 | AD112: 7 | AE112: 14 | AF112: 13 | AG112: 34 | AH112: 5.5 | AI112: 5 | AJ112: 9 | AK112: 19.5 | AL112: 2.5 | AM112: 4.5 | AN112: 7 | AO112: 6 | AP112: 9 | AQ112: 15 | AR112: 5 | AS112: 8 | AT112: 13 | AU112: 13.5 | AV112: 21.5 | AW112: 35 | AX112: 8 | AY112: 11.5 | AZ112: 11.5 | BA112: 31 | BB112: 8.5 | BC112: 11 | BD112: 7 | BE112: 26.5 | BF112: 9 | BG112: 18 | BH112: 15 | BI112: 42 | BJ112: 9.5 | BK112: 17 | BL112: 11 | BM112: 37.5 | BN112: 8 | BO112: 14 | BP112: 14 | BQ112: 36 | BR112: 9 | BS112: 19 | BT112: 12 | BU112: 40 | BV112: 9 | BW112: 16.5 | BX112: 12.5 | BY112: 38 | BZ112: 172.4 | CA112: 394.1 | CB112: 4 | CC112: 8 | CD112: 8 | CE112: 20 | CF112: 4 | CG112: 8 | CH112: 8 | CI112: 20 | CJ112: =IF(OR($F112="",BZ$4=""),"",IF(BZ112="غائب","غائب",IF(BZ112/BZ$8>=0.9,"ممتاز",IF(BZ112/BZ$8>=0.8,"جيد جدا",IF(BZ112/BZ$8>=0.6,"جيد ",IF(BZ112/BZ$8>=0.5,"مقبول ",IF(BZ112<BZ$8,"ضعيف"))))))) -> جيد | CK112: =IF($F112="","",IF(AND(CN112>=3,I112="معيد"),"مفصول",IF(OR(CN112=1,CN112=2),"دور ثان",IF(CN112>=3,"راسب",IF(CN112=0,"ناجح"))))) -> ناجح | CL112: =IF(F112="","",IF(CN112=0,RANK($CA112,$CA$10:$CA$599)+COUNTIF(CA$10:CA112,CA112)-1,IF(CN112>=$CO$8,"جميع المواد",CONCATENATE(DH112,DI112,DJ112,DK112,DL112,DM112,DN112,DO112,DP112,DQ112,DR112,DS112,DT112,DU112,DV112,DW112)))) -> 99 | CM112: =IF(F112="","",IF(CN112=0,RANK($CA112,$CA$10:$CA$599)+COUNTIF(CA$10:CA112,CA112)-"1","")) -> 99 | CN112: =IF($F112="","",IF(AND(COUNTBLANK(DH112:DT112)=13,COUNTBLANK(DV112:DW112)<2),1,IF(AND(COUNTBLANK(DH112:DT112)<13,COUNTBLANK(DV112:DW112)<2),13-COUNTBLANK(DH112:DT112),IF(AND(COUNTBLANK(DH112:DT112)<13,COUNTBLANK(DV112:DW112)>0),13-COUNTBLANK(DH112:DT112),0)))) -> 0 | CO112: =IF($F112="","",IF(OR(U112<$U$9,U112="غائب",T112<$T$9,T112="غ"),"1","0")) -> 0 | CP112: =IF($F112="","",IF(OR(Y112<$Y$9,Y112="غائب",X112<$X$9,X112="غ"),"1","0")) -> 0 | CQ112: =IF($F112="","",IF(OR(AC112<$AC$9,AC112="غائب",AB112<$AB$9,AB112="غ"),"1","0")) -> 0 | CR112: =IF($F112="","",IF(OR(AN112<$AN$9,AN112="غائب",AM112<$AM$9,AM112="غ",AK112<$AK$9,AK112="غ",AJ112<$AJ$9,AJ112="غ",),"1","0")) -> 0 | CS112: =IF($F112="","",IF(OR(AS112<$AS$9,AS112="غائب",AR112<$AR$9,AR112="غ"),"1","0")) -> 0 | CT112: =IF($F112="","",IF(OR(AW112<$AW$9,AW112="غائب",AV112<$AV$9,AV112="غ"),"1","0")) -> 0 | CU112: =IF($F112="","",IF(OR(BA112<$BA$9,BA112="غائب",AZ112<$AZ$9,AZ112="غ"),"1","0")) -> 0 | CV112: =IF($F112="","",IF(OR(BE112<$BE$9,BE112="غائب",BD112<$BD$9,BD112="غ"),"1","0")) -> 0 | CW112: =IF($F112="","",IF(OR(BI112<$BI$9,BI112="غائب",BH112<$BH$9,BH112="غ"),"1","0")) -> 0 | CX112: =IF($F112="","",IF(OR(BM112<$BM$9,BM112="غائب",BL112<$BL$9,BL112="غ"),"1","0")) -> 0 | CY112: =IF($F112="","",IF(OR(BQ112<$BQ$9,BQ112="غائب",BP112<$BP$9,BP112="غ"),"1","0")) -> 0 | CZ112: =IF($F112="","",IF(OR(BU112<$BU$9,BU112="غائب",BT112<$BT$9,BT112="غ"),"1","0")) -> 0 | DA112: =IF($F112="","",IF(OR(BY112<$BY$9,BY112="غائب",BX112<$BX$9,BX112="غ"),"1","0")) -> 0 | DB112: =IF($F112="","",IF(OR(CA112<$CA$9,CA112="غائب"),"1","0")) -> 0 | DC112: =IF($F112="","",IF(OR(CE112<$CE$9,CE112="غائب",CD112<$CD$9,CD112="غ"),"1","0")) -> 0 | DD112: =IF($F112="","",IF(OR(CI112<$CI$9,CI112="غائب",CH112<$CH$9,CH112="غ"),"1","0")) -> 0 | DH112: =IF($F112="","",IF(OR(U112<$U$9,U112="غائب",T112<$T$9,T112="غ"),$CO$9,"")) ->  | DI112: =IF($F112="","",IF(OR(Y112<$Y$9,Y112="غائب",X112<$X$9,X112="غ"),$CP$9,"")) ->  | DJ112: =IF($F112="","",IF(OR(AC112<$AC$9,AC112="غائب",AB112<$AB$9,AB112="غ"),$CQ$9,"")) ->  | DK112: =IF($F112="","",IF(AND(OR(AN112="غائب",AN112<$AN$9),OR(AM112="غائب",AM112<$AM$9)),$CR$9,IF(OR(AM112="غائب",AM112<$AM$9,AJ112="غ",AJ112<$AJ$9),"(حاسب عملي) ",IF(OR(AN112="غائب",AN112<$AN$9,AK112="غ",AK112<$AK$9),"(حاسب نظرى) ","")))) ->  | DL112: =IF($F112="","",IF(OR(AS112<$AS$9,AS112="غائب",AR112<$AR$9,AR112="غ"),$CS$9,"")) ->  | DM112: =IF($F112="","",IF(OR(AW112<$AW$9,AW112="غائب",AV112<$AV$9,AV112="غ"),$CT$9,"")) ->  | DN112: =IF($F112="","",IF(OR(BA112<$BA$9,BA112="غائب",AZ112<$AZ$9,AZ112="غ"),$CU$9,"")) ->  | DO112: =IF($F112="","",IF(OR(BE112<$BE$9,BE112="غائب",BD112<$BD$9,BD112="غ"),$CV$9,"")) ->  | DP112: =IF($F112="","",IF(OR(BI112<$BI$9,BI112="غائب",BH112<$BH$9,BH112="غ"),$CW$9,"")) ->  | DQ112: =IF($F112="","",IF(OR(BM112<$BM$9,BM112="غائب",BL112<$BL$9,BL112="غ"),$CX$9,"")) ->  | DR112: =IF($F112="","",IF(OR(BQ112<$BQ$9,BQ112="غائب",BP112<$BP$9,BP112="غ"),$CY$9,"")) ->  | DS112: =IF($F112="","",IF(OR(BU112<$BU$9,BU112="غائب",BT112<$BT$9,BT112="غ"),$CZ$9,"")) ->  | DT112: =IF($F112="","",IF(OR(BY112<$BY$9,BY112="غائب",BX112<$BX$9,BX112="غ"),$DA$9,"")) ->  | DU112: =IF($F112="","",IF(OR(CA112<$CA$9,CA112="غائب"),$DB$9,"")) ->  | DV112: =IF($F112="","",IF(OR(CE112<$CE$9,CE112="غائب",CD112<$CD$9,CD112="غ"),$DC$9,"")) ->  | DW112: =IF($F112="","",IF(OR(CI112<$CI$9,CI112="غائب",CH112<$CH$9,CH112="غ"),$DD$9,"")) ->  | DY112: =IF(CK112="دور ثان",IF(OR(T112<$T$9,T112="غ"),$R$4&" ","")&IF(OR(X112<$X$9, X112="غ"),$V$4&" ","")&IF(OR(AB112<$AB$9, AB112="غ"),$Z$4&" ","")&IF(OR(AJ112<$AJ$9, AJ112="غ"),$DE$9&" ","")&IF(OR(AK112<$AK$9, AK112="غ"),$DF$9&" ","")&IF(OR(AR112<$AR$9, AR112="غ"),$AP$4&" ","")&IF(OR(AV112<$AV$9, AV112="غ"),$AT$4&" ","")&IF(OR(AZ112<$AZ$9, AZ112="غ"),$AX$4&" ","")&IF(OR(BD112<$BD$9, BD112="غ"),$BB$4&" ","")&IF(OR(BH112<$BD$9, BH112="غ"),$BF$4&" ","")&IF(OR(BL112<$BL$9, BL112="غ"),$BJ$4&" ","")&IF(OR(BP112<$BP$9, BP112="غ"),$BN$4&" ","")&IF(OR(BT112<$BT$9, BT112="غ"),$BR$4&" ","")&IF(OR(BX112<$BX$9, BX112="غ"),$BV$4&" ",""),"") -> 
B113: ناجح | C113: 60 | D113: 104 | E113: 53 | F113: طالب تجارة 53 | H113: 1/53 | I113: مستجد | J113: أنثي | K113: مسلم | L113: 30312151403243 | M113: 2003-12-15 | N113: =IF(الشيت!M113="","",CONCATENATE(DATEDIF(الشيت!M113,#REF!,"md")," - ",DATEDIF(الشيت!M113,#REF!,"ym")," - ",DATEDIF(الشيت!M113,#REF!,"y"))) ->  | O113: 153 | P113: 137 | R113: 8 | S113: 15.5 | T113: 15 | U113: 38.5 | V113: 9 | W113: 10.4 | X113: 18.4 | Y113: 37.8 | Z113: 4.5 | AA113: 4.8 | AB113: 8.4 | AC113: 17.7 | AD113: 7 | AE113: 14 | AF113: 12 | AG113: 33 | AH113: 5.5 | AI113: 11 | AJ113: 9.5 | AK113: 26 | AL113: 2.5 | AM113: 4.5 | AN113: 7 | AO113: 5 | AP113: 8.5 | AQ113: 13.5 | AR113: 6 | AS113: 8 | AT113: 14 | AU113: 13.5 | AV113: 21 | AW113: 34.5 | AX113: 8 | AY113: 17 | AZ113: 13.5 | BA113: 38.5 | BB113: 9 | BC113: 8 | BD113: 8 | BE113: 25 | BF113: 9 | BG113: 18 | BH113: 16 | BI113: 43 | BJ113: 9.5 | BK113: 17 | BL113: 9 | BM113: 35.5 | BN113: 8 | BO113: 8 | BP113: 14 | BQ113: 30 | BR113: 9 | BS113: 19.5 | BT113: 17.5 | BU113: 46 | BV113: 9 | BW113: 16.5 | BX113: 13 | BY113: 38.5 | BZ113: 173.2 | CA113: 414 | CB113: 4 | CC113: 8 | CD113: 8 | CE113: 20 | CF113: 4 | CG113: 8 | CH113: 8 | CI113: 20 | CJ113: جيد | CK113: ناجح | CL113: =IF(F113="","",IF(CN113=0,RANK($CA113,$CA$10:$CA$599)+COUNTIF(CA$10:CA113,CA113)-1,IF(CN113>=$CO$8,"جميع المواد",CONCATENATE(DH113,DI113,DJ113,DK113,DL113,DM113,DN113,DO113,DP113,DQ113,DR113,DS113,DT113,DU113,DV113,DW113)))) -> 60 | CM113: =IF(F113="","",IF(CN113=0,RANK($CA113,$CA$10:$CA$599)+COUNTIF(CA$10:CA113,CA113)-"1","")) -> 60 | CN113: 0 | CO113: 0 | CP113: 0 | CQ113: 0 | CR113: 0 | CS113: 0 | CT113: 0 | CU113: 0 | CV113: 0 | CW113: 0 | CX113: 0 | CY113: 0 | CZ113: 0 | DA113: 0 | DB113: 0 | DC113: 0 | DD113: 0
B114: ناجح | C114: 141 | D114: 105 | E114: 53 | F114: طالب تجارة 53 | H114: 1/53 | I114: مستجد | J114: أنثي | K114: مسلم | L114: 30312151403243 | M114: 2003-12-15 | N114: =IF(الشيت!M114="","",CONCATENATE(DATEDIF(الشيت!M114,#REF!,"md")," - ",DATEDIF(الشيت!M114,#REF!,"ym")," - ",DATEDIF(الشيت!M114,#REF!,"y"))) ->  | O114: 153 | P114: 137 | R114: 8 | S114: 14 | T114: 14 | U114: 36 | V114: 9 | W114: 10.4 | X114: 10 | Y114: 29.4 | Z114: 4.5 | AA114: 6 | AB114: 8 | AC114: 18.5 | AD114: 7 | AE114: 12 | AF114: 9 | AG114: 28 | AH114: 5.5 | AI114: 5 | AJ114: 10.5 | AK114: 21 | AL114: 2.5 | AM114: 4.5 | AN114: 7 | AO114: 6 | AP114: 9 | AQ114: 15 | AR114: 5 | AS114: 8 | AT114: 13 | AU114: 13.5 | AV114: 21.5 | AW114: 35 | AX114: 8 | AY114: 13 | AZ114: 13.5 | BA114: 34.5 | BB114: 8.5 | BC114: 9 | BD114: 7.5 | BE114: 25 | BF114: 9 | BG114: 18.5 | BH114: 14 | BI114: 41.5 | BJ114: 9 | BK114: 17 | BL114: 10 | BM114: 36 | BN114: 8 | BO114: 11 | BP114: 13 | BQ114: 32 | BR114: 9 | BS114: 19.5 | BT114: 14 | BU114: 42.5 | BV114: 9 | BW114: 13 | BX114: 9 | BY114: 31 | BZ114: 163.4 | CA114: 378.4 | CB114: 4 | CC114: 8 | CD114: 8 | CE114: 20 | CF114: 4 | CG114: 8 | CH114: 8 | CI114: 20 | CJ114: جيد | CK114: ناجح | CL114: =IF(F114="","",IF(CN114=0,RANK($CA114,$CA$10:$CA$599)+COUNTIF(CA$10:CA114,CA114)-1,IF(CN114>=$CO$8,"جميع المواد",CONCATENATE(DH114,DI114,DJ114,DK114,DL114,DM114,DN114,DO114,DP114,DQ114,DR114,DS114,DT114,DU114,DV114,DW114)))) -> 141 | CM114: =IF(F114="","",IF(CN114=0,RANK($CA114,$CA$10:$CA$599)+COUNTIF(CA$10:CA114,CA114)-"1","")) -> 141 | CN114: 0 | CO114: 0 | CP114: 0 | CQ114: 0 | CR114: 0 | CS114: 0 | CT114: 0 | CU114: 0 | CV114: 0 | CW114: 0 | CX114: 0 | CY114: 0 | CZ114: 0 | DA114: 0 | DB114: 0 | DC114: 0 | DD114: 0
B115: دور ثان | D115: 106 | E115: 53 | F115: طالب تجارة 53 | H115: 1/53 | I115: مستجد | J115: أنثي | K115: مسلم | L115: 30312151403243 | M115: 2003-12-15 | N115: =IF(الشيت!M115="","",CONCATENATE(DATEDIF(الشيت!M115,#REF!,"md")," - ",DATEDIF(الشيت!M115,#REF!,"ym")," - ",DATEDIF(الشيت!M115,#REF!,"y"))) ->  | O115: 153 | P115: 137 | R115: 8 | S115: 12.5 | T115: 12.5 | U115: 33 | V115: 8.5 | W115: 8.4 | X115: 9.2 | Y115: 26.1 | Z115: 4.5 | AA115: 6.4 | AB115: 8 | AC115: 18.9 | AD115: 7 | AE115: 12 | AF115: 11 | AG115: 30 | AH115: 3 | AI115: 0 | AJ115: 7.5 | AK115: 10.5 | AL115: 2.5 | AM115: 4.5 | AN115: 7 | AO115: 5 | AP115: 9 | AQ115: 14 | AR115: 5 | AS115: 8 | AT115: 13 | AU115: 12.5 | AV115: 21.5 | AW115: 34 | AX115: 8 | AY115: 0 | AZ115: 8.5 | BA115: 16.5 | BB115: 8.5 | BC115: 7 | BD115: 9.5 | BE115: 25 | BF115: 9 | BG115: 15 | BH115: 15 | BI115: 39 | BJ115: 9 | BK115: 15 | BL115: 10 | BM115: 34 | BN115: 8 | BO115: 10 | BP115: 14 | BQ115: 32 | BR115: 9 | BS115: 15 | BT115: 7 | BU115: 31 | BV115: 9 | BW115: 7.5 | BX115: 6 | BY115: 22.5 | BZ115: 122.8 | CA115: 320.5 | CB115: 4 | CC115: 8 | CD115: 8 | CE115: 20 | CF115: 4 | CG115: 8 | CH115: 8 | CI115: 20 | CJ115: مقبول | CK115: دور ثان | CL115: =IF(F115="","",IF(CN115=0,RANK($CA115,$CA$10:$CA$599)+COUNTIF(CA$10:CA115,CA115)-1,IF(CN115>=$CO$8,"جميع المواد",CONCATENATE(DH115,DI115,DJ115,DK115,DL115,DM115,DN115,DO115,DP115,DQ115,DR115,DS115,DT115,DU115,DV115,DW115)))) -> (حاسب نظرى) محاسبة مالية | CM115: =IF(F115="","",IF(CN115=0,RANK($CA115,$CA$10:$CA$599)+COUNTIF(CA$10:CA115,CA115)-"1","")) ->  | CN115: 2 | CO115: 0 | CP115: 0 | CQ115: 0 | CR115: 1 | CS115: 0 | CT115: 0 | CU115: 1 | CV115: 0 | CW115: 0 | CX115: 0 | CY115: 0 | CZ115: 0 | DA115: 0 | DB115: 0 | DC115: 0 | DD115: 0 | DK115: (حاسب نظرى) | DN115: محاسبة مالية | DY115: مجموع التحريري
B116: دور ثان | D116: 107 | E116: 53 | F116: طالب تجارة 53 | H116: 1/53 | I116: مستجد | J116: أنثي | K116: مسلم | L116: 30312151403243 | M116: 2003-12-15 | N116: =IF(الشيت!M116="","",CONCATENATE(DATEDIF(الشيت!M116,#REF!,"md")," - ",DATEDIF(الشيت!M116,#REF!,"ym")," - ",DATEDIF(الشيت!M116,#REF!,"y"))) ->  | O116: 153 | P116: 137 | R116: 8.5 | S116: 15 | T116: 14.5 | U116: 38 | V116: 8.5 | W116: 11.6 | X116: 15.2 | Y116: 35.3 | Z116: 4.5 | AA116: 6.8 | AB116: 8.4 | AC116: 19.7 | AD116: 7 | AE116: 13 | AF116: 9 | AG116: 29 | AH116: 3 | AI116: 9.5 | AJ116: 8 | AK116: 20.5 | AL116: 2.5 | AM116: 4 | AN116: 6.5 | AO116: 5 | AP116: 9 | AQ116: 14 | AR116: 5 | AS116: 8 | AT116: 13 | AU116: 12.5 | AV116: 21 | AW116: 33.5 | AX116: 8 | AY116: 14 | AZ116: 15 | BA116: 37 | BB116: 8.5 | BC116: 8 | BD116: 4 | BE116: 20.5 | BF116: 9 | BG116: 18 | BH116: 14 | BI116: 41 | BJ116: 9 | BK116: 16 | BL116: 10 | BM116: 35 | BN116: 8 | BO116: 13 | BP116: 15 | BQ116: 36 | BR116: 9 | BS116: 17.5 | BT116: 15 | BU116: 41.5 | BV116: 9 | BW116: 16.5 | BX116: 10 | BY116: 35.5 | BZ116: 172.9 | CA116: 386.5 | CB116: 4 | CC116: 8 | CD116: 8 | CE116: 20 | CF116: 4 | CG116: 8 | CH116: 8 | CI116: 20 | CJ116: جيد | CK116: دور ثان | CL116: =IF(F116="","",IF(CN116=0,RANK($CA116,$CA$10:$CA$599)+COUNTIF(CA$10:CA116,CA116)-1,IF(CN116>=$CO$8,"جميع المواد",CONCATENATE(DH116,DI116,DJ116,DK116,DL116,DM116,DN116,DO116,DP116,DQ116,DR116,DS116,DT116,DU116,DV116,DW116)))) -> تسويق | CM116: =IF(F116="","",IF(CN116=0,RANK($CA116,$CA$10:$CA$599)+COUNTIF(CA$10:CA116,CA116)-"1","")) ->  | CN116: 1 | CO116: 0 | CP116: 0 | CQ116: 0 | CR116: 0 | CS116: 0 | CT116: 0 | CU116: 0 | CV116: 1 | CW116: 0 | CX116: 0 | CY116: 0 | CZ116: 0 | DA116: 0 | DB116: 0 | DC116: 0 | DD116: 0 | DO116: تسويق | DY116: تسويق
B117: ناجح | C117: 114 | D117: 108 | E117: 53 | F117: طالب تجارة 53 | H117: 1/53 | I117: مستجد | J117: أنثي | K117: مسلم | L117: 30312151403243 | M117: 2003-12-15 | N117: =IF(الشيت!M117="","",CONCATENATE(DATEDIF(الشيت!M117,#REF!,"md")," - ",DATEDIF(الشيت!M117,#REF!,"ym")," - ",DATEDIF(الشيت!M117,#REF!,"y"))) ->  | O117: 153 | P117: 137 | R117: 8 | S117: 14 | T117: 14 | U117: 36 | V117: 8.5 | W117: 11.2 | X117: 14.8 | Y117: 34.5 | Z117: 5.5 | AA117: 8 | AB117: 8 | AC117: 21.5 | AD117: 7 | AE117: 12 | AF117: 11 | AG117: 30 | AH117: 3 | AI117: 6 | AJ117: 7 | AK117: 16 | AL117: 3 | AM117: 4.5 | AN117: 7.5 | AO117: 5 | AP117: 9 | AQ117: 14 | AR117: 6 | AS117: 8 | AT117: 14 | AU117: 14 | AV117: 21.5 | AW117: 35.5 | AX117: 8 | AY117: 11.5 | AZ117: 14.5 | BA117: 34 | BB117: 9 | BC117: 9 | BD117: 10 | BE117: 28 | BF117: 9 | BG117: 18.5 | BH117: 15 | BI117: 42.5 | BJ117: 9.5 | BK117: 14 | BL117: 9 | BM117: 32.5 | BN117: 8 | BO117: 14 | BP117: 15 | BQ117: 37 | BR117: 9 | BS117: 18.5 | BT117: 13 | BU117: 40.5 | BV117: 9 | BW117: 15 | BX117: 13.5 | BY117: 37.5 | BZ117: 165.7 | CA117: 388.5 | CB117: 4 | CC117: 8 | CD117: 8 | CE117: 20 | CF117: 4 | CG117: 8 | CH117: 8 | CI117: 20 | CJ117: جيد | CK117: ناجح | CL117: =IF(F117="","",IF(CN117=0,RANK($CA117,$CA$10:$CA$599)+COUNTIF(CA$10:CA117,CA117)-1,IF(CN117>=$CO$8,"جميع المواد",CONCATENATE(DH117,DI117,DJ117,DK117,DL117,DM117,DN117,DO117,DP117,DQ117,DR117,DS117,DT117,DU117,DV117,DW117)))) -> 114 | CM117: =IF(F117="","",IF(CN117=0,RANK($CA117,$CA$10:$CA$599)+COUNTIF(CA$10:CA117,CA117)-"1","")) -> 114 | CN117: 0 | CO117: 0 | CP117: 0 | CQ117: 0 | CR117: 0 | CS117: 0 | CT117: 0 | CU117: 0 | CV117: 0 | CW117: 0 | CX117: 0 | CY117: 0 | CZ117: 0 | DA117: 0 | DB117: 0 | DC117: 0 | DD117: 0
B118: ناجح | C118: 156 | D118: 109 | E118: 53 | F118: طالب تجارة 53 | H118: 1/53 | I118: مستجد | J118: أنثي | K118: مسلم | L118: 30312151403243 | M118: 2003-12-15 | N118: =IF(الشيت!M118="","",CONCATENATE(DATEDIF(الشيت!M118,#REF!,"md")," - ",DATEDIF(الشيت!M118,#REF!,"ym")," - ",DATEDIF(الشيت!M118,#REF!,"y"))) ->  | O118: 153 | P118: 137 | R118: 8 | S118: 13.5 | T118: 14 | U118: 35.5 | V118: 8.5 | W118: 10.4 | X118: 14.8 | Y118: 33.7 | Z118: 4.5 | AA118: 5.6 | AB118: 8.4 | AC118: 18.5 | AD118: 7 | AE118: 11 | AF118: 10 | AG118: 28 | AH118: 5.5 | AI118: 6 | AJ118: 7 | AK118: 18.5 | AL118: 3 | AM118: 4.5 | AN118: 7.5 | AO118: 5 | AP118: 9 | AQ118: 14 | AR118: 5 | AS118: 8 | AT118: 13 | AU118: 13 | AV118: 21.5 | AW118: 34.5 | AX118: 8 | AY118: 9.5 | AZ118: 13 | BA118: 30.5 | BB118: 9 | BC118: 7 | BD118: 9 | BE118: 25 | BF118: 9 | BG118: 19 | BH118: 15 | BI118: 43 | BJ118: 9.5 | BK118: 17 | BL118: 7 | BM118: 33.5 | BN118: 8 | BO118: 12 | BP118: 15 | BQ118: 35 | BR118: 9 | BS118: 18 | BT118: 10.5 | BU118: 37.5 | BV118: 9 | BW118: 11 | BX118: 9.5 | BY118: 29.5 | BZ118: 154 | CA118: 367.7 | CB118: 4 | CC118: 8 | CD118: 8 | CE118: 20 | CF118: 4 | CG118: 8 | CH118: 8 | CI118: 20 | CJ118: جيد | CK118: ناجح | CL118: =IF(F118="","",IF(CN118=0,RANK($CA118,$CA$10:$CA$599)+COUNTIF(CA$10:CA118,CA118)-1,IF(CN118>=$CO$8,"جميع المواد",CONCATENATE(DH118,DI118,DJ118,DK118,DL118,DM118,DN118,DO118,DP118,DQ118,DR118,DS118,DT118,DU118,DV118,DW118)))) -> 156 | CM118: =IF(F118="","",IF(CN118=0,RANK($CA118,$CA$10:$CA$599)+COUNTIF(CA$10:CA118,CA118)-"1","")) -> 156 | CN118: 0 | CO118: 0 | CP118: 0 | CQ118: 0 | CR118: 0 | CS118: 0 | CT118: 0 | CU118: 0 | CV118: 0 | CW118: 0 | CX118: 0 | CY118: 0 | CZ118: 0 | DA118: 0 | DB118: 0 | DC118: 0 | DD118: 0
B119: ناجح | C119: 143 | D119: 110 | E119: 53 | F119: طالب تجارة 53 | H119: 1/53 | I119: مستجد | J119: أنثي | K119: مسلم | L119: 30312151403243 | M119: 2003-12-15 | N119: =IF(الشيت!M119="","",CONCATENATE(DATEDIF(الشيت!M119,#REF!,"md")," - ",DATEDIF(الشيت!M119,#REF!,"ym")," - ",DATEDIF(الشيت!M119,#REF!,"y"))) ->  | O119: 153 | P119: 137 | R119: 8 | S119: 14.5 | T119: 14.5 | U119: 37 | V119: 8.5 | W119: 10.4 | X119: 14.4 | Y119: 33.3 | Z119: 4.5 | AA119: 5.2 | AB119: 8.4 | AC119: 18.1 | AD119: 7 | AE119: 12 | AF119: 11 | AG119: 30 | AH119: 5.5 | AI119: 6.5 | AJ119: 5.5 | AK119: 17.5 | AL119: 3 | AM119: 4.5 | AN119: 7.5 | AO119: 6 | AP119: 9 | AQ119: 15 | AR119: 6 | AS119: 7 | AT119: 13 | AU119: 15 | AV119: 20.5 | AW119: 35.5 | AX119: 8 | AY119: 8 | AZ119: 14 | BA119: 30 | BB119: 8.5 | BC119: 6 | BD119: 10.5 | BE119: 25 | BF119: 9 | BG119: 19 | BH119: 15 | BI119: 43 | BJ119: 9.5 | BK119: 16 | BL119: 11 | BM119: 36.5 | BN119: 8 | BO119: 14 | BP119: 16 | BQ119: 38 | BR119: 9 | BS119: 18.5 | BT119: 12.5 | BU119: 40 | BV119: 9 | BW119: 11.5 | BX119: 10.5 | BY119: 31 | BZ119: 156.6 | CA119: 376.9 | CB119: 4 | CC119: 8 | CD119: 8 | CE119: 20 | CF119: 4 | CG119: 8 | CH119: 8 | CI119: 20 | CJ119: جيد | CK119: ناجح | CL119: =IF(F119="","",IF(CN119=0,RANK($CA119,$CA$10:$CA$599)+COUNTIF(CA$10:CA119,CA119)-1,IF(CN119>=$CO$8,"جميع المواد",CONCATENATE(DH119,DI119,DJ119,DK119,DL119,DM119,DN119,DO119,DP119,DQ119,DR119,DS119,DT119,DU119,DV119,DW119)))) -> 143 | CM119: =IF(F119="","",IF(CN119=0,RANK($CA119,$CA$10:$CA$599)+COUNTIF(CA$10:CA119,CA119)-"1","")) -> 143 | CN119: 0 | CO119: 0 | CP119: 0 | CQ119: 0 | CR119: 0 | CS119: 0 | CT119: 0 | CU119: 0 | CV119: 0 | CW119: 0 | CX119: 0 | CY119: 0 | CZ119: 0 | DA119: 0 | DB119: 0 | DC119: 0 | DD119: 0
B120: ناجح | C120: 130 | D120: 111 | E120: 53 | F120: طالب تجارة 53 | H120: 1/53 | I120: مستجد | J120: أنثي | K120: مسلم | L120: 30312151403243 | M120: 2003-12-15 | N120: =IF(الشيت!M120="","",CONCATENATE(DATEDIF(الشيت!M120,#REF!,"md")," - ",DATEDIF(الشيت!M120,#REF!,"ym")," - ",DATEDIF(الشيت!M120,#REF!,"y"))) ->  | O120: 153 | P120: 137 | R120: 8.5 | S120: 13 | T120: 16.5 | U120: 38 | V120: 8.5 | W120: 10.8 | X120: 17.2 | Y120: 36.5 | Z120: 4.5 | AA120: 7.2 | AB120: 8.4 | AC120: 20.1 | AD120: 7 | AE120: 13 | AF120: 13 | AG120: 33 | AH120: 3 | AI120: 5.5 | AJ120: 8.5 | AK120: 17 | AL120: 3 | AM120: 4.5 | AN120: 7.5 | AO120: 6 | AP120: 8 | AQ120: 14 | AR120: 5 | AS120: 8 | AT120: 13 | AU120: 14 | AV120: 20.5 | AW120: 34.5 | AX120: 8 | AY120: 14 | AZ120: 12 | BA120: 34 | BB120: 9 | BC120: 11 | BD120: 7 | BE120: 27 | BF120: 9 | BG120: 20 | BH120: 15 | BI120: 44 | BJ120: 9 | BK120: 15 | BL120: 8 | BM120: 32 | BN120: 8 | BO120: 13 | BP120: 14 | BQ120: 35 | BR120: 9 | BS120: 16.5 | BT120: 11.5 | BU120: 37 | BV120: 9 | BW120: 16.5 | BX120: 6 | BY120: 31.5 | BZ120: 169.5 | CA120: 384.6 | CB120: 4 | CC120: 8 | CD120: 8 | CE120: 20 | CF120: 4 | CG120: 8 | CH120: 8 | CI120: 20 | CJ120: جيد | CK120: ناجح | CL120: =IF(F120="","",IF(CN120=0,RANK($CA120,$CA$10:$CA$599)+COUNTIF(CA$10:CA120,CA120)-1,IF(CN120>=$CO$8,"جميع المواد",CONCATENATE(DH120,DI120,DJ120,DK120,DL120,DM120,DN120,DO120,DP120,DQ120,DR120,DS120,DT120,DU120,DV120,DW120)))) -> 130 | CM120: =IF(F120="","",IF(CN120=0,RANK($CA120,$CA$10:$CA$599)+COUNTIF(CA$10:CA120,CA120)-"1","")) -> 130 | CN120: 0 | CO120: 0 | CP120: 0 | CQ120: 0 | CR120: 0 | CS120: 0 | CT120: 0 | CU120: 0 | CV120: 0 | CW120: 0 | CX120: 0 | CY120: 0 | CZ120: 0 | DA120: 0 | DB120: 0 | DC120: 0 | DD120: 0
B121: ناجح | C121: 68 | D121: 112 | E121: 53 | F121: طالب تجارة 53 | H121: 1/53 | I121: مستجد | J121: أنثي | K121: مسلم | L121: 30312151403243 | M121: 2003-12-15 | N121: =IF(الشيت!M121="","",CONCATENATE(DATEDIF(الشيت!M121,#REF!,"md")," - ",DATEDIF(الشيت!M121,#REF!,"ym")," - ",DATEDIF(الشيت!M121,#REF!,"y"))) ->  | O121: 153 | P121: 137 | R121: 8 | S121: 13.5 | T121: 14.5 | U121: 36 | V121: 9 | W121: 11.6 | X121: 16.4 | Y121: 37 | Z121: 4.5 | AA121: 5.6 | AB121: 8.4 | AC121: 18.5 | AD121: 7 | AE121: 13 | AF121: 9 | AG121: 29 | AH121: 5.5 | AI121: 8 | AJ121: 9.5 | AK121: 23 | AL121: 3 | AM121: 4.5 | AN121: 7.5 | AO121: 6 | AP121: 9 | AQ121: 15 | AR121: 6 | AS121: 8 | AT121: 14 | AU121: 15 | AV121: 21.5 | AW121: 36.5 | AX121: 8 | AY121: 13 | AZ121: 15.5 | BA121: 36.5 | BB121: 7.5 | BC121: 17 | BD121: 7 | BE121: 31.5 | BF121: 9 | BG121: 18 | BH121: 16 | BI121: 43 | BJ121: 9.5 | BK121: 15 | BL121: 10 | BM121: 34.5 | BN121: 8 | BO121: 17 | BP121: 14 | BQ121: 39 | BR121: 9 | BS121: 19.5 | BT121: 13.5 | BU121: 42 | BV121: 9 | BW121: 19.5 | BX121: 14.5 | BY121: 43 | BZ121: 185.7 | CA121: 410.5 | CB121: 4 | CC121: 8 | CD121: 8 | CE121: 20 | CF121: 4 | CG121: 8 | CH121: 8 | CI121: 20 | CJ121: جيد | CK121: ناجح | CL121: =IF(F121="","",IF(CN121=0,RANK($CA121,$CA$10:$CA$599)+COUNTIF(CA$10:CA121,CA121)-1,IF(CN121>=$CO$8,"جميع المواد",CONCATENATE(DH121,DI121,DJ121,DK121,DL121,DM121,DN121,DO121,DP121,DQ121,DR121,DS121,DT121,DU121,DV121,DW121)))) -> 68 | CM121: =IF(F121="","",IF(CN121=0,RANK($CA121,$CA$10:$CA$599)+COUNTIF(CA$10:CA121,CA121)-"1","")) -> 68 | CN121: 0 | CO121: 0 | CP121: 0 | CQ121: 0 | CR121: 0 | CS121: 0 | CT121: 0 | CU121: 0 | CV121: 0 | CW121: 0 | CX121: 0 | CY121: 0 | CZ121: 0 | DA121: 0 | DB121: 0 | DC121: 0 | DD121: 0
B122: ناجح | C122: 81 | D122: 113 | E122: 53 | F122: طالب تجارة 53 | H122: 1/53 | I122: مستجد | J122: أنثي | K122: مسلم | L122: 30312151403243 | M122: 2003-12-15 | N122: =IF(الشيت!M122="","",CONCATENATE(DATEDIF(الشيت!M122,#REF!,"md")," - ",DATEDIF(الشيت!M122,#REF!,"ym")," - ",DATEDIF(الشيت!M122,#REF!,"y"))) ->  | O122: 153 | P122: 137 | R122: 8.5 | S122: 14 | T122: 13.5 | U122: 36 | V122: 9 | W122: 11.6 | X122: 11.2 | Y122: 31.8 | Z122: 4.5 | AA122: 9.6 | AB122: 8.8 | AC122: 22.9 | AD122: 7 | AE122: 12 | AF122: 16 | AG122: 35 | AH122: 3 | AI122: 6 | AJ122: 9.5 | AK122: 18.5 | AL122: 2.5 | AM122: 4 | AN122: 6.5 | AO122: 6 | AP122: 8 | AQ122: 14 | AR122: 5 | AS122: 7 | AT122: 12 | AU122: 13.5 | AV122: 19 | AW122: 32.5 | AX122: 8 | AY122: 12 | AZ122: 13.5 | BA122: 33.5 | BB122: 8 | BC122: 12 | BD122: 10 | BE122: 30 | BF122: 8 | BG122: 19 | BH122: 19 | BI122: 46 | BJ122: 9 | BK122: 13 | BL122: 14 | BM122: 36 | BN122: 8 | BO122: 12 | BP122: 16 | BQ122: 36 | BR122: 8.5 | BS122: 18 | BT122: 16.5 | BU122: 43 | BV122: 9 | BW122: 15 | BX122: 12 | BY122: 36 | BZ122: 168.2 | CA122: 401.2 | CB122: 4 | CC122: 8 | CD122: 8 | CE122: 20 | CF122: 4 | CG122: 8 | CH122: 8 | CI122: 20 | CJ122: جيد | CK122: ناجح | CL122: =IF(F122="","",IF(CN122=0,RANK($CA122,$CA$10:$CA$599)+COUNTIF(CA$10:CA122,CA122)-1,IF(CN122>=$CO$8,"جميع المواد",CONCATENATE(DH122,DI122,DJ122,DK122,DL122,DM122,DN122,DO122,DP122,DQ122,DR122,DS122,DT122,DU122,DV122,DW122)))) -> 81 | CM122: =IF(F122="","",IF(CN122=0,RANK($CA122,$CA$10:$CA$599)+COUNTIF(CA$10:CA122,CA122)-"1","")) -> 81 | CN122: 0 | CO122: 0 | CP122: 0 | CQ122: 0 | CR122: 0 | CS122: 0 | CT122: 0 | CU122: 0 | CV122: 0 | CW122: 0 | CX122: 0 | CY122: 0 | CZ122: 0 | DA122: 0 | DB122: 0 | DC122: 0 | DD122: 0
B123: ناجح | C123: 98 | D123: 114 | E123: 53 | F123: طالب تجارة 53 | H123: 1/53 | I123: مستجد | J123: أنثي | K123: مسلم | L123: 30312151403243 | M123: 2003-12-15 | N123: =IF(الشيت!M123="","",CONCATENATE(DATEDIF(الشيت!M123,#REF!,"md")," - ",DATEDIF(الشيت!M123,#REF!,"ym")," - ",DATEDIF(الشيت!M123,#REF!,"y"))) ->  | O123: 153 | P123: 137 | R123: 8 | S123: 13 | T123: 10.5 | U123: 31.5 | V123: 9 | W123: 9.2 | X123: 12.4 | Y123: 30.6 | Z123: 4.5 | AA123: 9.6 | AB123: 8 | AC123: 22.1 | AD123: 7 | AE123: 12 | AF123: 15 | AG123: 34 | AH123: 3 | AI123: 8 | AJ123: 8 | AK123: 19 | AL123: 2.5 | AM123: 4 | AN123: 6.5 | AO123: 6 | AP123: 8 | AQ123: 14 | AR123: 6 | AS123: 6 | AT123: 12 | AU123: 14.5 | AV123: 18 | AW123: 32.5 | AX123: 8 | AY123: 13.5 | AZ123: 13.5 | BA123: 35 | BB123: 9 | BC123: 13.5 | BD123: 8 | BE123: 30.5 | BF123: 8 | BG123: 19 | BH123: 18 | BI123: 45 | BJ123: 9.5 | BK123: 16 | BL123: 11 | BM123: 36.5 | BN123: 8 | BO123: 10 | BP123: 16 | BQ123: 34 | BR123: 8.5 | BS123: 18 | BT123: 17 | BU123: 43.5 | BV123: 9 | BW123: 15 | BX123: 10 | BY123: 34 | BZ123: 170.8 | CA123: 394.2 | CB123: 4 | CC123: 8 | CD123: 8 | CE123: 20 | CF123: 4 | CG123: 8 | CH123: 8 | CI123: 20 | CJ123: جيد | CK123: ناجح | CL123: =IF(F123="","",IF(CN123=0,RANK($CA123,$CA$10:$CA$599)+COUNTIF(CA$10:CA123,CA123)-1,IF(CN123>=$CO$8,"جميع المواد",CONCATENATE(DH123,DI123,DJ123,DK123,DL123,DM123,DN123,DO123,DP123,DQ123,DR123,DS123,DT123,DU123,DV123,DW123)))) -> 98 | CM123: =IF(F123="","",IF(CN123=0,RANK($CA123,$CA$10:$CA$599)+COUNTIF(CA$10:CA123,CA123)-"1","")) -> 98 | CN123: 0 | CO123: 0 | CP123: 0 | CQ123: 0 | CR123: 0 | CS123: 0 | CT123: 0 | CU123: 0 | CV123: 0 | CW123: 0 | CX123: 0 | CY123: 0 | CZ123: 0 | DA123: 0 | DB123: 0 | DC123: 0 | DD123: 0
B124: ناجح | C124: 116 | D124: 115 | E124: 53 | F124: طالب تجارة 53 | H124: 1/53 | I124: مستجد | J124: أنثي | K124: مسلم | L124: 30312151403243 | M124: 2003-12-15 | N124: =IF(الشيت!M124="","",CONCATENATE(DATEDIF(الشيت!M124,#REF!,"md")," - ",DATEDIF(الشيت!M124,#REF!,"ym")," - ",DATEDIF(الشيت!M124,#REF!,"y"))) ->  | O124: 153 | P124: 137 | R124: 8 | S124: 15 | T124: 11.5 | U124: 34.5 | V124: 8.5 | W124: 10 | X124: 6 | Y124: 24.5 | Z124: 4.5 | AA124: 9.6 | AB124: 8 | AC124: 22.1 | AD124: 7 | AE124: 13 | AF124: 16 | AG124: 36 | AH124: 4 | AI124: 8.5 | AJ124: 8 | AK124: 20.5 | AL124: 2.5 | AM124: 4.5 | AN124: 7 | AO124: 6 | AP124: 7 | AQ124: 13 | AR124: 5 | AS124: 6 | AT124: 11 | AU124: 13.5 | AV124: 17.5 | AW124: 31 | AX124: 8 | AY124: 13 | AZ124: 13 | BA124: 34 | BB124: 8.5 | BC124: 15 | BD124: 8 | BE124: 31.5 | BF124: 8 | BG124: 18 | BH124: 17 | BI124: 43 | BJ124: 9.5 | BK124: 16 | BL124: 10 | BM124: 35.5 | BN124: 8 | BO124: 11 | BP124: 17 | BQ124: 36 | BR124: 9 | BS124: 19 | BT124: 16.5 | BU124: 44.5 | BV124: 9 | BW124: 14.5 | BX124: 7.5 | BY124: 31 | BZ124: 175.6 | CA124: 388.1 | CB124: 4 | CC124: 8 | CD124: 8 | CE124: 20 | CF124: 4 | CG124: 8 | CH124: 8 | CI124: 20 | CJ124: جيد | CK124: ناجح | CL124: =IF(F124="","",IF(CN124=0,RANK($CA124,$CA$10:$CA$599)+COUNTIF(CA$10:CA124,CA124)-1,IF(CN124>=$CO$8,"جميع المواد",CONCATENATE(DH124,DI124,DJ124,DK124,DL124,DM124,DN124,DO124,DP124,DQ124,DR124,DS124,DT124,DU124,DV124,DW124)))) -> 116 | CM124: =IF(F124="","",IF(CN124=0,RANK($CA124,$CA$10:$CA$599)+COUNTIF(CA$10:CA124,CA124)-"1","")) -> 116 | CN124: 0 | CO124: 0 | CP124: 0 | CQ124: 0 | CR124: 0 | CS124: 0 | CT124: 0 | CU124: 0 | CV124: 0 | CW124: 0 | CX124: 0 | CY124: 0 | CZ124: 0 | DA124: 0 | DB124: 0 | DC124: 0 | DD124: 0
B125: ناجح | C125: 102 | D125: 116 | E125: 53 | F125: طالب تجارة 53 | H125: 1/53 | I125: مستجد | J125: أنثي | K125: مسلم | L125: 30312151403243 | M125: 2003-12-15 | N125: =IF(الشيت!M125="","",CONCATENATE(DATEDIF(الشيت!M125,#REF!,"md")," - ",DATEDIF(الشيت!M125,#REF!,"ym")," - ",DATEDIF(الشيت!M125,#REF!,"y"))) ->  | O125: 153 | P125: 137 | R125: 8.5 | S125: 13 | T125: 12 | U125: 33.5 | V125: 9 | W125: 8.4 | X125: 6.4 | Y125: 23.8 | Z125: 4.5 | AA125: 8.4 | AB125: 7.6 | AC125: 20.5 | AD125: 7 | AE125: غ | AF125: 16 | AG125: 23 | AH125: 5.5 | AI125: 11 | AJ125: 9.5 | AK125: 26 | AL125: 2.5 | AM125: 4 | AN125: 6.5 | AO125: 6 | AP125: 9 | AQ125: 15 | AR125: 5 | AS125: 6 | AT125: 11 | AU125: 13.5 | AV125: 19 | AW125: 32.5 | AX125: 8 | AY125: 18.5 | AZ125: 17 | BA125: 43.5 | BB125: 8.5 | BC125: 15 | BD125: 10 | BE125: 33.5 | BF125: 8 | BG125: 20 | BH125: 19 | BI125: 47 | BJ125: 9.5 | BK125: غ | BL125: 15.5 | BM125: 25 | BN125: 8 | BO125: 13 | BP125: 17 | BQ125: 38 | BR125: 9.5 | BS125: 19.5 | BT125: 17.5 | BU125: 46.5 | BV125: 9 | BW125: 16 | BX125: 13.5 | BY125: 38.5 | BZ125: 157.8 | CA125: 393.3 | CB125: 4 | CC125: 8 | CD125: 8 | CE125: 20 | CF125: 4 | CG125: 8 | CH125: 8 | CI125: 20 | CJ125: جيد | CK125: ناجح | CL125: =IF(F125="","",IF(CN125=0,RANK($CA125,$CA$10:$CA$599)+COUNTIF(CA$10:CA125,CA125)-1,IF(CN125>=$CO$8,"جميع المواد",CONCATENATE(DH125,DI125,DJ125,DK125,DL125,DM125,DN125,DO125,DP125,DQ125,DR125,DS125,DT125,DU125,DV125,DW125)))) -> 102 | CM125: =IF(F125="","",IF(CN125=0,RANK($CA125,$CA$10:$CA$599)+COUNTIF(CA$10:CA125,CA125)-"1","")) -> 102 | CN125: 0 | CO125: 0 | CP125: 0 | CQ125: 0 | CR125: 0 | CS125: 0 | CT125: 0 | CU125: 0 | CV125: 0 | CW125: 0 | CX125: 0 | CY125: 0 | CZ125: 0 | DA125: 0 | DB125: 0 | DC125: 0 | DD125: 0
B126: ناجح | C126: 93 | D126: 117 | E126: 53 | F126: طالب تجارة 53 | H126: 1/53 | I126: مستجد | J126: أنثي | K126: مسلم | L126: 30312151403243 | M126: 2003-12-15 | N126: =IF(الشيت!M126="","",CONCATENATE(DATEDIF(الشيت!M126,#REF!,"md")," - ",DATEDIF(الشيت!M126,#REF!,"ym")," - ",DATEDIF(الشيت!M126,#REF!,"y"))) ->  | O126: 153 | P126: 137 | R126: 8 | S126: 15 | T126: 13 | U126: 36 | V126: 8 | W126: 8.8 | X126: 6.4 | Y126: 23.2 | Z126: 5.5 | AA126: 10.4 | AB126: 8 | AC126: 23.9 | AD126: 7 | AE126: 12 | AF126: 10 | AG126: 29 | AH126: 3 | AI126: 6.5 | AJ126: 8 | AK126: 17.5 | AL126: 2.5 | AM126: 4.5 | AN126: 7 | AO126: 6 | AP126: 9 | AQ126: 15 | AR126: 6 | AS126: 6 | AT126: 12 | AU126: 14.5 | AV126: 19.5 | AW126: 34 | AX126: 8 | AY126: 18 | AZ126: 16.5 | BA126: 42.5 | BB126: 8.5 | BC126: 13 | BD126: 8 | BE126: 29.5 | BF126: 8 | BG126: 20 | BH126: 17 | BI126: 45 | BJ126: 9.5 | BK126: 17 | BL126: 10 | BM126: 36.5 | BN126: 8 | BO126: 11 | BP126: 18 | BQ126: 37 | BR126: 9.5 | BS126: 18.5 | BT126: 16.5 | BU126: 44.5 | BV126: 9 | BW126: 15.5 | BX126: 11.5 | BY126: 36 | BZ126: 180.7 | CA126: 397.6 | CB126: 4 | CC126: 8 | CD126: 8 | CE126: 20 | CF126: 4 | CG126: 8 | CH126: 8 | CI126: 20 | CJ126: جيد | CK126: ناجح | CL126: =IF(F126="","",IF(CN126=0,RANK($CA126,$CA$10:$CA$599)+COUNTIF(CA$10:CA126,CA126)-1,IF(CN126>=$CO$8,"جميع المواد",CONCATENATE(DH126,DI126,DJ126,DK126,DL126,DM126,DN126,DO126,DP126,DQ126,DR126,DS126,DT126,DU126,DV126,DW126)))) -> 93 | CM126: =IF(F126="","",IF(CN126=0,RANK($CA126,$CA$10:$CA$599)+COUNTIF(CA$10:CA126,CA126)-"1","")) -> 93 | CN126: 0 | CO126: 0 | CP126: 0 | CQ126: 0 | CR126: 0 | CS126: 0 | CT126: 0 | CU126: 0 | CV126: 0 | CW126: 0 | CX126: 0 | CY126: 0 | CZ126: 0 | DA126: 0 | DB126: 0 | DC126: 0 | DD126: 0
B127: ناجح | C127: 83 | D127: 118 | E127: 53 | F127: طالب تجارة 53 | H127: 1/53 | I127: مستجد | J127: أنثي | K127: مسلم | L127: 30312151403243 | M127: 2003-12-15 | N127: =IF(الشيت!M127="","",CONCATENATE(DATEDIF(الشيت!M127,#REF!,"md")," - ",DATEDIF(الشيت!M127,#REF!,"ym")," - ",DATEDIF(الشيت!M127,#REF!,"y"))) ->  | O127: 153 | P127: 137 | R127: 8 | S127: 14 | T127: 14 | U127: 36 | V127: 8.5 | W127: 11.6 | X127: 6.4 | Y127: 26.5 | Z127: 4.5 | AA127: 9.2 | AB127: 7.6 | AC127: 21.3 | AD127: 7 | AE127: 12 | AF127: 15 | AG127: 34 | AH127: 3 | AI127: 8.5 | AJ127: 5 | AK127: 16.5 | AL127: 2.5 | AM127: 4.5 | AN127: 7 | AO127: 5 | AP127: 9 | AQ127: 14 | AR127: 5 | AS127: 6 | AT127: 11 | AU127: 12.5 | AV127: 19.5 | AW127: 32 | AX127: 8 | AY127: 18 | AZ127: 16.5 | BA127: 42.5 | BB127: 9 | BC127: 11.5 | BD127: 9 | BE127: 29.5 | BF127: 8 | BG127: 20 | BH127: 16 | BI127: 44 | BJ127: 9.5 | BK127: 16 | BL127: 13 | BM127: 38.5 | BN127: 8 | BO127: 11 | BP127: 16 | BQ127: 35 | BR127: 8.5 | BS127: 18.5 | BT127: 17.5 | BU127: 44.5 | BV127: 9 | BW127: 15 | BX127: 11.5 | BY127: 35.5 | BZ127: 179.3 | CA127: 400.8 | CB127: 4 | CC127: 8 | CD127: 8 | CE127: 20 | CF127: 4 | CG127: 8 | CH127: 8 | CI127: 20 | CJ127: جيد | CK127: ناجح | CL127: =IF(F127="","",IF(CN127=0,RANK($CA127,$CA$10:$CA$599)+COUNTIF(CA$10:CA127,CA127)-1,IF(CN127>=$CO$8,"جميع المواد",CONCATENATE(DH127,DI127,DJ127,DK127,DL127,DM127,DN127,DO127,DP127,DQ127,DR127,DS127,DT127,DU127,DV127,DW127)))) -> 83 | CM127: =IF(F127="","",IF(CN127=0,RANK($CA127,$CA$10:$CA$599)+COUNTIF(CA$10:CA127,CA127)-"1","")) -> 83 | CN127: 0 | CO127: 0 | CP127: 0 | CQ127: 0 | CR127: 0 | CS127: 0 | CT127: 0 | CU127: 0 | CV127: 0 | CW127: 0 | CX127: 0 | CY127: 0 | CZ127: 0 | DA127: 0 | DB127: 0 | DC127: 0 | DD127: 0
B128: دور ثان | D128: 119 | E128: 53 | F128: طالب تجارة 53 | H128: 1/53 | I128: مستجد | J128: أنثي | K128: مسلم | L128: 30312151403243 | M128: 2003-12-15 | N128: =IF(الشيت!M128="","",CONCATENATE(DATEDIF(الشيت!M128,#REF!,"md")," - ",DATEDIF(الشيت!M128,#REF!,"ym")," - ",DATEDIF(الشيت!M128,#REF!,"y"))) ->  | O128: 153 | P128: 137 | R128: 8 | S128: 12.5 | T128: 12.5 | U128: 33 | V128: 7.5 | W128: 8.8 | X128: 2.8 | Y128: 19.1 | Z128: 4.5 | AA128: 8.8 | AB128: 9.2 | AC128: 22.5 | AD128: 7 | AE128: 12 | AF128: 15 | AG128: 34 | AH128: 3 | AI128: 0.5 | AJ128: 4.5 | AK128: 8 | AL128: 3 | AM128: 4 | AN128: 7 | AO128: 6 | AP128: 9 | AQ128: 15 | AR128: 6 | AS128: 6 | AT128: 12 | AU128: 15 | AV128: 19 | AW128: 34 | AX128: 8 | AY128: 13.5 | AZ128: 9.5 | BA128: 31 | BB128: 9 | BC128: 9.5 | BD128: 9 | BE128: 27.5 | BF128: 8 | BG128: 19 | BH128: 16 | BI128: 43 | BJ128: 9 | BK128: 16 | BL128: 14 | BM128: 39 | BN128: 8 | BO128: 10 | BP128: 16 | BQ128: 34 | BR128: 8.5 | BS128: 17.5 | BT128: 13.5 | BU128: 39.5 | BV128: 9 | BW128: 8.5 | BX128: 6 | BY128: 23.5 | BZ128: 151.6 | CA128: 354.1 | CB128: 4 | CC128: 8 | CD128: 8 | CE128: 20 | CF128: 4 | CG128: 8 | CH128: 8 | CI128: 20 | CJ128: جيد | CK128: دور ثان | CL128: =IF(F128="","",IF(CN128=0,RANK($CA128,$CA$10:$CA$599)+COUNTIF(CA$10:CA128,CA128)-1,IF(CN128>=$CO$8,"جميع المواد",CONCATENATE(DH128,DI128,DJ128,DK128,DL128,DM128,DN128,DO128,DP128,DQ128,DR128,DS128,DT128,DU128,DV128,DW128)))) -> لغة إنجليزية (حاسب نظرى) | CM128: =IF(F128="","",IF(CN128=0,RANK($CA128,$CA$10:$CA$599)+COUNTIF(CA$10:CA128,CA128)-"1","")) ->  | CN128: 2 | CO128: 0 | CP128: 1 | CQ128: 0 | CR128: 1 | CS128: 0 | CT128: 0 | CU128: 0 | CV128: 0 | CW128: 0 | CX128: 0 | CY128: 0 | CZ128: 0 | DA128: 0 | DB128: 0 | DC128: 0 | DD128: 0 | DI128: لغة إنجليزية | DK128: (حاسب نظرى) | DY128: لغة إنجليزية مجموع التحريري
B129: راسب | D129: 120 | E129: 53 | F129: طالب تجارة 53 | H129: 1/53 | I129: مستجد | J129: أنثي | K129: مسلم | L129: 30312151403243 | M129: 2003-12-15 | N129: =IF(الشيت!M129="","",CONCATENATE(DATEDIF(الشيت!M129,#REF!,"md")," - ",DATEDIF(الشيت!M129,#REF!,"ym")," - ",DATEDIF(الشيت!M129,#REF!,"y"))) ->  | O129: 153 | P129: 137 | R129: 8 | S129: 13.5 | T129: غ | U129: 21.5 | V129: 8.5 | W129: 10 | X129: غ | Y129: 18.5 | Z129: 4.5 | AA129: 8.8 | AB129: غ | AC129: 13.3 | AD129: 7 | AE129: 13 | AF129: غ | AG129: 20 | AH129: 3 | AI129: 1.5 | AJ129: غ | AK129: 4.5 | AL129: 2.5 | AM129: 4.5 | AN129: 7 | AO129: 5 | AP129: 9 | AQ129: 14 | AR129: غ | AS129: غ | AT129: غائب | AU129: 7.5 | AV129: 13.5 | AW129: 21 | AX129: 8 | AY129: 10.5 | AZ129: غ | BA129: 18.5 | BB129: 8 | BC129: 15 | BD129: غ | BE129: 23 | BF129: 8 | BG129: 20 | BH129: غ | BI129: 28 | BJ129: 9 | BK129: 14 | BL129: غ | BM129: 23 | BN129: 8 | BO129: 9 | BP129: غ | BQ129: 17 | BR129: 8.5 | BS129: 17.5 | BT129: غ | BU129: 26 | BV129: 9 | BW129: 12.5 | BX129: غ | BY129: 21.5 | BZ129: 159.3 | CA129: 238.8 | CB129: 4 | CC129: 8 | CD129: 8 | CE129: 20 | CF129: 4 | CG129: 8 | CH129: 8 | CI129: 20 | CJ129: جيد | CK129: راسب | CL129: =IF(F129="","",IF(CN129=0,RANK($CA129,$CA$10:$CA$599)+COUNTIF(CA$10:CA129,CA129)-1,IF(CN129>=$CO$8,"جميع المواد",CONCATENATE(DH129,DI129,DJ129,DK129,DL129,DM129,DN129,DO129,DP129,DQ129,DR129,DS129,DT129,DU129,DV129,DW129)))) -> جميع المواد | CM129: =IF(F129="","",IF(CN129=0,RANK($CA129,$CA$10:$CA$599)+COUNTIF(CA$10:CA129,CA129)-"1","")) ->  | CN129: 13 | CO129: 1 | CP129: 1 | CQ129: 1 | CR129: 1 | CS129: 1 | CT129: 1 | CU129: 1 | CV129: 1 | CW129: 1 | CX129: 1 | CY129: 1 | CZ129: 1 | DA129: 1 | DB129: 1 | DC129: 0 | DD129: 0 | DH129: لغة عربية | DI129: لغة إنجليزية | DJ129: لغة فرنسية | DK129: (حاسب عملي) | DL129: رياضة عامة | DM129: حاسب آلي | DN129: محاسبة مالية | DO129: تسويق | DP129: إدارة أعمال | DQ129: إقتصــاد | DR129: قانون تجاري | DS129: سكرتارية عربية | DT129: سكرتارية أجنبية | DU129: مجموع كلي
B130: ناجح | C130: 32 | D130: 121 | E130: 53 | F130: طالب تجارة 53 | H130: 1/53 | I130: مستجد | J130: أنثي | K130: مسلم | L130: 30312151403243 | M130: 2003-12-15 | N130: =IF(الشيت!M130="","",CONCATENATE(DATEDIF(الشيت!M130,#REF!,"md")," - ",DATEDIF(الشيت!M130,#REF!,"ym")," - ",DATEDIF(الشيت!M130,#REF!,"y"))) ->  | O130: 153 | P130: 137 | R130: 8 | S130: 16 | T130: 17.5 | U130: 41.5 | V130: 9 | W130: 12.4 | X130: 14 | Y130: 35.4 | Z130: 4.5 | AA130: 9.6 | AB130: 8.4 | AC130: 22.5 | AD130: 7 | AE130: 13 | AF130: 16 | AG130: 36 | AH130: 3 | AI130: 7 | AJ130: 8.5 | AK130: 18.5 | AL130: 3 | AM130: 4.5 | AN130: 7.5 | AO130: 5 | AP130: 9 | AQ130: 14 | AR130: 6 | AS130: 5 | AT130: 11 | AU130: 14 | AV130: 18.5 | AW130: 32.5 | AX130: 8 | AY130: 11.5 | AZ130: 16.5 | BA130: 36 | BB130: 8.5 | BC130: 15 | BD130: 14 | BE130: 37.5 | BF130: 8 | BG130: 20 | BH130: 19 | BI130: 47 | BJ130: 9 | BK130: 15 | BL130: 15 | BM130: 39 | BN130: 8 | BO130: 13 | BP130: 18 | BQ130: 39 | BR130: 8.5 | BS130: 19 | BT130: 18 | BU130: 45.5 | BV130: 9 | BW130: 15 | BX130: 14.5 | BY130: 38.5 | BZ130: 180.5 | CA130: 429.9 | CB130: 4 | CC130: 8 | CD130: 8 | CE130: 20 | CF130: 4 | CG130: 8 | CH130: 8 | CI130: 20 | CJ130: جيد | CK130: ناجح | CL130: =IF(F130="","",IF(CN130=0,RANK($CA130,$CA$10:$CA$599)+COUNTIF(CA$10:CA130,CA130)-1,IF(CN130>=$CO$8,"جميع المواد",CONCATENATE(DH130,DI130,DJ130,DK130,DL130,DM130,DN130,DO130,DP130,DQ130,DR130,DS130,DT130,DU130,DV130,DW130)))) -> 32 | CM130: =IF(F130="","",IF(CN130=0,RANK($CA130,$CA$10:$CA$599)+COUNTIF(CA$10:CA130,CA130)-"1","")) -> 32 | CN130: 0 | CO130: 0 | CP130: 0 | CQ130: 0 | CR130: 0 | CS130: 0 | CT130: 0 | CU130: 0 | CV130: 0 | CW130: 0 | CX130: 0 | CY130: 0 | CZ130: 0 | DA130: 0 | DB130: 0 | DC130: 0 | DD130: 0
B131: ناجح | C131: 34 | D131: 122 | E131: 53 | F131: طالب تجارة 53 | H131: 1/53 | I131: مستجد | J131: أنثي | K131: مسلم | L131: 30312151403243 | M131: 2003-12-15 | N131: =IF(الشيت!M131="","",CONCATENATE(DATEDIF(الشيت!M131,#REF!,"md")," - ",DATEDIF(الشيت!M131,#REF!,"ym")," - ",DATEDIF(الشيت!M131,#REF!,"y"))) ->  | O131: 153 | P131: 137 | R131: 8.5 | S131: 14.5 | T131: 14.5 | U131: 37.5 | V131: 8.5 | W131: 9.2 | X131: 11.2 | Y131: 28.9 | Z131: 4.5 | AA131: 8 | AB131: 8.8 | AC131: 21.3 | AD131: 7 | AE131: 12 | AF131: 16 | AG131: 35 | AH131: 3 | AI131: 9.5 | AJ131: 10.5 | AK131: 23 | AL131: 3 | AM131: 4 | AN131: 7 | AO131: 5 | AP131: 9 | AQ131: 14 | AR131: 5 | AS131: 7 | AT131: 12 | AU131: 13 | AV131: 20 | AW131: 33 | AX131: 8 | AY131: 17.5 | AZ131: 17.5 | BA131: 43 | BB131: 9 | BC131: 14 | BD131: 14 | BE131: 37 | BF131: 8 | BG131: 20 | BH131: 17 | BI131: 45 | BJ131: 9 | BK131: 18 | BL131: 16 | BM131: 43 | BN131: 8 | BO131: 11 | BP131: 18 | BQ131: 37 | BR131: 8.5 | BS131: 17.5 | BT131: 16.5 | BU131: 42.5 | BV131: 9 | BW131: 17 | BX131: 14 | BY131: 40 | BZ131: 182.2 | CA131: 429.2 | CB131: 4 | CC131: 8 | CD131: 8 | CE131: 20 | CF131: 4 | CG131: 8 | CH131: 8 | CI131: 20 | CJ131: جيد | CK131: ناجح | CL131: =IF(F131="","",IF(CN131=0,RANK($CA131,$CA$10:$CA$599)+COUNTIF(CA$10:CA131,CA131)-1,IF(CN131>=$CO$8,"جميع المواد",CONCATENATE(DH131,DI131,DJ131,DK131,DL131,DM131,DN131,DO131,DP131,DQ131,DR131,DS131,DT131,DU131,DV131,DW131)))) -> 34 | CM131: =IF(F131="","",IF(CN131=0,RANK($CA131,$CA$10:$CA$599)+COUNTIF(CA$10:CA131,CA131)-"1","")) -> 34 | CN131: 0 | CO131: 0 | CP131: 0 | CQ131: 0 | CR131: 0 | CS131: 0 | CT131: 0 | CU131: 0 | CV131: 0 | CW131: 0 | CX131: 0 | CY131: 0 | CZ131: 0 | DA131: 0 | DB131: 0 | DC131: 0 | DD131: 0
B132: دور ثان | D132: 123 | E132: 53 | F132: طالب تجارة 53 | H132: 1/53 | I132: مستجد | J132: أنثي | K132: مسلم | L132: 30312151403243 | M132: 2003-12-15 | N132: =IF(الشيت!M132="","",CONCATENATE(DATEDIF(الشيت!M132,#REF!,"md")," - ",DATEDIF(الشيت!M132,#REF!,"ym")," - ",DATEDIF(الشيت!M132,#REF!,"y"))) ->  | O132: 153 | P132: 137 | R132: 8.5 | S132: 10.5 | T132: 7.5 | U132: 26.5 | V132: 9 | W132: 10 | X132: 5.2 | Y132: 24.2 | Z132: 4.5 | AA132: 8.4 | AB132: 7.2 | AC132: 20.1 | AD132: 7 | AE132: 11 | AF132: 13 | AG132: 31 | AH132: 3 | AI132: 1 | AJ132: 6.5 | AK132: 10.5 | AL132: 2.5 | AM132: 4.5 | AN132: 7 | AO132: 6 | AP132: 9 | AQ132: 15 | AR132: 5 | AS132: 5 | AT132: 10 | AU132: 13.5 | AV132: 18.5 | AW132: 32 | AX132: 8 | AY132: 8 | AZ132: 10 | BA132: 26 | BB132: 8.5 | BC132: 13.5 | BD132: 9 | BE132: 31 | BF132: 8 | BG132: 20 | BH132: 17 | BI132: 45 | BJ132: 9 | BK132: 17 | BL132: 7 | BM132: 33 | BN132: 8 | BO132: 11 | BP132: 14 | BQ132: 33 | BR132: 9 | BS132: 17.5 | BT132: 14.5 | BU132: 41 | BV132: 9 | BW132: 9 | BX132: 5 | BY132: 23 | BZ132: 151.9 | CA132: 343.3 | CB132: 4 | CC132: 8 | CD132: 8 | CE132: 20 | CF132: 4 | CG132: 8 | CH132: 8 | CI132: 20 | CJ132: جيد | CK132: دور ثان | CL132: =IF(F132="","",IF(CN132=0,RANK($CA132,$CA$10:$CA$599)+COUNTIF(CA$10:CA132,CA132)-1,IF(CN132>=$CO$8,"جميع المواد",CONCATENATE(DH132,DI132,DJ132,DK132,DL132,DM132,DN132,DO132,DP132,DQ132,DR132,DS132,DT132,DU132,DV132,DW132)))) -> (حاسب نظرى) | CM132: =IF(F132="","",IF(CN132=0,RANK($CA132,$CA$10:$CA$599)+COUNTIF(CA$10:CA132,CA132)-"1","")) ->  | CN132: 1 | CO132: 0 | CP132: 0 | CQ132: 0 | CR132: 1 | CS132: 0 | CT132: 0 | CU132: 0 | CV132: 0 | CW132: 0 | CX132: 0 | CY132: 0 | CZ132: 0 | DA132: 0 | DB132: 0 | DC132: 0 | DD132: 0 | DK132: (حاسب نظرى) | DY132: مجموع التحريري
B133: ناجح | C133: 93 | D133: 124 | E133: 53 | F133: طالب تجارة 53 | H133: 1/53 | I133: مستجد | J133: أنثي | K133: مسلم | L133: 30312151403243 | M133: 2003-12-15 | N133: =IF(الشيت!M133="","",CONCATENATE(DATEDIF(الشيت!M133,#REF!,"md")," - ",DATEDIF(الشيت!M133,#REF!,"ym")," - ",DATEDIF(الشيت!M133,#REF!,"y"))) ->  | O133: 153 | P133: 137 | R133: 8.5 | S133: 14.5 | T133: 12.5 | U133: 35.5 | V133: 8.5 | W133: 9.2 | X133: 8 | Y133: 25.7 | Z133: 4.5 | AA133: 8.4 | AB133: 7.6 | AC133: 20.5 | AD133: 7 | AE133: 12 | AF133: 15 | AG133: 34 | AH133: 5.5 | AI133: 7.5 | AJ133: 9 | AK133: 22 | AL133: 3 | AM133: 4 | AN133: 7 | AO133: 5 | AP133: 9 | AQ133: 14 | AR133: 5 | AS133: 6 | AT133: 11 | AU133: 13 | AV133: 19 | AW133: 32 | AX133: 8 | AY133: 12.5 | AZ133: 12 | BA133: 32.5 | BB133: 8 | BC133: 14 | BD133: 9 | BE133: 31 | BF133: 8 | BG133: 18 | BH133: 17 | BI133: 43 | BJ133: 9 | BK133: 17 | BL133: 15 | BM133: 41 | BN133: 8 | BO133: 15 | BP133: 17 | BQ133: 40 | BR133: 9 | BS133: 19 | BT133: 17 | BU133: 45 | BV133: 9 | BW133: 16 | BX133: 10 | BY133: 35 | BZ133: 177.1 | CA133: 397.2 | CB133: 4 | CC133: 8 | CD133: 8 | CE133: 20 | CF133: 4 | CG133: 8 | CH133: 8 | CI133: 20 | CJ133: جيد | CK133: ناجح | CL133: =IF(F133="","",IF(CN133=0,RANK($CA133,$CA$10:$CA$599)+COUNTIF(CA$10:CA133,CA133)-1,IF(CN133>=$CO$8,"جميع المواد",CONCATENATE(DH133,DI133,DJ133,DK133,DL133,DM133,DN133,DO133,DP133,DQ133,DR133,DS133,DT133,DU133,DV133,DW133)))) -> 93 | CM133: =IF(F133="","",IF(CN133=0,RANK($CA133,$CA$10:$CA$599)+COUNTIF(CA$10:CA133,CA133)-"1","")) -> 93 | CN133: 0 | CO133: 0 | CP133: 0 | CQ133: 0 | CR133: 0 | CS133: 0 | CT133: 0 | CU133: 0 | CV133: 0 | CW133: 0 | CX133: 0 | CY133: 0 | CZ133: 0 | DA133: 0 | DB133: 0 | DC133: 0 | DD133: 0
B134: دور ثان | D134: 125 | E134: 53 | F134: طالب تجارة 53 | H134: 1/53 | I134: مستجد | J134: أنثي | K134: مسلم | L134: 30312151403243 | M134: 2003-12-15 | N134: =IF(الشيت!M134="","",CONCATENATE(DATEDIF(الشيت!M134,#REF!,"md")," - ",DATEDIF(الشيت!M134,#REF!,"ym")," - ",DATEDIF(الشيت!M134,#REF!,"y"))) ->  | O134: 153 | P134: 137 | R134: 8 | S134: 7.5 | T134: 9.5 | U134: 25 | V134: 8.5 | W134: 6.8 | X134: 5.2 | Y134: 20.5 | Z134: 4.5 | AA134: 8 | AB134: 8 | AC134: 20.5 | AD134: 7 | AE134: 9 | AF134: 15 | AG134: 31 | AH134: 3 | AI134: 0.5 | AJ134: 7 | AK134: 10.5 | AL134: 2.5 | AM134: 4 | AN134: 6.5 | AO134: 5 | AP134: 9 | AQ134: 14 | AR134: 5 | AS134: 6 | AT134: 11 | AU134: 12.5 | AV134: 19 | AW134: 31.5 | AX134: 8 | AY134: 5.5 | AZ134: 11.5 | BA134: 25 | BB134: 8 | BC134: 10 | BD134: 7 | BE134: 25 | BF134: 8 | BG134: 17.5 | BH134: 15 | BI134: 40.5 | BJ134: 9 | BK134: 17 | BL134: 12 | BM134: 38 | BN134: 8 | BO134: 10 | BP134: 14 | BQ134: 32 | BR134: 9 | BS134: 17.5 | BT134: 13 | BU134: 39.5 | BV134: 9 | BW134: 9.5 | BX134: 2 | BY134: 20.5 | BZ134: 132.8 | CA134: 327.5 | CB134: 4 | CC134: 8 | CD134: 8 | CE134: 20 | CF134: 4 | CG134: 8 | CH134: 8 | CI134: 20 | CJ134: مقبول | CK134: دور ثان | CL134: =IF(F134="","",IF(CN134=0,RANK($CA134,$CA$10:$CA$599)+COUNTIF(CA$10:CA134,CA134)-1,IF(CN134>=$CO$8,"جميع المواد",CONCATENATE(DH134,DI134,DJ134,DK134,DL134,DM134,DN134,DO134,DP134,DQ134,DR134,DS134,DT134,DU134,DV134,DW134)))) -> (حاسب نظرى) سكرتارية أجنبية | CM134: =IF(F134="","",IF(CN134=0,RANK($CA134,$CA$10:$CA$599)+COUNTIF(CA$10:CA134,CA134)-"1","")) ->  | CN134: 2 | CO134: 0 | CP134: 0 | CQ134: 0 | CR134: 1 | CS134: 0 | CT134: 0 | CU134: 0 | CV134: 0 | CW134: 0 | CX134: 0 | CY134: 0 | CZ134: 0 | DA134: 1 | DB134: 0 | DC134: 0 | DD134: 0 | DK134: (حاسب نظرى) | DT134: سكرتارية أجنبية | DY134: مجموع التحريري سكرتارية أجنبية
B135: ناجح | C135: 148 | D135: 126 | E135: 53 | F135: طالب تجارة 53 | H135: 1/53 | I135: مستجد | J135: أنثي | K135: مسلم | L135: 30312151403243 | M135: 2003-12-15 | N135: =IF(الشيت!M135="","",CONCATENATE(DATEDIF(الشيت!M135,#REF!,"md")," - ",DATEDIF(الشيت!M135,#REF!,"ym")," - ",DATEDIF(الشيت!M135,#REF!,"y"))) ->  | O135: 153 | P135: 137 | R135: 8 | S135: 10 | T135: 11 | U135: 29 | V135: 7.5 | W135: 7.6 | X135: 8.4 | Y135: 23.5 | Z135: 4.5 | AA135: 9.6 | AB135: 8 | AC135: 22.1 | AD135: 7 | AE135: 12 | AF135: 16 | AG135: 35 | AH135: 3 | AI135: 5.5 | AJ135: 8.5 | AK135: 17 | AL135: 3 | AM135: 4 | AN135: 7 | AO135: 5 | AP135: 9 | AQ135: 14 | AR135: 5 | AS135: 6 | AT135: 11 | AU135: 13 | AV135: 19 | AW135: 32 | AX135: 8 | AY135: 11 | AZ135: 14 | BA135: 33 | BB135: 8.5 | BC135: 13 | BD135: 8 | BE135: 29.5 | BF135: 8 | BG135: 18.5 | BH135: 17 | BI135: 43.5 | BJ135: 9 | BK135: 16 | BL135: 14 | BM135: 39 | BN135: 8 | BO135: 14 | BP135: 16 | BQ135: 38 | BR135: 8.5 | BS135: 19 | BT135: 15 | BU135: 42.5 | BV135: 9 | BW135: 13 | BX135: 5 | BY135: 27 | BZ135: 163.2 | CA135: 373.1 | CB135: 4 | CC135: 8 | CD135: 8 | CE135: 20 | CF135: 4 | CG135: 8 | CH135: 8 | CI135: 20 | CJ135: جيد | CK135: ناجح | CL135: =IF(F135="","",IF(CN135=0,RANK($CA135,$CA$10:$CA$599)+COUNTIF(CA$10:CA135,CA135)-1,IF(CN135>=$CO$8,"جميع المواد",CONCATENATE(DH135,DI135,DJ135,DK135,DL135,DM135,DN135,DO135,DP135,DQ135,DR135,DS135,DT135,DU135,DV135,DW135)))) -> 148 | CM135: =IF(F135="","",IF(CN135=0,RANK($CA135,$CA$10:$CA$599)+COUNTIF(CA$10:CA135,CA135)-"1","")) -> 148 | CN135: 0 | CO135: 0 | CP135: 0 | CQ135: 0 | CR135: 0 | CS135: 0 | CT135: 0 | CU135: 0 | CV135: 0 | CW135: 0 | CX135: 0 | CY135: 0 | CZ135: 0 | DA135: 0 | DB135: 0 | DC135: 0 | DD135: 0
B136: ناجح | C136: 153 | D136: 127 | E136: 53 | F136: طالب تجارة 53 | H136: 1/53 | I136: مستجد | J136: أنثي | K136: مسلم | L136: 30312151403243 | M136: 2003-12-15 | N136: =IF(الشيت!M136="","",CONCATENATE(DATEDIF(الشيت!M136,#REF!,"md")," - ",DATEDIF(الشيت!M136,#REF!,"ym")," - ",DATEDIF(الشيت!M136,#REF!,"y"))) ->  | O136: 153 | P136: 137 | R136: 8 | S136: 12 | T136: 11 | U136: 31 | V136: 8.5 | W136: 9.2 | X136: 8 | Y136: 25.7 | Z136: 4.5 | AA136: 9.2 | AB136: 8.4 | AC136: 22.1 | AD136: 7 | AE136: 10 | AF136: 15 | AG136: 32 | AH136: 3 | AI136: 3 | AJ136: 9 | AK136: 15 | AL136: 3 | AM136: 4 | AN136: 7 | AO136: 6 | AP136: 9 | AQ136: 15 | AR136: 5 | AS136: 7 | AT136: 12 | AU136: 14 | AV136: 20 | AW136: 34 | AX136: 8 | AY136: 8 | AZ136: 10.5 | BA136: 26.5 | BB136: 8 | BC136: 12.5 | BD136: 9 | BE136: 29.5 | BF136: 8 | BG136: 17.5 | BH136: 17 | BI136: 42.5 | BJ136: 9 | BK136: 17 | BL136: 14 | BM136: 40 | BN136: 8 | BO136: 10 | BP136: 14 | BQ136: 32 | BR136: 9 | BS136: 17.5 | BT136: 17 | BU136: 43.5 | BV136: 9 | BW136: 11.5 | BX136: 7 | BY136: 27.5 | BZ136: 152.4 | CA136: 369.3 | CB136: 4 | CC136: 8 | CD136: 8 | CE136: 20 | CF136: 4 | CG136: 8 | CH136: 8 | CI136: 20 | CJ136: جيد | CK136: ناجح | CL136: =IF(F136="","",IF(CN136=0,RANK($CA136,$CA$10:$CA$599)+COUNTIF(CA$10:CA136,CA136)-1,IF(CN136>=$CO$8,"جميع المواد",CONCATENATE(DH136,DI136,DJ136,DK136,DL136,DM136,DN136,DO136,DP136,DQ136,DR136,DS136,DT136,DU136,DV136,DW136)))) -> 153 | CM136: =IF(F136="","",IF(CN136=0,RANK($CA136,$CA$10:$CA$599)+COUNTIF(CA$10:CA136,CA136)-"1","")) -> 153 | CN136: 0 | CO136: 0 | CP136: 0 | CQ136: 0 | CR136: 0 | CS136: 0 | CT136: 0 | CU136: 0 | CV136: 0 | CW136: 0 | CX136: 0 | CY136: 0 | CZ136: 0 | DA136: 0 | DB136: 0 | DC136: 0 | DD136: 0
B137: ناجح | C137: 111 | D137: 128 | E137: 53 | F137: طالب تجارة 53 | H137: 1/53 | I137: مستجد | J137: أنثي | K137: مسلم | L137: 30312151403243 | M137: 2003-12-15 | N137: =IF(الشيت!M137="","",CONCATENATE(DATEDIF(الشيت!M137,#REF!,"md")," - ",DATEDIF(الشيت!M137,#REF!,"ym")," - ",DATEDIF(الشيت!M137,#REF!,"y"))) ->  | O137: 153 | P137: 137 | R137: 8.5 | S137: 15.5 | T137: 13 | U137: 37 | V137: 8.5 | W137: 9.2 | X137: 11.2 | Y137: 28.9 | Z137: 4.5 | AA137: 8.8 | AB137: 8.4 | AC137: 21.7 | AD137: 7 | AE137: 11 | AF137: 16 | AG137: 34 | AH137: 3 | AI137: 5 | AJ137: 8.5 | AK137: 16.5 | AL137: 3 | AM137: 4 | AN137: 7 | AO137: 6 | AP137: 9 | AQ137: 15 | AR137: 6 | AS137: 7 | AT137: 13 | AU137: 15 | AV137: 20 | AW137: 35 | AX137: 8 | AY137: 12.5 | AZ137: 13 | BA137: 33.5 | BB137: 8.5 | BC137: 13 | BD137: 9 | BE137: 30.5 | BF137: 8 | BG137: 18.5 | BH137: 17 | BI137: 43.5 | BJ137: 9 | BK137: 15 | BL137: 14 | BM137: 38 | BN137: 8 | BO137: 14 | BP137: 17 | BQ137: 39 | BR137: 9 | BS137: 18 | BT137: 14.5 | BU137: 41.5 | BV137: 9 | BW137: 15.5 | BX137: 5.5 | BY137: 30 | BZ137: 171 | CA137: 390.1 | CB137: 4 | CC137: 8 | CD137: 8 | CE137: 20 | CF137: 4 | CG137: 8 | CH137: 8 | CI137: 20 | CJ137: جيد | CK137: ناجح | CL137: =IF(F137="","",IF(CN137=0,RANK($CA137,$CA$10:$CA$599)+COUNTIF(CA$10:CA137,CA137)-1,IF(CN137>=$CO$8,"جميع المواد",CONCATENATE(DH137,DI137,DJ137,DK137,DL137,DM137,DN137,DO137,DP137,DQ137,DR137,DS137,DT137,DU137,DV137,DW137)))) -> 111 | CM137: =IF(F137="","",IF(CN137=0,RANK($CA137,$CA$10:$CA$599)+COUNTIF(CA$10:CA137,CA137)-"1","")) -> 111 | CN137: 0 | CO137: 0 | CP137: 0 | CQ137: 0 | CR137: 0 | CS137: 0 | CT137: 0 | CU137: 0 | CV137: 0 | CW137: 0 | CX137: 0 | CY137: 0 | CZ137: 0 | DA137: 0 | DB137: 0 | DC137: 0 | DD137: 0
B138: ناجح | C138: 104 | D138: 129 | E138: 53 | F138: طالب تجارة 53 | H138: 1/53 | I138: مستجد | J138: أنثي | K138: مسلم | L138: 30312151403243 | M138: 2003-12-15 | N138: =IF(الشيت!M138="","",CONCATENATE(DATEDIF(الشيت!M138,#REF!,"md")," - ",DATEDIF(الشيت!M138,#REF!,"ym")," - ",DATEDIF(الشيت!M138,#REF!,"y"))) ->  | O138: 153 | P138: 137 | R138: 8.5 | S138: 16 | T138: 11 | U138: =IF(AND($B$1="",R138="غ",S138="غ",T138="غ"),"غائب",SUM(T138,S138,R138)) -> 35.5 | V138: 9 | W138: 10.8 | X138: 8.8 | Y138: =IF(AND($B$1="",V138="غ",W138="غ",X138="غ"),"غائب",SUM(X138,W138,V138)) -> 28.6 | Z138: 4.5 | AA138: 6.8 | AB138: 8.8 | AC138: =IF(AND($B$1="",Z138="غ",AA138="غ",AB138="غ"),"غائب",SUM(AB138,AA138,Z138)) -> 20.1 | AD138: 7 | AE138: 11 | AF138: 16 | AG138: =IF(AND($B$1="",AD138="غ",AE138="غ",AF138="غ"),"غائب",SUM(AF138,AE138,AD138)) -> 34 | AH138: 3 | AI138: 7 | AJ138: 9 | AK138: =IF(AND($B$1="",AH138="غ",AI138="غ",AJ138="غ"),"غائب",SUM(AJ138,AI138,AH138)) -> 19 | AL138: 2.5 | AM138: 4.5 | AN138: =IF(AND($B$1="",AL138="غ",AM138="غ"),"غائب",SUM(AL138:AM138)) -> 7 | AO138: 4 | AP138: 8 | AQ138: =IF(AND($B$1="",AO138="غ",AP138="غ"),"غائب",SUM(AO138:AP138)) -> 12 | AR138: 5 | AS138: 6 | AT138: =IF(AND($B$1="",AR138="غ",AS138="غ"),"غائب",SUM(AR138:AS138)) -> 11 | AU138: =IF(AND($B$1="",AR138="غ",AO138="غ",AL138="غ"),"غائب",SUM(AR138,AO138,AL138)) -> 11.5 | AV138: =IF(AND($B$1="",AS138="غ",AP138="غ",AM138="غ"),"غائب",SUM(AM138,AP138,AS138)) -> 18.5 | AW138: =IF(AND($B$1="",AU138="غائب",AV138="غائب"),"غائب",SUM(AU138:AV138)) -> 30 | AX138: 8 | AY138: 15 | AZ138: 12.5 | BA138: =IF(AND($B$1="",AX138="غ",AY138="غ",AZ138="غ"),"غائب",SUM(AZ138,AY138,AX138)) -> 35.5 | BB138: 8.5 | BC138: 14 | BD138: 10 | BE138: =IF(AND($B$1="",BB138="غ",BC138="غ",BD138="غ"),"غائب",SUM(BD138,BC138,BB138)) -> 32.5 | BF138: 8 | BG138: 18 | BH138: 17 | BI138: =IF(AND($B$1="",BF138="غ",BG138="غ",BH138="غ"),"غائب",SUM(BH138,BG138,BF138)) -> 43 | BJ138: 9 | BK138: 16 | BL138: 14 | BM138: =IF(AND($B$1="",BJ138="غ",BK138="غ",BL138="غ"),"غائب",SUM(BL138,BK138,BJ138)) -> 39 | BN138: 8 | BO138: 10 | BP138: 18 | BQ138: =IF(AND($B$1="",BN138="غ",BO138="غ",BP138="غ"),"غائب",SUM(BP138,BO138,BN138)) -> 36 | BR138: 9 | BS138: 15.5 | BT138: 17 | BU138: =IF(AND($B$1="",BR138="غ",BS138="غ",BT138="غ"),"غائب",SUM(BT138,BS138,BR138)) -> 41.5 | BV138: 9 | BW138: 15 | BX138: 9.5 | BY138: =IF(AND($B$1="",BV138="غ",BW138="غ",BX138="غ"),"غائب",SUM(BX138,BW138,BV138)) -> 33.5 | BZ138: =IF(AND($B$1="",S138="غ",W138="غ",AA138="غ",AE138="غ",AI138="غ",AQ138="غ",AY138="غ",BC138="غ",BG138="غ",BK138="غ",BO138="غ",BS138="غ",BW138="غ"),"غائب",SUM(S138,W138,AA138,AI138,AE138,AQ138,,AY138,BC138,BG138,BK138,BO138,BS138,BW138)) -> 167.1 | CA138: =IF(AND($B$1="",U138="غائب",Y138="غائب",AC138="غائب",AG138="غائب",AK138="غائب",AT138="غائب",AW138="غائب",BA138="غائب",BE138="غائب",BI138="غائب",BM138="غائب",BU138="غائب",BY138="غائب",CE138="غائب",CI138="غائب"),"غائب",SUM(BY138,BU138,BM138,BI138,BE138,BA138,AW138,,AK138,AG138,AC138,Y138,U138)) -> 392.2 | CB138: 4 | CC138: 8 | CD138: 8 | CE138: =IF(AND($B$1="",CB138="غ",CC138="غ",CD138="غ"),"غائب",SUM(CD138,CC138,CB138)) -> 20 | CF138: 4 | CG138: 8 | CH138: 8 | CI138: =IF(AND($B$1="",CF138="غ",CG138="غ",CH138="غ"),"غائب",SUM(CH138,CG138,CF138)) -> 20 | CJ138: جيد | CK138: ناجح | CL138: =IF(F138="","",IF(CN138=0,RANK($CA138,$CA$10:$CA$599)+COUNTIF(CA$10:CA138,CA138)-1,IF(CN138>=$CO$8,"جميع المواد",CONCATENATE(DH138,DI138,DJ138,DK138,DL138,DM138,DN138,DO138,DP138,DQ138,DR138,DS138,DT138,DU138,DV138,DW138)))) -> 104 | CM138: =IF(F138="","",IF(CN138=0,RANK($CA138,$CA$10:$CA$599)+COUNTIF(CA$10:CA138,CA138)-"1","")) -> 104 | CN138: 0 | CO138: 0 | CP138: 0 | CQ138: 0 | CR138: 0 | CS138: 0 | CT138: 0 | CU138: 0 | CV138: 0 | CW138: 0 | CX138: 0 | CY138: 0 | CZ138: 0 | DA138: 0 | DB138: 0 | DC138: 0 | DD138: 0
B139: ناجح | C139: 38 | D139: 130 | E139: 53 | F139: طالب تجارة 53 | H139: 1/53 | I139: مستجد | J139: أنثي | K139: مسلم | L139: 30312151403243 | M139: 2003-12-15 | N139: =IF(الشيت!M139="","",CONCATENATE(DATEDIF(الشيت!M139,#REF!,"md")," - ",DATEDIF(الشيت!M139,#REF!,"ym")," - ",DATEDIF(الشيت!M139,#REF!,"y"))) ->  | O139: 153 | P139: 137 | R139: 8.5 | S139: 16.5 | T139: 13 | U139: 38 | V139: 8.5 | W139: 11.6 | X139: 8.4 | Y139: 28.5 | Z139: 4.5 | AA139: 9.2 | AB139: 9.6 | AC139: 23.3 | AD139: 7 | AE139: 11 | AF139: 15 | AG139: 33 | AH139: 3 | AI139: 7 | AJ139: 10 | AK139: 20 | AL139: 3 | AM139: 4.5 | AN139: 7.5 | AO139: 5 | AP139: 9 | AQ139: 14 | AR139: 6 | AS139: 7 | AT139: 13 | AU139: 14 | AV139: 20.5 | AW139: 34.5 | AX139: 8 | AY139: 16 | AZ139: 15.5 | BA139: 39.5 | BB139: 9 | BC139: 17 | BD139: 14 | BE139: 40 | BF139: 8 | BG139: 20 | BH139: 16 | BI139: 44 | BJ139: 9 | BK139: 17 | BL139: 17 | BM139: 43 | BN139: 8 | BO139: 13 | BP139: 16 | BQ139: 37 | BR139: 9 | BS139: 19 | BT139: 16 | BU139: 44 | BV139: 9 | BW139: 18 | BX139: 11 | BY139: 38 | BZ139: 189.3 | CA139: 425.8 | CB139: 4 | CC139: 8 | CD139: 8 | CE139: 20 | CF139: 4 | CG139: 8 | CH139: 8 | CI139: 20 | CJ139: جيد | CK139: ناجح | CL139: =IF(F139="","",IF(CN139=0,RANK($CA139,$CA$10:$CA$599)+COUNTIF(CA$10:CA139,CA139)-1,IF(CN139>=$CO$8,"جميع المواد",CONCATENATE(DH139,DI139,DJ139,DK139,DL139,DM139,DN139,DO139,DP139,DQ139,DR139,DS139,DT139,DU139,DV139,DW139)))) -> 38 | CM139: =IF(F139="","",IF(CN139=0,RANK($CA139,$CA$10:$CA$599)+COUNTIF(CA$10:CA139,CA139)-"1","")) -> 38 | CN139: 0 | CO139: 0 | CP139: 0 | CQ139: 0 | CR139: 0 | CS139: 0 | CT139: 0 | CU139: 0 | CV139: 0 | CW139: 0 | CX139: 0 | CY139: 0 | CZ139: 0 | DA139: 0 | DB139: 0 | DC139: 0 | DD139: 0
B140: راسب | D140: 131 | E140: 53 | F140: طالب تجارة 53 | H140: 1/53 | I140: مستجد | J140: أنثي | K140: مسلم | L140: 30312151403243 | M140: 2003-12-15 | N140: =IF(الشيت!M140="","",CONCATENATE(DATEDIF(الشيت!M140,#REF!,"md")," - ",DATEDIF(الشيت!M140,#REF!,"ym")," - ",DATEDIF(الشيت!M140,#REF!,"y"))) ->  | O140: 153 | P140: 137 | R140: 8.5 | S140: 7.5 | T140: 9 | U140: 25 | V140: 8.5 | W140: 5.2 | X140: 1.6 | Y140: 15.3 | Z140: 4.5 | AA140: 7.2 | AB140: 7.2 | AC140: 18.9 | AD140: 7 | AE140: 11 | AF140: 13 | AG140: 31 | AH140: 3 | AI140: 1 | AJ140: 1 | AK140: 5 | AL140: 3 | AM140: 4.5 | AN140: 7.5 | AO140: 5 | AP140: 7 | AQ140: 12 | AR140: 6 | AS140: 4 | AT140: 10 | AU140: 14 | AV140: 15.5 | AW140: 29.5 | AX140: 8 | AY140: 9 | AZ140: 4.5 | BA140: 21.5 | BB140: 9 | BC140: 11.5 | BD140: 18 | BE140: 38.5 | BF140: 8 | BG140: 13.5 | BH140: 15 | BI140: 36.5 | BJ140: 9 | BK140: 14 | BL140: 8 | BM140: 31 | BN140: 8 | BO140: 8 | BP140: 9 | BQ140: 25 | BR140: 8.5 | BS140: 10.5 | BT140: 11 | BU140: 30 | BV140: 9 | BW140: 6.5 | BX140: 1 | BY140: 16.5 | BZ140: 116.9 | CA140: 298.7 | CB140: 4 | CC140: 8 | CD140: 8 | CE140: 20 | CF140: 4 | CG140: 8 | CH140: 8 | CI140: 20 | CJ140: ضعيف | CK140: راسب | CL140: =IF(F140="","",IF(CN140=0,RANK($CA140,$CA$10:$CA$599)+COUNTIF(CA$10:CA140,CA140)-1,IF(CN140>=$CO$8,"جميع المواد",CONCATENATE(DH140,DI140,DJ140,DK140,DL140,DM140,DN140,DO140,DP140,DQ140,DR140,DS140,DT140,DU140,DV140,DW140)))) -> لغة إنجليزية (حاسب عملي) محاسبة مالية سكرتارية أجنبية | CM140: =IF(F140="","",IF(CN140=0,RANK($CA140,$CA$10:$CA$599)+COUNTIF(CA$10:CA140,CA140)-"1","")) ->  | CN140: 4 | CO140: 0 | CP140: 1 | CQ140: 0 | CR140: 1 | CS140: 0 | CT140: 0 | CU140: 1 | CV140: 0 | CW140: 0 | CX140: 0 | CY140: 0 | CZ140: 0 | DA140: 1 | DB140: 0 | DC140: 0 | DD140: 0 | DI140: لغة إنجليزية | DK140: (حاسب عملي) | DN140: محاسبة مالية | DT140: سكرتارية أجنبية
B141: ناجح | C141: 89 | D141: 132 | E141: 53 | F141: طالب تجارة 53 | H141: 1/53 | I141: مستجد | J141: أنثي | K141: مسلم | L141: 30312151403243 | M141: 2003-12-15 | N141: =IF(الشيت!M141="","",CONCATENATE(DATEDIF(الشيت!M141,#REF!,"md")," - ",DATEDIF(الشيت!M141,#REF!,"ym")," - ",DATEDIF(الشيت!M141,#REF!,"y"))) ->  | O141: 153 | P141: 137 | R141: 8 | S141: 14 | T141: 14.5 | U141: 36.5 | V141: 8.5 | W141: 9.2 | X141: 5.2 | Y141: 22.9 | Z141: 4.5 | AA141: 9.6 | AB141: 7.6 | AC141: 21.7 | AD141: 7 | AE141: 11 | AF141: 16 | AG141: 34 | AH141: 5.5 | AI141: 1 | AJ141: 11 | AK141: 17.5 | AL141: 2.5 | AM141: 4.5 | AN141: 7 | AO141: 6 | AP141: 9 | AQ141: 15 | AR141: 6 | AS141: 5 | AT141: 11 | AU141: 14.5 | AV141: 18.5 | AW141: 33 | AX141: 8 | AY141: 12.5 | AZ141: 17 | BA141: 37.5 | BB141: 8.5 | BC141: 15 | BD141: 14 | BE141: 37.5 | BF141: 8 | BG141: 20 | BH141: 15 | BI141: 43 | BJ141: 9 | BK141: 17 | BL141: 13 | BM141: 39 | BN141: 8 | BO141: 11 | BP141: 18 | BQ141: 37 | BR141: 8.5 | BS141: 17.5 | BT141: 17 | BU141: 43 | BV141: 9 | BW141: 12.5 | BX141: 11 | BY141: 32.5 | BZ141: 165.3 | CA141: 398.1 | CB141: 4 | CC141: 8 | CD141: 8 | CE141: 20 | CF141: 4 | CG141: 8 | CH141: 8 | CI141: 20 | CJ141: جيد | CK141: ناجح | CL141: =IF(F141="","",IF(CN141=0,RANK($CA141,$CA$10:$CA$599)+COUNTIF(CA$10:CA141,CA141)-1,IF(CN141>=$CO$8,"جميع المواد",CONCATENATE(DH141,DI141,DJ141,DK141,DL141,DM141,DN141,DO141,DP141,DQ141,DR141,DS141,DT141,DU141,DV141,DW141)))) -> 89 | CM141: =IF(F141="","",IF(CN141=0,RANK($CA141,$CA$10:$CA$599)+COUNTIF(CA$10:CA141,CA141)-"1","")) -> 89 | CN141: 0 | CO141: 0 | CP141: 0 | CQ141: 0 | CR141: 0 | CS141: 0 | CT141: 0 | CU141: 0 | CV141: 0 | CW141: 0 | CX141: 0 | CY141: 0 | CZ141: 0 | DA141: 0 | DB141: 0 | DC141: 0 | DD141: 0
B142: ناجح | C142: 35 | D142: 133 | E142: 53 | F142: طالب تجارة 53 | H142: 1/53 | I142: مستجد | J142: أنثي | K142: مسلم | L142: 30312151403243 | M142: 2003-12-15 | N142: =IF(الشيت!M142="","",CONCATENATE(DATEDIF(الشيت!M142,#REF!,"md")," - ",DATEDIF(الشيت!M142,#REF!,"ym")," - ",DATEDIF(الشيت!M142,#REF!,"y"))) ->  | O142: 153 | P142: 137 | R142: 8 | S142: 16.5 | T142: 18 | U142: 42.5 | V142: 8.5 | W142: 12.8 | X142: 12 | Y142: 33.3 | Z142: 4.5 | AA142: 7.6 | AB142: 8.8 | AC142: 20.9 | AD142: 7 | AE142: 15 | AF142: 15 | AG142: 37 | AH142: 3 | AI142: 2 | AJ142: 10 | AK142: 15 | AL142: 3 | AM142: 4 | AN142: 7 | AO142: 5 | AP142: 5 | AQ142: 10 | AR142: 6 | AS142: 7 | AT142: 13 | AU142: 14 | AV142: 16 | AW142: 30 | AX142: 8 | AY142: 15 | AZ142: 18.5 | BA142: 41.5 | BB142: 9 | BC142: 18.5 | BD142: 18 | BE142: 45.5 | BF142: 8 | BG142: 19 | BH142: 17 | BI142: 44 | BJ142: 9 | BK142: 18 | BL142: 18 | BM142: 45 | BN142: 8 | BO142: 19 | BP142: 18 | BQ142: 45 | BR142: 8.5 | BS142: 17 | BT142: 14.5 | BU142: 40 | BV142: 9 | BW142: 16 | BX142: 9 | BY142: 34 | BZ142: 186.4 | CA142: 428.7 | CB142: 4 | CC142: 8 | CD142: 8 | CE142: 20 | CF142: 4 | CG142: 8 | CH142: 8 | CI142: 20 | CJ142: جيد | CK142: ناجح | CL142: =IF(F142="","",IF(CN142=0,RANK($CA142,$CA$10:$CA$599)+COUNTIF(CA$10:CA142,CA142)-1,IF(CN142>=$CO$8,"جميع المواد",CONCATENATE(DH142,DI142,DJ142,DK142,DL142,DM142,DN142,DO142,DP142,DQ142,DR142,DS142,DT142,DU142,DV142,DW142)))) -> 35 | CM142: =IF(F142="","",IF(CN142=0,RANK($CA142,$CA$10:$CA$599)+COUNTIF(CA$10:CA142,CA142)-"1","")) -> 35 | CN142: 0 | CO142: 0 | CP142: 0 | CQ142: 0 | CR142: 0 | CS142: 0 | CT142: 0 | CU142: 0 | CV142: 0 | CW142: 0 | CX142: 0 | CY142: 0 | CZ142: 0 | DA142: 0 | DB142: 0 | DC142: 0 | DD142: 0
B143: ناجح | C143: 85 | D143: 134 | E143: 53 | F143: طالب تجارة 53 | H143: 1/53 | I143: مستجد | J143: أنثي | K143: مسلم | L143: 30312151403243 | M143: 2003-12-15 | N143: =IF(الشيت!M143="","",CONCATENATE(DATEDIF(الشيت!M143,#REF!,"md")," - ",DATEDIF(الشيت!M143,#REF!,"ym")," - ",DATEDIF(الشيت!M143,#REF!,"y"))) ->  | O143: 153 | P143: 137 | R143: 8 | S143: 14.5 | T143: 13.5 | U143: 36 | V143: 8.5 | W143: 11.2 | X143: 10 | Y143: 29.7 | Z143: 4.5 | AA143: 8 | AB143: 8.4 | AC143: 20.9 | AD143: 7 | AE143: 14 | AF143: 16 | AG143: 37 | AH143: 3 | AI143: 3 | AJ143: 9 | AK143: 15 | AL143: 2.5 | AM143: 4.5 | AN143: 7 | AO143: 5 | AP143: 6 | AQ143: 11 | AR143: 6 | AS143: 7 | AT143: 13 | AU143: 13.5 | AV143: 17.5 | AW143: 31 | AX143: 8 | AY143: 12 | AZ143: 14.5 | BA143: 34.5 | BB143: 8.5 | BC143: 17 | BD143: 14 | BE143: 39.5 | BF143: 8 | BG143: 19 | BH143: 18 | BI143: 45 | BJ143: 9 | BK143: 19 | BL143: 18 | BM143: 46 | BN143: 8 | BO143: 19 | BP143: 18 | BQ143: 45 | BR143: 8.5 | BS143: 15 | BT143: 14.5 | BU143: 38 | BV143: 9 | BW143: 10 | BX143: 9 | BY143: 28 | BZ143: 172.7 | CA143: 400.6 | CB143: 4 | CC143: 8 | CD143: 8 | CE143: 20 | CF143: 4 | CG143: 8 | CH143: 8 | CI143: 20 | CJ143: جيد | CK143: ناجح | CL143: =IF(F143="","",IF(CN143=0,RANK($CA143,$CA$10:$CA$599)+COUNTIF(CA$10:CA143,CA143)-1,IF(CN143>=$CO$8,"جميع المواد",CONCATENATE(DH143,DI143,DJ143,DK143,DL143,DM143,DN143,DO143,DP143,DQ143,DR143,DS143,DT143,DU143,DV143,DW143)))) -> 85 | CM143: =IF(F143="","",IF(CN143=0,RANK($CA143,$CA$10:$CA$599)+COUNTIF(CA$10:CA143,CA143)-"1","")) -> 85 | CN143: 0 | CO143: 0 | CP143: 0 | CQ143: 0 | CR143: 0 | CS143: 0 | CT143: 0 | CU143: 0 | CV143: 0 | CW143: 0 | CX143: 0 | CY143: 0 | CZ143: 0 | DA143: 0 | DB143: 0 | DC143: 0 | DD143: 0
B144: ناجح | C144: 8 | D144: 135 | E144: 53 | F144: طالب تجارة 53 | H144: 1/53 | I144: مستجد | J144: أنثي | K144: مسلم | L144: 30312151403243 | M144: 2003-12-15 | N144: =IF(الشيت!M144="","",CONCATENATE(DATEDIF(الشيت!M144,#REF!,"md")," - ",DATEDIF(الشيت!M144,#REF!,"ym")," - ",DATEDIF(الشيت!M144,#REF!,"y"))) ->  | O144: 153 | P144: 137 | R144: 8 | S144: 15.5 | T144: 16.5 | U144: 40 | V144: 8.5 | W144: 13.6 | X144: 13.2 | Y144: 35.3 | Z144: 4.5 | AA144: 8.4 | AB144: 8.8 | AC144: 21.7 | AD144: 7 | AE144: 16 | AF144: 16 | AG144: 39 | AH144: 5.5 | AI144: 10 | AJ144: 9 | AK144: 24.5 | AL144: 3 | AM144: 4.5 | AN144: 7.5 | AO144: 6 | AP144: 6 | AQ144: 12 | AR144: 6 | AS144: 7 | AT144: 13 | AU144: 15 | AV144: 17.5 | AW144: 32.5 | AX144: 8 | AY144: 16.5 | AZ144: 16 | BA144: 40.5 | BB144: 8.5 | BC144: 19 | BD144: 16 | BE144: 43.5 | BF144: 8 | BG144: 20 | BH144: 19 | BI144: 47 | BJ144: 9 | BK144: 19 | BL144: 17 | BM144: 45 | BN144: 8 | BO144: 20 | BP144: 18 | BQ144: 46 | BR144: 8.5 | BS144: 17.5 | BT144: 16 | BU144: 42 | BV144: 9 | BW144: 18 | BX144: 12.5 | BY144: 39.5 | BZ144: 205.5 | CA144: 450.5 | CB144: 4 | CC144: 8 | CD144: 8 | CE144: 20 | CF144: 4 | CG144: 8 | CH144: 8 | CI144: 20 | CJ144: جيد جدا | CK144: ناجح | CL144: =IF(F144="","",IF(CN144=0,RANK($CA144,$CA$10:$CA$599)+COUNTIF(CA$10:CA144,CA144)-1,IF(CN144>=$CO$8,"جميع المواد",CONCATENATE(DH144,DI144,DJ144,DK144,DL144,DM144,DN144,DO144,DP144,DQ144,DR144,DS144,DT144,DU144,DV144,DW144)))) -> 8 | CM144: =IF(F144="","",IF(CN144=0,RANK($CA144,$CA$10:$CA$599)+COUNTIF(CA$10:CA144,CA144)-"1","")) -> 8 | CN144: 0 | CO144: 0 | CP144: 0 | CQ144: 0 | CR144: 0 | CS144: 0 | CT144: 0 | CU144: 0 | CV144: 0 | CW144: 0 | CX144: 0 | CY144: 0 | CZ144: 0 | DA144: 0 | DB144: 0 | DC144: 0 | DD144: 0
B145: ناجح | C145: 6 | D145: 136 | E145: 53 | F145: طالب تجارة 53 | H145: 1/53 | I145: مستجد | J145: أنثي | K145: مسلم | L145: 30312151403243 | M145: 2003-12-15 | N145: =IF(الشيت!M145="","",CONCATENATE(DATEDIF(الشيت!M145,#REF!,"md")," - ",DATEDIF(الشيت!M145,#REF!,"ym")," - ",DATEDIF(الشيت!M145,#REF!,"y"))) ->  | O145: 153 | P145: 137 | R145: 8 | S145: 16.5 | T145: 18 | U145: 42.5 | V145: 8.5 | W145: 14 | X145: 12 | Y145: 34.5 | Z145: 4.5 | AA145: 7.6 | AB145: 10 | AC145: 22.1 | AD145: 7 | AE145: 16 | AF145: 16 | AG145: 39 | AH145: 3 | AI145: 6 | AJ145: 9.5 | AK145: 18.5 | AL145: 3 | AM145: 4.5 | AN145: 7.5 | AO145: 6 | AP145: 6 | AQ145: 12 | AR145: 5 | AS145: 7 | AT145: 12 | AU145: 14 | AV145: 17.5 | AW145: 31.5 | AX145: 8 | AY145: 18 | AZ145: 20 | BA145: 46 | BB145: 8.5 | BC145: 19 | BD145: 17 | BE145: 44.5 | BF145: 8 | BG145: 20 | BH145: 19 | BI145: 47 | BJ145: 9 | BK145: 19 | BL145: 18 | BM145: 46 | BN145: 8 | BO145: 20 | BP145: 17 | BQ145: 45 | BR145: 8.5 | BS145: 17.5 | BT145: 18 | BU145: 44 | BV145: 9 | BW145: 18 | BX145: 15.5 | BY145: 42.5 | BZ145: 203.6 | CA145: 458.1 | CB145: 4 | CC145: 8 | CD145: 8 | CE145: 20 | CF145: 4 | CG145: 8 | CH145: 8 | CI145: 20 | CJ145: جيد جدا | CK145: ناجح | CL145: =IF(F145="","",IF(CN145=0,RANK($CA145,$CA$10:$CA$599)+COUNTIF(CA$10:CA145,CA145)-1,IF(CN145>=$CO$8,"جميع المواد",CONCATENATE(DH145,DI145,DJ145,DK145,DL145,DM145,DN145,DO145,DP145,DQ145,DR145,DS145,DT145,DU145,DV145,DW145)))) -> 6 | CM145: =IF(F145="","",IF(CN145=0,RANK($CA145,$CA$10:$CA$599)+COUNTIF(CA$10:CA145,CA145)-"1","")) -> 6 | CN145: 0 | CO145: 0 | CP145: 0 | CQ145: 0 | CR145: 0 | CS145: 0 | CT145: 0 | CU145: 0 | CV145: 0 | CW145: 0 | CX145: 0 | CY145: 0 | CZ145: 0 | DA145: 0 | DB145: 0 | DC145: 0 | DD145: 0
B146: ناجح | C146: 157 | D146: 137 | E146: 53 | F146: طالب تجارة 53 | H146: 1/53 | I146: مستجد | J146: أنثي | K146: مسلم | L146: 30312151403243 | M146: 2003-12-15 | N146: =IF(الشيت!M146="","",CONCATENATE(DATEDIF(الشيت!M146,#REF!,"md")," - ",DATEDIF(الشيت!M146,#REF!,"ym")," - ",DATEDIF(الشيت!M146,#REF!,"y"))) ->  | O146: 153 | P146: 137 | R146: 8 | S146: 9.5 | T146: 10 | U146: 27.5 | V146: 8.5 | W146: 14 | X146: 9.2 | Y146: 31.7 | Z146: 4.5 | AA146: 8.4 | AB146: 8.4 | AC146: 21.3 | AD146: 7 | AE146: 15 | AF146: 14 | AG146: 36 | AH146: 3 | AI146: 5.5 | AJ146: 6.5 | AK146: 15 | AL146: 2.5 | AM146: 4 | AN146: 6.5 | AO146: 5 | AP146: 6 | AQ146: 11 | AR146: 6 | AS146: 7 | AT146: 13 | AU146: 13.5 | AV146: 17 | AW146: 30.5 | AX146: 8 | AY146: 12 | AZ146: 10 | BA146: 30 | BB146: 9 | BC146: 18 | BD146: 7 | BE146: 34 | BF146: 8 | BG146: 18.5 | BH146: 17 | BI146: 43.5 | BJ146: 9 | BK146: 19 | BL146: 15 | BM146: 43 | BN146: 8 | BO146: 18 | BP146: 17 | BQ146: 43 | BR146: 9 | BS146: 9.5 | BT146: 14 | BU146: 32.5 | BV146: 9 | BW146: 8.5 | BX146: 5 | BY146: 22.5 | BZ146: 166.9 | CA146: 367.5 | CB146: 4 | CC146: 8 | CD146: 8 | CE146: 20 | CF146: 4 | CG146: 8 | CH146: 8 | CI146: 20 | CJ146: جيد | CK146: ناجح | CL146: =IF(F146="","",IF(CN146=0,RANK($CA146,$CA$10:$CA$599)+COUNTIF(CA$10:CA146,CA146)-1,IF(CN146>=$CO$8,"جميع المواد",CONCATENATE(DH146,DI146,DJ146,DK146,DL146,DM146,DN146,DO146,DP146,DQ146,DR146,DS146,DT146,DU146,DV146,DW146)))) -> 157 | CM146: =IF(F146="","",IF(CN146=0,RANK($CA146,$CA$10:$CA$599)+COUNTIF(CA$10:CA146,CA146)-"1","")) -> 157 | CN146: 0 | CO146: 0 | CP146: 0 | CQ146: 0 | CR146: 0 | CS146: 0 | CT146: 0 | CU146: 0 | CV146: 0 | CW146: 0 | CX146: 0 | CY146: 0 | CZ146: 0 | DA146: 0 | DB146: 0 | DC146: 0 | DD146: 0
B147: ناجح | C147: 14 | D147: 138 | E147: 53 | F147: طالب تجارة 53 | H147: 1/53 | I147: مستجد | J147: أنثي | K147: مسلم | L147: 30312151403243 | M147: 2003-12-15 | N147: =IF(الشيت!M147="","",CONCATENATE(DATEDIF(الشيت!M147,#REF!,"md")," - ",DATEDIF(الشيت!M147,#REF!,"ym")," - ",DATEDIF(الشيت!M147,#REF!,"y"))) ->  | O147: 153 | P147: 137 | R147: 8 | S147: 14.5 | T147: 17.5 | U147: 40 | V147: 8.5 | W147: 14 | X147: 12.4 | Y147: 34.9 | Z147: 5 | AA147: 8.8 | AB147: 9.6 | AC147: 23.4 | AD147: 7 | AE147: 16 | AF147: 16 | AG147: 39 | AH147: 3 | AI147: 10.5 | AJ147: 8.5 | AK147: 22 | AL147: 3 | AM147: 4.5 | AN147: 7.5 | AO147: 5 | AP147: 6 | AQ147: 11 | AR147: 6 | AS147: 8 | AT147: 14 | AU147: 14 | AV147: 18.5 | AW147: 32.5 | AX147: 8 | AY147: 16 | AZ147: 15 | BA147: 39 | BB147: 9 | BC147: 18 | BD147: 16 | BE147: 43 | BF147: 8 | BG147: 20 | BH147: 17 | BI147: 45 | BJ147: 9 | BK147: 19 | BL147: 18 | BM147: 46 | BN147: 8 | BO147: 20 | BP147: 17 | BQ147: 45 | BR147: 9 | BS147: 19 | BT147: 14 | BU147: 42 | BV147: 9 | BW147: 17 | BX147: 13.5 | BY147: 39.5 | BZ147: 203.8 | CA147: 446.3 | CB147: 4 | CC147: 8 | CD147: 8 | CE147: 20 | CF147: 4 | CG147: 8 | CH147: 8 | CI147: 20 | CJ147: جيد جدا | CK147: ناجح | CL147: =IF(F147="","",IF(CN147=0,RANK($CA147,$CA$10:$CA$599)+COUNTIF(CA$10:CA147,CA147)-1,IF(CN147>=$CO$8,"جميع المواد",CONCATENATE(DH147,DI147,DJ147,DK147,DL147,DM147,DN147,DO147,DP147,DQ147,DR147,DS147,DT147,DU147,DV147,DW147)))) -> 14 | CM147: =IF(F147="","",IF(CN147=0,RANK($CA147,$CA$10:$CA$599)+COUNTIF(CA$10:CA147,CA147)-"1","")) -> 14 | CN147: 0 | CO147: 0 | CP147: 0 | CQ147: 0 | CR147: 0 | CS147: 0 | CT147: 0 | CU147: 0 | CV147: 0 | CW147: 0 | CX147: 0 | CY147: 0 | CZ147: 0 | DA147: 0 | DB147: 0 | DC147: 0 | DD147: 0
B148: ناجح | C148: 3 | D148: 139 | E148: 53 | F148: طالب تجارة 53 | H148: 1/53 | I148: مستجد | J148: أنثي | K148: مسلم | L148: 30312151403243 | M148: 2003-12-15 | N148: =IF(الشيت!M148="","",CONCATENATE(DATEDIF(الشيت!M148,#REF!,"md")," - ",DATEDIF(الشيت!M148,#REF!,"ym")," - ",DATEDIF(الشيت!M148,#REF!,"y"))) ->  | O148: 153 | P148: 137 | R148: 8 | S148: 15.5 | T148: 16.5 | U148: 40 | V148: 8.5 | W148: 14.4 | X148: 12.4 | Y148: 35.3 | Z148: 5 | AA148: 8.4 | AB148: 10 | AC148: 23.4 | AD148: 7 | AE148: 16 | AF148: 16 | AG148: 39 | AH148: 3 | AI148: 8.5 | AJ148: 10.5 | AK148: 22 | AL148: 3 | AM148: 4.5 | AN148: 7.5 | AO148: 5 | AP148: 6 | AQ148: 11 | AR148: 5 | AS148: 7 | AT148: 12 | AU148: 13 | AV148: 17.5 | AW148: 30.5 | AX148: 8 | AY148: 17.5 | AZ148: 17.5 | BA148: 43 | BB148: 9 | BC148: 19 | BD148: 17 | BE148: 45 | BF148: 8 | BG148: 20 | BH148: 19 | BI148: 47 | BJ148: 9 | BK148: 19 | BL148: 19 | BM148: 47 | BN148: 8 | BO148: 20 | BP148: 17 | BQ148: 45 | BR148: 9 | BS148: 19.5 | BT148: 17 | BU148: 45.5 | BV148: 9 | BW148: 18.5 | BX148: 18.5 | BY148: 46 | BZ148: 207.3 | CA148: 463.7 | CB148: 4 | CC148: 8 | CD148: 8 | CE148: 20 | CF148: 4 | CG148: 8 | CH148: 8 | CI148: 20 | CJ148: جيد جدا | CK148: ناجح | CL148: =IF(F148="","",IF(CN148=0,RANK($CA148,$CA$10:$CA$599)+COUNTIF(CA$10:CA148,CA148)-1,IF(CN148>=$CO$8,"جميع المواد",CONCATENATE(DH148,DI148,DJ148,DK148,DL148,DM148,DN148,DO148,DP148,DQ148,DR148,DS148,DT148,DU148,DV148,DW148)))) -> 3 | CM148: =IF(F148="","",IF(CN148=0,RANK($CA148,$CA$10:$CA$599)+COUNTIF(CA$10:CA148,CA148)-"1","")) -> 3 | CN148: 0 | CO148: 0 | CP148: 0 | CQ148: 0 | CR148: 0 | CS148: 0 | CT148: 0 | CU148: 0 | CV148: 0 | CW148: 0 | CX148: 0 | CY148: 0 | CZ148: 0 | DA148: 0 | DB148: 0 | DC148: 0 | DD148: 0
B149: ناجح | C149: 2 | D149: 140 | E149: 53 | F149: طالب تجارة 53 | H149: 1/53 | I149: مستجد | J149: أنثي | K149: مسلم | L149: 30312151403243 | M149: 2003-12-15 | N149: =IF(الشيت!M149="","",CONCATENATE(DATEDIF(الشيت!M149,#REF!,"md")," - ",DATEDIF(الشيت!M149,#REF!,"ym")," - ",DATEDIF(الشيت!M149,#REF!,"y"))) ->  | O149: 153 | P149: 137 | R149: 8 | S149: 15 | T149: 16.5 | U149: 39.5 | V149: 8.5 | W149: 14.4 | X149: 12 | Y149: 34.9 | Z149: 4.5 | AA149: 10 | AB149: 9.6 | AC149: 24.1 | AD149: 7 | AE149: 15 | AF149: 16 | AG149: 38 | AH149: 3 | AI149: 10 | AJ149: 10 | AK149: 23 | AL149: 3 | AM149: 4.5 | AN149: 7.5 | AO149: 6 | AP149: 7 | AQ149: 13 | AR149: 6 | AS149: 7 | AT149: 13 | AU149: 15 | AV149: 18.5 | AW149: 33.5 | AX149: 8 | AY149: 18 | AZ149: 19 | BA149: 45 | BB149: 9 | BC149: 19 | BD149: 19 | BE149: 47 | BF149: 8 | BG149: 20 | BH149: 18 | BI149: 46 | BJ149: 9 | BK149: 19 | BL149: 18 | BM149: 46 | BN149: 8 | BO149: 20 | BP149: 16 | BQ149: 44 | BR149: 9 | BS149: 18.5 | BT149: 17 | BU149: 44.5 | BV149: 9 | BW149: 16.5 | BX149: 17 | BY149: 42.5 | BZ149: 208.4 | CA149: 464 | CB149: 4 | CC149: 8 | CD149: 8 | CE149: 20 | CF149: 4 | CG149: 8 | CH149: 8 | CI149: 20 | CJ149: جيد جدا | CK149: ناجح | CL149: =IF(F149="","",IF(CN149=0,RANK($CA149,$CA$10:$CA$599)+COUNTIF(CA$10:CA149,CA149)-1,IF(CN149>=$CO$8,"جميع المواد",CONCATENATE(DH149,DI149,DJ149,DK149,DL149,DM149,DN149,DO149,DP149,DQ149,DR149,DS149,DT149,DU149,DV149,DW149)))) -> 2 | CM149: =IF(F149="","",IF(CN149=0,RANK($CA149,$CA$10:$CA$599)+COUNTIF(CA$10:CA149,CA149)-"1","")) -> 2 | CN149: 0 | CO149: 0 | CP149: 0 | CQ149: 0 | CR149: 0 | CS149: 0 | CT149: 0 | CU149: 0 | CV149: 0 | CW149: 0 | CX149: 0 | CY149: 0 | CZ149: 0 | DA149: 0 | DB149: 0 | DC149: 0 | DD149: 0
B150: دور ثان | D150: 141 | E150: 53 | F150: طالب تجارة 53 | H150: 1/53 | I150: مستجد | J150: أنثي | K150: مسلم | L150: 30312151403243 | M150: 2003-12-15 | N150: =IF(الشيت!M150="","",CONCATENATE(DATEDIF(الشيت!M150,#REF!,"md")," - ",DATEDIF(الشيت!M150,#REF!,"ym")," - ",DATEDIF(الشيت!M150,#REF!,"y"))) ->  | O150: 153 | P150: 137 | R150: 9 | S150: 17 | T150: 15 | U150: 41 | V150: 8.5 | W150: 13.6 | X150: 9.2 | Y150: 31.3 | Z150: 4.5 | AA150: 4.8 | AB150: 7.6 | AC150: 16.9 | AD150: 7 | AE150: 16 | AF150: 16 | AG150: 39 | AH150: 3.5 | AI150: 3.5 | AJ150: 10 | AK150: 17 | AL150: 3 | AM150: 4.5 | AN150: 7.5 | AO150: 5 | AP150: 6 | AQ150: 11 | AR150: 6 | AS150: 8 | AT150: 14 | AU150: 14 | AV150: 18.5 | AW150: 32.5 | AX150: 8 | AY150: 9 | AZ150: 2 | BA150: 19 | BB150: 9 | BC150: 18.5 | BD150: 14 | BE150: 41.5 | BF150: 8 | BG150: 19.5 | BH150: 13 | BI150: 40.5 | BJ150: 9 | BK150: 19 | BL150: 18 | BM150: 46 | BN150: 8 | BO150: 20 | BP150: 17 | BQ150: 45 | BR150: 9 | BS150: 16 | BT150: 12.5 | BU150: 37.5 | BV150: 9 | BW150: 11 | BX150: 5 | BY150: 25 | BZ150: 178.9 | CA150: 387.2 | CB150: 4 | CC150: 8 | CD150: 8 | CE150: 20 | CF150: 4 | CG150: 8 | CH150: 8 | CI150: 20 | CJ150: جيد | CK150: دور ثان | CL150: =IF(F150="","",IF(CN150=0,RANK($CA150,$CA$10:$CA$599)+COUNTIF(CA$10:CA150,CA150)-1,IF(CN150>=$CO$8,"جميع المواد",CONCATENATE(DH150,DI150,DJ150,DK150,DL150,DM150,DN150,DO150,DP150,DQ150,DR150,DS150,DT150,DU150,DV150,DW150)))) -> محاسبة مالية | CM150: =IF(F150="","",IF(CN150=0,RANK($CA150,$CA$10:$CA$599)+COUNTIF(CA$10:CA150,CA150)-"1","")) ->  | CN150: 1 | CO150: 0 | CP150: 0 | CQ150: 0 | CR150: 0 | CS150: 0 | CT150: 0 | CU150: 1 | CV150: 0 | CW150: 0 | CX150: 0 | CY150: 0 | CZ150: 0 | DA150: 0 | DB150: 0 | DC150: 0 | DD150: 0 | DN150: محاسبة مالية | DY150: محاسبة مالية
B151: ناجح | C151: 15 | D151: 142 | E151: 53 | F151: طالب تجارة 53 | H151: 1/53 | I151: مستجد | J151: أنثي | K151: مسلم | L151: 30312151403243 | M151: 2003-12-15 | N151: =IF(الشيت!M151="","",CONCATENATE(DATEDIF(الشيت!M151,#REF!,"md")," - ",DATEDIF(الشيت!M151,#REF!,"ym")," - ",DATEDIF(الشيت!M151,#REF!,"y"))) ->  | O151: 153 | P151: 137 | R151: 8 | S151: 18 | T151: 17.5 | U151: 43.5 | V151: 8.5 | W151: 14.4 | X151: 11.6 | Y151: 34.5 | Z151: 4.5 | AA151: 8.8 | AB151: 9.2 | AC151: 22.5 | AD151: 7 | AE151: 16 | AF151: 16 | AG151: 39 | AH151: 3.5 | AI151: 7 | AJ151: 10.5 | AK151: 21 | AL151: 3 | AM151: 4.5 | AN151: 7.5 | AO151: 5 | AP151: 6 | AQ151: 11 | AR151: 5 | AS151: 9 | AT151: 14 | AU151: 13 | AV151: 19.5 | AW151: 32.5 | AX151: 8 | AY151: 15.5 | AZ151: 15 | BA151: 38.5 | BB151: 9 | BC151: 19 | BD151: 16 | BE151: 44 | BF151: 8 | BG151: 19 | BH151: 17 | BI151: 44 | BJ151: 9 | BK151: 19 | BL151: 18 | BM151: 46 | BN151: 8 | BO151: 20 | BP151: 17 | BQ151: 45 | BR151: 8.5 | BS151: 17.5 | BT151: 14 | BU151: 40 | BV151: 9 | BW151: 15 | BX151: 15.5 | BY151: 39.5 | BZ151: 200.2 | CA151: 445 | CB151: 4 | CC151: 8 | CD151: 8 | CE151: 20 | CF151: 4 | CG151: 8 | CH151: 8 | CI151: 20 | CJ151: جيد جدا | CK151: ناجح | CL151: =IF(F151="","",IF(CN151=0,RANK($CA151,$CA$10:$CA$599)+COUNTIF(CA$10:CA151,CA151)-1,IF(CN151>=$CO$8,"جميع المواد",CONCATENATE(DH151,DI151,DJ151,DK151,DL151,DM151,DN151,DO151,DP151,DQ151,DR151,DS151,DT151,DU151,DV151,DW151)))) -> 15 | CM151: =IF(F151="","",IF(CN151=0,RANK($CA151,$CA$10:$CA$599)+COUNTIF(CA$10:CA151,CA151)-"1","")) -> 15 | CN151: 0 | CO151: 0 | CP151: 0 | CQ151: 0 | CR151: 0 | CS151: 0 | CT151: 0 | CU151: 0 | CV151: 0 | CW151: 0 | CX151: 0 | CY151: 0 | CZ151: 0 | DA151: 0 | DB151: 0 | DC151: 0 | DD151: 0
B152: ناجح | C152: 125 | D152: 143 | E152: 53 | F152: طالب تجارة 53 | H152: 1/53 | I152: مستجد | J152: أنثي | K152: مسلم | L152: 30312151403243 | M152: 2003-12-15 | N152: =IF(الشيت!M152="","",CONCATENATE(DATEDIF(الشيت!M152,#REF!,"md")," - ",DATEDIF(الشيت!M152,#REF!,"ym")," - ",DATEDIF(الشيت!M152,#REF!,"y"))) ->  | O152: 153 | P152: 137 | R152: 8 | S152: 8 | T152: 10.5 | U152: 26.5 | V152: 8.5 | W152: 14.4 | X152: 12 | Y152: 34.9 | Z152: 4.5 | AA152: 7.2 | AB152: 8.8 | AC152: 20.5 | AD152: 7 | AE152: 16 | AF152: 13 | AG152: 36 | AH152: 3 | AI152: 1.5 | AJ152: 10.5 | AK152: 15 | AL152: 2.5 | AM152: 4.5 | AN152: 7 | AO152: 6 | AP152: 6 | AQ152: 12 | AR152: 6 | AS152: 7 | AT152: 13 | AU152: 14.5 | AV152: 17.5 | AW152: 32 | AX152: 8 | AY152: 13.5 | AZ152: 15.5 | BA152: 37 | BB152: 9 | BC152: 18 | BD152: 11 | BE152: 38 | BF152: 8 | BG152: 17 | BH152: 16 | BI152: 41 | BJ152: 9 | BK152: 16 | BL152: 15 | BM152: 40 | BN152: 8 | BO152: 18 | BP152: 17 | BQ152: 43 | BR152: 9 | BS152: 14.5 | BT152: 12.5 | BU152: 36 | BV152: 9 | BW152: 10 | BX152: 11 | BY152: 30 | BZ152: 166.1 | CA152: 386.9 | CB152: 4 | CC152: 8 | CD152: 8 | CE152: 20 | CF152: 4 | CG152: 8 | CH152: 8 | CI152: 20 | CJ152: جيد | CK152: ناجح | CL152: =IF(F152="","",IF(CN152=0,RANK($CA152,$CA$10:$CA$599)+COUNTIF(CA$10:CA152,CA152)-1,IF(CN152>=$CO$8,"جميع المواد",CONCATENATE(DH152,DI152,DJ152,DK152,DL152,DM152,DN152,DO152,DP152,DQ152,DR152,DS152,DT152,DU152,DV152,DW152)))) -> 125 | CM152: =IF(F152="","",IF(CN152=0,RANK($CA152,$CA$10:$CA$599)+COUNTIF(CA$10:CA152,CA152)-"1","")) -> 125 | CN152: 0 | CO152: 0 | CP152: 0 | CQ152: 0 | CR152: 0 | CS152: 0 | CT152: 0 | CU152: 0 | CV152: 0 | CW152: 0 | CX152: 0 | CY152: 0 | CZ152: 0 | DA152: 0 | DB152: 0 | DC152: 0 | DD152: 0
B153: ناجح | C153: 1 | D153: 144 | E153: 53 | F153: طالب تجارة 53 | H153: 1/53 | I153: مستجد | J153: أنثي | K153: مسلم | L153: 30312151403243 | M153: 2003-12-15 | N153: =IF(الشيت!M153="","",CONCATENATE(DATEDIF(الشيت!M153,#REF!,"md")," - ",DATEDIF(الشيت!M153,#REF!,"ym")," - ",DATEDIF(الشيت!M153,#REF!,"y"))) ->  | O153: 153 | P153: 137 | R153: 9 | S153: 17.5 | T153: 18.5 | U153: 45 | V153: 8.5 | W153: 15.2 | X153: 13.6 | Y153: 37.3 | Z153: 5 | AA153: 8.4 | AB153: 8.8 | AC153: 22.2 | AD153: 7 | AE153: 16 | AF153: 16 | AG153: 39 | AH153: 3.5 | AI153: 10 | AJ153: 11.5 | AK153: 25 | AL153: 3 | AM153: 4.5 | AN153: 7.5 | AO153: 5 | AP153: 6 | AQ153: 11 | AR153: 5 | AS153: 9 | AT153: 14 | AU153: 13 | AV153: 19.5 | AW153: 32.5 | AX153: 8 | AY153: 18.5 | AZ153: 19 | BA153: 45.5 | BB153: 9 | BC153: 19 | BD153: 18 | BE153: 46 | BF153: 8 | BG153: 20 | BH153: 17 | BI153: 45 | BJ153: 9 | BK153: 19 | BL153: 19 | BM153: 47 | BN153: 8 | BO153: 20 | BP153: 18 | BQ153: 46 | BR153: 9 | BS153: 19.5 | BT153: 17.5 | BU153: 46 | BV153: 9 | BW153: 19 | BX153: 17 | BY153: 45 | BZ153: 213.1 | CA153: 475.5 | CB153: 4 | CC153: 8 | CD153: 8 | CE153: 20 | CF153: 4 | CG153: 8 | CH153: 8 | CI153: 20 | CJ153: جيد جدا | CK153: ناجح | CL153: =IF(F153="","",IF(CN153=0,RANK($CA153,$CA$10:$CA$599)+COUNTIF(CA$10:CA153,CA153)-1,IF(CN153>=$CO$8,"جميع المواد",CONCATENATE(DH153,DI153,DJ153,DK153,DL153,DM153,DN153,DO153,DP153,DQ153,DR153,DS153,DT153,DU153,DV153,DW153)))) -> 1 | CM153: =IF(F153="","",IF(CN153=0,RANK($CA153,$CA$10:$CA$599)+COUNTIF(CA$10:CA153,CA153)-"1","")) -> 1 | CN153: 0 | CO153: 0 | CP153: 0 | CQ153: 0 | CR153: 0 | CS153: 0 | CT153: 0 | CU153: 0 | CV153: 0 | CW153: 0 | CX153: 0 | CY153: 0 | CZ153: 0 | DA153: 0 | DB153: 0 | DC153: 0 | DD153: 0
B154: ناجح | C154: 5 | D154: 145 | E154: 53 | F154: طالب تجارة 53 | H154: 1/53 | I154: مستجد | J154: أنثي | K154: مسلم | L154: 30312151403243 | M154: 2003-12-15 | N154: =IF(الشيت!M154="","",CONCATENATE(DATEDIF(الشيت!M154,#REF!,"md")," - ",DATEDIF(الشيت!M154,#REF!,"ym")," - ",DATEDIF(الشيت!M154,#REF!,"y"))) ->  | O154: 153 | P154: 137 | R154: 9 | S154: 16 | T154: 19 | U154: 44 | V154: 8.5 | W154: 14.8 | X154: 12.4 | Y154: 35.7 | Z154: 5 | AA154: 8.8 | AB154: 9.6 | AC154: 23.4 | AD154: 7 | AE154: 16 | AF154: 16 | AG154: 39 | AH154: 5.5 | AI154: 9.5 | AJ154: 9.5 | AK154: 24.5 | AL154: 3 | AM154: 4.5 | AN154: 7.5 | AO154: 6 | AP154: 6 | AQ154: 12 | AR154: 5 | AS154: 8 | AT154: 13 | AU154: 14 | AV154: 18.5 | AW154: 32.5 | AX154: 8 | AY154: 18.5 | AZ154: 19 | BA154: 45.5 | BB154: 9 | BC154: 18 | BD154: 17 | BE154: 44 | BF154: 8 | BG154: 18 | BH154: 14 | BI154: 40 | BJ154: 9 | BK154: 19 | BL154: 15 | BM154: 43 | BN154: 8 | BO154: 20 | BP154: 18 | BQ154: 46 | BR154: 9.5 | BS154: 19 | BT154: 17.5 | BU154: 46 | BV154: 9 | BW154: 17.5 | BX154: 17.5 | BY154: 44 | BZ154: 207.1 | CA154: 461.6 | CB154: 4 | CC154: 8 | CD154: 8 | CE154: 20 | CF154: 4 | CG154: 8 | CH154: 8 | CI154: 20 | CJ154: جيد جدا | CK154: ناجح | CL154: =IF(F154="","",IF(CN154=0,RANK($CA154,$CA$10:$CA$599)+COUNTIF(CA$10:CA154,CA154)-1,IF(CN154>=$CO$8,"جميع المواد",CONCATENATE(DH154,DI154,DJ154,DK154,DL154,DM154,DN154,DO154,DP154,DQ154,DR154,DS154,DT154,DU154,DV154,DW154)))) -> 5 | CM154: =IF(F154="","",IF(CN154=0,RANK($CA154,$CA$10:$CA$599)+COUNTIF(CA$10:CA154,CA154)-"1","")) -> 5 | CN154: 0 | CO154: 0 | CP154: 0 | CQ154: 0 | CR154: 0 | CS154: 0 | CT154: 0 | CU154: 0 | CV154: 0 | CW154: 0 | CX154: 0 | CY154: 0 | CZ154: 0 | DA154: 0 | DB154: 0 | DC154: 0 | DD154: 0
B155: ناجح | C155: 37 | D155: 146 | E155: 53 | F155: طالب تجارة 53 | H155: 1/53 | I155: مستجد | J155: أنثي | K155: مسلم | L155: 30312151403243 | M155: 2003-12-15 | N155: =IF(الشيت!M155="","",CONCATENATE(DATEDIF(الشيت!M155,#REF!,"md")," - ",DATEDIF(الشيت!M155,#REF!,"ym")," - ",DATEDIF(الشيت!M155,#REF!,"y"))) ->  | O155: 153 | P155: 137 | R155: 8 | S155: 14.5 | T155: 13.5 | U155: 36 | V155: 8.5 | W155: 15.2 | X155: 11.2 | Y155: 34.9 | Z155: 4.5 | AA155: 7.2 | AB155: 9.6 | AC155: 21.3 | AD155: 7 | AE155: 14 | AF155: 16 | AG155: 37 | AH155: 3 | AI155: 2 | AJ155: 10 | AK155: 15 | AL155: 2.5 | AM155: 4.5 | AN155: 7 | AO155: 6 | AP155: 6 | AQ155: 12 | AR155: 5 | AS155: 9 | AT155: 14 | AU155: 13.5 | AV155: 19.5 | AW155: 33 | AX155: 8 | AY155: 16.5 | AZ155: 13.5 | BA155: 38 | BB155: 9 | BC155: 19 | BD155: 16 | BE155: 44 | BF155: 8 | BG155: 17.5 | BH155: 16 | BI155: 41.5 | BJ155: 9 | BK155: 19 | BL155: 16 | BM155: 44 | BN155: 8 | BO155: 20 | BP155: 17 | BQ155: 45 | BR155: 9 | BS155: 18.5 | BT155: 17.5 | BU155: 45 | BV155: 9 | BW155: 15 | BX155: 13 | BY155: 37 | BZ155: 190.4 | CA155: 426.7 | CB155: 4 | CC155: 8 | CD155: 8 | CE155: 20 | CF155: 4 | CG155: 8 | CH155: 8 | CI155: 20 | CJ155: جيد | CK155: ناجح | CL155: =IF(F155="","",IF(CN155=0,RANK($CA155,$CA$10:$CA$599)+COUNTIF(CA$10:CA155,CA155)-1,IF(CN155>=$CO$8,"جميع المواد",CONCATENATE(DH155,DI155,DJ155,DK155,DL155,DM155,DN155,DO155,DP155,DQ155,DR155,DS155,DT155,DU155,DV155,DW155)))) -> 37 | CM155: =IF(F155="","",IF(CN155=0,RANK($CA155,$CA$10:$CA$599)+COUNTIF(CA$10:CA155,CA155)-"1","")) -> 37 | CN155: 0 | CO155: 0 | CP155: 0 | CQ155: 0 | CR155: 0 | CS155: 0 | CT155: 0 | CU155: 0 | CV155: 0 | CW155: 0 | CX155: 0 | CY155: 0 | CZ155: 0 | DA155: 0 | DB155: 0 | DC155: 0 | DD155: 0
B156: ناجح | C156: 25 | D156: 147 | E156: 53 | F156: طالب تجارة 53 | H156: 1/53 | I156: مستجد | J156: أنثي | K156: مسلم | L156: 30312151403243 | M156: 2003-12-15 | N156: =IF(الشيت!M156="","",CONCATENATE(DATEDIF(الشيت!M156,#REF!,"md")," - ",DATEDIF(الشيت!M156,#REF!,"ym")," - ",DATEDIF(الشيت!M156,#REF!,"y"))) ->  | O156: 153 | P156: 137 | R156: 8.5 | S156: 12.5 | T156: 16.5 | U156: 37.5 | V156: 8.5 | W156: 14.8 | X156: 11.2 | Y156: 34.5 | Z156: 4.5 | AA156: 7.6 | AB156: 8.8 | AC156: 20.9 | AD156: 7 | AE156: 14 | AF156: 16 | AG156: 37 | AH156: 3 | AI156: 2.5 | AJ156: 9.5 | AK156: 15 | AL156: 3 | AM156: 4.5 | AN156: 7.5 | AO156: 6 | AP156: 6 | AQ156: 12 | AR156: 6 | AS156: 8 | AT156: 14 | AU156: 15 | AV156: 18.5 | AW156: 33.5 | AX156: 8 | AY156: 17.5 | AZ156: 13 | BA156: 38.5 | BB156: 9 | BC156: 19 | BD156: 17 | BE156: 45 | BF156: 8 | BG156: 19 | BH156: 17 | BI156: 44 | BJ156: 9 | BK156: 19 | BL156: 16 | BM156: 44 | BN156: 8 | BO156: 20 | BP156: 17 | BQ156: 45 | BR156: 8.5 | BS156: 18 | BT156: 19 | BU156: 45.5 | BV156: 9 | BW156: 16.5 | BX156: 14 | BY156: 39.5 | BZ156: 192.4 | CA156: 434.9 | CB156: 4 | CC156: 8 | CD156: 8 | CE156: 20 | CF156: 4 | CG156: 8 | CH156: 8 | CI156: 20 | CJ156: جيد | CK156: ناجح | CL156: =IF(F156="","",IF(CN156=0,RANK($CA156,$CA$10:$CA$599)+COUNTIF(CA$10:CA156,CA156)-1,IF(CN156>=$CO$8,"جميع المواد",CONCATENATE(DH156,DI156,DJ156,DK156,DL156,DM156,DN156,DO156,DP156,DQ156,DR156,DS156,DT156,DU156,DV156,DW156)))) -> 25 | CM156: =IF(F156="","",IF(CN156=0,RANK($CA156,$CA$10:$CA$599)+COUNTIF(CA$10:CA156,CA156)-"1","")) -> 25 | CN156: 0 | CO156: 0 | CP156: 0 | CQ156: 0 | CR156: 0 | CS156: 0 | CT156: 0 | CU156: 0 | CV156: 0 | CW156: 0 | CX156: 0 | CY156: 0 | CZ156: 0 | DA156: 0 | DB156: 0 | DC156: 0 | DD156: 0
B157: ناجح | C157: 49 | D157: 148 | E157: 53 | F157: طالب تجارة 53 | H157: 1/53 | I157: مستجد | J157: أنثي | K157: مسلم | L157: 30312151403243 | M157: 2003-12-15 | N157: =IF(الشيت!M157="","",CONCATENATE(DATEDIF(الشيت!M157,#REF!,"md")," - ",DATEDIF(الشيت!M157,#REF!,"ym")," - ",DATEDIF(الشيت!M157,#REF!,"y"))) ->  | O157: 153 | P157: 137 | R157: 8.5 | S157: 9.5 | T157: 19 | U157: 37 | V157: 8.5 | W157: 14.4 | X157: 10.8 | Y157: 33.7 | Z157: 4.5 | AA157: 6 | AB157: 8.8 | AC157: 19.3 | AD157: 7 | AE157: 12 | AF157: 16 | AG157: 35 | AH157: 3 | AI157: 5 | AJ157: 7 | AK157: 15 | AL157: 3 | AM157: 4.5 | AN157: 7.5 | AO157: 6 | AP157: 6 | AQ157: 12 | AR157: 5 | AS157: 8 | AT157: 13 | AU157: 14 | AV157: 18.5 | AW157: 32.5 | AX157: 8 | AY157: 16 | AZ157: 15 | BA157: 39 | BB157: 9 | BC157: 18 | BD157: 15 | BE157: 42 | BF157: 8 | BG157: 18 | BH157: 17 | BI157: 43 | BJ157: 9 | BK157: 19 | BL157: 16 | BM157: 44 | BN157: 8 | BO157: 19 | BP157: 17 | BQ157: 44 | BR157: 9 | BS157: 15.5 | BT157: 17 | BU157: 41.5 | BV157: 9 | BW157: 14.5 | BX157: 14 | BY157: 37.5 | BZ157: 178.9 | CA157: 419.5 | CB157: 4 | CC157: 8 | CD157: 8 | CE157: 20 | CF157: 4 | CG157: 8 | CH157: 8 | CI157: 20 | CJ157: جيد | CK157: ناجح | CL157: =IF(F157="","",IF(CN157=0,RANK($CA157,$CA$10:$CA$599)+COUNTIF(CA$10:CA157,CA157)-1,IF(CN157>=$CO$8,"جميع المواد",CONCATENATE(DH157,DI157,DJ157,DK157,DL157,DM157,DN157,DO157,DP157,DQ157,DR157,DS157,DT157,DU157,DV157,DW157)))) -> 49 | CM157: =IF(F157="","",IF(CN157=0,RANK($CA157,$CA$10:$CA$599)+COUNTIF(CA$10:CA157,CA157)-"1","")) -> 49 | CN157: 0 | CO157: 0 | CP157: 0 | CQ157: 0 | CR157: 0 | CS157: 0 | CT157: 0 | CU157: 0 | CV157: 0 | CW157: 0 | CX157: 0 | CY157: 0 | CZ157: 0 | DA157: 0 | DB157: 0 | DC157: 0 | DD157: 0
B158: ناجح | C158: 22 | D158: 149 | E158: 53 | F158: طالب تجارة 53 | H158: 1/53 | I158: مستجد | J158: أنثي | K158: مسلم | L158: 30312151403243 | M158: 2003-12-15 | N158: =IF(الشيت!M158="","",CONCATENATE(DATEDIF(الشيت!M158,#REF!,"md")," - ",DATEDIF(الشيت!M158,#REF!,"ym")," - ",DATEDIF(الشيت!M158,#REF!,"y"))) ->  | O158: 153 | P158: 137 | R158: 8.5 | S158: 15 | T158: 16.5 | U158: 40 | V158: 8.5 | W158: 15.6 | X158: 11.6 | Y158: 35.7 | Z158: 4.5 | AA158: 6.4 | AB158: 8.8 | AC158: 19.7 | AD158: 7 | AE158: 15 | AF158: 16 | AG158: 38 | AH158: 5.5 | AI158: 9 | AJ158: 9 | AK158: 23.5 | AL158: 3 | AM158: 4.5 | AN158: 7.5 | AO158: 6 | AP158: 6 | AQ158: 12 | AR158: 5 | AS158: 8 | AT158: 13 | AU158: 14 | AV158: 18.5 | AW158: 32.5 | AX158: 8 | AY158: 17 | AZ158: 17.5 | BA158: 42.5 | BB158: 9 | BC158: 18 | BD158: 14 | BE158: 41 | BF158: 8 | BG158: 18 | BH158: 17 | BI158: 43 | BJ158: 9 | BK158: 19 | BL158: 16 | BM158: 44 | BN158: 8 | BO158: 20 | BP158: 17 | BQ158: 45 | BR158: 9 | BS158: 17 | BT158: 16 | BU158: 42 | BV158: 9 | BW158: 13.5 | BX158: 14.5 | BY158: 37 | BZ158: 195.5 | CA158: 438.9 | CB158: 4 | CC158: 8 | CD158: 8 | CE158: 20 | CF158: 4 | CG158: 8 | CH158: 8 | CI158: 20 | CJ158: جيد جدا | CK158: ناجح | CL158: =IF(F158="","",IF(CN158=0,RANK($CA158,$CA$10:$CA$599)+COUNTIF(CA$10:CA158,CA158)-1,IF(CN158>=$CO$8,"جميع المواد",CONCATENATE(DH158,DI158,DJ158,DK158,DL158,DM158,DN158,DO158,DP158,DQ158,DR158,DS158,DT158,DU158,DV158,DW158)))) -> 22 | CM158: =IF(F158="","",IF(CN158=0,RANK($CA158,$CA$10:$CA$599)+COUNTIF(CA$10:CA158,CA158)-"1","")) -> 22 | CN158: 0 | CO158: 0 | CP158: 0 | CQ158: 0 | CR158: 0 | CS158: 0 | CT158: 0 | CU158: 0 | CV158: 0 | CW158: 0 | CX158: 0 | CY158: 0 | CZ158: 0 | DA158: 0 | DB158: 0 | DC158: 0 | DD158: 0
B159: ناجح | C159: 17 | D159: 150 | E159: 53 | F159: طالب تجارة 53 | H159: 1/53 | I159: مستجد | J159: أنثي | K159: مسلم | L159: 30312151403243 | M159: 2003-12-15 | N159: =IF(الشيت!M159="","",CONCATENATE(DATEDIF(الشيت!M159,#REF!,"md")," - ",DATEDIF(الشيت!M159,#REF!,"ym")," - ",DATEDIF(الشيت!M159,#REF!,"y"))) ->  | O159: 153 | P159: 137 | R159: 8 | S159: 16 | T159: 15 | U159: 39 | V159: 8.5 | W159: 14.4 | X159: 12.4 | Y159: 35.3 | Z159: 4.5 | AA159: 9.2 | AB159: 10 | AC159: 23.7 | AD159: 7 | AE159: 15 | AF159: 16 | AG159: 38 | AH159: 3 | AI159: 7.5 | AJ159: 10 | AK159: 20.5 | AL159: 3 | AM159: 4.5 | AN159: 7.5 | AO159: 5 | AP159: 6 | AQ159: 11 | AR159: 6 | AS159: 9 | AT159: 15 | AU159: 14 | AV159: 19.5 | AW159: 33.5 | AX159: 8 | AY159: 15.5 | AZ159: 17 | BA159: 40.5 | BB159: 9 | BC159: 19 | BD159: 14 | BE159: 42 | BF159: 8 | BG159: 20 | BH159: 17 | BI159: 45 | BJ159: 9 | BK159: 19 | BL159: 19 | BM159: 47 | BN159: 8 | BO159: 20 | BP159: 18 | BQ159: 46 | BR159: 9 | BS159: 16.5 | BT159: 16.5 | BU159: 42 | BV159: 9 | BW159: 12 | BX159: 15 | BY159: 36 | BZ159: 195.1 | CA159: 442.5 | CB159: 4 | CC159: 8 | CD159: 8 | CE159: 20 | CF159: 4 | CG159: 8 | CH159: 8 | CI159: 20 | CJ159: جيد | CK159: ناجح | CL159: =IF(F159="","",IF(CN159=0,RANK($CA159,$CA$10:$CA$599)+COUNTIF(CA$10:CA159,CA159)-1,IF(CN159>=$CO$8,"جميع المواد",CONCATENATE(DH159,DI159,DJ159,DK159,DL159,DM159,DN159,DO159,DP159,DQ159,DR159,DS159,DT159,DU159,DV159,DW159)))) -> 17 | CM159: =IF(F159="","",IF(CN159=0,RANK($CA159,$CA$10:$CA$599)+COUNTIF(CA$10:CA159,CA159)-"1","")) -> 17 | CN159: 0 | CO159: 0 | CP159: 0 | CQ159: 0 | CR159: 0 | CS159: 0 | CT159: 0 | CU159: 0 | CV159: 0 | CW159: 0 | CX159: 0 | CY159: 0 | CZ159: 0 | DA159: 0 | DB159: 0 | DC159: 0 | DD159: 0
B160: ناجح | C160: 4 | D160: 151 | E160: 53 | F160: طالب تجارة 53 | H160: 1/53 | I160: مستجد | J160: أنثي | K160: مسلم | L160: 30312151403243 | M160: 2003-12-15 | N160: =IF(الشيت!M160="","",CONCATENATE(DATEDIF(الشيت!M160,#REF!,"md")," - ",DATEDIF(الشيت!M160,#REF!,"ym")," - ",DATEDIF(الشيت!M160,#REF!,"y"))) ->  | O160: 153 | P160: 137 | R160: 8.5 | S160: 16.5 | T160: 17 | U160: 42 | V160: 8.5 | W160: 14 | X160: 12.4 | Y160: 34.9 | Z160: 5 | AA160: 9.2 | AB160: 10 | AC160: 24.2 | AD160: 7 | AE160: 15 | AF160: 16 | AG160: 38 | AH160: 2.5 | AI160: 9 | AJ160: 10 | AK160: 21.5 | AL160: 2.5 | AM160: 4.5 | AN160: 7 | AO160: 5 | AP160: 6 | AQ160: 11 | AR160: 6 | AS160: 8 | AT160: 14 | AU160: 13.5 | AV160: 18.5 | AW160: 32 | AX160: 8 | AY160: 16.5 | AZ160: 17.5 | BA160: 42 | BB160: 9 | BC160: 19 | BD160: 20 | BE160: 48 | BF160: 8 | BG160: 20 | BH160: 17 | BI160: 45 | BJ160: 9 | BK160: 19 | BL160: 19 | BM160: 47 | BN160: 8 | BO160: 20 | BP160: 18 | BQ160: 46 | BR160: 9 | BS160: 18 | BT160: 17 | BU160: 44 | BV160: 9 | BW160: 18.5 | BX160: 16 | BY160: 43.5 | BZ160: 205.7 | CA160: 462.1 | CB160: 4 | CC160: 8 | CD160: 8 | CE160: 20 | CF160: 4 | CG160: 8 | CH160: 8 | CI160: 20 | CJ160: جيد جدا | CK160: ناجح | CL160: =IF(F160="","",IF(CN160=0,RANK($CA160,$CA$10:$CA$599)+COUNTIF(CA$10:CA160,CA160)-1,IF(CN160>=$CO$8,"جميع المواد",CONCATENATE(DH160,DI160,DJ160,DK160,DL160,DM160,DN160,DO160,DP160,DQ160,DR160,DS160,DT160,DU160,DV160,DW160)))) -> 4 | CM160: =IF(F160="","",IF(CN160=0,RANK($CA160,$CA$10:$CA$599)+COUNTIF(CA$10:CA160,CA160)-"1","")) -> 4 | CN160: 0 | CO160: 0 | CP160: 0 | CQ160: 0 | CR160: 0 | CS160: 0 | CT160: 0 | CU160: 0 | CV160: 0 | CW160: 0 | CX160: 0 | CY160: 0 | CZ160: 0 | DA160: 0 | DB160: 0 | DC160: 0 | DD160: 0
B161: ناجح | C161: 7 | D161: 152 | E161: 53 | F161: طالب تجارة 53 | H161: 1/53 | I161: مستجد | J161: أنثي | K161: مسلم | L161: 30312151403243 | M161: 2003-12-15 | N161: =IF(الشيت!M161="","",CONCATENATE(DATEDIF(الشيت!M161,#REF!,"md")," - ",DATEDIF(الشيت!M161,#REF!,"ym")," - ",DATEDIF(الشيت!M161,#REF!,"y"))) ->  | O161: 153 | P161: 137 | R161: 8.5 | S161: 15.5 | T161: 17 | U161: 41 | V161: 8.5 | W161: 14.8 | X161: 12.8 | Y161: 36.1 | Z161: 4.5 | AA161: 9.6 | AB161: 10.4 | AC161: 24.5 | AD161: 7 | AE161: 13 | AF161: 15 | AG161: 35 | AH161: 5.5 | AI161: 9 | AJ161: 10 | AK161: 24.5 | AL161: 3 | AM161: 4.5 | AN161: 7.5 | AO161: 7 | AP161: 6 | AQ161: 13 | AR161: 6 | AS161: 8 | AT161: 14 | AU161: 16 | AV161: 18.5 | AW161: 34.5 | AX161: 8 | AY161: 16.5 | AZ161: 16.5 | BA161: 41 | BB161: 9 | BC161: 19 | BD161: 18 | BE161: 46 | BF161: 8 | BG161: 20 | BH161: 17 | BI161: 45 | BJ161: 9 | BK161: 19 | BL161: 14 | BM161: 42 | BN161: 8 | BO161: 20 | BP161: 16 | BQ161: 44 | BR161: 9 | BS161: 18 | BT161: 17 | BU161: 44 | BV161: 9 | BW161: 17 | BX161: 14.5 | BY161: 40.5 | BZ161: 204.4 | CA161: 454.1 | CB161: 4 | CC161: 8 | CD161: 8 | CE161: 20 | CF161: 4 | CG161: 8 | CH161: 8 | CI161: 20 | CJ161: جيد جدا | CK161: ناجح | CL161: =IF(F161="","",IF(CN161=0,RANK($CA161,$CA$10:$CA$599)+COUNTIF(CA$10:CA161,CA161)-1,IF(CN161>=$CO$8,"جميع المواد",CONCATENATE(DH161,DI161,DJ161,DK161,DL161,DM161,DN161,DO161,DP161,DQ161,DR161,DS161,DT161,DU161,DV161,DW161)))) -> 7 | CM161: =IF(F161="","",IF(CN161=0,RANK($CA161,$CA$10:$CA$599)+COUNTIF(CA$10:CA161,CA161)-"1","")) -> 7 | CN161: 0 | CO161: 0 | CP161: 0 | CQ161: 0 | CR161: 0 | CS161: 0 | CT161: 0 | CU161: 0 | CV161: 0 | CW161: 0 | CX161: 0 | CY161: 0 | CZ161: 0 | DA161: 0 | DB161: 0 | DC161: 0 | DD161: 0
B162: دور ثان | D162: 153 | E162: 53 | F162: طالب تجارة 53 | H162: 1/53 | I162: مستجد | J162: أنثي | K162: مسلم | L162: 30312151403243 | M162: 2003-12-15 | N162: =IF(الشيت!M162="","",CONCATENATE(DATEDIF(الشيت!M162,#REF!,"md")," - ",DATEDIF(الشيت!M162,#REF!,"ym")," - ",DATEDIF(الشيت!M162,#REF!,"y"))) ->  | O162: 153 | P162: 137 | S162: 9 | T162: 16 | U162: 25 | W162: 18 | X162: 18.5 | Y162: 36.5 | AA162: 9.5 | AB162: 8 | AC162: 17.5 | AE162: 16.5 | AF162: 19 | AG162: 35.5 | AI162: 6.5 | AJ162: 9 | AK162: 15.5 | AN162: 0 | AO162: 7 | AP162: 10 | AQ162: 17 | AR162: 7 | AS162: 7.5 | AT162: 14.5 | AU162: 14 | AV162: 17.5 | AW162: 31.5 | AY162: 10 | AZ162: 15.5 | BA162: 25.5 | BC162: 23 | BD162: 16.5 | BE162: 39.5 | BG162: 20 | BH162: 16.5 | BI162: 36.5 | BK162: 17.5 | BL162: 16.5 | BM162: 34 | BO162: 23.5 | BP162: 17.5 | BQ162: 41 | BS162: 17 | BT162: غ | BU162: 17 | BW162: 11 | BX162: 14.5 | BY162: 25.5 | BZ162: 198.5 | CA162: 339.5 | CB162: 4 | CC162: 8 | CD162: 8 | CE162: 20 | CF162: 4 | CG162: 8 | CH162: 8 | CI162: 20 | CJ162: جيد جدا | CK162: دور ثان | CL162: =IF(F162="","",IF(CN162=0,RANK($CA162,$CA$10:$CA$599)+COUNTIF(CA$10:CA162,CA162)-1,IF(CN162>=$CO$8,"جميع المواد",CONCATENATE(DH162,DI162,DJ162,DK162,DL162,DM162,DN162,DO162,DP162,DQ162,DR162,DS162,DT162,DU162,DV162,DW162)))) -> سكرتارية عربية | CM162: =IF(F162="","",IF(CN162=0,RANK($CA162,$CA$10:$CA$599)+COUNTIF(CA$10:CA162,CA162)-"1","")) ->  | CN162: 1 | CO162: 0 | CP162: 0 | CQ162: 0 | CR162: 0 | CS162: 0 | CT162: 0 | CU162: 0 | CV162: 0 | CW162: 0 | CX162: 0 | CY162: 0 | CZ162: 1 | DA162: 0 | DB162: 0 | DC162: 0 | DD162: 0 | DS162: سكرتارية عربية | DY162: سكرتارية عربية
B163: ناجح | C163: 191 | D163: 154 | E163: 53 | F163: طالب تجارة 53 | H163: 1/53 | I163: مستجد | J163: أنثي | K163: مسلم | L163: 30312151403243 | M163: 2003-12-15 | N163: =IF(الشيت!M163="","",CONCATENATE(DATEDIF(الشيت!M163,#REF!,"md")," - ",DATEDIF(الشيت!M163,#REF!,"ym")," - ",DATEDIF(الشيت!M163,#REF!,"y"))) ->  | O163: 153 | P163: 137 | S163: 7 | T163: 18 | U163: 25 | W163: 19 | X163: 17.5 | Y163: 36.5 | AA163: 9 | AB163: 8 | AC163: 17 | AE163: 16.5 | AF163: 20 | AG163: 36.5 | AI163: 6.5 | AJ163: 9 | AK163: 15.5 | AN163: 0 | AO163: 7 | AP163: 10 | AQ163: 17 | AR163: 7 | AS163: 9 | AT163: 16 | AU163: 14 | AV163: 19 | AW163: 33 | AY163: 12.5 | AZ163: 12.5 | BA163: 25 | BC163: 21 | BD163: 16.5 | BE163: 37.5 | BG163: 21.5 | BH163: 15 | BI163: 36.5 | BK163: 17.5 | BL163: 14 | BM163: 31.5 | BO163: 20 | BP163: 16.5 | BQ163: 36.5 | BS163: 17 | BT163: 8.5 | BU163: 25.5 | BW163: 9 | BX163: 11 | BY163: 20 | BZ163: 193.5 | CA163: 339.5 | CB163: 4 | CC163: 8 | CD163: 8 | CE163: 20 | CF163: 4 | CG163: 8 | CH163: 8 | CI163: 20 | CJ163: جيد | CK163: ناجح | CL163: =IF(F163="","",IF(CN163=0,RANK($CA163,$CA$10:$CA$599)+COUNTIF(CA$10:CA163,CA163)-1,IF(CN163>=$CO$8,"جميع المواد",CONCATENATE(DH163,DI163,DJ163,DK163,DL163,DM163,DN163,DO163,DP163,DQ163,DR163,DS163,DT163,DU163,DV163,DW163)))) -> 191 | CM163: =IF(F163="","",IF(CN163=0,RANK($CA163,$CA$10:$CA$599)+COUNTIF(CA$10:CA163,CA163)-"1","")) -> 191 | CN163: 0 | CO163: 0 | CP163: 0 | CQ163: 0 | CR163: 0 | CS163: 0 | CT163: 0 | CU163: 0 | CV163: 0 | CW163: 0 | CX163: 0 | CY163: 0 | CZ163: 0 | DA163: 0 | DB163: 0 | DC163: 0 | DD163: 0
B164: ناجح | C164: 171 | D164: 155 | E164: 53 | F164: طالب تجارة 53 | H164: 1/53 | I164: مستجد | J164: أنثي | K164: مسلم | L164: 30312151403243 | M164: 2003-12-15 | N164: =IF(الشيت!M164="","",CONCATENATE(DATEDIF(الشيت!M164,#REF!,"md")," - ",DATEDIF(الشيت!M164,#REF!,"ym")," - ",DATEDIF(الشيت!M164,#REF!,"y"))) ->  | O164: 153 | P164: 137 | S164: 13.5 | T164: 14 | U164: 27.5 | W164: 20.5 | X164: 19.5 | Y164: 40 | AA164: 9 | AB164: 8 | AC164: 17 | AE164: 16.5 | AF164: 17.5 | AG164: 34 | AI164: 5.5 | AJ164: 10 | AK164: 15.5 | AN164: 0 | AO164: 7 | AP164: 10 | AQ164: 17 | AR164: 7 | AS164: 9 | AT164: 16 | AU164: 14 | AV164: 19 | AW164: 33 | AY164: 17 | AZ164: 15 | BA164: 32 | BC164: 21 | BD164: 16.5 | BE164: 37.5 | BG164: 17.5 | BH164: 16.5 | BI164: 34 | BK164: 17.5 | BL164: 17.5 | BM164: 35 | BO164: 23.5 | BP164: 19 | BQ164: 42.5 | BS164: 19.5 | BT164: 12.5 | BU164: 32 | BW164: 7.5 | BX164: 14.5 | BY164: 22 | BZ164: 205.5 | CA164: 359.5 | CB164: 4 | CC164: 8 | CD164: 8 | CE164: 20 | CF164: 4 | CG164: 8 | CH164: 8 | CI164: 20 | CJ164: جيد جدا | CK164: ناجح | CL164: =IF(F164="","",IF(CN164=0,RANK($CA164,$CA$10:$CA$599)+COUNTIF(CA$10:CA164,CA164)-1,IF(CN164>=$CO$8,"جميع المواد",CONCATENATE(DH164,DI164,DJ164,DK164,DL164,DM164,DN164,DO164,DP164,DQ164,DR164,DS164,DT164,DU164,DV164,DW164)))) -> 171 | CM164: =IF(F164="","",IF(CN164=0,RANK($CA164,$CA$10:$CA$599)+COUNTIF(CA$10:CA164,CA164)-"1","")) -> 171 | CN164: 0 | CO164: 0 | CP164: 0 | CQ164: 0 | CR164: 0 | CS164: 0 | CT164: 0 | CU164: 0 | CV164: 0 | CW164: 0 | CX164: 0 | CY164: 0 | CZ164: 0 | DA164: 0 | DB164: 0 | DC164: 0 | DD164: 0
B165: ناجح | C165: 145 | D165: 156 | E165: 53 | F165: طالب تجارة 53 | H165: 1/53 | I165: مستجد | J165: أنثي | K165: مسلم | L165: 30312151403243 | M165: 2003-12-15 | N165: =IF(الشيت!M165="","",CONCATENATE(DATEDIF(الشيت!M165,#REF!,"md")," - ",DATEDIF(الشيت!M165,#REF!,"ym")," - ",DATEDIF(الشيت!M165,#REF!,"y"))) ->  | O165: 153 | P165: 137 | S165: 17.5 | T165: 13 | U165: 30.5 | W165: 19.5 | X165: 19.5 | Y165: 39 | AA165: 8.5 | AB165: 9 | AC165: 17.5 | AE165: 17.5 | AF165: 20 | AG165: 37.5 | AI165: 5 | AJ165: 10 | AK165: 15 | AN165: 0 | AO165: 7 | AP165: 10 | AQ165: 17 | AR165: 7 | AS165: 9 | AT165: 16 | AU165: 14 | AV165: 19 | AW165: 33 | AY165: 17 | AZ165: 16.5 | BA165: 33.5 | BC165: 20 | BD165: 17.5 | BE165: 37.5 | BG165: 21.5 | BH165: 19 | BI165: 40.5 | BK165: 20 | BL165: 17.5 | BM165: 37.5 | BO165: 23.5 | BP165: 20 | BQ165: 43.5 | BS165: 20 | BT165: 12.5 | BU165: 32.5 | BW165: 12.5 | BX165: 9.5 | BY165: 22 | BZ165: 219.5 | CA165: 376 | CB165: 4 | CC165: 8 | CD165: 8 | CE165: 20 | CF165: 4 | CG165: 8 | CH165: 8 | CI165: 20 | CJ165: جيد جدا | CK165: ناجح | CL165: =IF(F165="","",IF(CN165=0,RANK($CA165,$CA$10:$CA$599)+COUNTIF(CA$10:CA165,CA165)-1,IF(CN165>=$CO$8,"جميع المواد",CONCATENATE(DH165,DI165,DJ165,DK165,DL165,DM165,DN165,DO165,DP165,DQ165,DR165,DS165,DT165,DU165,DV165,DW165)))) -> 145 | CM165: =IF(F165="","",IF(CN165=0,RANK($CA165,$CA$10:$CA$599)+COUNTIF(CA$10:CA165,CA165)-"1","")) -> 145 | CN165: 0 | CO165: 0 | CP165: 0 | CQ165: 0 | CR165: 0 | CS165: 0 | CT165: 0 | CU165: 0 | CV165: 0 | CW165: 0 | CX165: 0 | CY165: 0 | CZ165: 0 | DA165: 0 | DB165: 0 | DC165: 0 | DD165: 0
B166: ناجح | C166: 151 | D166: 157 | E166: 53 | F166: طالب تجارة 53 | H166: 1/53 | I166: مستجد | J166: أنثي | K166: مسلم | L166: 30312151403243 | M166: 2003-12-15 | N166: =IF(الشيت!M166="","",CONCATENATE(DATEDIF(الشيت!M166,#REF!,"md")," - ",DATEDIF(الشيت!M166,#REF!,"ym")," - ",DATEDIF(الشيت!M166,#REF!,"y"))) ->  | O166: 153 | P166: 137 | S166: 12.5 | T166: 12.5 | U166: 25 | W166: 17.5 | X166: 19.5 | Y166: 37 | AA166: 9.5 | AB166: 8.5 | AC166: 18 | AE166: 17.5 | AF166: 16.5 | AG166: 34 | AI166: 7 | AJ166: 9.5 | AK166: 16.5 | AN166: 0 | AO166: 7 | AP166: 10 | AQ166: 17 | AR166: 7 | AS166: 9 | AT166: 16 | AU166: 14 | AV166: 19 | AW166: 33 | AY166: 17.5 | AZ166: 16.5 | BA166: 34 | BC166: 21.5 | BD166: 16.5 | BE166: 38 | BG166: 21.5 | BH166: 19 | BI166: 40.5 | BK166: 17.5 | BL166: 19 | BM166: 36.5 | BO166: 23.5 | BP166: 19 | BQ166: 42.5 | BS166: 19.5 | BT166: 14 | BU166: 33.5 | BW166: 11 | BX166: 14.5 | BY166: 25.5 | BZ166: 213 | CA166: 371.5 | CB166: 4 | CC166: 8 | CD166: 8 | CE166: 20 | CF166: 4 | CG166: 8 | CH166: 8 | CI166: 20 | CJ166: جيد جدا | CK166: ناجح | CL166: =IF(F166="","",IF(CN166=0,RANK($CA166,$CA$10:$CA$599)+COUNTIF(CA$10:CA166,CA166)-1,IF(CN166>=$CO$8,"جميع المواد",CONCATENATE(DH166,DI166,DJ166,DK166,DL166,DM166,DN166,DO166,DP166,DQ166,DR166,DS166,DT166,DU166,DV166,DW166)))) -> 151 | CM166: =IF(F166="","",IF(CN166=0,RANK($CA166,$CA$10:$CA$599)+COUNTIF(CA$10:CA166,CA166)-"1","")) -> 151 | CN166: 0 | CO166: 0 | CP166: 0 | CQ166: 0 | CR166: 0 | CS166: 0 | CT166: 0 | CU166: 0 | CV166: 0 | CW166: 0 | CX166: 0 | CY166: 0 | CZ166: 0 | DA166: 0 | DB166: 0 | DC166: 0 | DD166: 0
B167: دور ثان | D167: 158 | E167: 53 | F167: طالب تجارة 53 | H167: 1/53 | I167: مستجد | J167: أنثي | K167: مسلم | L167: 30312151403243 | M167: 2003-12-15 | N167: =IF(الشيت!M167="","",CONCATENATE(DATEDIF(الشيت!M167,#REF!,"md")," - ",DATEDIF(الشيت!M167,#REF!,"ym")," - ",DATEDIF(الشيت!M167,#REF!,"y"))) ->  | O167: 153 | P167: 137 | S167: 17.5 | T167: 17.5 | U167: 35 | W167: 18 | X167: 19.5 | Y167: 37.5 | AA167: 9.5 | AB167: 9 | AC167: 18.5 | AE167: 17.5 | AF167: 20 | AG167: 37.5 | AI167: 4.5 | AJ167: 7 | AK167: 11.5 | AN167: 0 | AO167: 8 | AP167: 10 | AQ167: 18 | AR167: 7 | AS167: 9 | AT167: 16 | AU167: 15 | AV167: 19 | AW167: 34 | AY167: 13.5 | AZ167: 17.5 | BA167: 31 | BC167: 21 | BD167: 17.5 | BE167: 38.5 | BG167: 21.5 | BH167: 19 | BI167: 40.5 | BK167: 17.5 | BL167: 17.5 | BM167: 35 | BO167: 22.5 | BP167: 21 | BQ167: 43.5 | BS167: 21 | BT167: 12.5 | BU167: 33.5 | BW167: 9.5 | BX167: 10.5 | BY167: 20 | BZ167: 211.5 | CA167: 372.5 | CB167: 4 | CC167: 8 | CD167: 8 | CE167: 20 | CF167: 4 | CG167: 8 | CH167: 8 | CI167: 20 | CJ167: جيد جدا | CK167: دور ثان | CL167: =IF(F167="","",IF(CN167=0,RANK($CA167,$CA$10:$CA$599)+COUNTIF(CA$10:CA167,CA167)-1,IF(CN167>=$CO$8,"جميع المواد",CONCATENATE(DH167,DI167,DJ167,DK167,DL167,DM167,DN167,DO167,DP167,DQ167,DR167,DS167,DT167,DU167,DV167,DW167)))) -> (حاسب نظرى) | CM167: =IF(F167="","",IF(CN167=0,RANK($CA167,$CA$10:$CA$599)+COUNTIF(CA$10:CA167,CA167)-"1","")) ->  | CN167: 1 | CO167: 0 | CP167: 0 | CQ167: 0 | CR167: 1 | CS167: 0 | CT167: 0 | CU167: 0 | CV167: 0 | CW167: 0 | CX167: 0 | CY167: 0 | CZ167: 0 | DA167: 0 | DB167: 0 | DC167: 0 | DD167: 0 | DK167: (حاسب نظرى) | DY167: مجموع التحريري
B168: ناجح | C168: 175 | D168: 159 | E168: 53 | F168: طالب تجارة 53 | H168: 1/53 | I168: مستجد | J168: أنثي | K168: مسلم | L168: 30312151403243 | M168: 2003-12-15 | N168: =IF(الشيت!M168="","",CONCATENATE(DATEDIF(الشيت!M168,#REF!,"md")," - ",DATEDIF(الشيت!M168,#REF!,"ym")," - ",DATEDIF(الشيت!M168,#REF!,"y"))) ->  | O168: 153 | P168: 137 | S168: 9.5 | T168: 15.5 | U168: 25 | W168: 20 | X168: 18 | Y168: 38 | AA168: 9 | AB168: 8 | AC168: 17 | AE168: 17.5 | AF168: 19 | AG168: 36.5 | AI168: 6.5 | AJ168: 9 | AK168: 15.5 | AN168: 0 | AO168: 7 | AP168: 10 | AQ168: 17 | AR168: 7 | AS168: 9 | AT168: 16 | AU168: 14 | AV168: 19 | AW168: 33 | AY168: 12 | AZ168: 17.5 | BA168: 29.5 | BC168: 21.5 | BD168: 16.5 | BE168: 38 | BG168: 21.5 | BH168: 19 | BI168: 40.5 | BK168: 17.5 | BL168: 16.5 | BM168: 34 | BO168: 23.5 | BP168: 20 | BQ168: 43.5 | BS168: 16.5 | BT168: 13.5 | BU168: 30 | BW168: 10.5 | BX168: 10.5 | BY168: 21 | BZ168: 202.5 | CA168: 358 | CB168: 4 | CC168: 8 | CD168: 8 | CE168: 20 | CF168: 4 | CG168: 8 | CH168: 8 | CI168: 20 | CJ168: جيد جدا | CK168: ناجح | CL168: =IF(F168="","",IF(CN168=0,RANK($CA168,$CA$10:$CA$599)+COUNTIF(CA$10:CA168,CA168)-1,IF(CN168>=$CO$8,"جميع المواد",CONCATENATE(DH168,DI168,DJ168,DK168,DL168,DM168,DN168,DO168,DP168,DQ168,DR168,DS168,DT168,DU168,DV168,DW168)))) -> 175 | CM168: =IF(F168="","",IF(CN168=0,RANK($CA168,$CA$10:$CA$599)+COUNTIF(CA$10:CA168,CA168)-"1","")) -> 175 | CN168: 0 | CO168: 0 | CP168: 0 | CQ168: 0 | CR168: 0 | CS168: 0 | CT168: 0 | CU168: 0 | CV168: 0 | CW168: 0 | CX168: 0 | CY168: 0 | CZ168: 0 | DA168: 0 | DB168: 0 | DC168: 0 | DD168: 0
B169: دور ثان | D169: 160 | E169: 53 | F169: طالب تجارة 53 | H169: 1/53 | I169: مستجد | J169: أنثي | K169: مسلم | L169: 30312151403243 | M169: 2003-12-15 | N169: =IF(الشيت!M169="","",CONCATENATE(DATEDIF(الشيت!M169,#REF!,"md")," - ",DATEDIF(الشيت!M169,#REF!,"ym")," - ",DATEDIF(الشيت!M169,#REF!,"y"))) ->  | O169: 153 | P169: 137 | S169: 4.5 | T169: غ | U169: 4.5 | W169: 20 | X169: 17 | Y169: 37 | AA169: 9 | AB169: 10.5 | AC169: 19.5 | AE169: 16.5 | AF169: 20 | AG169: 36.5 | AI169: 7 | AJ169: 8.5 | AK169: 15.5 | AN169: 0 | AO169: 7 | AP169: 10 | AQ169: 17 | AR169: 7 | AS169: 9 | AT169: 16 | AU169: 14 | AV169: 19 | AW169: 33 | AY169: 12.5 | AZ169: 17 | BA169: 29.5 | BC169: 22.5 | BD169: 14 | BE169: 36.5 | BG169: 19 | BH169: 19 | BI169: 38 | BK169: 20 | BL169: 15 | BM169: 35 | BO169: 23.5 | BP169: 20 | BQ169: 43.5 | BS169: 19 | BT169: 12.5 | BU169: 31.5 | BW169: 10 | BX169: 10.5 | BY169: 20.5 | BZ169: 200.5 | CA169: 337 | CB169: 4 | CC169: 8 | CD169: 8 | CE169: 20 | CF169: 4 | CG169: 8 | CH169: 8 | CI169: 20 | CJ169: جيد جدا | CK169: دور ثان | CL169: =IF(F169="","",IF(CN169=0,RANK($CA169,$CA$10:$CA$599)+COUNTIF(CA$10:CA169,CA169)-1,IF(CN169>=$CO$8,"جميع المواد",CONCATENATE(DH169,DI169,DJ169,DK169,DL169,DM169,DN169,DO169,DP169,DQ169,DR169,DS169,DT169,DU169,DV169,DW169)))) -> لغة عربية | CM169: =IF(F169="","",IF(CN169=0,RANK($CA169,$CA$10:$CA$599)+COUNTIF(CA$10:CA169,CA169)-"1","")) ->  | CN169: 1 | CO169: 1 | CP169: 0 | CQ169: 0 | CR169: 0 | CS169: 0 | CT169: 0 | CU169: 0 | CV169: 0 | CW169: 0 | CX169: 0 | CY169: 0 | CZ169: 0 | DA169: 0 | DB169: 0 | DC169: 0 | DD169: 0 | DH169: لغة عربية | DY169: لغة عربية
B170: ناجح | C170: 166 | D170: 161 | E170: 53 | F170: طالب تجارة 53 | H170: 1/53 | I170: مستجد | J170: أنثي | K170: مسلم | L170: 30312151403243 | M170: 2003-12-15 | N170: =IF(الشيت!M170="","",CONCATENATE(DATEDIF(الشيت!M170,#REF!,"md")," - ",DATEDIF(الشيت!M170,#REF!,"ym")," - ",DATEDIF(الشيت!M170,#REF!,"y"))) ->  | O170: 153 | P170: 137 | S170: 13.5 | T170: 12.5 | U170: 26 | W170: 16.5 | X170: 16.5 | Y170: 33 | AA170: 8.5 | AB170: 9 | AC170: 17.5 | AE170: 17.5 | AF170: 19 | AG170: 36.5 | AI170: 4 | AJ170: 11.5 | AK170: 15.5 | AN170: 0 | AO170: 7 | AP170: 10 | AQ170: 17 | AR170: 7 | AS170: 9 | AT170: 16 | AU170: 14 | AV170: 19 | AW170: =IF(AND($B$1="",AU170="غائب",AV170="غائب"),"غائب",SUM(AU170:AV170)) -> 33 | AY170: 15.5 | AZ170: 17 | BA170: 32.5 | BC170: 20 | BD170: 17.5 | BE170: 37.5 | BG170: 17.5 | BH170: 19 | BI170: 36.5 | BK170: 20 | BL170: 17.5 | BM170: 37.5 | BO170: 23.5 | BP170: 20 | BQ170: 43.5 | BS170: 19.5 | BT170: 13.5 | BU170: 33 | BW170: 9.5 | BX170: 14 | BY170: 23.5 | BZ170: 202.5 | CA170: 362 | CB170: 4 | CC170: 8 | CD170: 8 | CE170: 20 | CF170: 4 | CG170: 8 | CH170: 8 | CI170: 20 | CJ170: جيد جدا | CK170: ناجح | CL170: =IF(F170="","",IF(CN170=0,RANK($CA170,$CA$10:$CA$599)+COUNTIF(CA$10:CA170,CA170)-1,IF(CN170>=$CO$8,"جميع المواد",CONCATENATE(DH170,DI170,DJ170,DK170,DL170,DM170,DN170,DO170,DP170,DQ170,DR170,DS170,DT170,DU170,DV170,DW170)))) -> 166 | CM170: =IF(F170="","",IF(CN170=0,RANK($CA170,$CA$10:$CA$599)+COUNTIF(CA$10:CA170,CA170)-"1","")) -> 166 | CN170: 0 | CO170: 0 | CP170: 0 | CQ170: 0 | CR170: 0 | CS170: 0 | CT170: 0 | CU170: 0 | CV170: 0 | CW170: 0 | CX170: 0 | CY170: 0 | CZ170: 0 | DA170: 0 | DB170: 0 | DC170: 0 | DD170: 0
B171: ناجح | C171: 168 | D171: 162 | E171: 53 | F171: طالب تجارة 53 | H171: 1/53 | I171: مستجد | J171: أنثي | K171: مسلم | L171: 30312151403243 | M171: 2003-12-15 | N171: =IF(الشيت!M171="","",CONCATENATE(DATEDIF(الشيت!M171,#REF!,"md")," - ",DATEDIF(الشيت!M171,#REF!,"ym")," - ",DATEDIF(الشيت!M171,#REF!,"y"))) ->  | O171: 153 | P171: 137 | S171: 11 | T171: 14 | U171: 25 | W171: 19.5 | X171: 20 | Y171: 39.5 | AA171: 9.5 | AB171: 7.5 | AC171: 17 | AE171: 17.5 | AF171: 19 | AG171: 36.5 | AI171: 7.5 | AJ171: 9 | AK171: 16.5 | AN171: 0 | AO171: 7 | AP171: 10 | AQ171: 17 | AR171: 7 | AS171: 9 | AT171: 16 | AU171: 14 | AV171: 19 | AW171: 33 | AY171: 13.5 | AZ171: 14 | BA171: 27.5 | BC171: 21.5 | BD171: 17.5 | BE171: 39 | BG171: 21.5 | BH171: 17.5 | BI171: 39 | BK171: 15 | BL171: 16.5 | BM171: 31.5 | BO171: 22.5 | BP171: 17.5 | BQ171: 40 | BS171: 17.5 | BT171: 12 | BU171: 29.5 | BW171: 13 | BX171: 14 | BY171: 27 | BZ171: 206.5 | CA171: 361 | CB171: 4 | CC171: 8 | CD171: 8 | CE171: 20 | CF171: 4 | CG171: 8 | CH171: 8 | CI171: 20 | CJ171: جيد جدا | CK171: ناجح | CL171: =IF(F171="","",IF(CN171=0,RANK($CA171,$CA$10:$CA$599)+COUNTIF(CA$10:CA171,CA171)-1,IF(CN171>=$CO$8,"جميع المواد",CONCATENATE(DH171,DI171,DJ171,DK171,DL171,DM171,DN171,DO171,DP171,DQ171,DR171,DS171,DT171,DU171,DV171,DW171)))) -> 168 | CM171: =IF(F171="","",IF(CN171=0,RANK($CA171,$CA$10:$CA$599)+COUNTIF(CA$10:CA171,CA171)-"1","")) -> 168 | CN171: 0 | CO171: 0 | CP171: 0 | CQ171: 0 | CR171: 0 | CS171: 0 | CT171: 0 | CU171: 0 | CV171: 0 | CW171: 0 | CX171: 0 | CY171: 0 | CZ171: 0 | DA171: 0 | DB171: 0 | DC171: 0 | DD171: 0
